Workbook

Sheet Planned (hidden)
N1: =TRANSPOSE(Arrangements[Occupancy arrangement]) -> حفر - صخرة | O1: حفر - التربة | P1: ردم | Q1: هدم الجدران | R1: إزالة نواتج الحفر | S1: بيتون عادي 250 كجم / م 3 | T1: بيتون عادي 150 كجم / متر مكعب | U1: بيتون مغموس 250 كجم / م 3 | V1: بيتون مسلح 350 كجم / م 3 Ø 8 مم | W1: بيتون مسلح 350 كجم / م 3 Ø 10 مم | X1: درج بيتوني | Y1: رمبه خرسانيه | Z1: حوائط بلوك خرساني 15 سم | AA1: حوائط بلوك خرساني 10 سم | AB1: حوائط بلوك خرساني 20 سم | AC1: جدار حجر | AD1: تفكيك جدار بلوك | AE1: إطار حجري للنافذة أو الباب | AF1: زريقه اسمنتيه | AG1: رشة تيرولية | AH1: إزالة الزريقة الاسمنتيه التالفة | AI1: ملء الشقوق في الجدران بالمعجون | AJ1: ملء الشقوق في الجدران بين الباب و الشباك | AK1: اغلاق فتحه في الحائط (50-100 سم) | AL1: اغلاق فتحة في الحائط (30-50 سم) | AM1: طلاء العزل | AN1: العزل - مادة أساسها الاكريليك | AO1: حاجز مقاوم للماء | AP1: ارضيات سيراميك | AQ1: أرضيات بلاط الحجر | AR1: سيراميك للحوائط | AS1: طلاء طرش | AT1: دهان زياتي | AU1: عتبة حجر الباب | AV1: صبة اسمنتية عيار البيتون 250 كغ / م 3 سم بدون حديد تسليح مع الصقل سماكة 5 سم | AW1: زريقة عيار بيتون 400 كغ/م3 مع إضافة مادة بوليبونت بنسبة 1 كغ/ 50 كغ اسمنت مع معالجة حديد السقف | AX1: نوافذ خشبية | AY1: حاجب خشبي (برواز)للنافذة أو الباب | AZ1: باب من الخشب معاكس | BA1: باب من خشب (سويد) | BB1: عضادات الأبواب الخشبية باطار من خشب سويد ( ملبن الخشب ) | BC1: زجاج النوافذ الخشبية | BD1: زجاج النافذة الخشبية - زجاج الفايبر | BE1: إصلاح كشف الباب الخشبي | BF1: إصلاح إطار الباب الخشبي | BG1: دهان باب خشبي | BH1: مفصلات الأبواب الخشبية | BI1: قفل أو مقبض باب خشبي أو النافذة | BJ1: قفل باب خشبي | BK1: قاطع خشبي | BL1: ألواح فورمايكا | BM1: باب حديد | BN1: نافذة حديدية | BO1: استبدال نافذة الحديد | BP1: تثبيت إطار الباب الحديد أو النافذة | BQ1: إصلاح الباب الحديد | BR1: مقبض الباب الحديد | BS1: طلاء الباب الحديد | BT1: استبدال مفصلات الأبواب الحديدية | BU1: زجاج النافذة الحديدية - زجاج فايبر | BV1: نافذة زجاجية من الحديد | BW1: درابزين حديدي | BX1: صندوق حديدي | BY1: شبك حماية لنافذة حديدية | BZ1: بوابة حديدية | CA1: إصلاح البوابة الحديدية | CB1: قفل الباب من نوع دقر ل باب معدني | CC1: رمبه حديديه | CD1: درابزين حديدي لمنحدر | CE1: قبضة مسند معدنية للتواليت الافرانجي | CF1: سقف مصنوع من الصاج المزيبق | CG1: قاعدة خزان المياه | CH1: الأسقف (الساندوتش بانيل) | CI1: عناصر الحديد المجلفن | CJ1: نافذة سحاب من الألومنيوم | CK1: درفه نافذة سحاب الالمنيوم | CL1: نافذة الألمنيوم قلاب | CM1: لوح زجاجي بولي كربونات سماكة 5مم للنافذة الالمنيوم | CN1: لوح زجاجي سماكة 5مم للنافذة الالمنيوم | CO1: صيانة الابواب والشبابيك الالمنيوم او البي في سي | CP1: باب المنيوم | CQ1: باب PVC | CR1: نافذة PVC | CS1: مغسلة بورسلين | CT1: حوض ستانلس ستيل | CU1: حنفيه ماء | CV1: خلاط المياه | CW1: مجلى ستينلس ستيل | CX1: كاونتر مطبخ من الحجر مع وقافات حجر 8سم | CY1: مرحاض القرفصاء | CZ1: بطه حمام | DA1: نبريش مرش يدوي | DB1: مصرف أرضيه ستينلس | DC1: مواسير PPR لنظام مياه الشرب 0.75 انش | DD1: مواسير PPR لنظام مياه الشرب 0.5 انش | DE1: مواسير PPR لنظام مياه الشرب 1 انش | DF1: 2 "أنابيب PVC | DG1: 4 "أنابيب PVC | DH1: 6 "أنابيب PVC | DI1: 8 "أنابيب PVC | DJ1: خزان مياه من الحديد المجلفن سعة 250 لتر | DK1: خزان مياه من الحديد المجلفن 1000 لتر | DL1: خزان مياه من الحديد المجلفن سعة 2000 لتر | DM1: فواشة لخزانات المياه | DN1: غطاء معدني لجورة الفنية | DO1: مزراب نازل مطري قسطل pvcقطر 2 انش | DP1: وصله مرحاض (نوع S) | DQ1: (تسليك )للمراحيض ونظام الصرف الصحي | DR1: إزالة جميع التوصيلات الكهربائية الخاطئة و الخطرة | DS1: نبريش مرن لجميع التوصيلات الكهربائية المكشوفة | DT1: لمبة اضاءة ليد | DU1: نقطة إنارة كهربائية | DV1: تثبيت حامل اللمبة (سوكة) | DW1: تركيب مفتاح كهربائي (ابريز) | DX1: مقبس كهربائي | DY1: نقطة مأخذ كهربائي | DZ1: قاطع دائرة | EA1: مروحة التهوية | EB1: الألواح الشمسية 150 وات | EC1: الألواح الشمسية 250 وات افضل نوع | ED1: شريط إضاءة LED | EE1: منظم شحن | EF1: بطارية جل | EG1: بطارية سائلة | EH1: انفرتر | EI1: هيكل تركيب الألواح الكهروضوئية | EJ1: كابل كهربائي 1.5 مم | EK1: كابل كهربائي 2.5 مم
N2: Excavation (rock) down to the level of columns and walls' foundation, or for pipes trenches and septic tanks, excavation remnants must be moved to the nearest approved dumping site. according to the GOAL Engineer directions. The price of the excavation includes all the required works to ensure safety of workers and beneficiaries. | O2: Excavation (different soil types) down to the level of columns and walls' foundation, or for pipes trenches and septic tanks, excavation remnants must be moved to the nearest approved dumpsite. according to the GOAL Engineer directions. The price of the excavation includes all the required works to ensure safety of workers and beneficiaries. | P2: Backfill the open pits and trenches using materials approved by the GOAL Engineer (backfilling materials: either from the same site, approved excavated materials or by using gravels) | Q2: Demolishing of damaged and cracked walls, work shall be done manually or using machinery as available and appropriate for each the site. Rubbles should be moved to approved dumpsites, so it does not cause any damage to any person or agricultural land. The work includes demolishing structural elements, concrete block and stone walls, cyclopean concrete, windows, and door...) and other parts specified by the GOAL Engineer (manually or using pneumatic drill), taking into consideration safety and security conditions. | R2: Removal and transport of excavated materials or rubbles to approved dumpsites, so it does not cause any damage to any person or agricultural land. | S2: providing and pouring concrete, cement caliber 250 kg/m³ to cover cracks or cover flooring, with smoothing, thickness of layer 10 cm with spraying with water, with all the needed form works according to the directive of GOAL Engineer. | T2: providing and pouring concrete, cement caliber 150 kg/m³ to cover cracks or cover flooring, with smoothing, thickness of layer 10 cm with spraying with water, with all the needed form works according to the directive of GOAL Engineer. | U2: providing and pouring cyclopean concrete, cement caliber 250 kg/m³ to construct elements, with spraying with water, with all the needed form works according to the directive of GOAL Engineer. | V2: providing and pouring reinforced concrete caliber 350 kg/m³ Ø 8mm to repair and fill the structural elements, with smoothing, with spraying water with all the needed form works. with all the needed form works according to the directive of GOAL Engineer. | W2: providing and pouring reinforced concrete caliber 350 kg/m³ Ø 10 mm to repair and fill the structural elements, with smoothing, with spraying water with all the needed form works. with all the needed form works according to the directive of GOAL Engineer. | X2: Construction of RC stair 10 steps length (1-2 m), riser (15-18 cm), and tread (25-27 cm) with all the needed form works according to the directive of GOAL Engineer. | Y2: Construction of a reinforced concrete ramp with a maximum slope 1:10 and a minimum width of 90 cm | Z2: Supply and install hollow bricks (40*20*20 cm) with 100kg/m³ density for completing internal and external walls and filling open holes. Half-bond the installation should carried out with all needed cement sand mortar (1:3) mix 13 mm between the constructed rows, water spraying, and all related finishing works according to the instruction of the GOAL Engineer. | AA2: Supply and install hollow bricks (40*20*15 cm) with 100kg/m³ density for completing internal and external walls and filling open holes. Half-bond the installation should carried out with all needed cement sand mortar (1:3) mix 13 mm between the constructed rows, water spraying, and all related finishing works according to the instruction of the GOAL Engineer. | AB2: Supply and install hollow bricks (40*20*10 cm) with 100kg/m³ density for completing internal and external walls and filling open holes. Half-bond the installation should carried out with all needed cement sand mortar (1:3) mix 13 mm between the constructed rows, water spraying, and all related finishing works according to the instruction of the GOAL Engineer. | AC2: Provide and install hand fixed normal rock for completing walls the installation should carried out with all needed cement sand mortar (1:3) mix 13 mm between the constructed rows, water spraying, and all related finishing works according to the instruction of the GOAL Engineer. | AD2: Disassemble block walls with the aim of reusing undamaged blocks in building new walls and removing of demolition products and transporting to dumpsites according to the directive of GOAL Engineer. | AE2: provide and install stone frame for doors and windows | AF2: Cement plastering (max thickness 25 mm) in two coats (coarse, soft) with using cement caliber is 250 kg/m³ coarse aggregate in the first layer and fine in the second with spraying with water, finish surface should be ready for painting according to the directive of GOAL Engineer. | AG2: Applying Tyrolean wall coating with white and Portland cement 400kg/m³, the spraying must be done by a spraying machine, so that the plaster must be leveled and equal in its thickness with no less than two faces, including the removal of damaged plaster underneath the Tyrolean coating according to the directive of GOAL Engineer. | AH2: Removing damaged cement plastering | AI2: Fixing cracks in walls with cement mortar 1:3 mix with all necessary | AJ2: Fill all spaces between (door or window) and (wall) with putty with all necessary | AK2: Close hole in wall width (30-50cm) and height (30-50cm), with cement mortar 1:3 mix with all necessary | AL2: Close hole in wall width (50-100cm) and height (50-100 cm), with cement mortar 1:3 mix with all necessary | AM2: Supply and install insulation material for from SUTUT Turkish brand or equivalent. The surface should be painted with the material well until the concrete is fully saturated by the material, using the roller only. As for the corners, it should be painted well and at least 20cm high of the parapets should be painted by the material. Therefore, the one kilogram covers an area of no more than 4 m^2. The cost includes spraying Soft sand over the insulating layer. All work must be in accordance with the instructions and directions of the GOAL Engineer. | AN2: Supply and install insulation material Rubber Acrylic for roofs and walls foundations’ insulation material is the rubber acrylic First class quality. The surface must be cleaned completely by a water pump and a metal brush, then it will rubbed-in with the material until satiation. The isolation material must be laid by paint brushes and squeegees to ensure full coverage of the area, especially the edges and with sufficient thickness. | AO2: Providing and installing waterproof barrier (tarpaulins) for roofs, fixed using wooden bars with thickness of 3 cm and width of 5 cm or metal bars 1 inch. The wooden bars fix the tarpaulin from the wall's top surface and additional crossing bars must be added every 1.5 m. | AP2: Providing and installation of ceramics floors with skirting and all necessary to complete the work | AQ2: Install crushed stone tiles for all damaged floors in facilities with providing required layers of sand and mortar below it and grout. | AR2: Install ceramic wall tiles for walls including mortar, grout. | AS2: Emulsion paint for walls, this includes prep work for the wall (Remove the damaged old paint by brush, sanding and applying putty) then two coats of paint. When calculating the quantity of the paints, all the walls and surfaces are calculated excluding openings and counting any additions of edges and others. | AT2: Oil-based paint for walls, this includes prep work for the wall (Remove the damaged old paint by brush, sanding and applying putty) then two coats of paint. When calculating the quantity of the paints, all the walls and surfaces are calculated excluding openings and counting any additions of edges and others. | AU2: Install stone threshold for the bathroom, kitchen, or entrance door. Dimensions according to the opening, thickness 2cm minimum, 20 cm in width with all necessary to complete the work | AV2: Plain concrete slab on grade 250 kg/m3 , 5 cm thickness | AW2: Cement plastering 400 kg/m3 with adding polybond 1:50 kg ratio, with cleaning steel rebars before the application | AX2: Provide and install a pine wooden casement window with 2 hinges for each side, 5 mm glazing, frame, lock and handles, and all other accessories, finished with under coat and two coats of paints) this includes filling the spaces between the wall and the door frame using mortar, spraying foam, silicon. | AY2: Install a wooden casing for window or door, width 5 cm) and thickness (1 cm), this includes filling the spaces between the wall and the door frame using mortar, spraying foam, silicon. | AZ2: Install a plywood door, complete with (frame, casing, side jambs, lock, handle, hinges) and all other accessories, finished with under coat and two coats of paints) this includes filling the spaces between the wall and the door frame using mortar, spraying foam, silicon. | BA2: Install a pine wood class 3 door internal and or external use, complete with (frame, casing, side jambs, lock, handle,3 hinges) and all other accessories, finished with under coat and two coats of paints) this includes filling the spaces between the wall and the door frame using mortar, spraying foam, silicon. | BB2: Replace wooden door jambs with pine wood frame third class width 12 cm Thickness of 5 under coat and two coats of paints with necessary accessories to retain the door to the intended use | BC2: Supply and install glass thickness of 5 mm for window, with all necessary to complete the work | BD2: Supply and install Polycarbonate glass plates plate thickness of 5 mm for window, with all necessary to complete the work | BE2: Repair frame for required wooden doors, includes filling the spaces between the wall and the door frame using mortar, spraying foam, silicon or plastering. | BF2: Repair wooden door including reinstalling lock, hinge, handle, or close an opening that ranges in dimension between 50 to 100 cm in length and 20 to 50 cm in width with all necessary items to complete the work | BG2: paint wooden door, including jambs and casing, fill all cracks sanding, and paint primer coat, then under coat and finishing coats) | BH2: Install hinges for wooden doors, with all necessary to complete the work | BI2: Replace wooden door or window lock and handle, with all necessary to complete the work | BJ2: Install a new lock for required wooden doors in building, with all necessary to complete the work | BK2: Install wooden partition including wooden frame and all required item for fixing the wooden panels | BL2: Supply and install laminated wood panels with wooden frame to closing the gaps above doors and windows with dimension width (140-160) cm and height (25-40) cm according to the directive of GOAL Engineer. | BM2: Supply and install of steel doors the width between (80-100) cm and height between (180-210) cm with metal handle and frame section 3X4 CM Profile and the door Profile section door is covered with iron sheet thickness of 2 mm, door weight of 70 kg. with Lock/keys and 3 hinges 16 mm) spray painted with 1 layer of prime coat and 2 coats of oil-based paint | BN2: Supply and install iron casement window the width between (80-100) cm and height between (80-110) cm frame section 3X4 CM profiles and the window section profile 3X4 CM with glazing, window Weight 30 kg with a Lock and 2 hinges (12 mm) good quality for each side with spray painted with 1 layer of prime coat and 2 coats of oil-based paint | BO2: Install/replace steel window casement spray painted with 1 layer of prime coat and 2 coats of oil-based paint | BP2: Fixing steel frame for door or window | BQ2: Repair steel door or window including closing holes and reinstalling lock, hinge, handle, or close an opening with galvanized steel sheet thickness 2 mm and adding flat iron bar with welding on old doors with different dimension with all necessary items to complete the work | BR2: Install a new lock and handle for required steel doors | BS2: paint steel door and frame, sanded, spray painted with 1 layer of prime coat and 2 coats of oil-based paint | BT2: Replace hinges for steel doors, with all necessary to complete the work | BU2: Supply and install Polycarbonate glass plates plate thickness of 5 mm for steel window, with all necessary to complete the work | BV2: Supply and install glass thickness of 5 mm for steel window, with all necessary to complete the work | BW2: Install safety tools to prevent falls, such as steel handrails not less than 90cm high | BX2: Install steel box made of steel bars for communal drinking points to protect them against robbery | BY2: Install window's steel security bars, with all necessary to complete the work | BZ2: Install external steel gate for building | CA2: Install a new perforated plate for main gate | CB2: Install a door latch lock on steel door | CC2: Install ramp for disabled, high 30 cm with required paint | CD2: Supply and install metal pipe 2 mm thickness 5 cm diameter hollow section Disability Handrail | CE2: Supply and Install steel handles for Toilets | CF2: Supply and install roof made of galvanized corrugated sheet 0.5 mm and fixing by using steel profile in two direction (5x3x0.2) cm with 1 m spacing, fixing with screw and sealing off any openings between ceiling and wall using cement mortar | CG2: Supply and install elevated metal base for fixing water tank on using metal tubes profile (4x4) cm thickness of 4mm and angles 3x3 cm thickness of 4mm with base spray painted with 1 layer of prime coat and 2 coats of oil-based paint | CH2: Providing/Replacement Roofing (Sandwich Panel (supply and install sandwich panel for the roofs, fixed on steel frame and overhanging of 15 cm from all sides. structural frame (tube 4cm*6cm*2mm), additional tubes should be provided to the structure every 1.5 m, include painting all the frame with anti-rust paint base and two layers of paint. Proper flashing with steel or PVC angles if the walls are of sandwich panels. block work to ensure minimum inclination of removing the existing damaged roofs if exist, restoring any existing lights, ceiling fans, on roof tanks and piping to the new roofs after the installation, installation of rainwater drainage gutters and down spout, with all the related works and accessories and as instructed by the GOAL engineer. | CI2: Provide and install galvanized steel items with all necessary. | CJ2: Install aluminum sliding window complete with the frame, glazing fixed by glazing bead and sealed with rubber, lock, rollers, sliding panel, weather stripping, and all necessary accessories and wire mesh fly screen. this includes filling the spaces between the wall and the door frame using mortar, spraying foam, silicon. | CK2: Install aluminum sliding window panel with glazing fixed by glazing bead and sealed with rubber, and lock. | CL2: Install aluminum awning window with glazing fixed by glazing bead and sealed with rubber, handle, weather stripping, linkage set and all necessary accessories and wire mesh fly screen. this includes filling the spaces between the wall and the door frame using mortar, spraying foam, silicon. | CM2: Supply and install Polycarbonate glass plates plate thickness of 5 mm for window with the installation of rubber sealant | CN2: Supply and install glass for window thickness of 5 mm for window with the installation of rubber sealant Glass panel must be free of from flaws, fractures, or any other defects | CO2: Maintenance of Aluminum or PVC Items (doors and windows) | CP2: Supply and install painted aluminum door width 6 cm with frame, side jambs, lock, handle with the installation PVC infill panels and middle bars this includes filling the spaces between the wall and the door frame using mortar, spraying foam, silicon. | CQ2: Supply and install ready-made PVC door “ray pen” or “sega pen” or equivalent brand in brown or white color including all accessories. All PVC profile sections should be with thickness not less than 1,5 mm. The glass to be fixed with non-degradable rubber gaskets on both ends. The frame should be fixed well on the wall with screws and filling the spaces between the wall and the door frame using Mortar, spraying foam, silicon. The price includes adjusting the dimensions of the doors inside the house to match the dimensions of the readymade doors available on the market. | CR2: Supply and install ready-made PVC window “ray pen” or “sega pen” or equivalent brand in brown or white color including all accessories. All PVC profile sections should be with thickness not less than 1,5 mm. The glass to be fixed with non-degradable rubber gaskets on both ends. The frame should be fixed well on the wall with screws and filling the spaces between the wall and the door frame using Mortar, spraying foam, silicon. | CS2: Supply and install of porcelain washbasin with a column Turkey (OMEGA) brand, with dimension (55x43) cm and with accessories and fixing on wall with adding white or transparent silicon to close the gaps between the sink and its surrounding according to the field and the directive of GOAL Engineer. | CT2: Supply and install of steel washbasin with dimension (100x45) cm and with accessories and fixing on wall with adding white or transparent silicon to close the gaps between the sink and its surrounding according to the field and the directive of GOAL Engineer. | CU2: Install a copper core water tap, with all necessary to complete the work | CV2: supply and install water mixer copper covered with chrome according to the field and the directive of GOAL Engineer. | CW2: Install a stainless-steel sink drop-In at least 80 x 50 cm double equal bowl and 1-hole with all necessary connections and hardware | CX2: Install smooth stone countertop beside the sink a supported by stone frame base 8 cm | CY2: Provision and Replacement of damaged squatting pan by new porcelain squatting W.C. (L=55, W=30, H=27) cm and installs it with (S connection) and all required fittings & accessories. This item includes all needed works for eliminating the old damaged squatting, and includes drillings and backfilling works and transport of excess excavations according to GOAL engineer instructions. | CZ2: Provide and install a toilet seat, works include all accessories needed (Elbow and pipes), fixation with mortar (sand and cement) | DA2: Install a hand spray complete set in the latrine, with all necessary to complete the work | DB2: Supply and install stainless steel floor trap with cover, Delphine brand or equivalent in specified places according to the field and the directive of GOAL Engineer. | DC2: Provide and install PPR pipes for drinking water system 0.5 inch "M" Pipes used for this system must be (PPR), thickness not less than 3.5mm, pressure 10 bar All accessories of metal joint, ends and connections, with fixing the pipes using cement and trench digging | DD2: Provide and install PPR pipes for drinking water system 0.75 inch "M" Pipes used for this system must be (PPR), thickness not less than 3.5mm, pressure 10 bar All accessories of metal joint, ends and connections, with fixing the pipes using cement and trench digging | DE2: Provide and install PPR pipes for drinking water system 1 inch "M" Pipes used for this system must be (PPR), thickness not less than 3.5mm, pressure 10 bar All accessories of metal joint, ends and connections, with fixing the pipes using cement and trench digging | DF2: Supply and install of PVC pipes, 2 inches diameter weight of with compatible accessories with digging and backfilling according to the directive of GOAL Engineer. | DG2: Supply and install of PVC pipes, 4 inches diameter weight of with compatible accessories with digging and backfilling according to the directive of GOAL Engineer. | DH2: Supply and install of PVC pipes, 6 inches diameter weight of with compatible accessories with digging and backfilling according to the directive of GOAL Engineer. | DI2: Supply and install of PVC pipes, 8 inches diameter weight of with compatible accessories with digging and backfilling according to the directive of GOAL Engineer. | DJ2: Providing and installing (250-liter, 1 mm thickness) water tank and all needed PPR connections, fittings, valves and all necessary to carry out the work according to the GOAL Engineer instructions | DK2: Provide and install a tank of thickness 1.2 mm type of galvanized and size of 1000 liters with a hole and a roof lock 50 * 50 cm and the dimensions of the tank 1 * 1 * 1 m with the and brass valve 1/2-inch number3 and the accessories to the taps Working with 30 cm legs and inner reinforcement horizontal corners of the galvanized and galvanized as directed by GOAL Engineer | DL2: Provide and install a tank of thickness 1.2 mm type of galvanized and size of 2000 liters with a hole and a roof lock 50 * 50 cm and the dimensions of the tank 1 * 1 * 1 m with the and brass valve 1/2-inch number3 and the accessories to the taps Working with 30 cm legs and inner reinforcement horizontal corners of the galvanized and galvanized as directed by GOAL Engineer | DM2: Install new floating valve for the water tanks, with all necessary to complete the work | DN2: Provision and installation of a metal lid for the septic tank according to the following specifications: 1- dimensions of the roof: 2.5*2.5 m 2- rectangle metal beams (the Cross-section dimensions: 40*60*2 mm). the total length of metal profiles at least 16 linear meter) and. the roof includes a slot (dimensions: 40*40 cm) equipped handle and lock according to the supervisor instructions. 3 - galvanized metal sheets and corrugated (thickness 0.6 mm, Wave height: 18mm (+/-2) mm. Wave distance: 76.2mm (+/-3) mm.) for septic tank roof, it will be fixed above the steel beams by suitable bolts | DO2: Provide and install pvc pipe2 inch for rainwater drainage gutter with all the necessary elbows and connection and fixing to the wall according to the directions of GOAL Engineer | DP2: Provision and installation of toilet trap (S type) with all connections | DQ2: Mechanical Declogging of toilet drains and the sewage system the toilets must be cleaned and emptied well until the water is well discharged. • It must be done by pumping water and spring methods or drilling if necessary, • All drainages and sewers inside one house or one toilets block are considered one unit. | DR2: Remove all faulty wiring and electrical connections | DS2: Install electrical wire flexible conduit to cover all uncovered electrical wiring | DT2: Provision and installation of soft LED light ready to use | DU2: supply and installation of electrical lighting point, including installation of a single and braided regular cable with a thickness of (1.5 mm) made of copper with the necessary items such as: duct tape for concealed extension, plastic channel before plastering, distribution boxes if needed, chassis, cover, switch, 12 watts bulb for utilities, 18 watts bulb for rooms, and the main distribution box in the house. | DV2: Install bulb holder | DW2: Install electrical switch | DX2: Supply and install electrical socket outlet, for internal and external base vimar brand china or equivalent , 250V, 10 A in accordance with all applicable codes and regulations and as approved by the site engineer | DY2: Supply and installation of the electrical outlet The work must include an installation of a first-rate thermal electrical outlet, in addition to all the necessary wires, a single and braided regular cable with thickness of (2 mm) which made of copper must be linked from the main breaker switch to the point with the necessary duct tape for concealed extension, plastic channel before plastering | DZ2: Install a new single room circuit breaker, with all necessary to complete the work | EA2: Install a mechanical ventilation fan for the latrines/kitchen and all needed materials and connections | EB2: Install a solar PV panels, 150-Watt, 12 V with 25 degrees tilting angle with a way to protect the panels | EC2: Provide and install solar panels 250W,24V polycrystalline class origin of photovoltaic with all needed | ED2: Install led light strip with switch's | EE2: Install a 30-amp charge controller with all related accessories | EF2: Provide and install rapped dry battery GEL, deep cycle with capacity 210 A, 12V with all needed | EG2: Provide and install Liquid battery, with capacity 240 A, 12V with all needed | EH2: Provide and install inverter voltronic original, 3 KVA, single phase with all the needed protection breakers and accessories | EI2: Install an iron structure to mount the solar PV panels moving base with a long arm motor and a light tracking circuit, the works include all related clamps, screws, fixation to the building without affecting the roofs water proofing integrity. | EJ2: Provide and install of copper cable 1.5 mm2 used for solar energy with all needed | EK2: Provide and install of copper cable 2.5 mm2 used for solar energy with all needed
A3: # | B3: GOAL ID | C3: Commcare Case ID | D3: Accepted / Rejected | E3: Is Checked ? | F3: Shelter_Notes | G3: # of Merged Families | H3: BNF | I3: Displaced/Resident | J3: Village | K3: Village ID | L3: Enumerator | M3: Code | N3: GEN-1 | O3: GEN-2 | P3: GEN-3 | Q3: GEN-4 | R3: GEN-5 | S3: GEN-6 | T3: GEN-7 | U3: GEN-8 | V3: GEN-9 | W3: GEN-10 | X3: GEN-11 | Y3: GEN-12 | Z3: GEN-13 | AA3: GEN-14 | AB3: GEN-15 | AC3: GEN-16 | AD3: GEN-17 | AE3: GEN-18 | AF3: GEN-19 | AG3: GEN-20 | AH3: GEN-21 | AI3: GEN-22 | AJ3: GEN-23 | AK3: GEN-24 | AL3: GEN-25 | AM3: GEN-26 | AN3: GEN-27 | AO3: GEN-28 | AP3: GEN-29 | AQ3: GEN-30 | AR3: GEN-31 | AS3: GEN-32 | AT3: GEN-33 | AU3: GEN-34 | AV3: GEN-35 | AW3: GEN-36 | AX3: WD-1 | AY3: WD-2 | AZ3: WD-3 | BA3: WD-4 | BB3: WD-5 | BC3: WD-6 | BD3: WD-7 | BE3: WD-8 | BF3: WD-9 | BG3: WD-10 | BH3: WD-11 | BI3: WD-12 | BJ3: WD-13 | BK3: WD-14 | BL3: WD-15 | BM3: ST-1 | BN3: ST-2 | BO3: ST-3 | BP3: ST-4 | BQ3: ST-5 | BR3: ST-6 | BS3: ST-7 | BT3: ST-8 | BU3: ST-9 | BV3: ST-10 | BW3: ST-11 | BX3: ST-12 | BY3: ST-13 | BZ3: ST-14 | CA3: ST-15 | CB3: ST-16 | CC3: ST-17 | CD3: ST-18 | CE3: ST-19 | CF3: ST-20 | CG3: ST-21 | CH3: ST-22 | CI3: ST-23 | CJ3: AL-1 | CK3: AL-2 | CL3: AL-3 | CM3: AL-4 | CN3: AL-5 | CO3: AL-6 | CP3: AL-7 | CQ3: AL-8 | CR3: AL-9 | CS3: WSAN-1 | CT3: WSAN-2 | CU3: WSAN-3 | CV3: WSAN-4 | CW3: WSAN-5 | CX3: WSAN-6 | CY3: WSAN-7 | CZ3: WSAN-8 | DA3: WSAN-9 | DB3: WSAN-10 | DC3: WSAN-11 | DD3: WSAN-12 | DE3: WSAN-13 | DF3: WSAN-14 | DG3: WSAN-15 | DH3: WSAN-16 | DI3: WSAN-17 | DJ3: WSAN-18 | DK3: WSAN-19 | DL3: WSAN-20 | DM3: WSAN-21 | DN3: WSAN-22 | DO3: WSAN-23 | DP3: WSAN-24 | DQ3: WSAN-25 | DR3: EL-1 | DS3: EL-2 | DT3: EL-3 | DU3: EL-4 | DV3: EL-5 | DW3: EL-6 | DX3: EL-7 | DY3: EL-8 | DZ3: EL-9 | EA3: EL-10 | EB3: EL-11 | EC3: EL-12 | ED3: EL-13 | EE3: EL-14 | EF3: EL-15 | EG3: EL-16 | EH3: EL-17 | EI3: EL-18 | EJ3: EL-19 | EK3: EL-20 | EL3: Price per BNF $
A4: 245 | B4: 279578 | C4: bd042f8e94444db2979736448d6c6949 | D4: Accept | E4: yes | F4: دمج مع محمد الحسين | G4: 1 | H4: عيده محمد الحسين | I4: Displaced | J4: Rabeeta | K4: 77 | L4: ريم .شادي | M4: I.R | T4: 15 | AF4: 870 | CQ4: 4 | CR4: 8 | EL4: =SUMPRODUCT(Planned[[#This Row],[GEN-1]:[EL-20]],TRANSPOSE(Arrangements[Unit Prices])) -> $2,905.4
A5: 282 | B5: 282615 | C5: 6282d0c454584323af8d569bdba0e4d8 | D5: Accept | E5: yes | F5: دمج مع رضوان يحيى الجاسم | G5: 1 | H5: يونس يحيى الجاسم | I5: Displaced | J5: Radwa | K5: 78 | L5: سامر منصور و سراب ناصيف | M5: C.A | S5: 1.8 | V5: 1.44 | AA5: 180 | AF5: 243 | BM5: 1 | CQ5: 4 | CR5: 4 | CS5: 1 | CU5: 3 | CW5: 1 | CZ5: 1 | DA5: 1 | DB5: 2 | DD5: 10 | DF5: 2 | DG5: 20 | EL5: =SUMPRODUCT(Planned[[#This Row],[GEN-1]:[EL-20]],TRANSPOSE(Arrangements[Unit Prices])) -> $1,475.0
A6: 258 | B6: 186698 | C6: e6c6e2f905e844118bdb2c82b5900860 | D6: Accept | E6: yes | F6: دمج مع جاسم الصفوك | G6: 1 | H6: بدر علي الهليل | I6: Displaced | J6: Rabeeta | K6: 77 | L6: ريم . شادي | M6: I.R | AF6: 210 | CJ6: 0.5 | CQ6: 6 | CR6: 2 | CS6: 1 | CU6: 3 | CW6: 1 | CX6: 1 | DC6: 15 | DK6: 1 | EL6: =SUMPRODUCT(Planned[[#This Row],[GEN-1]:[EL-20]],TRANSPOSE(Arrangements[Unit Prices])) -> $1,072.9
A7: 383 | B7: 255577 | C7: b0396e4a188447ff9da0763a2d6fc35d | D7: Accept | E7: yes | F7: دمج مع عبد القادر عبد الكافي الاصلان | G7: 1 | H7: خالد عبد الكافي الاصلان | I7: Displaced | J7: Mreimin (Darkosh) | K7: 212 | L7: سراب | M7: I.R | T7: 7.7 | AP7: 6 | CJ7: 0.44 | CQ7: 3 | CR7: 4 | CS7: 1 | CU7: 5 | CV7: 2 | CW7: 1 | CX7: 1 | DC7: 20 | DK7: 1 | EL7: =SUMPRODUCT(Planned[[#This Row],[GEN-1]:[EL-20]],TRANSPOSE(Arrangements[Unit Prices])) -> $863.2
A8: 380 | B8: 252528 | C8: de65f0eb034a434183af308f0954c0dc | D8: Accept | E8: yes | F8: دمج مع علاء عماد السعيد | G8: 1 | H8: غصون خلف الحمادة | I8: Displaced | J8: Mreimin (Darkosh) | K8: 212 | L8: سراب | M8: I.R | T8: 6.2 | AF8: 320 | BM8: 1 | CJ8: 0.8 | CQ8: 4 | CR8: 6 | CU8: 3 | CV8: 1 | CW8: 1 | CX8: 1 | DB8: 4 | DC8: 20 | DK8: 1 | EL8: =SUMPRODUCT(Planned[[#This Row],[GEN-1]:[EL-20]],TRANSPOSE(Arrangements[Unit Prices])) -> $1,718.8
A9: 351 | B9: 252560 | C9: 9275a103e73241e3aa8368eadc35327e | D9: Accept | E9: yes | F9: دمج مع فطيم فياض العليق و محمد ابراهيم الرحمون واحمد ابراهيم الرحمون واحمد مصطفى الجعفر | G9: 4 | H9: حمود إبراهيم الرحمون | I9: Displaced | J9: Mreimin (Darkosh) | K9: 212 | L9: سراب | M9: C.A | S9: 8.05 | AI9: 94 | AP9: 21.265 | BM9: 1 | CD9: 4 | CJ9: 8.58 | CQ9: 6 | CS9: 1 | CU9: 2 | CV9: 3 | CW9: 1 | CX9: 1 | EL9: =SUMPRODUCT(Planned[[#This Row],[GEN-1]:[EL-20]],TRANSPOSE(Arrangements[Unit Prices])) -> $1,550.4
A10: 246 | B10: 259628 | C10: 9c19eb34d76c4e6893bf4cc8e64c0b76 | D10: Accept | E10: yes | F10: دمج مع مريم حسون | G10: 1 | H10: بلال احمد حماميش | I10: Displaced | J10: Rabeeta | K10: 77 | L10: ريم | M10: I.R | Z10: 190 | AF10: 150 | BM10: 1 | CQ10: 4 | CR10: 2 | CU10: 2 | CW10: 1 | CX10: 1 | DC10: 20 | DJ10: 1 | DK10: 1 | EL10: =SUMPRODUCT(Planned[[#This Row],[GEN-1]:[EL-20]],TRANSPOSE(Arrangements[Unit Prices])) -> $1,052.9
A11: 334 | B11: 41300 | C11: a724dd6c3b0e4bf690f2d99449fd6de5 | D11: Accept | E11: yes | F11: دمج مع وداد خالد الحمود | G11: 1 | H11: خالد عمر الحمود | I11: Displaced | J11: Zahraa - Kherbet Amud | K11: 219 | L11: سراب | M11: I.R | AF11: 279.5 | AP11: 4 | BM11: 2 | BR11: 1 | CJ11: 1.285 | CQ11: 3 | CR11: 2 | CS11: 1 | CU11: 3 | CV11: 1 | CY11: 1 | CZ11: 1 | DA11: 1 | DC11: 10 | DO11: 2 | EL11: =SUMPRODUCT(Planned[[#This Row],[GEN-1]:[EL-20]],TRANSPOSE(Arrangements[Unit Prices])) -> $1,361.7
A12: 253 | B12: 281506 | C12: 954f1732d4944b88b7006b9dfd9cfc53 | D12: Accept | E12: yes | F12: سكن جماعي مع لؤي شحادة الحمود \ عدد العوائل 6 | G12: 5 | H12: خالد محمد السليمان | I12: Displaced | J12: Rabeeta | K12: 77 | L12: ريم . شادي | M12: C.A | T12: 2 | AF12: 450 | CQ12: 10 | CR12: 9 | CU12: 5 | CW12: 2 | CX12: 2 | DC12: 25 | DK12: 1 | DL12: 1 | EL12: =SUMPRODUCT(Planned[[#This Row],[GEN-1]:[EL-20]],TRANSPOSE(Arrangements[Unit Prices])) -> $2,320.0
A13: 436 | B13: 247457 | C13: 5dee4262e5474e0eab1b4ed4eb5dd598 | D13: Accept | E13: Yes | F13: عبدالرحمن عبدالكريم زكرة | G13: 1 | H13: طارق عبدالكريم زكرة | I13: Displaced | J13: Albalat | K13: 288 | L13: شادي + عبدالهادي | M13: I.R | T13: 1.5 | AF13: 400 | CQ13: 5 | CR13: 6 | CS13: 1 | CU13: 2 | CW13: 1 | CX13: 1 | DL13: 1 | EL13: =SUMPRODUCT(Planned[[#This Row],[GEN-1]:[EL-20]],TRANSPOSE(Arrangements[Unit Prices])) -> $1,670.8
A14: 424 | B14: 270263 | C14: 560317cf8a4a4cfb9a19bf17ab14838c | D14: Accept | E14: Yes | F14: مدمج مع احمد ابراهيم الاحمد ومع نجاح احمد الاحمد | G14: 2 | H14: ابراهيم احمد الاحمد | I14: Displaced | J14: Ramadiyeh (Darkosh) | K14: 213 | L14: عبد الهادي + نور | M14: I.R | N14: 0 | O14: 5 | P14: 0 | Q14: 0 | R14: 0 | S14: 7.9 | T14: 0 | U14: 0 | V14: 0.25 | W14: 0 | X14: 0 | Y14: 0 | Z14: 132 | AA14: 0 | AB14: 0 | AC14: 0 | AD14: 0 | AE14: 0 | AF14: 310 | AG14: 0 | AH14: 0 | AI14: 0 | AJ14: 0 | AK14: 0 | AL14: 0 | AM14: 0 | AN14: 0 | AO14: 0 | AP14: 1.25 | AQ14: 0 | AR14: 0 | AS14: 0 | AT14: 0 | AU14: 0 | AX14: 0 | AY14: 0 | AZ14: 0 | BA14: 0 | BB14: 0 | BC14: 0 | BD14: 0 | BE14: 0 | BF14: 0 | BG14: 0 | BH14: 0 | BI14: 0 | BJ14: 0 | BK14: 0 | BL14: 0 | BM14: 5 | BN14: 4 | BO14: 0 | BP14: 0 | BQ14: 0 | BR14: 0 | BS14: 0 | BT14: 0 | BU14: 0 | BV14: 0 | BW14: 0 | BX14: 0 | BY14: 80 | BZ14: 0 | CA14: 0 | CB14: 0 | CC14: 0 | CD14: 0 | CE14: 0 | CF14: 0 | CG14: 0 | CH14: 0 | CI14: 0 | CJ14: 0 | CK14: 0 | CL14: 0.84 | CM14: 0 | CN14: 0 | CO14: 0 | CP14: 1.6 | CQ14: 1 | CR14: 0 | CS14: 1 | CT14: 0 | CU14: 3 | CV14: 0 | CW14: 1 | CX14: 1.8 | CY14: 1 | CZ14: 0 | DA14: 0 | DB14: 2 | DC14: 0 | DD14: 17 | DE14: 0 | DF14: 0 | DG14: 38 | DH14: 0 | DI14: 0 | DJ14: 0 | DK14: 0 | DL14: 1 | DM14: 0 | DN14: 0 | DO14: 0 | DP14: 2 | DQ14: 0 | DR14: 0 | DS14: 0 | DT14: 0 | DU14: 6 | DV14: 0 | DW14: 0 | DX14: 0 | DY14: 0 | DZ14: 0 | EA14: 0 | EB14: 4 | EC14: 0 | ED14: 0 | EE14: 1 | EF14: 0 | EG14: 2 | EH14: 0 | EI14: 0 | EJ14: 0 | EK14: 15 | EL14: =SUMPRODUCT(Planned[[#This Row],[GEN-1]:[EL-20]],TRANSPOSE(Arrangements[Unit Prices])) -> $3,185.6
A15: 395 | B15: 93321 | C15: 1eea7e45201840c3bf8f051d52065875 | D15: Accept | E15: Yes | F15: مدمج مع حاجة احمد الغريب | G15: 1 | H15: ثلجة خضر ناصيف العبيد | I15: resident | J15: Mansura | K15: 289 | L15: عبدالهادي + نور | M15: I.R | S15: 2.5 | V15: 0.3 | W15: 1.2 | Z15: 250 | AF15: 150 | AH15: 60 | AP15: 2.5 | AQ15: 44 | CL15: 0.12 | CQ15: 2 | CR15: 1 | CS15: 1 | CU15: 4 | CW15: 1 | CX15: 1.5 | CZ15: 1 | DA15: 2 | DB15: 1 | DC15: 20 | DF15: 5 | DG15: 18 | DJ15: 1 | DU15: 2 | DY15: 2 | EL15: =SUMPRODUCT(Planned[[#This Row],[GEN-1]:[EL-20]],TRANSPOSE(Arrangements[Unit Prices])) -> $1,430.6
A16: 421 | B16: 270979 | C16: c8210b7526ab4046a25908de091099af | D16: Accept | E16: Yes | F16: مدمج مع زور غازي الطه | G16: 1 | H16: ريما علي السهو | I16: Displaced | J16: Thahr | K16: 217 | L16: حسام | M16: I.R | T16: 0.6 | AF16: 256 | CL16: 0.28 | CQ16: 4 | CR16: 5 | CV16: 2 | CW16: 1 | CX16: 1.2 | CY16: 1 | DB16: 2 | DD16: 15 | DG16: 6 | EB16: 1 | EE16: 1 | EG16: 1 | EH16: 1 | EK16: 10 | EL16: =SUMPRODUCT(Planned[[#This Row],[GEN-1]:[EL-20]],TRANSPOSE(Arrangements[Unit Prices])) -> $1,540.5
A17: 397 | B17: 284858 | C17: 7cdaa075112546b480564b2c6c0ef196 | D17: Accept | E17: Yes | F17: مدمج مع سليمه احمد زين الدين ومع عمر محمود الزين | G17: 2 | H17: محمود محمد الزين | I17: Displaced | J17: Mansura | K17: 289 | L17: عبدالهادي + نور | M17: I.R | N17: 15 | S17: 9.5 | V17: 0.25 | W17: 1.35 | Z17: 130 | AF17: 450 | AP17: 25 | BA17: 4.1 | BM17: 2 | CL17: 0.36 | CQ17: 4 | CR17: 6 | CS17: 2 | CU17: 6 | CW17: 1 | CX17: 1.5 | CY17: 2 | DB17: 2 | DC17: 25 | DF17: 4 | DG17: 20 | DK17: 1 | DN17: 10 | EL17: =SUMPRODUCT(Planned[[#This Row],[GEN-1]:[EL-20]],TRANSPOSE(Arrangements[Unit Prices])) -> $3,409.5
A18: 414 | B18: 284937 | C18: d8b63aa1a1d94f249796ff5af3850cc4 | D18: Accept | E18: Yes | F18: مدمج مع عبد الهادي قدور الباشا | G18: 1 | H18: عزيزةعبد الباشا | I18: Displaced | J18: Mansura | K18: 289 | L18: مهند | M18: I.R | T18: 8.4 | Z18: 60 | AF18: 165 | CL18: 0.32 | CQ18: 3 | CR18: 5 | CS18: 1 | CT18: 1 | CV18: 2 | CX18: 0.5 | DD18: 12 | DK18: 1 | EB18: 1 | EG18: 1 | EL18: =SUMPRODUCT(Planned[[#This Row],[GEN-1]:[EL-20]],TRANSPOSE(Arrangements[Unit Prices])) -> $1,403.5
A19: 425 | B19: 330596 | C19: 31b8e617ed824dbca5a7b071d1404548 | D19: Accept | E19: Yes | F19: مدمج مع علي محمد صابر القاسم ومع خالد محمد صابر القاسم ومع نصرة احمد الاحمد | G19: 3 | H19: عبدو محمد صابر القاسم | I19: Displaced | J19: mazrat haj Naiyf | K19: 290 | L19: عبد الهادي + نور | M19: I.R | N19: 0 | O19: 0 | P19: 0 | Q19: 0 | R19: 0 | S19: 0 | T19: 0 | U19: 0 | V19: 0 | W19: 0 | X19: 0 | Y19: 0 | Z19: 20 | AA19: 0 | AB19: 0 | AC19: 0 | AD19: 0 | AE19: 15 | AF19: 235.15 | AG19: 0 | AH19: 0 | AI19: 0 | AJ19: 0 | AK19: 0 | AL19: 0 | AM19: 0 | AN19: 0 | AO19: 0 | AP19: 3.4 | AQ19: 0 | AR19: 28 | AS19: 0 | AT19: 0 | AU19: 1 | AX19: 0 | AY19: 0 | AZ19: 0 | BA19: 6 | BB19: 0 | BC19: 0 | BD19: 0 | BE19: 0 | BF19: 0 | BG19: 0 | BH19: 0 | BI19: 0 | BJ19: 0 | BK19: 0 | BL19: 0 | BM19: 0 | BN19: 0 | BO19: 0 | BP19: 0 | BQ19: 0 | BR19: 0 | BS19: 0 | BT19: 0 | BU19: 0 | BV19: 0 | BW19: 0 | BX19: 0 | BY19: 75 | BZ19: 0 | CA19: 0 | CB19: 0 | CC19: 0 | CD19: 0 | CE19: 0 | CF19: 0 | CG19: 0 | CH19: 0 | CI19: 0 | CJ19: 3.4 | CK19: 0 | CL19: 0.24 | CM19: 0 | CN19: 0 | CO19: 1 | CP19: 3.2 | CQ19: 0 | CR19: 0 | CS19: 1 | CT19: 0 | CU19: 1 | CV19: 2 | CW19: 1 | CX19: 1.8 | CY19: 1 | CZ19: 0 | DA19: 0 | DB19: 2 | DC19: 0 | DD19: 18 | DE19: 0 | DF19: 2 | DG19: 0 | DH19: 0 | DI19: 0 | DJ19: 0 | DK19: 0 | DL19: 1 | DM19: 0 | DN19: 0 | DO19: 0 | DP19: 0 | DQ19: 1 | DR19: 0 | DS19: 0 | DT19: 0 | DU19: 12 | DV19: 0 | DW19: 0 | DX19: 0 | DY19: 0 | DZ19: 0 | EA19: 0 | EB19: 2 | EC19: 0 | ED19: 0 | EE19: 1 | EF19: 0 | EG19: 1 | EH19: 0 | EI19: 0 | EJ19: 0 | EK19: 10 | EL19: =SUMPRODUCT(Planned[[#This Row],[GEN-1]:[EL-20]],TRANSPOSE(Arrangements[Unit Prices])) -> $2,303.7
A20: 419 | B20: 227289 | C20: 7080dbdc4e7240d7a07f6b47cc74298a | D20: Accept | E20: Yes | F20: مدمج مع فاطمة علي الرعي | G20: 1 | H20: ناعسة خليف الخليف | I20: Displaced | J20: Thahr | K20: 217 | L20: حسام | M20: I.R | T20: 2.34 | W20: 0.28 | Z20: 125 | AF20: 232 | CQ20: 4 | CR20: 2 | CV20: 2 | CW20: 1 | CX20: 1.2 | DB20: 2 | DD20: 10 | DG20: 8 | EB20: 1 | EE20: 1 | EG20: 1 | EH20: 1 | EK20: 10 | EL20: =SUMPRODUCT(Planned[[#This Row],[GEN-1]:[EL-20]],TRANSPOSE(Arrangements[Unit Prices])) -> $1,476.2
A21: 1 | B21: 95609 | C21: 7b4315789fa448aca4abae7e074fdde5 | D21: Accept | E21: YES | H21: عبد عبد الله الخلف | I21: Displaced | J21: Almzwaq | K21: 322 | L21: هشام + إبراهيم | M21: I.R | AF21: 94 | BM21: 1 | CF21: 14 | CS21: 1 | CU21: 3 | CW21: 1 | DD21: 12 | DG21: 4 | DJ21: 1 | DK21: 1 | EL21: =SUMPRODUCT(Planned[[#This Row],[GEN-1]:[EL-20]],TRANSPOSE(Arrangements[Unit Prices])) -> $655.4
A22: 2 | B22: 334288 | C22: 3c9f0caccae245f98030ee3838cf3d92 | D22: Accept | E22: YES | H22: نجيبه برهان البكور | I22: Displaced | J22: Almzwaq | K22: 322 | L22: هشام + إبراهيم | M22: I.R | S22: 1 | AF22: 49 | BW22: 16 | CQ22: 4 | CR22: 6 | EL22: =SUMPRODUCT(Planned[[#This Row],[GEN-1]:[EL-20]],TRANSPOSE(Arrangements[Unit Prices])) -> $557.5
A23: 3 | B23: 253624 | C23: 9567b1ad664b478caede2d9fe2e7b3a1 | D23: Accept | E23: YES | H23: رافي محمود الدرويش | I23: Displaced | J23: Almzwaq | K23: 322 | L23: هشام + إبراهيم | M23: I.R | AA23: 60 | AF23: 116 | BM23: 1 | CF23: 75 | CQ23: 4 | CR23: 1 | CS23: 1 | CU23: 3 | CW23: 1 | CX23: 1.2 | DD23: 10 | DG23: 5 | DK23: 1 | EL23: =SUMPRODUCT(Planned[[#This Row],[GEN-1]:[EL-20]],TRANSPOSE(Arrangements[Unit Prices])) -> $1,203.1
A24: 4 | B24: 334606 | C24: 0873c7c8e4484f4ba9f8299152606cda | D24: Accept | E24: YES | H24: داليا محمد النعسان | I24: Displaced | J24: Almzwaq | K24: 322 | L24: هشام + إبراهيم | M24: I.R | AA24: 30 | AF24: 215 | CQ24: 4 | CR24: 1 | CV24: 1 | CX24: 0.6 | DD24: 10 | DK24: 1 | EL24: =SUMPRODUCT(Planned[[#This Row],[GEN-1]:[EL-20]],TRANSPOSE(Arrangements[Unit Prices])) -> $852.9
A25: 5 | B25: 304366 | C25: 874ab97e3cd8423babb46b79478f99f6 | D25: Accept | E25: YES | H25: مصطفى محمد الصغير | I25: Displaced | J25: Almzwaq | K25: 322 | L25: هشام + إبراهيم | M25: I.R | AF25: 138 | CL25: 0.16 | CQ25: 1 | CR25: 2 | CU25: 2 | CV25: 2 | EC25: 1 | EL25: =SUMPRODUCT(Planned[[#This Row],[GEN-1]:[EL-20]],TRANSPOSE(Arrangements[Unit Prices])) -> $542.4
A26: 6 | B26: 95690 | C26: 0d9e54e9c7254676a33572067cd227bd | D26: Accept | E26: YES | H26: عمار عبد القادر حسن | I26: resident | J26: Almzwaq | K26: 322 | L26: هشام + إبراهيم | M26: I.R | S26: 2 | BW26: 40 | BX26: 15 | CQ26: 5 | CR26: 7 | CS26: 1 | CU26: 1 | EL26: =SUMPRODUCT(Planned[[#This Row],[GEN-1]:[EL-20]],TRANSPOSE(Arrangements[Unit Prices])) -> $650.1
A27: 7 | B27: 207644 | C27: 7e23b724376e4671bb0208c5ea993d05 | D27: Accept | E27: YES | H27: عبد القادر عارف الضبعان | I27: Displaced | J27: Almzwaq | K27: 322 | L27: هشام + إبراهيم | M27: I.R | BW27: 25 | BX27: 5 | CQ27: 5 | CR27: 7 | CS27: 1 | CU27: 1 | DD27: 3 | DK27: 1 | EL27: =SUMPRODUCT(Planned[[#This Row],[GEN-1]:[EL-20]],TRANSPOSE(Arrangements[Unit Prices])) -> $635.6
A28: 8 | B28: 234623 | C28: d1a7ed8fdb824b959ef5276211fb0e1d | D28: Accept | E28: YES | H28: بشار احمد الزيتون | I28: Displaced | J28: Almzwaq | K28: 322 | L28: هشام + إبراهيم | M28: I.R | AF28: 152 | CF28: 50 | CL28: 0.5 | CQ28: 3 | CR28: 3 | CS28: 1 | CU28: 4 | CW28: 1 | CX28: 1.2 | EL28: =SUMPRODUCT(Planned[[#This Row],[GEN-1]:[EL-20]],TRANSPOSE(Arrangements[Unit Prices])) -> $968.0
A29: 9 | B29: 275012 | C29: 0ea36c6f52004f69b1a7966fdccf8ce7 | D29: Accept | E29: YES | H29: بلال عبد العزيز السماعيل | I29: Displaced | J29: Almzwaq | K29: 322 | L29: هشام + إبراهيم | M29: I.R | S29: 2 | AF29: 66 | CQ29: 1 | CR29: 2 | EB29: 1 | EE29: 1 | EG29: 1 | EK29: 10 | EL29: =SUMPRODUCT(Planned[[#This Row],[GEN-1]:[EL-20]],TRANSPOSE(Arrangements[Unit Prices])) -> $567.4
A30: 10 | B30: 282361 | C30: a6d80477f47d46e0ab02ff0e70ec62b5 | D30: Accept | E30: YES | H30: محمود وجيه اسماعيل | I30: Displaced | J30: Almzwaq | K30: 322 | L30: هشام + إبراهيم | M30: I.R | AF30: 34 | BM30: 1 | BW30: 40 | CS30: 1 | CU30: 1 | DD30: 10 | DK30: 1 | EL30: =SUMPRODUCT(Planned[[#This Row],[GEN-1]:[EL-20]],TRANSPOSE(Arrangements[Unit Prices])) -> $403.2
A31: 11 | B31: 339624 | C31: 3d4b889e91364524beaaacb3f929f960 | D31: Accept | E31: YES | H31: محمود محمد الدرويش | I31: Displaced | J31: Almzwaq | K31: 322 | L31: هشام + إبراهيم | M31: I.R | S31: 1.72 | AF31: 340 | CL31: 0.48 | CQ31: 1 | CR31: 3 | CS31: 1 | CU31: 5 | CV31: 1 | CW31: 1 | CX31: 1.2 | DD31: 10 | DG31: 15 | DK31: 1 | EL31: =SUMPRODUCT(Planned[[#This Row],[GEN-1]:[EL-20]],TRANSPOSE(Arrangements[Unit Prices])) -> $1,329.7
A32: 12 | B32: 95194 | C32: beabc14308f04283bfe58aebd4c6b89b | D32: Accept | E32: YES | H32: فاطمة عبد الله الخلف | I32: resident | J32: Almzwaq | K32: 322 | L32: هشام + إبراهيم | M32: I.R | AF32: 50 | BM32: 1 | CQ32: 1 | CS32: 1 | CU32: 2 | DD32: 10 | DK32: 1 | EL32: =SUMPRODUCT(Planned[[#This Row],[GEN-1]:[EL-20]],TRANSPOSE(Arrangements[Unit Prices])) -> $425.0
A33: 13 | B33: 207618 | C33: 549dd2515c1d491d8bfd6c8910cf2127 | D33: Accept | E33: YES | H33: احمد اسماعيل الداني | I33: Displaced | J33: Almzwaq | K33: 322 | L33: هشام + إبراهيم | M33: I.R | AF33: 252 | BV33: 4 | CQ33: 4 | CR33: 4 | CS33: 1 | CU33: 1 | EL33: =SUMPRODUCT(Planned[[#This Row],[GEN-1]:[EL-20]],TRANSPOSE(Arrangements[Unit Prices])) -> $952.8
A34: 14 | B34: 276062 | C34: f400ca660e134b1daeb160e6c122acb9 | D34: Accept | E34: YES | H34: مصطفى محمد العلوش | I34: Displaced | J34: Almzwaq | K34: 322 | L34: هشام + إبراهيم | M34: I.R | S34: 0.6 | AF34: 49 | CQ34: 5 | CR34: 6 | CU34: 2 | CV34: 2 | CW34: 1 | CX34: 1.2 | CZ34: 1 | EL34: =SUMPRODUCT(Planned[[#This Row],[GEN-1]:[EL-20]],TRANSPOSE(Arrangements[Unit Prices])) -> $760.5
A35: 15 | B35: 286778 | C35: 9e938d344dc64296ab603fc244423333 | D35: Accept | E35: Yes | H35: حسن مصطفى برام | I35: resident | J35: Barisha | K35: 70 | L35: حسام عبدالله | M35: I.R | N35: 0 | O35: 0 | P35: 0 | Q35: 0 | R35: 0 | S35: 0 | T35: 0 | U35: 0 | V35: 0 | W35: 0 | X35: 0 | Y35: 0 | Z35: 0 | AA35: 0 | AB35: 0 | AC35: 0 | AD35: 0 | AE35: 0 | AF35: 137 | AG35: 0 | AH35: 0 | AI35: 0 | AJ35: 0 | AK35: 0 | AL35: 0 | AM35: 0 | AN35: 0 | AO35: 0 | AP35: 0 | AQ35: 0 | AR35: 0 | AS35: 0 | AT35: 0 | AU35: 0 | AV35: 0 | AW35: 0 | AX35: 0 | AY35: 0 | AZ35: 0 | BA35: 0 | BB35: 0 | BC35: 0 | BD35: 0 | BE35: 0 | BF35: 0 | BG35: 0 | BH35: 0 | BI35: 0 | BJ35: 0 | BK35: 0 | BL35: 0 | BM35: 0 | BN35: 0 | BO35: 0 | BP35: 0 | BQ35: 0 | BR35: 0 | BS35: 0 | BT35: 0 | BU35: 0 | BV35: 0 | BW35: 0 | BX35: 0 | BY35: 0 | BZ35: 0 | CA35: 0 | CB35: 0 | CC35: 0 | CD35: 0 | CE35: 0 | CF35: 0 | CG35: 0 | CH35: 0 | CI35: 0 | CJ35: 5.7 | CK35: 0.35 | CL35: 0.16 | CM35: 0 | CN35: 0 | CO35: 0 | CP35: 0 | CQ35: 3 | CR35: 2 | CS35: 1 | CT35: 0 | CU35: 0 | CV35: 0 | CW35: 0 | CX35: 0 | CY35: 0 | CZ35: 0 | DA35: 0 | DB35: 0 | DC35: 0 | DD35: 0 | DE35: 0 | DF35: 0 | DG35: 0 | DH35: 0 | DI35: 0 | DJ35: 0 | DK35: 1 | DL35: 0 | DM35: 0 | DN35: 0 | DO35: 0 | DP35: 0 | DQ35: 0 | DR35: 0 | DS35: 0 | DT35: 0 | DU35: 0 | DV35: 0 | DW35: 0 | DX35: 0 | DY35: 0 | DZ35: 0 | EA35: 0 | EB35: 0 | EC35: 0 | ED35: 0 | EE35: 0 | EF35: 0 | EG35: 0 | EH35: 0 | EI35: 0 | EJ35: 0 | EK35: 0 | EL35: =SUMPRODUCT(Planned[[#This Row],[GEN-1]:[EL-20]],TRANSPOSE(Arrangements[Unit Prices])) -> $937.4
A36: 16 | B36: 281656 | C36: 0a54b602b57943f88d1673746344e331 | D36: Accept | E36: Yes | H36: شعبان صالح الاسماعيل | I36: Displaced | J36: Barisha | K36: 70 | L36: أحمد غندور | M36: I.R | N36: 0 | O36: 0 | P36: 0 | Q36: 0 | R36: 0 | S36: 0 | T36: 3.7 | U36: 0 | V36: 0 | W36: 0 | X36: 0 | Y36: 0 | Z36: 30 | AA36: 0 | AB36: 40 | AC36: 0 | AD36: 0 | AE36: 0 | AF36: 157 | AG36: 0 | AH36: 0 | AI36: 0 | AJ36: 0 | AK36: 0 | AL36: 0 | AM36: 0 | AN36: 0 | AO36: 0 | AP36: 8 | AQ36: 0 | AR36: 0 | AS36: 0 | AT36: 0 | AU36: 0 | AV36: 0 | AW36: 0 | AX36: 0 | AY36: 0 | AZ36: 0 | BA36: 0 | BB36: 0 | BC36: 0 | BD36: 0 | BE36: 0 | BF36: 0 | BG36: 0 | BH36: 0 | BI36: 0 | BJ36: 0 | BK36: 0 | BL36: 0 | BM36: 1 | BN36: 0 | BO36: 0 | BP36: 0 | BQ36: 0 | BR36: 0 | BS36: 0 | BT36: 0 | BU36: 0 | BV36: 0 | BW36: 0 | BX36: 0 | BY36: 0 | BZ36: 0 | CA36: 10 | CB36: 0 | CC36: 0 | CD36: 0 | CE36: 0 | CF36: 0 | CG36: 0 | CH36: 0 | CI36: 0 | CJ36: 0 | CK36: 2.25 | CL36: 0.4 | CM36: 0 | CN36: 0 | CO36: 0 | CP36: 0 | CQ36: 3 | CR36: 1 | CS36: 1 | CT36: 0 | CU36: 2 | CV36: 1 | CW36: 1 | CX36: 1 | CY36: 1 | CZ36: 0 | DA36: 1 | DB36: 4 | DC36: 0 | DD36: 12 | DE36: 0 | DF36: 0 | DG36: 8 | DH36: 0 | DI36: 0 | DJ36: 0 | DK36: 0 | DL36: 0 | DM36: 0 | DN36: 0 | DO36: 0 | DP36: 1 | DQ36: 0 | DR36: 0 | DS36: 0 | DT36: 0 | DU36: 0 | DV36: 0 | DW36: 0 | DX36: 0 | DY36: 0 | DZ36: 0 | EA36: 0 | EB36: 0 | EC36: 0 | ED36: 0 | EE36: 0 | EF36: 0 | EG36: 0 | EH36: 0 | EI36: 0 | EJ36: 0 | EK36: 0 | EL36: =SUMPRODUCT(Planned[[#This Row],[GEN-1]:[EL-20]],TRANSPOSE(Arrangements[Unit Prices])) -> $1,313.5
A37: 17 | B37: 21069 | C37: 5ff2316fae1c4a0abd0b09ce64265a1d | D37: Accept | E37: Yes | H37: مجيدة جمعه محمد | I37: resident | J37: Barisha | K37: 70 | L37: هشام الخالد | M37: I.R | N37: 0 | O37: 0 | P37: 0 | Q37: 0 | R37: 0 | S37: 0 | T37: 0 | U37: 0 | V37: 0 | W37: 0.6 | X37: 0 | Y37: 0 | Z37: 140 | AA37: 40 | AB37: 45 | AC37: 0 | AD37: 0 | AE37: 0 | AF37: 105 | AG37: 0 | AH37: 0 | AI37: 0 | AJ37: 0 | AK37: 0 | AL37: 0 | AM37: 0 | AN37: 0 | AO37: 0 | AP37: 16 | AQ37: 0 | AR37: 0 | AS37: 0 | AT37: 0 | AU37: 0 | AV37: 0 | AW37: 0 | AX37: 0 | AY37: 0 | AZ37: 0 | BA37: 0 | BB37: 0 | BC37: 0 | BD37: 0 | BE37: 0 | BF37: 0 | BG37: 0 | BH37: 0 | BI37: 0 | BJ37: 0 | BK37: 0 | BL37: 0 | BM37: 0 | BN37: 0 | BO37: 0 | BP37: 0 | BQ37: 1 | BR37: 0 | BS37: 0 | BT37: 0 | BU37: 0 | BV37: 0 | BW37: 0 | BX37: 0 | BY37: 0 | BZ37: 0 | CA37: 0 | CB37: 1 | CC37: 0 | CD37: 0 | CE37: 0 | CF37: 0 | CG37: 0 | CH37: 0 | CI37: 0 | CJ37: 0 | CK37: 0 | CL37: 0.16 | CM37: 0 | CN37: 0 | CO37: 0 | CP37: 0 | CQ37: 3 | CR37: 2 | CS37: 1 | CT37: 0 | CU37: 4 | CV37: 0 | CW37: 1 | CX37: 0.75 | CY37: 0 | CZ37: 0 | DA37: 0 | DB37: 0 | DC37: 20 | DD37: 0 | DE37: 0 | DF37: 10 | DG37: 12 | DH37: 0 | DI37: 0 | DJ37: 0 | DK37: 1 | DL37: 0 | DM37: 0 | DN37: 0 | DO37: 0 | DP37: 0 | DQ37: 0 | DR37: 0 | DS37: 0 | DT37: 0 | DU37: 0 | DV37: 0 | DW37: 0 | DX37: 0 | DY37: 0 | DZ37: 0 | EA37: 0 | EB37: 0 | EC37: 0 | ED37: 0 | EE37: 0 | EF37: 0 | EG37: 0 | EH37: 0 | EI37: 0 | EJ37: 0 | EK37: 0 | EL37: =SUMPRODUCT(Planned[[#This Row],[GEN-1]:[EL-20]],TRANSPOSE(Arrangements[Unit Prices])) -> $1,031.0
A38: 18 | B38: 21676 | C38: edd8a5bee83147a4aa0c4a66ab5e32a8 | D38: Accept | E38: Yes | H38: محمد أحمد منصور | I38: Displaced | J38: Barisha | K38: 70 | L38: هشام الخالد | M38: I.R | N38: 0 | O38: 0 | P38: 0 | Q38: 0 | R38: 0 | S38: 0 | T38: 0 | U38: 0 | V38: 0 | W38: 0.3 | X38: 0 | Y38: 0 | Z38: 0 | AA38: 0 | AB38: 0 | AC38: 0 | AD38: 0 | AE38: 0 | AF38: 38 | AG38: 0 | AH38: 0 | AI38: 0 | AJ38: 0 | AK38: 0 | AL38: 0 | AM38: 0 | AN38: 0 | AO38: 0 | AP38: 11 | AQ38: 0 | AR38: 0 | AS38: 0 | AT38: 0 | AU38: 0 | AV38: 0 | AW38: 0 | AX38: 0 | AY38: 0 | AZ38: 0 | BA38: 0 | BB38: 0 | BC38: 0 | BD38: 0 | BE38: 0 | BF38: 0 | BG38: 0 | BH38: 0 | BI38: 0 | BJ38: 0 | BK38: 0 | BL38: 0 | BM38: 0 | BN38: 0 | BO38: 0 | BP38: 0 | BQ38: 2 | BR38: 0 | BS38: 2 | BT38: 0 | BU38: 0 | BV38: 0 | BW38: 0 | BX38: 0 | BY38: 0 | BZ38: 0 | CA38: 0 | CB38: 2 | CC38: 0 | CD38: 0 | CE38: 0 | CF38: 0 | CG38: 0 | CH38: 0 | CI38: 0 | CJ38: 0 | CK38: 0 | CL38: 0.4 | CM38: 0 | CN38: 0 | CO38: 0 | CP38: 0 | CQ38: 4 | CR38: 3 | CS38: 1 | CT38: 0 | CU38: 2 | CV38: 1 | CW38: 1 | CX38: 0.75 | CY38: 0 | CZ38: 0 | DA38: 0 | DB38: 0 | DC38: 5 | DD38: 0 | DE38: 0 | DF38: 0 | DG38: 0 | DH38: 0 | DI38: 0 | DJ38: 1 | DK38: 0 | DL38: 0 | DM38: 0 | DN38: 0 | DO38: 0 | DP38: 0 | DQ38: 0 | DR38: 0 | DS38: 0 | DT38: 0 | DU38: 0 | DV38: 0 | DW38: 0 | DX38: 0 | DY38: 0 | DZ38: 0 | EA38: 0 | EB38: 0 | EC38: 0 | ED38: 0 | EE38: 0 | EF38: 0 | EG38: 0 | EH38: 0 | EI38: 0 | EJ38: 0 | EK38: 0 | EL38: =SUMPRODUCT(Planned[[#This Row],[GEN-1]:[EL-20]],TRANSPOSE(Arrangements[Unit Prices])) -> $764.6
A39: 19 | B39: 230178 | C39: 8f7ad9539fd840469fa3f42f85efcc13 | D39: Accept | E39: Yes | H39: محمدحسين خطاب | I39: Displaced | J39: Barisha | K39: 70 | L39: نور الخليف | M39: I.R | N39: 0 | O39: 0 | P39: 0 | Q39: 0 | R39: 0 | S39: 0 | T39: 0 | U39: 0 | V39: 0 | W39: 0 | X39: 0 | Y39: 0 | Z39: 0 | AA39: 0 | AB39: 0 | AC39: 0 | AD39: 0 | AE39: 0 | AF39: 189.1 | AG39: 0 | AH39: 0 | AI39: 0 | AJ39: 0 | AK39: 0 | AL39: 0 | AM39: 0 | AN39: 0 | AO39: 0 | AP39: 0 | AQ39: 0 | AR39: 0 | AS39: 0 | AT39: 0 | AU39: 0 | AV39: 0 | AW39: 0 | AX39: 0 | AY39: 0 | AZ39: 0 | BA39: 0 | BB39: 0 | BC39: 0 | BD39: 0 | BE39: 0 | BF39: 0 | BG39: 0 | BH39: 0 | BI39: 0 | BJ39: 0 | BK39: 0 | BL39: 0 | BM39: 1 | BN39: 0 | BO39: 0 | BP39: 0 | BQ39: 0 | BR39: 0 | BS39: 0 | BT39: 0 | BU39: 0 | BV39: 0 | BW39: 0 | BX39: 0 | BY39: 25 | BZ39: 0 | CA39: 0 | CB39: 0 | CC39: 0 | CD39: 0 | CE39: 0 | CF39: 0 | CG39: 0 | CH39: 0 | CI39: 0 | CJ39: 0 | CK39: 0 | CL39: 0.16 | CM39: 0 | CN39: 0 | CO39: 0 | CP39: 0 | CQ39: 5 | CR39: 6 | CS39: 1 | CT39: 0 | CU39: 1 | CV39: 2 | CW39: 1 | CX39: 0 | CY39: 0 | CZ39: 0 | DA39: 0 | DB39: 0 | DC39: 0 | DD39: 24 | DE39: 0 | DF39: 0 | DG39: 12 | DH39: 0 | DI39: 0 | DJ39: 0 | DK39: 0 | DL39: 0 | DM39: 0 | DN39: 0 | DO39: 0 | DP39: 0 | DQ39: 0 | DR39: 0 | DS39: 0 | DT39: 0 | DU39: 0 | DV39: 0 | DW39: 0 | DX39: 0 | DY39: 0 | DZ39: 0 | EA39: 0 | EB39: 0 | EC39: 1 | ED39: 0 | EE39: 0 | EF39: 0 | EG39: 0 | EH39: 0 | EI39: 0 | EJ39: 0 | EK39: 0 | EL39: =SUMPRODUCT(Planned[[#This Row],[GEN-1]:[EL-20]],TRANSPOSE(Arrangements[Unit Prices])) -> $1,254.6
A40: 20 | B40: 7185 | C40: 018479b7afc0413d843dfdcbebc283b7 | D40: Accept | E40: Yes | H40: حسن صالح لمط | I40: Displaced | J40: Barisha | K40: 70 | L40: نور الخليف | M40: I.R | N40: 0 | O40: 0 | P40: 0 | Q40: 0 | R40: 0 | S40: 0 | T40: 0 | U40: 0 | V40: 0 | W40: 0 | X40: 0 | Y40: 0 | Z40: 15 | AA40: 0 | AB40: 0 | AC40: 0 | AD40: 0 | AE40: 0 | AF40: 192.4 | AG40: 0 | AH40: 0 | AI40: 0 | AJ40: 0 | AK40: 0 | AL40: 0 | AM40: 0 | AN40: 0 | AO40: 0 | AP40: 0 | AQ40: 0 | AR40: 0 | AS40: 0 | AT40: 0 | AU40: 0 | AV40: 0 | AW40: 0 | AX40: 0 | AY40: 0 | AZ40: 0 | BA40: 0 | BB40: 0 | BC40: 0 | BD40: 0 | BE40: 0 | BF40: 0 | BG40: 0 | BH40: 0 | BI40: 0 | BJ40: 0 | BK40: 0 | BL40: 0 | BM40: 0 | BN40: 0 | BO40: 0 | BP40: 0 | BQ40: 0 | BR40: 1 | BS40: 0 | BT40: 0 | BU40: 0.8 | BV40: 0 | BW40: 0 | BX40: 0 | BY40: 0 | BZ40: 1 | CA40: 0 | CB40: 1 | CC40: 0 | CD40: 0 | CE40: 0 | CF40: 0 | CG40: 0 | CH40: 0 | CI40: 0 | CJ40: 0 | CK40: 0 | CL40: 0.32 | CM40: 0 | CN40: 0 | CO40: 0 | CP40: 0 | CQ40: 4 | CR40: 0 | CS40: 1 | CT40: 0 | CU40: 2 | CV40: 2 | CW40: 1 | CX40: 1.2 | CY40: 1 | CZ40: 0 | DA40: 0 | DB40: 0 | DC40: 0 | DD40: 0 | DE40: 0 | DF40: 0 | DG40: 0 | DH40: 0 | DI40: 0 | DJ40: 0 | DK40: 0 | DL40: 0 | DM40: 0 | DN40: 0 | DO40: 0 | DP40: 0 | DQ40: 0 | DR40: 0 | DS40: 0 | DT40: 0 | DU40: 0 | DV40: 0 | DW40: 0 | DX40: 0 | DY40: 0 | DZ40: 0 | EA40: 0 | EB40: 0 | EC40: 0 | ED40: 0 | EE40: 0 | EF40: 0 | EG40: 0 | EH40: 0 | EI40: 0 | EJ40: 0 | EK40: 0 | EL40: =SUMPRODUCT(Planned[[#This Row],[GEN-1]:[EL-20]],TRANSPOSE(Arrangements[Unit Prices])) -> $846.1
A41: 21 | B41: 101541 | C41: ac31fd3b39a94a0bb04ab8a7bc906a49 | D41: Accept | E41: Yes | H41: عطيه سليمان طحينة | I41: resident | J41: Barisha | K41: 70 | L41: نور الخليف | M41: I.R | N41: 0 | O41: 0 | P41: 0 | Q41: 0 | R41: 0 | S41: 0 | T41: 0 | U41: 0 | V41: 0 | W41: 0 | X41: 0 | Y41: 0 | Z41: 0 | AA41: 0 | AB41: 0 | AC41: 0 | AD41: 0 | AE41: 0 | AF41: 0 | AG41: 0 | AH41: 0 | AI41: 0 | AJ41: 0 | AK41: 0 | AL41: 0 | AM41: 0 | AN41: 24 | AO41: 0 | AP41: 0 | AQ41: 0 | AR41: 0 | AS41: 0 | AT41: 0 | AU41: 0 | AV41: 0 | AW41: 0 | AX41: 0 | AY41: 0 | AZ41: 0 | BA41: 0 | BB41: 0 | BC41: 0 | BD41: 0 | BE41: 0 | BF41: 0 | BG41: 0 | BH41: 0 | BI41: 0 | BJ41: 0 | BK41: 0 | BL41: 0 | BM41: 0 | BN41: 0 | BO41: 0 | BP41: 0 | BQ41: 0 | BR41: 0 | BS41: 0 | BT41: 0 | BU41: 0 | BV41: 0 | BW41: 0 | BX41: 0 | BY41: 0 | BZ41: 0 | CA41: 0 | CB41: 0 | CC41: 0 | CD41: 0 | CE41: 0 | CF41: 0 | CG41: 0 | CH41: 0 | CI41: 0 | CJ41: 0 | CK41: 0 | CL41: 0 | CM41: 0 | CN41: 0 | CO41: 0 | CP41: 1.75 | CQ41: 2 | CR41: 1 | CS41: 0 | CT41: 0 | CU41: 0 | CV41: 1 | CW41: 1 | CX41: 1.2 | CY41: 0 | CZ41: 0 | DA41: 0 | DB41: 0 | DC41: 0 | DD41: 0 | DE41: 0 | DF41: 0 | DG41: 0 | DH41: 0 | DI41: 0 | DJ41: 0 | DK41: 0 | DL41: 0 | DM41: 0 | DN41: 0 | DO41: 0 | DP41: 0 | DQ41: 0 | DR41: 0 | DS41: 0 | DT41: 0 | DU41: 0 | DV41: 0 | DW41: 0 | DX41: 0 | DY41: 0 | DZ41: 0 | EA41: 0 | EB41: 0 | EC41: 0 | ED41: 0 | EE41: 0 | EF41: 0 | EG41: 0 | EH41: 0 | EI41: 0 | EJ41: 0 | EK41: 0 | EL41: =SUMPRODUCT(Planned[[#This Row],[GEN-1]:[EL-20]],TRANSPOSE(Arrangements[Unit Prices])) -> $414.6
A42: 22 | B42: 23492 | C42: 815dda2d67fb4487b6511d3c33508429 | D42: Accept | E42: Yes | H42: محمد عامر نجار | I42: resident | J42: Barisha | K42: 70 | L42: نور الخليف | M42: I.R | N42: 0 | O42: 0 | P42: 0 | Q42: 0 | R42: 0 | S42: 0 | T42: 0 | U42: 0 | V42: 0 | W42: 0 | X42: 1 | Y42: 0 | Z42: 0 | AA42: 0 | AB42: 0 | AC42: 0 | AD42: 0 | AE42: 0 | AF42: 77.6 | AG42: 0 | AH42: 0 | AI42: 0 | AJ42: 0 | AK42: 0 | AL42: 0 | AM42: 0 | AN42: 0 | AO42: 0 | AP42: 0 | AQ42: 0 | AR42: 0 | AS42: 0 | AT42: 0 | AU42: 0 | AV42: 0 | AW42: 0 | AX42: 0 | AY42: 0 | AZ42: 0 | BA42: 0 | BB42: 0 | BC42: 0 | BD42: 0 | BE42: 0 | BF42: 0 | BG42: 0 | BH42: 0 | BI42: 0 | BJ42: 0 | BK42: 0 | BL42: 0 | BM42: 0 | BN42: 0 | BO42: 0 | BP42: 0 | BQ42: 0 | BR42: 0 | BS42: 0 | BT42: 0 | BU42: 0 | BV42: 0 | BW42: 10 | BX42: 0 | BY42: 0 | BZ42: 0 | CA42: 0 | CB42: 0 | CC42: 0 | CD42: 0 | CE42: 0 | CF42: 0 | CG42: 0 | CH42: 0 | CI42: 0 | CJ42: 0 | CK42: 0 | CL42: 0.16 | CM42: 0 | CN42: 0 | CO42: 0 | CP42: 0 | CQ42: 0 | CR42: 2 | CS42: 1 | CT42: 0 | CU42: 2 | CV42: 2 | CW42: 1 | CX42: 1.2 | CY42: 0 | CZ42: 0 | DA42: 0 | DB42: 0 | DC42: 0 | DD42: 12 | DE42: 0 | DF42: 0 | DG42: 0 | DH42: 0 | DI42: 0 | DJ42: 0 | DK42: 0 | DL42: 0 | DM42: 0 | DN42: 0 | DO42: 0 | DP42: 0 | DQ42: 0 | DR42: 0 | DS42: 0 | DT42: 0 | DU42: 0 | DV42: 0 | DW42: 0 | DX42: 0 | DY42: 0 | DZ42: 0 | EA42: 0 | EB42: 0 | EC42: 0 | ED42: 0 | EE42: 0 | EF42: 0 | EG42: 0 | EH42: 0 | EI42: 0 | EJ42: 0 | EK42: 0 | EL42: =SUMPRODUCT(Planned[[#This Row],[GEN-1]:[EL-20]],TRANSPOSE(Arrangements[Unit Prices])) -> $598.5
A43: 23 | B43: 281058 | C43: b6a50ae846c444b89313bce274286ef7 | D43: Accept | E43: Yes | H43: إبراهيم محمد شواش | I43: resident | J43: Barisha | K43: 70 | L43: نور الخليف | M43: I.R | N43: 0 | O43: 0 | P43: 0 | Q43: 0 | R43: 0 | S43: 0 | T43: 0 | U43: 0 | V43: 0 | W43: 0 | X43: 0 | Y43: 0 | Z43: 0 | AA43: 0 | AB43: 0 | AC43: 0 | AD43: 0 | AE43: 0 | AF43: 0 | AG43: 0 | AH43: 0 | AI43: 0 | AJ43: 0 | AK43: 0 | AL43: 0 | AM43: 0 | AN43: 0 | AO43: 0 | AP43: 3 | AQ43: 0 | AR43: 0 | AS43: 0 | AT43: 0 | AU43: 0 | AV43: 0 | AW43: 0 | AX43: 0 | AY43: 0 | AZ43: 0 | BA43: 0 | BB43: 0 | BC43: 0 | BD43: 0 | BE43: 0 | BF43: 0 | BG43: 0 | BH43: 0 | BI43: 0 | BJ43: 0 | BK43: 0 | BL43: 0 | BM43: 0 | BN43: 0 | BO43: 0 | BP43: 0 | BQ43: 0 | BR43: 1 | BS43: 0 | BT43: 0 | BU43: 0 | BV43: 0 | BW43: 0 | BX43: 0 | BY43: 0 | BZ43: 0 | CA43: 0 | CB43: 0 | CC43: 0 | CD43: 0 | CE43: 0 | CF43: 0 | CG43: 0 | CH43: 0 | CI43: 0 | CJ43: 0 | CK43: 0 | CL43: 0 | CM43: 0 | CN43: 0 | CO43: 0 | CP43: 0 | CQ43: 3 | CR43: 3 | CS43: 0 | CT43: 0 | CU43: 0 | CV43: 0 | CW43: 0 | CX43: 0 | CY43: 0 | CZ43: 0 | DA43: 0 | DB43: 0 | DC43: 0 | DD43: 0 | DE43: 0 | DF43: 0 | DG43: 0 | DH43: 0 | DI43: 0 | DJ43: 0 | DK43: 0 | DL43: 0 | DM43: 0 | DN43: 0 | DO43: 0 | DP43: 0 | DQ43: 0 | DR43: 0 | DS43: 0 | DT43: 0 | DU43: 0 | DV43: 0 | DW43: 0 | DX43: 0 | DY43: 0 | DZ43: 0 | EA43: 0 | EB43: 0 | EC43: 2 | ED43: 0 | EE43: 0 | EF43: 0 | EG43: 2 | EH43: 0 | EI43: 0 | EJ43: 0 | EK43: 10 | EL43: =SUMPRODUCT(Planned[[#This Row],[GEN-1]:[EL-20]],TRANSPOSE(Arrangements[Unit Prices])) -> $707.4
A44: 24 | B44: 244586 | C44: 553a3c3ccc2243919b70f9f2d49a68bf | D44: Accept | E44: Yes | H44: احمد محمد سرحاوي | I44: Displaced | J44: Barisha | K44: 70 | L44: نور الخليف | M44: I.R | N44: 0 | O44: 0 | P44: 0 | Q44: 0 | R44: 0 | S44: 0 | T44: 0 | U44: 0 | V44: 0 | W44: 0 | X44: 0 | Y44: 0 | Z44: 0 | AA44: 0 | AB44: 0 | AC44: 0 | AD44: 0 | AE44: 0 | AF44: 127.6 | AG44: 0 | AH44: 0 | AI44: 0 | AJ44: 0 | AK44: 0 | AL44: 0 | AM44: 0 | AN44: 0 | AO44: 0 | AP44: 4.8 | AQ44: 0 | AR44: 16.6 | AS44: 0 | AT44: 0 | AU44: 0 | AV44: 0 | AW44: 0 | AX44: 0 | AY44: 0 | AZ44: 0 | BA44: 0 | BB44: 0 | BC44: 0 | BD44: 0 | BE44: 0 | BF44: 0 | BG44: 0 | BH44: 0 | BI44: 0 | BJ44: 0 | BK44: 0 | BL44: 0 | BM44: 1 | BN44: 0 | BO44: 0 | BP44: 0 | BQ44: 0 | BR44: 0 | BS44: 0 | BT44: 0 | BU44: 0 | BV44: 0 | BW44: 0 | BX44: 0 | BY44: 0 | BZ44: 0 | CA44: 0 | CB44: 0 | CC44: 0 | CD44: 0 | CE44: 0 | CF44: 0 | CG44: 0 | CH44: 0 | CI44: 0 | CJ44: 0 | CK44: 0 | CL44: 0.32 | CM44: 0 | CN44: 0 | CO44: 0 | CP44: 0 | CQ44: 5 | CR44: 5 | CS44: 1 | CT44: 0 | CU44: 0 | CV44: 2 | CW44: 1 | CX44: 0 | CY44: 0 | CZ44: 0 | DA44: 0 | DB44: 0 | DC44: 0 | DD44: 0 | DE44: 0 | DF44: 10 | DG44: 0 | DH44: 0 | DI44: 0 | DJ44: 0 | DK44: 0 | DL44: 0 | DM44: 0 | DN44: 0 | DO44: 0 | DP44: 0 | DQ44: 0 | DR44: 0 | DS44: 0 | DT44: 0 | DU44: 0 | DV44: 0 | DW44: 0 | DX44: 0 | DY44: 0 | DZ44: 0 | EA44: 0 | EB44: 1 | EC44: 0 | ED44: 0 | EE44: 0 | EF44: 0 | EG44: 1 | EH44: 0 | EI44: 0 | EJ44: 0 | EK44: 0 | EL44: =SUMPRODUCT(Planned[[#This Row],[GEN-1]:[EL-20]],TRANSPOSE(Arrangements[Unit Prices])) -> $1,302.5
A45: 25 | B45: 11904 | C45: 9df924b47c42423ea8a059be98b854a1 | D45: Accept | E45: Yes | H45: شعبان عبدالرؤوف قاسم | I45: resident | J45: Barisha | K45: 70 | L45: نور الخليف | M45: I.R | N45: 0 | O45: 0 | P45: 0 | Q45: 0 | R45: 0 | S45: 0 | T45: 0 | U45: 0 | V45: 0 | W45: 0 | X45: 0 | Y45: 0 | Z45: 0 | AA45: 0 | AB45: 0 | AC45: 0 | AD45: 0 | AE45: 0 | AF45: 57.16 | AG45: 0 | AH45: 0 | AI45: 0 | AJ45: 0 | AK45: 0 | AL45: 0 | AM45: 32.04 | AN45: 0 | AO45: 0 | AP45: 0 | AQ45: 0 | AR45: 0 | AS45: 0 | AT45: 0 | AU45: 0 | AV45: 0 | AW45: 0 | AX45: 0 | AY45: 0 | AZ45: 0 | BA45: 0 | BB45: 0 | BC45: 0 | BD45: 0 | BE45: 0 | BF45: 0 | BG45: 0 | BH45: 0 | BI45: 0 | BJ45: 0 | BK45: 0 | BL45: 0 | BM45: 0 | BN45: 0 | BO45: 0 | BP45: 0 | BQ45: 0 | BR45: 0 | BS45: 0 | BT45: 0 | BU45: 0 | BV45: 0 | BW45: 0 | BX45: 0 | BY45: 0 | BZ45: 100 | CA45: 0 | CB45: 0 | CC45: 0 | CD45: 0 | CE45: 0 | CF45: 0 | CG45: 0 | CH45: 0 | CI45: 0 | CJ45: 0 | CK45: 0 | CL45: 0 | CM45: 0 | CN45: 0 | CO45: 0 | CP45: 0 | CQ45: 4 | CR45: 3 | CS45: 1 | CT45: 0 | CU45: 2 | CV45: 0 | CW45: 0 | CX45: 0 | CY45: 0 | CZ45: 0 | DA45: 1 | DB45: 1 | DC45: 0 | DD45: 30 | DE45: 0 | DF45: 0 | DG45: 0 | DH45: 0 | DI45: 0 | DJ45: 0 | DK45: 0 | DL45: 0 | DM45: 0 | DN45: 0 | DO45: 0 | DP45: 0 | DQ45: 0 | DR45: 0 | DS45: 0 | DT45: 0 | DU45: 0 | DV45: 0 | DW45: 0 | DX45: 0 | DY45: 0 | DZ45: 0 | EA45: 0 | EB45: 0 | EC45: 0 | ED45: 0 | EE45: 0 | EF45: 0 | EG45: 0 | EH45: 0 | EI45: 0 | EJ45: 0 | EK45: 0 | EL45: =SUMPRODUCT(Planned[[#This Row],[GEN-1]:[EL-20]],TRANSPOSE(Arrangements[Unit Prices])) -> $780.1
A46: 26 | B46: 250697 | C46: 4782cf5c977e4d91bd096096c563b7f2 | D46: Accept | E46: Yes | H46: انيس سهيل الحمود | I46: Displaced | J46: Barisha | K46: 70 | L46: نور الخليف | M46: I.R | N46: 0 | O46: 0 | P46: 0 | Q46: 0 | R46: 0 | S46: 0 | T46: 0 | U46: 0 | V46: 0 | W46: 0 | X46: 0 | Y46: 0 | Z46: 0 | AA46: 50 | AB46: 0 | AC46: 0 | AD46: 0 | AE46: 0 | AF46: 188.97 | AG46: 0 | AH46: 0 | AI46: 0 | AJ46: 0 | AK46: 0 | AL46: 0 | AM46: 0 | AN46: 0 | AO46: 0 | AP46: 0 | AQ46: 0 | AR46: 0 | AS46: 0 | AT46: 0 | AU46: 0 | AV46: 0 | AW46: 0 | AX46: 0 | AY46: 0 | AZ46: 0 | BA46: 0 | BB46: 0 | BC46: 0 | BD46: 0 | BE46: 0 | BF46: 0 | BG46: 0 | BH46: 0 | BI46: 0 | BJ46: 0 | BK46: 0 | BL46: 0 | BM46: 0 | BN46: 0 | BO46: 0 | BP46: 0 | BQ46: 0 | BR46: 0 | BS46: 0 | BT46: 0 | BU46: 0 | BV46: 0 | BW46: 0 | BX46: 0 | BY46: 0 | BZ46: 0 | CA46: 0 | CB46: 0 | CC46: 0 | CD46: 0 | CE46: 0 | CF46: 0 | CG46: 0 | CH46: 0 | CI46: 0 | CJ46: 0 | CK46: 0 | CL46: 0.16 | CM46: 0 | CN46: 0 | CO46: 0 | CP46: 0 | CQ46: 3 | CR46: 4 | CS46: 1 | CT46: 0 | CU46: 1 | CV46: 1 | CW46: 1 | CX46: 1 | CY46: 0 | CZ46: 0 | DA46: 0 | DB46: 0 | DC46: 0 | DD46: 3 | DE46: 0 | DF46: 0 | DG46: 4 | DH46: 0 | DI46: 0 | DJ46: 0 | DK46: 1 | DL46: 0 | DM46: 0 | DN46: 0 | DO46: 0 | DP46: 0 | DQ46: 0 | DR46: 0 | DS46: 0 | DT46: 0 | DU46: 0 | DV46: 0 | DW46: 0 | DX46: 0 | DY46: 0 | DZ46: 0 | EA46: 0 | EB46: 1 | EC46: 0 | ED46: 0 | EE46: 0 | EF46: 0 | EG46: 1 | EH46: 0 | EI46: 0 | EJ46: 0 | EK46: 0 | EL46: =SUMPRODUCT(Planned[[#This Row],[GEN-1]:[EL-20]],TRANSPOSE(Arrangements[Unit Prices])) -> $1,174.2
A47: 27 | B47: 250651 | C47: c8e101008a5b46d58dc017448b4d6e2b | D47: Accept | E47: Yes | H47: خضر حسين السالم | I47: Displaced | J47: Barisha | K47: 70 | L47: نور الخليف | M47: I.R | N47: 0 | O47: 0 | P47: 0 | Q47: 0 | R47: 0 | S47: 2.8 | T47: 0 | U47: 0 | V47: 0 | W47: 0 | X47: 0 | Y47: 0 | Z47: 0 | AA47: 0 | AB47: 0 | AC47: 0 | AD47: 0 | AE47: 0 | AF47: 31.5 | AG47: 0 | AH47: 0 | AI47: 0 | AJ47: 0 | AK47: 0 | AL47: 0 | AM47: 0 | AN47: 28.8 | AO47: 0 | AP47: 0 | AQ47: 0 | AR47: 7.75 | AS47: 0 | AT47: 0 | AU47: 0 | AV47: 0 | AW47: 0 | AX47: 0 | AY47: 0 | AZ47: 0 | BA47: 0 | BB47: 0 | BC47: 0 | BD47: 0 | BE47: 0 | BF47: 0 | BG47: 0 | BH47: 0 | BI47: 0 | BJ47: 0 | BK47: 0 | BL47: 0 | BM47: 0 | BN47: 0 | BO47: 0 | BP47: 0 | BQ47: 0 | BR47: 2 | BS47: 0 | BT47: 0 | BU47: 0.432 | BV47: 0 | BW47: 0 | BX47: 0 | BY47: 0 | BZ47: 0 | CA47: 0 | CB47: 2 | CC47: 0 | CD47: 0 | CE47: 0 | CF47: 0 | CG47: 0 | CH47: 0 | CI47: 0 | CJ47: 0.84 | CK47: 0 | CL47: 0 | CM47: 0 | CN47: 0 | CO47: 0 | CP47: 0 | CQ47: 1 | CR47: 1 | CS47: 0 | CT47: 0 | CU47: 0 | CV47: 0 | CW47: 0 | CX47: 0 | CY47: 0 | CZ47: 0 | DA47: 0 | DB47: 0 | DC47: 0 | DD47: 0 | DE47: 0 | DF47: 0 | DG47: 0 | DH47: 0 | DI47: 0 | DJ47: 0 | DK47: 0 | DL47: 0 | DM47: 0 | DN47: 0 | DO47: 0 | DP47: 0 | DQ47: 0 | DR47: 0 | DS47: 0 | DT47: 0 | DU47: 0 | DV47: 0 | DW47: 0 | DX47: 0 | DY47: 0 | DZ47: 0 | EA47: 0 | EB47: 0 | EC47: 0 | ED47: 0 | EE47: 0 | EF47: 0 | EG47: 0 | EH47: 0 | EI47: 0 | EJ47: 0 | EK47: 0 | EL47: =SUMPRODUCT(Planned[[#This Row],[GEN-1]:[EL-20]],TRANSPOSE(Arrangements[Unit Prices])) -> $524.2
A48: 28 | B48: 11936 | C48: f32f5a584dd4465bb490459f9d79833d | D48: Accept | E48: Yes | H48: صبحية محمد نجار | I48: resident | J48: Barisha | K48: 70 | L48: نور الخليف | M48: I.R | N48: 0 | O48: 0 | P48: 0 | Q48: 0 | R48: 0 | S48: 0 | T48: 0 | U48: 0 | V48: 0.19 | W48: 0 | X48: 0 | Y48: 0 | Z48: 0 | AA48: 0 | AB48: 0 | AC48: 0 | AD48: 0 | AE48: 0 | AF48: 160.48 | AG48: 0 | AH48: 0 | AI48: 0 | AJ48: 0 | AK48: 0 | AL48: 0 | AM48: 0 | AN48: 0 | AO48: 0 | AP48: 0 | AQ48: 0 | AR48: 0 | AS48: 0 | AT48: 0 | AU48: 0 | AV48: 0 | AW48: 0 | AX48: 0 | AY48: 0 | AZ48: 0 | BA48: 0 | BB48: 0 | BC48: 0 | BD48: 0 | BE48: 0 | BF48: 0 | BG48: 0 | BH48: 0 | BI48: 0 | BJ48: 0 | BK48: 0 | BL48: 0 | BM48: 1 | BN48: 0 | BO48: 0 | BP48: 0 | BQ48: 0 | BR48: 0 | BS48: 0 | BT48: 0 | BU48: 0 | BV48: 0 | BW48: 0 | BX48: 0 | BY48: 0 | BZ48: 0 | CA48: 0 | CB48: 0 | CC48: 0 | CD48: 0 | CE48: 0 | CF48: 0 | CG48: 0 | CH48: 0 | CI48: 0 | CJ48: 0 | CK48: 0 | CL48: 0.16 | CM48: 0 | CN48: 0 | CO48: 0 | CP48: 0 | CQ48: 2 | CR48: 1 | CS48: 0 | CT48: 0 | CU48: 0 | CV48: 1 | CW48: 0 | CX48: 0 | CY48: 0 | CZ48: 0 | DA48: 0 | DB48: 0 | DC48: 0 | DD48: 2.5 | DE48: 0 | DF48: 0 | DG48: 0 | DH48: 0 | DI48: 0 | DJ48: 0 | DK48: 0 | DL48: 0 | DM48: 0 | DN48: 0 | DO48: 0 | DP48: 0 | DQ48: 0 | DR48: 0 | DS48: 0 | DT48: 0 | DU48: 0 | DV48: 0 | DW48: 0 | DX48: 0 | DY48: 0 | DZ48: 0 | EA48: 0 | EB48: 0 | EC48: 0 | ED48: 0 | EE48: 0 | EF48: 0 | EG48: 0 | EH48: 0 | EI48: 0 | EJ48: 0 | EK48: 0 | EL48: =SUMPRODUCT(Planned[[#This Row],[GEN-1]:[EL-20]],TRANSPOSE(Arrangements[Unit Prices])) -> $651.9
A49: 29 | B49: 285475 | C49: 45ffc710b1994babbfdd5c28412df961 | D49: Accept | E49: Yes | H49: احمد جمعة البنية | I49: Displaced | J49: Barisha | K49: 70 | L49: نور + عبدالهادي | M49: I.R | S49: 4.6 | AF49: 178.7 | AP49: 5.9 | BU49: 1.6 | CJ49: 5.9 | CK49: 0 | CL49: 0.1 | CP49: 5.8 | EL49: =SUMPRODUCT(Planned[[#This Row],[GEN-1]:[EL-20]],TRANSPOSE(Arrangements[Unit Prices])) -> $1,208.6
A50: 30 | B50: 3235 | C50: 60c702f1a9f2478fa4eb33ada9bfa5a3 | D50: Accept | E50: Yes | H50: احمد محمد عمارة | I50: Displaced | J50: Barisha | K50: 70 | L50: نور + عبدالهادي | M50: I.R | AA50: 24 | AF50: 242 | BR50: 3 | BT50: 2 | BU50: 1 | CB50: 3 | CJ50: 5.1 | CL50: 0.6 | CP50: 1.9 | CQ50: 1 | CU50: 2 | DD50: 3 | DK50: 1 | EL50: =SUMPRODUCT(Planned[[#This Row],[GEN-1]:[EL-20]],TRANSPOSE(Arrangements[Unit Prices])) -> $1,171.2
A51: 31 | B51: 280804 | C51: 1c291a02fcb94b5eb43723b0ea715f8b | D51: Accept | E51: Yes | H51: اسماء محمد علي | I51: Displaced | J51: Barisha | K51: 70 | L51: نور + عبدالهادي | M51: I.R | S51: 7.3 | AF51: 139 | BM51: 1 | CL51: 0.5 | CQ51: 5 | CR51: 8 | CS51: 1 | CU51: 4 | CW51: 1 | CX51: 1.2 | DD51: 10 | DK51: 1 | EC51: 1 | EE51: 1 | EG51: 1 | EL51: =SUMPRODUCT(Planned[[#This Row],[GEN-1]:[EL-20]],TRANSPOSE(Arrangements[Unit Prices])) -> $1,738.1
A52: 32 | B52: 18975 | C52: a135ca1be1464a6da81c21305bdff094 | D52: Accept | E52: Yes | H52: حسين عيسى لمط | I52: Displaced | J52: Barisha | K52: 70 | L52: نور + عبدالهادي | M52: I.R | V52: 1.8 | AP52: 5.5 | BM52: 1 | BY52: 80 | CL52: 0.56 | CQ52: 4 | CR52: 5 | CU52: 3 | CW52: 1 | CX52: 1.2 | DD52: 18 | DF52: 2 | DG52: 2 | EL52: =SUMPRODUCT(Planned[[#This Row],[GEN-1]:[EL-20]],TRANSPOSE(Arrangements[Unit Prices])) -> $964.1
A53: 33 | B53: 281463 | C53: 4814f92e02e446a58f9d5a3a97f9c8e3 | D53: Accept | E53: Yes | H53: حمزة مراد ابرم | I53: Displaced | J53: Barisha | K53: 70 | L53: نور + عبدالهادي | M53: I.R | CL53: 0.24 | CQ53: 4 | CR53: 4 | CS53: 1 | CU53: 1 | CV53: 1 | CW53: 1 | CX53: 0.6 | DD53: 2 | EL53: =SUMPRODUCT(Planned[[#This Row],[GEN-1]:[EL-20]],TRANSPOSE(Arrangements[Unit Prices])) -> $447.8
A54: 34 | B54: 280112 | C54: bb0486293bb5489f86ae78cdb2063a7a | D54: Accept | E54: Yes | H54: طراد حسين العبدالله | I54: resident | J54: Barisha | K54: 70 | L54: نور + عبدالهادي | M54: I.R | AR54: 31 | BY54: 45 | CL54: 0.55 | CP54: 4.5 | CS54: 1 | CU54: 1 | CV54: 1 | CW54: 1 | CX54: 1.2 | EL54: =SUMPRODUCT(Planned[[#This Row],[GEN-1]:[EL-20]],TRANSPOSE(Arrangements[Unit Prices])) -> $693.0
A55: 35 | B55: 285496 | C55: 9620941eddc8481cb1c1b1787527128d | D55: Accept | E55: Yes | H55: عبدالرحمن علي الديري | I55: Displaced | J55: Barisha | K55: 70 | L55: نور + عبدالهادي | M55: I.R | S55: 2.95 | AF55: 72.6 | AP55: 8 | BM55: 1 | BR55: 1 | BU55: 0.8 | CB55: 1 | CL55: 0.28 | CQ55: 3 | CR55: 3 | CS55: 1 | CU55: 3 | CW55: 1 | CX55: 1.8 | DD55: 18 | DF55: 9 | DK55: 1 | EL55: =SUMPRODUCT(Planned[[#This Row],[GEN-1]:[EL-20]],TRANSPOSE(Arrangements[Unit Prices])) -> $1,039.7
A56: 36 | B56: 284635 | C56: 4443a8e612c3465cb57c011a9008377f | D56: Accept | E56: Yes | H56: علي جمعة البنية | I56: Displaced | J56: Barisha | K56: 70 | L56: نور + عبدالهادي | M56: I.R | S56: 3.65 | AA56: 30 | AF56: 229.21 | AP56: 2.9 | CJ56: 7.6 | CL56: 0.1 | CP56: 3.4 | CS56: 1 | CU56: 1 | CW56: 1 | CX56: 1.8 | DD56: 2.5 | EL56: =SUMPRODUCT(Planned[[#This Row],[GEN-1]:[EL-20]],TRANSPOSE(Arrangements[Unit Prices])) -> $1,410.5
A57: 37 | B57: 277783 | C57: 24ad6b1e380e4a728fbe61ab75efe98b | D57: Accept | E57: Yes | H57: احمد عبد اللطيف التويني | I57: Displaced | J57: Barisha | K57: 70 | L57: ريم -شادي | M57: I.R | T57: 7.75 | AF57: 255 | CF57: 3 | CQ57: 3 | CR57: 4 | DK57: 1 | EL57: =SUMPRODUCT(Planned[[#This Row],[GEN-1]:[EL-20]],TRANSPOSE(Arrangements[Unit Prices])) -> $1,199.1
A58: 38 | B58: 282533 | C58: b869c00727574a31be4af71ee049b69f | D58: Accept | E58: Yes | H58: صطوف احمد محمد علي | I58: Displaced | J58: Barisha | K58: 70 | L58: حسام العبدالله _براء نبعه | M58: I.R | AF58: 270 | CJ58: 0.4 | CQ58: 3 | CR58: 6 | CV58: 2 | DK58: 1 | EL58: =SUMPRODUCT(Planned[[#This Row],[GEN-1]:[EL-20]],TRANSPOSE(Arrangements[Unit Prices])) -> $1,111.8
A59: 39 | B59: 27983 | C59: 128a67f8435049c7aa024fa8e6ffdabf | D59: Accept | E59: Yes | H59: دعاء صبحي حبوبو | I59: resident | J59: Barisha | K59: 70 | L59: هشام_عبد الرزاق | M59: I.R | AF59: 235 | AP59: 14 | BS59: 1 | CL59: 0.35 | CQ59: 5 | CR59: 5 | CS59: 1 | CU59: 3 | CW59: 1 | CX59: 1 | DK59: 1 | EL59: =SUMPRODUCT(Planned[[#This Row],[GEN-1]:[EL-20]],TRANSPOSE(Arrangements[Unit Prices])) -> $1,315.5
A60: 40 | B60: 29428 | C60: edd466678ea64e118ef6545f3419e737 | D60: Accept | E60: Yes | H60: نصر الدين طه لمط | I60: resident | J60: Barisha | K60: 70 | L60: حسام عبدالله _براء مبعه | M60: I.R | AF60: 190 | CQ60: 3 | CR60: 4 | CV60: 1 | EL60: =SUMPRODUCT(Planned[[#This Row],[GEN-1]:[EL-20]],TRANSPOSE(Arrangements[Unit Prices])) -> $719.2
A61: 41 | B61: 287056 | C61: ccd2772be0d047d38d8ad49a5e1b4b7c | D61: Accept | E61: Yes | H61: زياد محمد عبيد | I61: Displaced | J61: Barisha | K61: 70 | L61: حسام العبدالله_براء نبعه | M61: I.R | T61: 7 | AF61: 210 | CJ61: 0.5 | CQ61: 3 | CR61: 5 | CV61: 1 | CW61: 1 | CX61: 1 | DC61: 1 | DK61: 1 | EL61: =SUMPRODUCT(Planned[[#This Row],[GEN-1]:[EL-20]],TRANSPOSE(Arrangements[Unit Prices])) -> $1,237.8
A62: 42 | B62: 1866 | C62: 03e9411ea7ec475993b058d4978cf9d7 | D62: Accept | E62: Yes | H62: احمد سعيد دالي | I62: returnee | J62: Barisha | K62: 70 | L62: علي حسين .مهند حديد | M62: I.R | T62: 5.2 | AF62: 208 | AP62: 5 | BJ62: 2 | BM62: 1 | CL62: 0.16 | CQ62: 2 | CR62: 1 | CT62: 2 | CV62: 2 | CX62: 0.5 | EC62: 1 | EG62: 1 | EH62: 1 | EK62: 15 | EL62: =SUMPRODUCT(Planned[[#This Row],[GEN-1]:[EL-20]],TRANSPOSE(Arrangements[Unit Prices])) -> $1,496.6
A63: 43 | B63: 1729 | C63: ff8684409d3c421cb811d9eeb4edda0b | D63: Accept | E63: Yes | H63: احمد خالد مريش | I63: resident | J63: Barisha | K63: 70 | L63: شادي .ريم | M63: I.R | AF63: 65 | BM63: 1 | CQ63: 4 | CR63: 4 | CU63: 1 | CW63: 1 | DC63: 1 | DK63: 1 | EC63: 1 | EG63: 1 | EL63: =SUMPRODUCT(Planned[[#This Row],[GEN-1]:[EL-20]],TRANSPOSE(Arrangements[Unit Prices])) -> $957.5
A64: 44 | B64: 146983 | C64: 98d82bdf35ad4a4098a37475e467ebb5 | D64: Accept | E64: Yes | H64: طارق محمد علي الخضر البحصون | I64: Displaced | J64: Barisha | K64: 70 | L64: ريم -شادي | M64: I.R | T64: 5.5 | Z64: 180 | AF64: 165 | BM64: 1 | CQ64: 3 | CR64: 1 | DK64: 1 | EL64: =SUMPRODUCT(Planned[[#This Row],[GEN-1]:[EL-20]],TRANSPOSE(Arrangements[Unit Prices])) -> $1,010.9
A65: 45 | B65: 295386 | C65: c1840df5648a46f197d4a29ba5cf2b01 | D65: Accept | E65: Yes | H65: محمد سيف الدين السعيد | I65: Displaced | J65: Barisha | K65: 70 | L65: نور_هشام | M65: I.R | AF65: 190 | BR65: 1 | CL65: 0.25 | CQ65: 5 | CR65: 2 | CV65: 2 | CW65: 1 | CX65: 1.2 | DB65: 2 | DC65: 18 | DF65: 7 | DG65: 15 | DK65: 1 | EC65: 1 | EE65: 1 | EG65: 1 | EL65: =SUMPRODUCT(Planned[[#This Row],[GEN-1]:[EL-20]],TRANSPOSE(Arrangements[Unit Prices])) -> $1,248.1
A66: 46 | B66: 284877 | C66: 24b56fd53a2b4b7886d755da245d42a4 | D66: Accept | E66: yes | H66: وليد عبدو عبادو | I66: Displaced | J66: Barisha | K66: 70 | L66: شادي-ريم | M66: I.R | CQ66: 5 | CR66: 7 | CW66: 1 | CX66: 1 | EL66: =SUMPRODUCT(Planned[[#This Row],[GEN-1]:[EL-20]],TRANSPOSE(Arrangements[Unit Prices])) -> $557.6
A67: 47 | B67: 11066 | C67: e8ce9fbb675c4811ab38bb72ded2fa45 | D67: Accept | E67: Yes | H67: سامر ناقد بوزغه | I67: resident | J67: Barisha | K67: 70 | L67: ريم طالب_شادي | M67: I.R | CQ67: 6 | CR67: 8 | DK67: 1 | EL67: =SUMPRODUCT(Planned[[#This Row],[GEN-1]:[EL-20]],TRANSPOSE(Arrangements[Unit Prices])) -> $634.4
A68: 48 | B68: 217881 | C68: 80fe1884c0084e7f85b3e5be66af5d5e | D68: Accept | E68: Yes | H68: انيس صطوف الموسى | I68: Displaced | J68: Barisha | K68: 70 | L68: ريم -شادي | M68: I.R | AF68: 275 | BM68: 1 | CQ68: 5 | CR68: 7 | EL68: =SUMPRODUCT(Planned[[#This Row],[GEN-1]:[EL-20]],TRANSPOSE(Arrangements[Unit Prices])) -> $1,215.1
A69: 49 | B69: 140409 | C69: cb141d8f915841e0853c9ef2eeb1f0a6 | D69: Accept | E69: Yes | H69: شحاد حمدو الشحاد | I69: Displaced | J69: Barisha | K69: 70 | L69: ريم -شادي | M69: I.R | AF69: 245 | CQ69: 4 | CR69: 7 | EL69: =SUMPRODUCT(Planned[[#This Row],[GEN-1]:[EL-20]],TRANSPOSE(Arrangements[Unit Prices])) -> $981.1
A70: 50 | B70: 274766 | C70: 35811d5ec8b2406eb8c6b640cad44681 | D70: Accept | E70: Yes | H70: علي عمر الجدوع | I70: Displaced | J70: Barisha | K70: 70 | L70: هشام .عبد الرزاق | M70: I.R | S70: 3 | Z70: 55 | AF70: 130 | AP70: 11.5 | BQ70: 1 | BY70: 22 | CL70: 0.4 | CQ70: 3 | CR70: 3 | CS70: 1 | CU70: 4 | CW70: 1 | CX70: 1 | DC70: 20 | DJ70: 1 | DK70: 1 | EL70: =SUMPRODUCT(Planned[[#This Row],[GEN-1]:[EL-20]],TRANSPOSE(Arrangements[Unit Prices])) -> $1,127.3
A71: 51 | B71: 250634 | C71: 2063a62c1f044917a334d0a4bed2270f | D71: Accept | E71: Yes | H71: اكرم عبد الحميد الحمد | I71: Displaced | J71: Barisha | K71: 70 | L71: نور-هشام | M71: I.R | W71: 1 | AF71: 92 | CQ71: 1 | CR71: 3 | CV71: 1 | CW71: 1 | CX71: 1.2 | DK71: 1 | EC71: 1 | EE71: 1 | EG71: 1 | EL71: =SUMPRODUCT(Planned[[#This Row],[GEN-1]:[EL-20]],TRANSPOSE(Arrangements[Unit Prices])) -> $909.0
A72: 52 | B72: 224156 | C72: 9d4b05584bf740bcbcbc54c1eb7746f3 | D72: Accept | E72: yes | H72: محمد صطوف الاسماعيل | I72: Displaced | J72: Barisha | K72: 70 | L72: ريم طالب_شادي | M72: I.R | W72: 0.3 | AF72: 200 | CQ72: 5 | CR72: 3 | CU72: 2 | DC72: 25 | DK72: 1 | EL72: =SUMPRODUCT(Planned[[#This Row],[GEN-1]:[EL-20]],TRANSPOSE(Arrangements[Unit Prices])) -> $929.2
A73: 53 | B73: 29480 | C73: 18e01d92c5744447ad94e425e6e0f7d6 | D73: Accept | E73: Yes | H73: نضال خالد حسين | I73: resident | J73: Barisha | K73: 70 | L73: حسام العبدالله_براء نبعه | M73: I.R | S73: 6 | AF73: 173 | CL73: 0.4 | CQ73: 4 | CR73: 3 | CW73: 1 | CX73: 1 | DD73: 1 | DK73: 1 | EL73: =SUMPRODUCT(Planned[[#This Row],[GEN-1]:[EL-20]],TRANSPOSE(Arrangements[Unit Prices])) -> $1,125.3
A74: 54 | B74: 285673 | C74: 1b58f0af855b4dd5bfbcf0656c5f9883 | D74: Accept | E74: Yes | H74: مصطفى شعبان احمد عبد الخالق | I74: Displaced | J74: Barisha | K74: 70 | L74: حسام العبدالله _براء نبعه | M74: I.R | S74: 2.5 | AF74: 120 | BM74: 1 | CQ74: 4 | CR74: 8 | CV74: 1 | EL74: =SUMPRODUCT(Planned[[#This Row],[GEN-1]:[EL-20]],TRANSPOSE(Arrangements[Unit Prices])) -> $970.4
A75: 55 | B75: 227555 | C75: 01a105fe94574021ba977575b0e991e3 | D75: Accept | E75: Yes | H75: عبد العزيز عليوي الخضر البحصون | I75: Displaced | J75: Barisha | K75: 70 | L75: ريم -شادي | M75: I.R | T75: 2.7 | W75: 5 | AF75: 40 | BM75: 1 | CQ75: 5 | CR75: 2 | DK75: 1 | EL75: =SUMPRODUCT(Planned[[#This Row],[GEN-1]:[EL-20]],TRANSPOSE(Arrangements[Unit Prices])) -> $1,171.6
A76: 56 | B76: 230054 | C76: 6eb7a7acc53c4e6abcb51eef2628789c | D76: Accept | E76: Yes | H76: جاسم محمد الجاسم | I76: Displaced | J76: Barisha | K76: 70 | L76: حسام العبد الله براء نبعه | M76: I.R | AF76: 210 | CJ76: 0.4 | CQ76: 4 | CR76: 6 | CV76: 1 | EL76: =SUMPRODUCT(Planned[[#This Row],[GEN-1]:[EL-20]],TRANSPOSE(Arrangements[Unit Prices])) -> $898.8
A77: 57 | B77: 315620 | C77: e4ca47ba7ca54e7182309a0e4aa15817 | D77: Accept | E77: Yes | H77: احمد حسن الاسماعيل | I77: Displaced | J77: Barisha | K77: 70 | L77: حسام العبدالله _براء نبعه | M77: I.R | AF77: 245 | CL77: 0.4 | CQ77: 4 | CR77: 6 | CV77: 2 | CW77: 1 | CX77: 2 | DD77: 15 | EL77: =SUMPRODUCT(Planned[[#This Row],[GEN-1]:[EL-20]],TRANSPOSE(Arrangements[Unit Prices])) -> $1,145.3
A78: 58 | B78: 3254 | C78: dd5e89af6ab34be68b1c65a019f4ee75 | D78: Accept | E78: Yes | H78: احمد فاتح محمد | I78: resident | J78: Barisha | K78: 70 | L78: شادي-ريم | M78: I.R | CQ78: 5 | CR78: 6 | CU78: 1 | DC78: 10 | DK78: 1 | EC78: 1 | EG78: 1 | EL78: =SUMPRODUCT(Planned[[#This Row],[GEN-1]:[EL-20]],TRANSPOSE(Arrangements[Unit Prices])) -> $743.3
A79: 59 | B79: 207854 | C79: 1166bef4d7264fc0b10d53fb2f459608 | D79: Accept | E79: Yes | H79: احمد صطوف اسماعيل | I79: Displaced | J79: Barisha | K79: 70 | L79: شادي .ريم | M79: I.R | W79: 1.2 | AF79: 155 | BM79: 1 | CQ79: 3 | CR79: 5 | CW79: 1 | CX79: 1 | DC79: 10 | DK79: 1 | EL79: =SUMPRODUCT(Planned[[#This Row],[GEN-1]:[EL-20]],TRANSPOSE(Arrangements[Unit Prices])) -> $1,113.0
A80: 60 | B80: 12277 | C80: 38e51e2ae35d4b52a2c9bb6bf516d866 | D80: Accept | E80: Yes | H80: صبحي مصطفى الحلبي | I80: Displaced | J80: Barisha | K80: 70 | L80: حسام العبدالله _براء نبعه | M80: I.R | Z80: 50 | AF80: 19 | CQ80: 4 | CR80: 3 | CS80: 1 | CU80: 1 | CV80: 1 | CW80: 1 | CX80: 1 | DC80: 10 | EL80: =SUMPRODUCT(Planned[[#This Row],[GEN-1]:[EL-20]],TRANSPOSE(Arrangements[Unit Prices])) -> $490.1
A81: 61 | B81: 250753 | C81: e37cd958ef8e44db9dbcdcdf9dbbe4cb | D81: Accept | E81: Yes | H81: محمد علي الحسين | I81: Displaced | J81: Barisha | K81: 70 | L81: حسام العبد الله. براء نبعه | M81: I.R | T81: 2 | AF81: 210 | BM81: 1 | CJ81: 0.4 | CQ81: 4 | CR81: 4 | CU81: 1 | CV81: 1 | CW81: 1 | CX81: 1 | DK81: 1 | EL81: =SUMPRODUCT(Planned[[#This Row],[GEN-1]:[EL-20]],TRANSPOSE(Arrangements[Unit Prices])) -> $1,215.2
A82: 62 | B82: 230175 | C82: b5866fb22c8845538cd6db8bf690313d | D82: Accept | E82: Yes | H82: محمد احمد قندح | I82: resident | J82: Barisha | K82: 70 | L82: حسام العبد الله براء نبعه | M82: I.R | W82: 0.4 | AF82: 170 | BM82: 1 | CQ82: 2 | CR82: 2 | CU82: 2 | CV82: 1 | CW82: 1 | CX82: 1 | DC82: 1 | EL82: =SUMPRODUCT(Planned[[#This Row],[GEN-1]:[EL-20]],TRANSPOSE(Arrangements[Unit Prices])) -> $835.4
A83: 63 | B83: 217966 | C83: 654e9fa5d57c42019e863251ceb63040 | D83: Accept | E83: Yes | H83: عبد الله عبد الحكيم حسين | I83: Displaced | J83: Barisha | K83: 70 | L83: سراب.عبد الرزاق | M83: I.R | AF83: 175 | AP83: 15 | BY83: 53 | CL83: 0.4 | CQ83: 5 | CR83: 2 | CS83: 1 | CU83: 4 | CW83: 1 | CX83: 1.2 | DC83: 10 | DG83: 10 | DK83: 1 | EL83: =SUMPRODUCT(Planned[[#This Row],[GEN-1]:[EL-20]],TRANSPOSE(Arrangements[Unit Prices])) -> $1,169.6
A84: 64 | B84: 16145 | C84: 164b00f6d3fe4497a9d554f1dd38be15 | D84: Accept | E84: Yes | H84: محمد حسن حسن | I84: resident | J84: Barisha | K84: 70 | L84: ريم -شادي | M84: I.R | T84: 4.4 | AF84: 140 | BM84: 1 | CQ84: 1 | CR84: 4 | CU84: 1 | DC84: 10 | DK84: 1 | EL84: =SUMPRODUCT(Planned[[#This Row],[GEN-1]:[EL-20]],TRANSPOSE(Arrangements[Unit Prices])) -> $878.7
A85: 65 | B85: 18442 | C85: 21eca99734f54689b756d4867c27eeef | D85: Accept | E85: yes | H85: ايمان احمد طحيني | I85: resident | J85: Barisha | K85: 70 | L85: شادي/ريم | M85: I.R | AF85: 200 | CQ85: 4 | CR85: 5 | CU85: 1 | DC85: 10 | DK85: 1 | EL85: =SUMPRODUCT(Planned[[#This Row],[GEN-1]:[EL-20]],TRANSPOSE(Arrangements[Unit Prices])) -> $916.5
A86: 66 | B86: 250702 | C86: e42e73d4a1fa453f986d2f7290dcfcbc | D86: Accept | E86: Yes | H86: تيسير محمد الابرش | I86: resident | J86: Barisha | K86: 70 | L86: حسام العبد الله. براء نبعه | M86: I.R | AF86: 150 | CQ86: 3 | CR86: 2 | CU86: 1 | CW86: 1 | CX86: 1 | DB86: 3 | DD86: 10 | DG86: 10 | EL86: =SUMPRODUCT(Planned[[#This Row],[GEN-1]:[EL-20]],TRANSPOSE(Arrangements[Unit Prices])) -> $675.6
A87: 67 | B87: 4518 | C87: 8a86ad60bf9d4a4d8761347bef0a9c51 | D87: Accept | E87: Yes | H87: امين محمد الذياب | I87: Displaced | J87: Barisha | K87: 70 | L87: مهند حديد .علي حسين | M87: I.R | AF87: 170 | CL87: 0.32 | CQ87: 3 | CR87: 4 | CS87: 1 | CV87: 2 | EL87: =SUMPRODUCT(Planned[[#This Row],[GEN-1]:[EL-20]],TRANSPOSE(Arrangements[Unit Prices])) -> $726.0
A88: 68 | B88: 245025 | C88: 708907024c884f0f9d4d4bbc8ec11188 | D88: Accept | E88: Yes | H88: محمد شحاده طه الحمو | I88: Displaced | J88: Barisha | K88: 70 | L88: ريم طالب_شادي | M88: I.R | W88: 0.75 | Z88: 150 | AF88: 215 | CQ88: 4 | CR88: 4 | CU88: 1 | CW88: 1 | CX88: 1 | DC88: 15 | DK88: 1 | EL88: =SUMPRODUCT(Planned[[#This Row],[GEN-1]:[EL-20]],TRANSPOSE(Arrangements[Unit Prices])) -> $1,163.5
A89: 69 | B89: 30110 | C89: df251f9d71734a1483b98cfd6de8b682 | D89: Accept | E89: Yes | H89: احلام عبد الكريم حسن | I89: Displaced | J89: Barisha | K89: 70 | L89: ريم -شادي | M89: I.R | AF89: 80 | BY89: 50 | CQ89: 5 | CR89: 5 | CW89: 1 | CX89: 1 | DK89: 1 | EC89: 1 | EG89: 1 | EK89: 10 | EL89: =SUMPRODUCT(Planned[[#This Row],[GEN-1]:[EL-20]],TRANSPOSE(Arrangements[Unit Prices])) -> $1,071.0
A90: 70 | B90: 11498 | C90: ea5acbf8901d48248bb439c14f678492 | D90: Accept | E90: Yes | H90: سميح مصطفى الخطيب | I90: resident | J90: Barisha | K90: 70 | L90: هشام .عبد الرزاق | M90: I.R | S90: 0.5 | AF90: 75 | AP90: 16 | CL90: 0.6 | CQ90: 3 | CR90: 5 | CS90: 1 | CU90: 3 | CW90: 1 | CX90: 1 | DC90: 20 | DK90: 1 | EL90: =SUMPRODUCT(Planned[[#This Row],[GEN-1]:[EL-20]],TRANSPOSE(Arrangements[Unit Prices])) -> $903.5
A91: 71 | B91: 250747 | C91: fb027149340c42a39e9b4adc591d89c0 | D91: Accept | E91: Yes | H91: محمد حمزه الحمود | I91: Displaced | J91: Barisha | K91: 70 | L91: حسام العبدلله .براء نبعة | M91: I.R | AF91: 140 | CQ91: 2 | CR91: 4 | CV91: 1 | CW91: 1 | CX91: 1 | EL91: =SUMPRODUCT(Planned[[#This Row],[GEN-1]:[EL-20]],TRANSPOSE(Arrangements[Unit Prices])) -> $664.2
A92: 72 | B92: 230242 | C92: 19672d650c104deb93b0e2ebeed1fc1a | D92: Accept | E92: Yes | H92: يوسف مرعي الحسين | I92: Displaced | J92: Barisha | K92: 70 | L92: هشام .عبد الرزاق | M92: I.R | AP92: 12 | BQ92: 1 | CL92: 0.4 | CQ92: 4 | CR92: 1 | CS92: 1 | CU92: 3 | CV92: 1 | DK92: 1 | EE92: 1 | EG92: 1 | EL92: =SUMPRODUCT(Planned[[#This Row],[GEN-1]:[EL-20]],TRANSPOSE(Arrangements[Unit Prices])) -> $638.8
A93: 73 | B93: 152128 | C93: fa36b55fab554b07b5e863ddfdc33b91 | D93: Accept | E93: Yes | H93: خالد احمد الحمد | I93: Displaced | J93: Barisha | K93: 70 | L93: ريم -شادي | M93: I.R | CQ93: 6 | CR93: 5 | DK93: 1 | EC93: 1 | EG93: 1 | EK93: 20 | EL93: =SUMPRODUCT(Planned[[#This Row],[GEN-1]:[EL-20]],TRANSPOSE(Arrangements[Unit Prices])) -> $770.0
A94: 74 | B94: 23767 | C94: 4a688908845740a9a34330c7a10d451c | D94: Accept | E94: Yes | H94: محمد عبد الغفور البكور | I94: Displaced | J94: Barisha | K94: 70 | L94: احمد غندور-حسام | M94: I.R | AF94: 162 | CL94: 0.35 | CQ94: 2 | CR94: 3 | DD94: 10 | EL94: =SUMPRODUCT(Planned[[#This Row],[GEN-1]:[EL-20]],TRANSPOSE(Arrangements[Unit Prices])) -> $587.0
A95: 75 | B95: 287381 | C95: 8d5fcbbe6534408f9849e11bd3c842b9 | D95: Accept | E95: Yes | H95: عبد الحكيم محمد شريف سليم | I95: Displaced | J95: Barisha | K95: 70 | L95: شادي درش_ريم طالب | M95: I.R | T95: 4.9 | W95: 0.3 | Z95: 100 | AF95: 190 | BM95: 1 | CQ95: 3 | CR95: 4 | CU95: 1 | CW95: 1 | CX95: 1 | CZ95: 1 | DC95: 10 | DK95: 1 | EL95: =SUMPRODUCT(Planned[[#This Row],[GEN-1]:[EL-20]],TRANSPOSE(Arrangements[Unit Prices])) -> $1,320.7
A96: 76 | B96: 1663 | C96: b0606113e6dd4ec48066a520df4832b1 | D96: Accept | E96: Yes | H96: فاطمه خالد بشير | I96: Displaced | J96: Barisha | K96: 70 | L96: حسام عبدلله .براء نبعة | M96: I.R | AF96: 259 | CQ96: 4 | CR96: 6 | CV96: 1 | CW96: 1 | CX96: 1 | EL96: =SUMPRODUCT(Planned[[#This Row],[GEN-1]:[EL-20]],TRANSPOSE(Arrangements[Unit Prices])) -> $1,091.5
A97: 77 | B97: 104746 | C97: 3013cd99862c4b6fbb42413f88ea23e2 | D97: Accept | E97: Yes | H97: احمد عارف حمدوش | I97: resident | J97: Barisha | K97: 70 | L97: حسام العبدلله .براء نبعة | M97: I.R | AF97: 200 | CL97: 0.16 | CQ97: 3 | CR97: 7 | CV97: 1 | DD97: 10 | EL97: =SUMPRODUCT(Planned[[#This Row],[GEN-1]:[EL-20]],TRANSPOSE(Arrangements[Unit Prices])) -> $869.0
A98: 78 | B98: 12841 | C98: 57196dd1079942dca8b8bb06b86e2457 | D98: Accept | E98: Yes | H98: ظافر احمد ثابت سليم | I98: Displaced | J98: Barisha | K98: 70 | L98: ريم .شادي | M98: I.R | AF98: 80 | CQ98: 3 | CR98: 8 | DK98: 1 | EC98: 1 | EG98: 1 | EL98: =SUMPRODUCT(Planned[[#This Row],[GEN-1]:[EL-20]],TRANSPOSE(Arrangements[Unit Prices])) -> $908.4
A99: 79 | B99: 250659 | C99: ff2afc8df69e4abb869d4844c97dbefc | D99: Accept | E99: Yes | H99: محمد خالد المحمد | I99: Displaced | J99: Barisha | K99: 70 | L99: هشام .عبد الرزاق | M99: I.R | S99: 0.5 | AF99: 140 | AP99: 16 | BM99: 1 | CL99: 0.2 | CQ99: 1 | CU99: 2 | CV99: 1 | CW99: 1 | CX99: 1 | DG99: 15 | DK99: 1 | EB99: 1 | EE99: 1 | EG99: 1 | EL99: =SUMPRODUCT(Planned[[#This Row],[GEN-1]:[EL-20]],TRANSPOSE(Arrangements[Unit Prices])) -> $1,098.3
A100: 80 | B100: 241948 | C100: 7ae018db6c3e4e36a1cbf05e551811e1 | D100: Accept | E100: Yes | H100: محمد صبحي محمود قربون | I100: resident | J100: Barisha | K100: 70 | L100: سراب.عبد الرزاق | M100: I.R | S100: 1 | AP100: 6 | CL100: 0.4 | CQ100: 4 | CR100: 3 | CS100: 1 | CV100: 2 | DB100: 2 | DD100: 10 | DF100: 2 | DG100: 10 | DK100: 1 | EL100: =SUMPRODUCT(Planned[[#This Row],[GEN-1]:[EL-20]],TRANSPOSE(Arrangements[Unit Prices])) -> $562.1
A101: 81 | B101: 101545 | C101: b4d1928433874c6486b4ec53fef4adc1 | D101: Accept | E101: Yes | H101: ابراهيم فضل الحمادي | I101: Displaced | J101: Barisha | K101: 70 | L101: احمد -حسام | M101: I.R | AF101: 206 | CL101: 0.35 | CQ101: 2 | CR101: 5 | EL101: =SUMPRODUCT(Planned[[#This Row],[GEN-1]:[EL-20]],TRANSPOSE(Arrangements[Unit Prices])) -> $751.8
A102: 82 | B102: 217882 | C102: 71fb3da9ff9e47db85e542b567b9781e | D102: Accept | E102: Yes | H102: باسل طالب العمر | I102: Displaced | J102: Barisha | K102: 70 | L102: سراب.عبد الرزاق | M102: I.R | W102: 1.2 | Z102: 190 | AF102: 92 | AP102: 20 | BQ102: 2 | CL102: 0.5 | CQ102: 3 | CR102: 1 | CS102: 1 | CU102: 4 | CW102: 1 | CX102: 1 | DC102: 6 | DG102: 20 | DK102: 1 | EL102: =SUMPRODUCT(Planned[[#This Row],[GEN-1]:[EL-20]],TRANSPOSE(Arrangements[Unit Prices])) -> $1,074.2
A103: 83 | B103: 143708 | C103: f03b41718c6b470c8a89d03d935bc22f | D103: Accept | E103: Yes | H103: صطام فواز النهار | I103: Displaced | J103: Barisha | K103: 70 | L103: أحمد -حسام | M103: I.R | AF103: 197 | CL103: 0.32 | CQ103: 3 | CR103: 6 | CU103: 2 | EL103: =SUMPRODUCT(Planned[[#This Row],[GEN-1]:[EL-20]],TRANSPOSE(Arrangements[Unit Prices])) -> $816.7
A104: 84 | B104: 250705 | C104: 2ecac5c0b35b4c70aaa68f98e5fb7168 | D104: Accept | E104: Yes | H104: حسن ابراهيم خطاب | I104: resident | J104: Barisha | K104: 70 | L104: حسام العبد الله. براء نبعه | M104: I.R | Z104: 80 | AF104: 160 | CQ104: 2 | CR104: 2 | CV104: 2 | CW104: 1 | CX104: 1 | DC104: 10 | EL104: =SUMPRODUCT(Planned[[#This Row],[GEN-1]:[EL-20]],TRANSPOSE(Arrangements[Unit Prices])) -> $696.7
A105: 85 | B105: 281432 | C105: f5802870e5e34ca1907f2346117e589a | D105: Accept | E105: Yes | H105: حسين حسين دعدوع | I105: Displaced | J105: Barisha | K105: 70 | L105: سراب .عبد الرزاق | M105: I.R | S105: 2 | AF105: 140 | AP105: 21 | CL105: 0.5 | CQ105: 5 | CR105: 6 | CS105: 1 | CU105: 4 | CW105: 1 | CX105: 1 | CZ105: 1 | DA105: 1 | DG105: 15 | DK105: 1 | EL105: =SUMPRODUCT(Planned[[#This Row],[GEN-1]:[EL-20]],TRANSPOSE(Arrangements[Unit Prices])) -> $1,338.6
A106: 86 | B106: 217859 | C106: 794d5f7d6fda4fa78799c93b9dc2aa4b | D106: Accept | E106: Yes | H106: ابراهيم عبدالرحمن الامين | I106: Displaced | J106: Barisha | K106: 70 | L106: سراب .عبد الرزاق | M106: I.R | AF106: 243 | AP106: 17 | BQ106: 1 | BS106: 1 | BY106: 37 | CL106: 0.4 | CQ106: 4 | CR106: 4 | CS106: 1 | CU106: 4 | CV106: 1 | CW106: 1 | DC106: 15 | DG106: 15 | DK106: 1 | EL106: =SUMPRODUCT(Planned[[#This Row],[GEN-1]:[EL-20]],TRANSPOSE(Arrangements[Unit Prices])) -> $1,372.1
A107: 87 | B107: 17407 | C107: 3c2f411083054f22b3cf0ddda7e68c6e | D107: Accept | E107: Yes | H107: فاطمه مصطفى دالي | I107: Displaced | J107: Barisha | K107: 70 | L107: نور_هشام | M107: I.R | AF107: 85 | CL107: 0.1 | CQ107: 4 | CR107: 2 | CS107: 1 | CV107: 1 | CW107: 1 | CX107: 1.2 | DK107: 1 | EC107: 1 | EE107: 1 | EG107: 1 | EL107: =SUMPRODUCT(Planned[[#This Row],[GEN-1]:[EL-20]],TRANSPOSE(Arrangements[Unit Prices])) -> $905.1
A108: 88 | B108: 98138 | C108: d6cf3ca015f0484e8403fb0772d6ab66 | D108: Accept | E108: Yes | H108: فطوم محمد عيسى | I108: resident | J108: Barisha | K108: 70 | L108: سراب .عبد الرزاق | M108: I.R | Z108: 220 | AA108: 80 | AK108: 20 | BM108: 1 | BQ108: 1 | CB108: 2 | CF108: 15 | CL108: 0.4 | CQ108: 3 | CR108: 2 | CS108: 1 | CU108: 4 | CW108: 1 | DK108: 1 | EB108: 1 | EG108: 1 | EH108: 1 | EK108: 10 | EL108: =SUMPRODUCT(Planned[[#This Row],[GEN-1]:[EL-20]],TRANSPOSE(Arrangements[Unit Prices])) -> $1,302.1
A109: 89 | B109: 7284 | C109: 39b1c8c54f0244b5b1ac7b1654263c49 | D109: Accept | E109: Yes | H109: مريم احمد قرمو | I109: resident | J109: Barisha | K109: 70 | L109: سراب.عبد الرزاق | M109: I.R | V109: 0.24 | AF109: 174 | AP109: 5 | BM109: 1 | CL109: 0.2 | CQ109: 1 | CR109: 1 | CU109: 3 | DC109: 10 | DK109: 1 | EL109: =SUMPRODUCT(Planned[[#This Row],[GEN-1]:[EL-20]],TRANSPOSE(Arrangements[Unit Prices])) -> $794.1
A110: 90 | B110: 17590 | C110: e43be44e8ca847b0aa2c25af5e1c74c5 | D110: Accept | E110: yes | H110: علي سعيد دالي | I110: Displaced | J110: Barisha | K110: 70 | L110: هشام - نور | M110: I.R | O110: 1 | U110: 1 | W110: 0.4 | AA110: 250 | AF110: 41 | BM110: 1 | CQ110: 4 | CS110: 1 | CU110: 4 | CW110: 1 | CX110: 1 | DB110: 1 | DC110: 12 | DG110: 8 | DK110: 1 | EC110: 1 | EG110: 1 | EL110: =SUMPRODUCT(Planned[[#This Row],[GEN-1]:[EL-20]],TRANSPOSE(Arrangements[Unit Prices])) -> $1,024.8
A111: 91 | B111: 218024 | C111: 3ffc28f8c19a4d42baa51a0be9790f68 | D111: Accept | E111: yes | H111: منيف مصطفى دعدوع | I111: Displaced | J111: Barisha | K111: 70 | L111: سراب .عبد الرزاق | M111: I.R | AF111: 220 | AP111: 10 | BM111: 1 | BY111: 47 | CL111: 0.4 | CQ111: 4 | CR111: 3 | CS111: 1 | CU111: 4 | CW111: 1 | CX111: 1 | DK111: 1 | EL111: =SUMPRODUCT(Planned[[#This Row],[GEN-1]:[EL-20]],TRANSPOSE(Arrangements[Unit Prices])) -> $1,312.9
A112: 92 | B112: 25493 | C112: 3a4b59526ff149bd815366bfd7a435e8 | D112: Accept | E112: yes | H112: زهره مصطفى بسوته | I112: resident | J112: Boz Ghaz | K112: 71 | L112: عارف قرمو | M112: I.R | T112: 2.5 | AF112: 150 | CJ112: 0.4 | CQ112: 5 | CR112: 2 | EL112: =SUMPRODUCT(Planned[[#This Row],[GEN-1]:[EL-20]],TRANSPOSE(Arrangements[Unit Prices])) -> $713.6
A113: 93 | B113: 24064 | C113: 9df67b0b1ce34e6d8cd909f04808abfe | D113: Accept | E113: yes | H113: محمد عبد الهادي زوعه | I113: resident | J113: Boz Ghaz | K113: 71 | L113: حسام عبدلله .طه السعيد | M113: I.R | V113: 4 | AF113: 44 | CB113: 1 | CL113: 0.1 | CQ113: 2 | CR113: 2 | CT113: 1 | CV113: 1 | CX113: 0.5 | DD113: 12 | DK113: 1 | EL113: =SUMPRODUCT(Planned[[#This Row],[GEN-1]:[EL-20]],TRANSPOSE(Arrangements[Unit Prices])) -> $821.8
A114: 94 | B114: 284432 | C114: 1304016126184102a4492876f48970c5 | D114: Accept | E114: yes | H114: عبد الله احمد علي | I114: Displaced | J114: Boz Ghaz | K114: 71 | L114: حسام عبد لله .طه السعيد | M114: I.R | T114: 2.2 | AF114: 123 | AP114: 5 | BM114: 1 | CL114: 0.3 | CQ114: 3 | CR114: 3 | CT114: 1 | CV114: 1 | CX114: 0.5 | DD114: 20 | DK114: 1 | EL114: =SUMPRODUCT(Planned[[#This Row],[GEN-1]:[EL-20]],TRANSPOSE(Arrangements[Unit Prices])) -> $961.3
A115: 95 | B115: 168132 | C115: 809beffef82648a8831d6a9d337e8174 | D115: Accept | E115: yes | H115: محمود فاضل الفاضل | I115: Displaced | J115: Boz Ghaz | K115: 71 | L115: حسام عبدلله .طه السعيد | M115: I.R | T115: 0.2 | Z115: 85 | AF115: 113 | BM115: 1 | CL115: 0.16 | CQ115: 1 | CR115: 1 | CT115: 1 | CV115: 1 | CX115: 0.5 | DD115: 12 | DK115: 1 | EL115: =SUMPRODUCT(Planned[[#This Row],[GEN-1]:[EL-20]],TRANSPOSE(Arrangements[Unit Prices])) -> $711.1
A116: 96 | B116: 303706 | C116: 99d4a78b09f3465387ac6ade42b3a8a5 | D116: Accept | E116: yes | H116: امين محمد الحامض | I116: resident | J116: Boz Ghaz | K116: 71 | L116: احمد ارمنازي | M116: I.R | V116: 0.1 | Z116: 35 | AF116: 190 | CQ116: 3 | CR116: 5 | CU116: 1 | CW116: 1 | CX116: 1.5 | CY116: 1 | DD116: 16 | DK116: 1 | EL116: =SUMPRODUCT(Planned[[#This Row],[GEN-1]:[EL-20]],TRANSPOSE(Arrangements[Unit Prices])) -> $1,032.5
A117: 97 | B117: 30885 | C117: 8bfd82a97b7c422588b201ea93a12986 | D117: Accept | E117: yes | H117: وحيده يحيى الزوعه | I117: resident | J117: Boz Ghaz | K117: 71 | L117: حسام .طه | M117: I.R | V117: 0.2 | Z117: 50 | AF117: 26 | CQ117: 2 | CR117: 1 | CT117: 1 | CV117: 1 | CX117: 0.5 | DD117: 20 | DK117: 1 | EL117: =SUMPRODUCT(Planned[[#This Row],[GEN-1]:[EL-20]],TRANSPOSE(Arrangements[Unit Prices])) -> $423.1
A118: 98 | B118: 312436 | C118: 22511d54e1964c8c92a20bd0cc305064 | D118: Accept | E118: yes | H118: براءه سمير عماش | I118: resident | J118: Boz Ghaz | K118: 71 | L118: حسام عبد لله .طه ااسعيد | M118: I.R | AF118: 49 | CQ118: 1 | CR118: 5 | CS118: 1 | CT118: 1 | CV118: 2 | CX118: 0.5 | EC118: 1 | EE118: 1 | EG118: 1 | EH118: 1 | EK118: 10 | EL118: =SUMPRODUCT(Planned[[#This Row],[GEN-1]:[EL-20]],TRANSPOSE(Arrangements[Unit Prices])) -> $868.7
A119: 99 | B119: 216957 | C119: 2d56e885d7674a7a9464756eb6213928 | D119: Accept | E119: yes | H119: عبد الحي مصطفى الخليل | I119: Displaced | J119: Boz Ghaz | K119: 71 | L119: ريم طالب | M119: I.R | T119: 5.5 | Z119: 12 | AF119: 187 | CQ119: 3 | CR119: 2 | CU119: 2 | CW119: 1 | CX119: 1 | DC119: 15 | EL119: =SUMPRODUCT(Planned[[#This Row],[GEN-1]:[EL-20]],TRANSPOSE(Arrangements[Unit Prices])) -> $915.6
A120: 100 | B120: 12980 | C120: e4dd3c554bcb4293a1122508ed74d23f | D120: Accept | E120: yes | H120: عارف رمضان زوعه | I120: Displaced | J120: Boz Ghaz | K120: 71 | L120: عارف قرمو | M120: I.R | T120: 3 | AF120: 250 | BM120: 1 | CJ120: 0.75 | CQ120: 4 | CR120: 5 | CU120: 2 | DK120: 1 | EL120: =SUMPRODUCT(Planned[[#This Row],[GEN-1]:[EL-20]],TRANSPOSE(Arrangements[Unit Prices])) -> $1,281.5
A121: 101 | B121: 304540 | C121: fcded66ccb9447e387e945f768500782 | D121: Accept | E121: yes | H121: جمول مولود الحسن | I121: resident | J121: Boz Ghaz | K121: 71 | L121: احمد ارمنازي | M121: I.R | BM121: 1 | CQ121: 3 | CR121: 1 | CS121: 1 | CU121: 2 | CW121: 1 | CX121: 1 | DK121: 1 | EC121: 1 | EG121: 1 | EL121: =SUMPRODUCT(Planned[[#This Row],[GEN-1]:[EL-20]],TRANSPOSE(Arrangements[Unit Prices])) -> $726.8
A122: 102 | B122: 14676 | C122: 95576fa21ba147d781eba388e71613e4 | D122: Accept | E122: yes | H122: عبد القادر جميل حاج احمد | I122: resident | J122: Boz Ghaz | K122: 71 | L122: عمر ..... سراب | M122: I.R | AG122: 214 | BR122: 1 | CJ122: 0.25 | CQ122: 4 | CS122: 1 | CU122: 3 | CV122: 1 | CW122: 1 | CX122: 1 | EL122: =SUMPRODUCT(Planned[[#This Row],[GEN-1]:[EL-20]],TRANSPOSE(Arrangements[Unit Prices])) -> $663.5
A123: 103 | B123: 278114 | C123: 5642ed7f019a40a48ca86bd2ca2ab0b3 | D123: Accept | E123: yes | H123: معاز خليل النجار | I123: Displaced | J123: Boz Ghaz | K123: 71 | L123: احمد ارمنازي | M123: I.R | AF123: 165 | CQ123: 2 | CR123: 3 | CW123: 1 | CX123: 1 | EL123: =SUMPRODUCT(Planned[[#This Row],[GEN-1]:[EL-20]],TRANSPOSE(Arrangements[Unit Prices])) -> $669.9
A124: 104 | B124: 303988 | C124: 92b41310486e41158a8335ab61c97184 | D124: Accept | E124: yes | H124: راتب محمد الحامض | I124: Displaced | J124: Boz Ghaz | K124: 71 | L124: احمدارمنازي | M124: I.R | Z124: 122 | AF124: 187 | CQ124: 3 | CR124: 4 | CU124: 3 | CW124: 1 | CX124: 1 | DA124: 1 | DC124: 10 | EL124: =SUMPRODUCT(Planned[[#This Row],[GEN-1]:[EL-20]],TRANSPOSE(Arrangements[Unit Prices])) -> $878.6
A125: 105 | B125: 230567 | C125: f0f177f1417a44f08e520ac0ee8b9785 | D125: Accept | E125: yes | H125: احمد مصطفى المحمود | I125: Displaced | J125: Boz Ghaz | K125: 71 | L125: عمر ..... سراب | M125: I.R | V125: 0.1 | AF125: 89 | BM125: 1 | CQ125: 1 | CR125: 3 | CU125: 5 | CW125: 1 | CX125: 1 | DD125: 10 | DG125: 15 | DK125: 1 | EL125: =SUMPRODUCT(Planned[[#This Row],[GEN-1]:[EL-20]],TRANSPOSE(Arrangements[Unit Prices])) -> $750.4
A126: 106 | B126: 282792 | C126: f8153c5fa75e412aa828da61d026b409 | D126: Accept | E126: yes | H126: راضي منصور الحمدي | I126: Displaced | J126: Boz Ghaz | K126: 71 | L126: عارف قرمو | M126: I.R | T126: 1.75 | AF126: 175 | BM126: 1 | CQ126: 2 | CR126: 3 | CU126: 2 | CW126: 1 | CX126: 1 | DK126: 1 | EL126: =SUMPRODUCT(Planned[[#This Row],[GEN-1]:[EL-20]],TRANSPOSE(Arrangements[Unit Prices])) -> $980.4
A127: 107 | B127: 218141 | C127: 0123fab054e640feb3b2e1bf4339e75d | D127: Accept | E127: yes | H127: احمد يسوف غنوم | I127: Displaced | J127: Boz Ghaz | K127: 71 | L127: حسام عبد لله ..طه السعيد | M127: I.R | T127: 3.7 | AF127: 153 | AP127: 6 | CL127: 0.18 | CQ127: 4 | CR127: 4 | CV127: 2 | CW127: 1 | CX127: 1.2 | DD127: 12 | DK127: 1 | EL127: =SUMPRODUCT(Planned[[#This Row],[GEN-1]:[EL-20]],TRANSPOSE(Arrangements[Unit Prices])) -> $1,075.3
A128: 108 | B128: 185962 | C128: 289543e5b5a54433b729acfcf3e22b43 | D128: Accept | E128: yes | H128: مصطفى عبسي العبس | I128: Displaced | J128: Boz Ghaz | K128: 71 | L128: حسام عبدلله .طه السعيد | M128: I.R | V128: 0.1 | AF128: 110 | CQ128: 3 | CR128: 3 | CT128: 1 | CV128: 1 | CX128: 0.5 | DD128: 12 | DK128: 1 | EC128: 1 | EE128: 1 | EG128: 1 | EH128: 1 | EK128: 1 | EL128: =SUMPRODUCT(Planned[[#This Row],[GEN-1]:[EL-20]],TRANSPOSE(Arrangements[Unit Prices])) -> $1,080.2
A129: 109 | B129: 229988 | C129: f0c49b83181245279ac8315b4d01b867 | D129: Accept | E129: yes | H129: احمد محمد الخطاب | I129: Displaced | J129: Boz Ghaz | K129: 71 | L129: حسام عبدلله .طه السعيد | M129: I.R | AF129: 138 | CL129: 0.35 | CQ129: 4 | CR129: 4 | CS129: 1 | CT129: 1 | CV129: 2 | CX129: 0.5 | EC129: 1 | EG129: 1 | EL129: =SUMPRODUCT(Planned[[#This Row],[GEN-1]:[EL-20]],TRANSPOSE(Arrangements[Unit Prices])) -> $973.6
A130: 110 | B130: 29306 | C130: 2cb00470d2b04bcc87fecf9dfbd754f5 | D130: Accept | E130: yes | H130: امل جميل عارف | I130: resident | J130: Boz Ghaz | K130: 71 | L130: احمد أرمنازي | M130: I.R | AF130: 250 | CJ130: 0.4 | CP130: 2 | CU130: 1 | DK130: 1 | EC130: 1 | EE130: 1 | EG130: 1 | EK130: 15 | EL130: =SUMPRODUCT(Planned[[#This Row],[GEN-1]:[EL-20]],TRANSPOSE(Arrangements[Unit Prices])) -> $1,041.0
A131: 111 | B131: 11364 | C131: e6a3c4265fa94507b6127c2b1ccce7f4 | D131: Accept | E131: yes | H131: سليم اسعد نخله | I131: resident | J131: Boz Ghaz | K131: 71 | L131: ريم طالب . احمد ارمنازي | M131: I.R | AF131: 156 | CQ131: 3 | CR131: 2 | CS131: 1 | CU131: 3 | CW131: 1 | CX131: 1 | DC131: 10 | DK131: 1 | EL131: =SUMPRODUCT(Planned[[#This Row],[GEN-1]:[EL-20]],TRANSPOSE(Arrangements[Unit Prices])) -> $799.9
A132: 112 | B132: 98482 | C132: 7f2002f887ca41439bbd0d4a8a1321ad | D132: Accept | E132: yes | H132: محمد محمود حاج احمد | I132: resident | J132: Boz Ghaz | K132: 71 | L132: عمر ......سراب | M132: I.R | S132: 0.2 | V132: 0.3 | Z132: 100 | AF132: 171 | CQ132: 3 | CR132: 2 | CU132: 4 | CV132: 2 | CW132: 1 | CX132: 1 | DB132: 2 | DD132: 10 | DF132: 2 | DG132: 15 | EL132: =SUMPRODUCT(Planned[[#This Row],[GEN-1]:[EL-20]],TRANSPOSE(Arrangements[Unit Prices])) -> $860.4
A133: 113 | B133: 459 | C133: a4631f610f02460b95bd743401428676 | D133: Accept | E133: yes | H133: ابراهيم احمد مجو | I133: Displaced | J133: Boz Ghaz | K133: 71 | L133: احمد ارمنازي | M133: I.R | AF133: 145 | CQ133: 3 | CR133: 4 | CU133: 2 | CW133: 1 | CX133: 1.5 | DC133: 15 | EL133: =SUMPRODUCT(Planned[[#This Row],[GEN-1]:[EL-20]],TRANSPOSE(Arrangements[Unit Prices])) -> $742.0
A134: 114 | B134: 284915 | C134: 6774b38ce0d24b6c9dbdd2d89be82c5a | D134: Accept | E134: yes | H134: خالد عمر اليوسف | I134: Displaced | J134: Boz Ghaz | K134: 71 | L134: احمد ارمنازي | M134: I.R | AF134: 53 | CM134: 7 | CQ134: 2 | CU134: 4 | CX134: 1 | DA134: 1 | DC134: 5 | DG134: 1 | DK134: 1 | EL134: =SUMPRODUCT(Planned[[#This Row],[GEN-1]:[EL-20]],TRANSPOSE(Arrangements[Unit Prices])) -> $396.9
A135: 115 | B135: 218140 | C135: 1bcf76ffb99f46eab91011cd0f49dbdb | D135: Accept | E135: yes | H135: احمد عز الدين محمد نور الدين البكري | I135: Displaced | J135: Boz Ghaz | K135: 71 | L135: احمد ارمنازي | M135: I.R | W135: 3 | AF135: 115 | CQ135: 2 | CU135: 2 | CW135: 1 | CX135: 1 | DA135: 1 | DC135: 8 | EL135: =SUMPRODUCT(Planned[[#This Row],[GEN-1]:[EL-20]],TRANSPOSE(Arrangements[Unit Prices])) -> $762.0
A136: 116 | B136: 285068 | C136: 15f8bfd5bea04d27ba0ae8bef808abea | D136: Accept | E136: yes | H136: محمد حوران العلي | I136: Displaced | J136: Boz Ghaz | K136: 71 | L136: احمد ارمنازي | M136: I.R | T136: 7 | AF136: 288 | BM136: 1 | CQ136: 2 | CR136: 2 | CU136: 1 | DC136: 15 | DK136: 1 | EL136: =SUMPRODUCT(Planned[[#This Row],[GEN-1]:[EL-20]],TRANSPOSE(Arrangements[Unit Prices])) -> $1,267.3
A137: 117 | B137: 284813 | C137: 57bc57668d4a4c99ad797851b95bca9c | D137: Accept | E137: yes | H137: عدنان حسين الحسين | I137: Displaced | J137: Boz Ghaz | K137: 71 | L137: عمر ...... سراب | M137: I.R | V137: 1.2 | CQ137: 5 | CR137: 4 | CU137: 1 | CV137: 1 | CW137: 1 | CX137: 1 | EL137: =SUMPRODUCT(Planned[[#This Row],[GEN-1]:[EL-20]],TRANSPOSE(Arrangements[Unit Prices])) -> $575.2
A138: 118 | B138: 285373 | C138: 39cdd8ba510b488f95fa44980d898025 | D138: Accept | E138: yes | H138: يوسف محمد الجمعه | I138: Displaced | J138: Boz Ghaz | K138: 71 | L138: حسام عبد لله .طه السعيد | M138: I.R | AF138: 139 | CL138: 0.2 | CQ138: 2 | CR138: 4 | CS138: 1 | CT138: 1 | CV138: 2 | CX138: 0.5 | EL138: =SUMPRODUCT(Planned[[#This Row],[GEN-1]:[EL-20]],TRANSPOSE(Arrangements[Unit Prices])) -> $679.9
A139: 119 | B139: 282496 | C139: f372390fd9e5453daaecadd404b7369c | D139: Accept | E139: yes | H139: نصر الدين ملاش الجاسم | I139: Displaced | J139: Boz Ghaz | K139: 71 | L139: حسام عبدلله .طه السعيد | M139: I.R | AF139: 108 | CQ139: 2 | CR139: 4 | CS139: 1 | CT139: 1 | CV139: 2 | CX139: 0.5 | EL139: =SUMPRODUCT(Planned[[#This Row],[GEN-1]:[EL-20]],TRANSPOSE(Arrangements[Unit Prices])) -> $600.6
A140: 120 | B140: 25331 | C140: f06490d61e87475daaef350ea6d037d2 | D140: Accept | E140: yes | H140: محمد مصطفى بسوته | I140: resident | J140: Boz Ghaz | K140: 71 | L140: عارف قرمو | M140: I.R | T140: 5 | AF140: 120 | CQ140: 3 | CR140: 5 | CS140: 1 | CU140: 3 | CW140: 1 | CX140: 1 | EL140: =SUMPRODUCT(Planned[[#This Row],[GEN-1]:[EL-20]],TRANSPOSE(Arrangements[Unit Prices])) -> $870.0
A141: 121 | B141: 302343 | C141: ea08d7dc1213457f8201fd9daedcbbeb | D141: Accept | E141: yes | H141: جهاد عبد الهادي عجاج | I141: Displaced | J141: Boz Ghaz | K141: 71 | L141: احمدارمنازي | M141: I.R | AF141: 156 | CQ141: 1 | CR141: 1 | CU141: 3 | CW141: 1 | CX141: 1 | DA141: 1 | DC141: 15 | DK141: 1 | EL141: =SUMPRODUCT(Planned[[#This Row],[GEN-1]:[EL-20]],TRANSPOSE(Arrangements[Unit Prices])) -> $663.4
A142: 122 | B142: 552 | C142: 2dff6b2c378b40b1a8309674e1d77733 | D142: Accept | E142: yes | H142: فطوم عبدو حسين | I142: resident | J142: Boz Ghaz | K142: 71 | L142: عبد الرزاق ريمي .سراب نا صيف | M142: I.R | AA142: 25 | AP142: 11 | CL142: 0.4 | CM142: 0.6 | CO142: 1 | CQ142: 3 | CS142: 1 | CU142: 4 | CW142: 1 | CX142: 0.75 | CY142: 1 | DA142: 1 | DD142: 10 | DG142: 20 | DK142: 1 | EL142: =SUMPRODUCT(Planned[[#This Row],[GEN-1]:[EL-20]],TRANSPOSE(Arrangements[Unit Prices])) -> $559.4
A143: 123 | B143: 22431 | C143: e7cf7a2f08b14071adf5733146fc9b23 | D143: Accept | E143: yes | H143: محمد حسين بسوته | I143: resident | J143: Boz Ghaz | K143: 71 | L143: عارف قرمو | M143: I.R | AF143: 50 | BM143: 1 | CQ143: 4 | CR143: 3 | DK143: 1 | EC143: 1 | EG143: 1 | EL143: =SUMPRODUCT(Planned[[#This Row],[GEN-1]:[EL-20]],TRANSPOSE(Arrangements[Unit Prices])) -> $820.4
A144: 124 | B144: 6096 | C144: ea6155f4658649c1a7445d176cb5df56 | D144: Accept | E144: yes | H144: انس جمعه عماش | I144: resident | J144: Boz Ghaz | K144: 71 | L144: عارف قرمو | M144: I.R | AF144: 290 | CQ144: 5 | CR144: 4 | CU144: 1 | CW144: 1 | CX144: 1 | DK144: 1 | EL144: =SUMPRODUCT(Planned[[#This Row],[GEN-1]:[EL-20]],TRANSPOSE(Arrangements[Unit Prices])) -> $1,219.2
A145: 125 | B145: 2425 | C145: dbc34f7fcdff4351b2fbd3b61f9b4cfd | D145: Accept | E145: yes | H145: احمد عبدو عماش | I145: resident | J145: Boz Ghaz | K145: 71 | L145: عبد الرزاق ريمي.سراب ناصيف | M145: I.R | O145: 8 | W145: 0.2 | AF145: 60 | AH145: 20 | AM145: 80 | AP145: 2 | BR145: 4 | CL145: 0.4 | CQ145: 1 | CR145: 1 | CS145: 1 | CU145: 4 | CW145: 1 | CX145: 1 | DC145: 14 | DG145: 5 | DJ145: 1 | EL145: =SUMPRODUCT(Planned[[#This Row],[GEN-1]:[EL-20]],TRANSPOSE(Arrangements[Unit Prices])) -> $958.1
A146: 126 | B146: 2321 | C146: 3a7560f46bcc48cea601d85ff0c269c1 | D146: Accept | E146: yes | H146: محمد محمود مصطفى | I146: resident | J146: Boz Ghaz | K146: 71 | L146: عمر ..... سراب | M146: I.R | V146: 0.6 | Z146: 100 | AF146: 95 | CQ146: 3 | CR146: 3 | CS146: 1 | CU146: 4 | CV146: 1 | CW146: 1 | CX146: 1 | CZ146: 1 | DA146: 1 | DB146: 4 | DD146: 10 | DF146: 4 | DG146: 25 | EL146: =SUMPRODUCT(Planned[[#This Row],[GEN-1]:[EL-20]],TRANSPOSE(Arrangements[Unit Prices])) -> $830.6
A147: 127 | B147: 170951 | C147: aaeef74afd0c4834bec3bacd83ad89ea | D147: Accept | E147: yes | H147: حسام رفعت البكري | I147: Displaced | J147: Boz Ghaz | K147: 71 | L147: احمد ارمنازي | M147: I.R | AF147: 158 | CQ147: 3 | CR147: 4 | CU147: 2 | CW147: 1 | CX147: 1 | DA147: 1 | DC147: 19 | EL147: =SUMPRODUCT(Planned[[#This Row],[GEN-1]:[EL-20]],TRANSPOSE(Arrangements[Unit Prices])) -> $756.4
A148: 128 | B148: 218152 | C148: fda534b0dc1f48239cec04f2a83b05c1 | D148: Accept | E148: yes | H148: خديجه ايوب الاطرش | I148: Displaced | J148: Boz Ghaz | K148: 71 | L148: احمد ارمنازي | M148: I.R | AF148: 60 | CQ148: 1 | CU148: 2 | CW148: 1 | CX148: 1 | DC148: 15 | DK148: 1 | EC148: 1 | EG148: 1 | EK148: 20 | EL148: =SUMPRODUCT(Planned[[#This Row],[GEN-1]:[EL-20]],TRANSPOSE(Arrangements[Unit Prices])) -> $645.3
A149: 129 | B149: 279911 | C149: d5f847b7ea4e48c0a1453b3358fbe53e | D149: Accept | E149: yes | H149: منصور حبيب الحمدي | I149: Displaced | J149: Boz Ghaz | K149: 71 | L149: حسام عبد لله .طه السعيد | M149: I.R | AF149: 74 | CL149: 0.24 | CQ149: 2 | CR149: 6 | CS149: 1 | CT149: 1 | CV149: 2 | CX149: 0.5 | DK149: 1 | EL149: =SUMPRODUCT(Planned[[#This Row],[GEN-1]:[EL-20]],TRANSPOSE(Arrangements[Unit Prices])) -> $705.6
A150: 130 | B150: 29432 | C150: 6ead0358eaa747a6a11b4471b5417849 | D150: Accept | E150: yes | H150: نصر الدين محمد صالح حاج احمد | I150: resident | J150: Boz Ghaz | K150: 71 | L150: حسام عبدلله .طه السعيد | M150: I.R | CL150: 0.24 | CQ150: 2 | CR150: 4 | CS150: 1 | CT150: 1 | CV150: 1 | CX150: 0.5 | DK150: 1 | EC150: 1 | EE150: 1 | EG150: 1 | EH150: 1 | EK150: 15 | EL150: =SUMPRODUCT(Planned[[#This Row],[GEN-1]:[EL-20]],TRANSPOSE(Arrangements[Unit Prices])) -> $862.8
A151: 131 | B151: 148276 | C151: c72d2a42575f402a8be2f884df99dc0f | D151: Accept | E151: yes | H151: محمد عادل السوسي | I151: Displaced | J151: Boz Ghaz | K151: 71 | L151: حسام عبدالله_طه السعيد | M151: I.R | AF151: 82 | CL151: 0.37 | CQ151: 4 | CR151: 2 | CV151: 2 | CW151: 1 | CX151: 1.2 | EL151: =SUMPRODUCT(Planned[[#This Row],[GEN-1]:[EL-20]],TRANSPOSE(Arrangements[Unit Prices])) -> $575.0
A152: 132 | B152: 313869 | C152: 57e933a1dd0c40fe9ff62d4a721958fe | D152: Accept | E152: yes | H152: حابس احمد العمر | I152: Displaced | J152: Boz Ghaz | K152: 71 | L152: عارف قرمو | M152: I.R | T152: 5.5 | AF152: 200 | BM152: 1 | CQ152: 5 | CR152: 5 | CU152: 3 | DC152: 10 | DK152: 1 | EL152: =SUMPRODUCT(Planned[[#This Row],[GEN-1]:[EL-20]],TRANSPOSE(Arrangements[Unit Prices])) -> $1,256.5
A153: 133 | B153: 259535 | C153: 552ee40fb80d4e9b96d49916277b9813 | D153: Accept | E153: yes | H153: مصطفى يوسف الخليفه | I153: Displaced | J153: Boz Ghaz | K153: 71 | L153: عارف قرمو | M153: I.R | T153: 5.2 | AF153: 250 | CQ153: 5 | CR153: 5 | CS153: 1 | CW153: 1 | CX153: 1 | EL153: =SUMPRODUCT(Planned[[#This Row],[GEN-1]:[EL-20]],TRANSPOSE(Arrangements[Unit Prices])) -> $1,240.0
A154: 134 | B154: 27893 | C154: 271a15b03bdc4750862f87f125e92866 | D154: Accept | E154: yes | H154: مصطفى فياض خضر | I154: resident | J154: Boz Ghaz | K154: 71 | L154: احمد ارمنازي | M154: I.R | AF154: 250 | CQ154: 3 | CR154: 3 | CS154: 1 | CU154: 2 | DK154: 1 | EC154: 1 | EE154: 1 | EG154: 1 | EK154: 15 | EL154: =SUMPRODUCT(Planned[[#This Row],[GEN-1]:[EL-20]],TRANSPOSE(Arrangements[Unit Prices])) -> $1,191.4
A155: 135 | B155: 284696 | C155: 4b808de0db064198ba96d1c6e4b50936 | D155: Accept | E155: yes | H155: مصطفى عبد الرؤوف عجاج | I155: Displaced | J155: Boz Ghaz | K155: 71 | L155: احمد ارمنازي | M155: I.R | AF155: 240 | CU155: 2 | CW155: 1 | DA155: 1 | DC155: 10 | DK155: 1 | EL155: =SUMPRODUCT(Planned[[#This Row],[GEN-1]:[EL-20]],TRANSPOSE(Arrangements[Unit Prices])) -> $731.0
A156: 136 | B156: 209694 | C156: 80fa6e6b492b4bdb879d75ef45dfece0 | D156: Accept | E156: yes | H156: مريم مصطفى المصطفى | I156: Displaced | J156: Boz Ghaz | K156: 71 | L156: عمر .... سراب | M156: I.R | V156: 0.3 | AF156: 12 | AG156: 120 | CQ156: 3 | CR156: 4 | CU156: 3 | CW156: 1 | CX156: 1 | CY156: 1 | DA156: 1 | DB156: 2 | DD156: 10 | DF156: 2 | DG156: 15 | DK156: 1 | EL156: =SUMPRODUCT(Planned[[#This Row],[GEN-1]:[EL-20]],TRANSPOSE(Arrangements[Unit Prices])) -> $784.8
A157: 137 | B157: 27426 | C157: 5f6170b314d84862b4a599b6bf9f5eaa | D157: Accept | E157: yes | H157: مصطفى درويش بطش | I157: resident | J157: Boz Ghaz | K157: 71 | L157: ريم طالب . احمد ارمنازي | M157: I.R | AF157: 186 | CQ157: 3 | CR157: 2 | CU157: 3 | CW157: 1 | CX157: 1 | DC157: 15 | EL157: =SUMPRODUCT(Planned[[#This Row],[GEN-1]:[EL-20]],TRANSPOSE(Arrangements[Unit Prices])) -> $747.7
A158: 138 | B158: 259923 | C158: d0a7a58f9b0b4cd8935f26cc41f6ccec | D158: Accept | E158: yes | H158: احمد خلاوي الجالي | I158: Displaced | J158: Boz Ghaz | K158: 71 | L158: عمر ......سراب | M158: I.R | AF158: 230 | AP158: 8 | BW158: 200 | CJ158: 0.28 | CQ158: 5 | CR158: 6 | CU158: 3 | CV158: 1 | CW158: 1 | CX158: 1 | DB158: 2 | DC158: 6 | DD158: 10 | DF158: 2 | DG158: 15 | DK158: 1 | EL158: =SUMPRODUCT(Planned[[#This Row],[GEN-1]:[EL-20]],TRANSPOSE(Arrangements[Unit Prices])) -> $1,603.8
A159: 139 | B159: 174734 | C159: d61a0416b86b4cd0a972252118bbe326 | D159: Accept | E159: yes | H159: هيثم محمد عدوان دبلان | I159: Displaced | J159: Boz Ghaz | K159: 71 | L159: احمد ارمنازي | M159: I.R | AF159: 200 | BM159: 1 | CQ159: 2 | CR159: 1 | CU159: 3 | CW159: 1 | CX159: 1 | DC159: 10 | DK159: 1 | EL159: =SUMPRODUCT(Planned[[#This Row],[GEN-1]:[EL-20]],TRANSPOSE(Arrangements[Unit Prices])) -> $924.3
A160: 140 | B160: 209669 | C160: a094b798be3348e2b6c6072d56301e7d | D160: Accept | E160: yes | H160: محمود عبد القادر الصالح | I160: Displaced | J160: Boz Ghaz | K160: 71 | L160: حسام العبدلله .طه السعيد | M160: I.R | AF160: 187 | CL160: 0.12 | CQ160: 3 | CR160: 5 | CT160: 1 | CV160: 1 | CX160: 0.5 | DD160: 10 | DK160: 1 | EL160: =SUMPRODUCT(Planned[[#This Row],[GEN-1]:[EL-20]],TRANSPOSE(Arrangements[Unit Prices])) -> $933.9
A161: 141 | B161: 152986 | C161: 15e828ca594a405da314631953748466 | D161: Accept | E161: yes | H161: احمد محمد المواس الزريف | I161: Displaced | J161: Boz Ghaz | K161: 71 | L161: عارف قرمو | M161: I.R | T161: 2.5 | AF161: 280 | CQ161: 4 | CR161: 5 | CU161: 2 | CW161: 1 | CX161: 1 | DK161: 1 | EL161: =SUMPRODUCT(Planned[[#This Row],[GEN-1]:[EL-20]],TRANSPOSE(Arrangements[Unit Prices])) -> $1,273.0
A162: 142 | B162: 128867 | C162: a70982021ff5405cade06879534117a6 | D162: Accept | E162: yes | H162: زكريا محمود الدغيم | I162: Displaced | J162: Boz Ghaz | K162: 71 | L162: عمر ..... سراب | M162: I.R | V162: 1.1 | AF162: 107 | BM162: 1 | CR162: 2 | CS162: 1 | CU162: 2 | CV162: 1 | CW162: 1 | CX162: 1 | DB162: 2 | DD162: 10 | DF162: 2 | DG162: 15 | DK162: 1 | EL162: =SUMPRODUCT(Planned[[#This Row],[GEN-1]:[EL-20]],TRANSPOSE(Arrangements[Unit Prices])) -> $835.2
A163: 143 | B163: 2740 | C163: 087f6325797344c6ac875d755b09fa85 | D163: Accept | E163: yes | H163: كمال احمد حاج احمد | I163: resident | J163: Boz Ghaz | K163: 71 | L163: احمد ارمنازي | M163: I.R | T163: 0.2 | W163: 0.2 | Z163: 150 | AF163: 143 | CQ163: 1 | CR163: 4 | CU163: 2 | CW163: 1 | CX163: 1 | DC163: 15 | DL163: 1 | EL163: =SUMPRODUCT(Planned[[#This Row],[GEN-1]:[EL-20]],TRANSPOSE(Arrangements[Unit Prices])) -> $883.9
A164: 144 | B164: 4148 | C164: 25381985515e4569a1f8cdb891561aa1 | D164: Accept | E164: yes | H164: مياده كمال قيلنجي | I164: resident | J164: Boz Ghaz | K164: 71 | L164: ريم طالب | M164: I.R | AF164: 200 | CQ164: 3 | CR164: 4 | CU164: 1 | CW164: 1 | CX164: 1 | DC164: 10 | EL164: =SUMPRODUCT(Planned[[#This Row],[GEN-1]:[EL-20]],TRANSPOSE(Arrangements[Unit Prices])) -> $839.7
A165: 145 | B165: 12056 | C165: 31ac767fbd3b4d9fa9b1090731700ac2 | D165: Accept | E165: yes | H165: صالح رمضان خضر | I165: resident | J165: Boz Ghaz | K165: 71 | L165: ريم طالب . أحمد ارمنازي | M165: I.R | AF165: 355 | CQ165: 2 | CR165: 5 | DK165: 1 | EL165: =SUMPRODUCT(Planned[[#This Row],[GEN-1]:[EL-20]],TRANSPOSE(Arrangements[Unit Prices])) -> $1,180.5
A166: 146 | B166: 18890 | C166: 439acad24e7d4db18e98c396f195172e | D166: Accept | E166: yes | H166: عمريه ابراهيم عماش | I166: resident | J166: Boz Ghaz | K166: 71 | L166: عارف قرمو | M166: I.R | T166: 5 | AF166: 240 | CQ166: 4 | CR166: 3 | CS166: 1 | CW166: 1 | CX166: 1 | DK166: 1 | EL166: =SUMPRODUCT(Planned[[#This Row],[GEN-1]:[EL-20]],TRANSPOSE(Arrangements[Unit Prices])) -> $1,197.4
A167: 147 | B167: 15836 | C167: eb0e34bb12d24a0180e213cef2762cc6 | D167: Accept | E167: yes | H167: عبد المجيد محمد زوعه | I167: resident | J167: Boz Ghaz | K167: 71 | L167: عارف قرمو | M167: I.R | AF167: 120 | CQ167: 5 | CR167: 4 | CU167: 3 | CW167: 1 | CX167: 1 | DC167: 15 | DK167: 1 | EL167: =SUMPRODUCT(Planned[[#This Row],[GEN-1]:[EL-20]],TRANSPOSE(Arrangements[Unit Prices])) -> $849.5
A168: 148 | B168: 6242 | C168: b2278836bad440f8b31ffe2d20b12c17 | D168: Accept | E168: yes | H168: جمعه محمد حوريه | I168: resident | J168: Boz Ghaz | K168: 71 | L168: ريم طالب . احمد ارمنازي | M168: I.R | T168: 2 | AF168: 75 | CR168: 2 | CU168: 1 | CW168: 1 | CX168: 1 | DC168: 10 | DK168: 1 | EL168: =SUMPRODUCT(Planned[[#This Row],[GEN-1]:[EL-20]],TRANSPOSE(Arrangements[Unit Prices])) -> $518.6
A169: 149 | B169: 284436 | C169: 7c2c7032939249038efabd61e6d94cd8 | D169: Accept | E169: yes | H169: عمر احمد المصطفى | I169: Displaced | J169: Boz Ghaz | K169: 71 | L169: عبد الرزاق ريمي.سراب نا صيف | M169: I.R | S169: 0.75 | W169: 1 | Z169: 350 | AF169: 160 | AG169: 8 | AN169: 30 | BM169: 1 | BR169: 1 | CL169: 2 | CQ169: 2 | CR169: 1 | CU169: 4 | CW169: 1 | CX169: 1.2 | DG169: 8 | DK169: 1 | EL169: =SUMPRODUCT(Planned[[#This Row],[GEN-1]:[EL-20]],TRANSPOSE(Arrangements[Unit Prices])) -> $1,373.3
A170: 150 | B170: 28340 | C170: f9f80ffa272747eab567a02703cded6d | D170: Accept | E170: yes | H170: نبيله احمد زوعه | I170: resident | J170: Boz Ghaz | K170: 71 | L170: ريم طالب . احمد ارمنازي | M170: I.R | T170: 2.5 | W170: 0.2 | BU170: 1.2 | CQ170: 2 | CR170: 1 | CU170: 1 | CW170: 2 | CX170: 1 | DA170: 1 | DC170: 20 | DK170: 1 | EL170: =SUMPRODUCT(Planned[[#This Row],[GEN-1]:[EL-20]],TRANSPOSE(Arrangements[Unit Prices])) -> $498.1
A171: 151 | B171: 15877 | C171: 5137298f120e4d7bac4d4d89aa4bccea | D171: Accept | E171: yes | H171: نظيره مصطو عماش | I171: returnee | J171: Boz Ghaz | K171: 71 | L171: هشام +ابراهيم | M171: I.R | X171: 1 | AF171: 305 | AP171: 1 | CD171: 8 | CK171: 0.85 | CQ171: 1 | CS171: 1 | CU171: 1 | DK171: 1 | EC171: 1 | EE171: 1 | EG171: 1 | EK171: 10 | EL171: =SUMPRODUCT(Planned[[#This Row],[GEN-1]:[EL-20]],TRANSPOSE(Arrangements[Unit Prices])) -> $1,309.3
A172: 152 | B172: 19924 | C172: f8d5bdc9418d4b39a8c20f8851d7f913 | D172: Accept | E172: yes | H172: فطوم فاضل زوعه | I172: resident | J172: Boz Ghaz | K172: 71 | L172: هشام + ابراهيم | M172: I.R | T172: 3.2 | AA172: 100 | AF172: 84 | CJ172: 0.7 | CQ172: 1 | CV172: 2 | CW172: 1 | CX172: 1.2 | DD172: 10 | DF172: 20 | DK172: 1 | EL172: =SUMPRODUCT(Planned[[#This Row],[GEN-1]:[EL-20]],TRANSPOSE(Arrangements[Unit Prices])) -> $676.2
A173: 153 | B173: 31175 | C173: d4e7307321434fb8b861d71b6a73fde4 | D173: Accept | E173: yes | H173: بديعه راجي قيلنجي | I173: resident | J173: Boz Ghaz | K173: 71 | L173: ريم .احمد ارمنازي | M173: I.R | AF173: 20 | CR173: 1 | CU173: 1 | CW173: 1 | CX173: 1 | DC173: 10 | EB173: 2 | EE173: 1 | EG173: 1 | EK173: 10 | EL173: =SUMPRODUCT(Planned[[#This Row],[GEN-1]:[EL-20]],TRANSPOSE(Arrangements[Unit Prices])) -> $462.3
A174: 154 | B174: 9032 | C174: 0c5744358b5b4b309dc469c882cc0497 | D174: Accept | E174: yes | H174: مجيده كمال حاج احمد | I174: resident | J174: Boz Ghaz | K174: 71 | L174: هشام + ابراهيم | M174: I.R | S174: 2.1 | V174: 0.68 | X174: 0.5 | AF174: 178 | CJ174: 1.81 | CP174: 1.8 | CQ174: 3 | CU174: 1 | DD174: 10 | DK174: 1 | EB174: 1 | EC174: 1 | EE174: 1 | EG174: 1 | EK174: 10 | EL174: =SUMPRODUCT(Planned[[#This Row],[GEN-1]:[EL-20]],TRANSPOSE(Arrangements[Unit Prices])) -> $1,318.1
A175: 155 | B175: 20163 | C175: 2efb7f6236d44e3fa2c18a8d51113e5c | D175: Accept | E175: yes | H175: فيروز مصطفى بسوته | I175: resident | J175: Boz Ghaz | K175: 71 | L175: هشام + ابراهيم | M175: I.R | T175: 2 | V175: 0.15 | AA175: 22 | AF175: 40 | CL175: 0.16 | CQ175: 4 | CR175: 3 | CU175: 1 | CV175: 2 | CW175: 1 | CX175: 1.2 | DK175: 1 | EL175: =SUMPRODUCT(Planned[[#This Row],[GEN-1]:[EL-20]],TRANSPOSE(Arrangements[Unit Prices])) -> $694.5
A176: 156 | B176: 22138 | C176: 5734657635c1488ba122572339e8a6be | D176: Accept | E176: yes | H176: محمد جميل حاج احمد | I176: resident | J176: Boz Ghaz | K176: 71 | L176: عارف قرمو | M176: I.R | AF176: 300 | CQ176: 5 | CR176: 5 | CW176: 1 | CX176: 1 | EL176: =SUMPRODUCT(Planned[[#This Row],[GEN-1]:[EL-20]],TRANSPOSE(Arrangements[Unit Prices])) -> $1,174.0
A177: 157 | B177: 3001 | C177: 344fe34ce77b4df284146c378dbe5c0c | D177: Accept | E177: yes | H177: لميه عبدو خضر | I177: resident | J177: Boz Ghaz | K177: 71 | L177: عارف قرمو | M177: I.R | CQ177: 3 | CR177: 6 | CS177: 1 | CX177: 1 | DK177: 1 | EC177: 1 | EE177: 1 | EG177: 1 | EK177: 15 | EL177: =SUMPRODUCT(Planned[[#This Row],[GEN-1]:[EL-20]],TRANSPOSE(Arrangements[Unit Prices])) -> $756.8
A178: 158 | B178: 218151 | C178: b3dae56f9b8a4608ac595556ae470f08 | D178: Accept | E178: yes | H178: خالد محمد جمعه الحلاق | I178: Displaced | J178: Boz Ghaz | K178: 71 | L178: عارف قرمو | M178: I.R | AF178: 250 | BM178: 1 | CQ178: 5 | CR178: 7 | CS178: 1 | DK178: 1 | EL178: =SUMPRODUCT(Planned[[#This Row],[GEN-1]:[EL-20]],TRANSPOSE(Arrangements[Unit Prices])) -> $1,282.6
A179: 159 | B179: 24134 | C179: a638ff17b07649db86542be5bcce8232 | D179: Accept | E179: yes | H179: محمد عبدو حاج احمد | I179: resident | J179: Boz Ghaz | K179: 71 | L179: عارف قرمو | M179: I.R | BM179: 1 | CQ179: 5 | CR179: 3 | CS179: 1 | DK179: 1 | EL179: =SUMPRODUCT(Planned[[#This Row],[GEN-1]:[EL-20]],TRANSPOSE(Arrangements[Unit Prices])) -> $560.4
A180: 160 | B180: 304393 | C180: 09d405e00bbf46a9aed3ece4a9907869 | D180: Accept | E180: yes | H180: نواف حسون الابراهيم | I180: Displaced | J180: Boz Ghaz | K180: 71 | L180: عارف قرمو | M180: I.R | CJ180: 0.5 | CQ180: 5 | CR180: 7 | CS180: 1 | DK180: 1 | EL180: =SUMPRODUCT(Planned[[#This Row],[GEN-1]:[EL-20]],TRANSPOSE(Arrangements[Unit Prices])) -> $607.6
A181: 161 | B181: 218158 | C181: 26cdb0a0ac934a6680af7e41ab83aef7 | D181: Accept | E181: yes | H181: عبد الحسيب عبدو الطه | I181: Displaced | J181: Boz Ghaz | K181: 71 | L181: عارف قرمو | M181: I.R | T181: 5 | AF181: 160 | CQ181: 2 | CR181: 4 | DK181: 1 | EL181: =SUMPRODUCT(Planned[[#This Row],[GEN-1]:[EL-20]],TRANSPOSE(Arrangements[Unit Prices])) -> $845.2
A182: 162 | B182: 31169 | C182: 340a8c3753764cea871723321bbf2fcb | D182: Accept | E182: yes | H182: يوسف عبد المجيد زوعه | I182: resident | J182: Boz Ghaz | K182: 71 | L182: ريم . احمد ارمنازي | M182: I.R | AF182: 60 | CR182: 2 | CU182: 1 | CW182: 1 | CX182: 1 | DC182: 10 | DK182: 1 | EL182: =SUMPRODUCT(Planned[[#This Row],[GEN-1]:[EL-20]],TRANSPOSE(Arrangements[Unit Prices])) -> $424.1
A183: 163 | B183: 22769 | C183: 37bba555d7b24b6fbfa1c1f61b0e5aa3 | D183: Accept | E183: Yes | H183: محمد ديب سعيد | I183: resident | J183: Htan | K183: 72 | L183: نور الخليف | M183: I.R | N183: 0 | O183: 0 | P183: 0 | Q183: 0 | R183: 0 | S183: 1.9 | T183: 0 | U183: 0 | V183: 0 | W183: 0 | X183: 0 | Y183: 0 | Z183: 0 | AA183: 50 | AB183: 0 | AC183: 0 | AD183: 0 | AE183: 0 | AF183: 324 | AG183: 0 | AH183: 0 | AI183: 0 | AJ183: 0 | AK183: 0 | AL183: 0 | AM183: 0 | AN183: 0 | AO183: 0 | AP183: 0 | AQ183: 0 | AR183: 0 | AS183: 0 | AT183: 0 | AU183: 0 | AV183: 0 | AW183: 0 | AX183: 0 | AY183: 0 | AZ183: 0 | BA183: 0 | BB183: 0 | BC183: 0 | BD183: 0 | BE183: 0 | BF183: 0 | BG183: 0 | BH183: 0 | BI183: 0 | BJ183: 0 | BK183: 0 | BL183: 0 | BM183: 0 | BN183: 0 | BO183: 0 | BP183: 0 | BQ183: 0 | BR183: 0 | BS183: 0 | BT183: 3 | BU183: 0.8 | BV183: 0 | BW183: 0 | BX183: 0 | BY183: 0 | BZ183: 0 | CA183: 0 | CB183: 0 | CC183: 0 | CD183: 0 | CE183: 0 | CF183: 0 | CG183: 0 | CH183: 0 | CI183: 0 | CJ183: 0 | CK183: 0 | CL183: 0.18 | CM183: 0 | CN183: 0 | CO183: 0 | CP183: 0 | CQ183: 8 | CR183: 1 | CS183: 1 | CT183: 0 | CU183: 1 | CV183: 1 | CW183: 1 | CX183: 1.2 | CY183: 0 | CZ183: 0 | DA183: 0 | DB183: 0 | DC183: 0 | DD183: 10 | DE183: 0 | DF183: 0 | DG183: 0 | DH183: 0 | DI183: 0 | DJ183: 0 | DK183: 0 | DL183: 0 | DM183: 0 | DN183: 0 | DO183: 0 | DP183: 0 | DQ183: 0 | DR183: 0 | DS183: 0 | DT183: 0 | DU183: 0 | DV183: 0 | DW183: 0 | DX183: 0 | DY183: 0 | DZ183: 0 | EA183: 0 | EB183: 0 | EC183: 0 | ED183: 0 | EE183: 0 | EF183: 0 | EG183: 0 | EH183: 0 | EI183: 0 | EJ183: 0 | EK183: 0 | EL183: =SUMPRODUCT(Planned[[#This Row],[GEN-1]:[EL-20]],TRANSPOSE(Arrangements[Unit Prices])) -> $1,402.4
A184: 164 | B184: 29846 | C184: 1b6aa2eb65f5498aacefbf0aed73bd60 | D184: Accept | E184: Yes | H184: هدى درويش درويش | I184: Displaced | J184: Htan | K184: 72 | L184: نور الخليف | M184: I.R | N184: 0 | O184: 0 | P184: 0 | Q184: 0 | R184: 0 | S184: 0 | T184: 0 | U184: 0 | V184: 0 | W184: 1.53 | X184: 0 | Y184: 0 | Z184: 0 | AA184: 300 | AB184: 0 | AC184: 0 | AD184: 0 | AE184: 0 | AF184: 57.16 | AG184: 0 | AH184: 0 | AI184: 0 | AJ184: 0 | AK184: 0 | AL184: 0 | AM184: 0 | AN184: 0 | AO184: 0 | AP184: 0 | AQ184: 0 | AR184: 15.8 | AS184: 0 | AT184: 0 | AU184: 0 | AV184: 0 | AW184: 0 | AX184: 0 | AY184: 0 | AZ184: 0 | BA184: 0 | BB184: 0 | BC184: 0 | BD184: 0 | BE184: 0 | BF184: 0 | BG184: 0 | BH184: 0 | BI184: 0 | BJ184: 0 | BK184: 0 | BL184: 0 | BM184: 1 | BN184: 0 | BO184: 0 | BP184: 0 | BQ184: 0 | BR184: 0 | BS184: 0 | BT184: 0 | BU184: 0 | BV184: 0 | BW184: 0 | BX184: 0 | BY184: 0 | BZ184: 0 | CA184: 0 | CB184: 0 | CC184: 0 | CD184: 0 | CE184: 0 | CF184: 0 | CG184: 0 | CH184: 0 | CI184: 0 | CJ184: 0 | CK184: 0 | CL184: 0.48 | CM184: 0 | CN184: 0 | CO184: 0 | CP184: 0 | CQ184: 4 | CR184: 2 | CS184: 0 | CT184: 0 | CU184: 0 | CV184: 1 | CW184: 1 | CX184: 1.2 | CY184: 0 | CZ184: 0 | DA184: 0 | DB184: 0 | DC184: 0 | DD184: 12 | DE184: 0 | DF184: 0 | DG184: 0 | DH184: 0 | DI184: 0 | DJ184: 0 | DK184: 0 | DL184: 0 | DM184: 0 | DN184: 0 | DO184: 0 | DP184: 0 | DQ184: 0 | DR184: 0 | DS184: 0 | DT184: 0 | DU184: 0 | DV184: 0 | DW184: 0 | DX184: 0 | DY184: 0 | DZ184: 0 | EA184: 0 | EB184: 0 | EC184: 0 | ED184: 0 | EE184: 0 | EF184: 0 | EG184: 0 | EH184: 0 | EI184: 0 | EJ184: 0 | EK184: 0 | EL184: =SUMPRODUCT(Planned[[#This Row],[GEN-1]:[EL-20]],TRANSPOSE(Arrangements[Unit Prices])) -> $1,049.7
A185: 165 | B185: 261968 | C185: 9966142838b84ac481a951544d06bfa7 | D185: Accept | E185: Yes | H185: هايل فايز طفران | I185: Displaced | J185: Htan | K185: 72 | L185: سراب-احمد | M185: I.R | AF185: 133 | AP185: 21 | BM185: 1 | BN185: 1 | CD185: 15 | CJ185: 3.9 | CM185: 0.4 | CP185: 7.4 | CV185: 3 | CW185: 1 | CX185: 1.5 | CY185: 1 | DD185: 16 | DG185: 20 | DK185: 1 | EL185: =SUMPRODUCT(Planned[[#This Row],[GEN-1]:[EL-20]],TRANSPOSE(Arrangements[Unit Prices])) -> $1,541.4
A186: 166 | B186: 141133 | C186: 8c4a4f6bd0164c72b51b342c719255b1 | D186: Accept | E186: Yes | H186: كوثر احمد عمران | I186: Displaced | J186: Htan | K186: 72 | L186: نور وعبدالهادي | M186: I.R | AA186: 175 | AF186: 30 | AP186: 21 | BM186: 1 | CF186: 10 | CL186: 0.5 | CQ186: 2 | CR186: 1 | CS186: 1 | CV186: 3 | CW186: 1 | CX186: 1.2 | CY186: 1 | DK186: 1 | EL186: =SUMPRODUCT(Planned[[#This Row],[GEN-1]:[EL-20]],TRANSPOSE(Arrangements[Unit Prices])) -> $918.3
A187: 167 | B187: 223120 | C187: 4abb181151204ace8db23748e23b0de8 | D187: Accept | E187: Yes | H187: ماهر عبد الكريم قطينه | I187: Displaced | J187: Htan | K187: 72 | L187: ريم .شادي | M187: I.R | T187: 1 | Z187: 420 | AF187: 180 | CQ187: 3 | CR187: 1 | DK187: 1 | EL187: =SUMPRODUCT(Planned[[#This Row],[GEN-1]:[EL-20]],TRANSPOSE(Arrangements[Unit Prices])) -> $898.2
A188: 168 | B188: 20197 | C188: f419df2b3c1d4f6d8a92ee589ac080cc | D188: Accept | E188: Yes | H188: فيصل علي عبيد | I188: resident | J188: Htan | K188: 72 | L188: محمد غضب ...سراب | M188: I.R | S188: 1.7 | AF188: 152 | AP188: 6 | BM188: 1 | CJ188: 0.24 | CQ188: 5 | CR188: 4 | CS188: 1 | CU188: 6 | CV188: 1 | CW188: 1 | CX188: 1 | CZ188: 1 | DA188: 1 | DB188: 5 | DC188: 10 | DF188: 5 | DG188: 50 | DK188: 1 | DU188: 2 | DY188: 2 | EL188: =SUMPRODUCT(Planned[[#This Row],[GEN-1]:[EL-20]],TRANSPOSE(Arrangements[Unit Prices])) -> $1,408.3
A189: 169 | B189: 20911 | C189: bb08de11da11405787f0b6aa7d04c86d | D189: Accept | E189: Yes | H189: منى عبد الرحمن عبود | I189: Displaced | J189: Htan | K189: 72 | L189: هشام- ابراهيم | M189: I.R | S189: 2.4 | AF189: 50 | AZ189: 3.2 | BV189: 0.6 | CL189: 0.16 | CQ189: 2 | CR189: 3 | CS189: 1 | CU189: 5 | DB189: 3 | EL189: =SUMPRODUCT(Planned[[#This Row],[GEN-1]:[EL-20]],TRANSPOSE(Arrangements[Unit Prices])) -> $605.3
A190: 170 | B190: 313905 | C190: 5eabaf53aaa54d72b38fb46e26594cf4 | D190: Accept | E190: Yes | H190: ابراهيم محمد ضبعان | I190: Displaced | J190: Htan | K190: 72 | L190: هشام+ احمد | M190: I.R | S190: 6 | AF190: 205.5 | CQ190: 4 | CR190: 5 | CS190: 1 | CU190: 3 | CW190: 1 | CX190: 1.2 | DB190: 2 | DD190: 20 | DG190: 36 | DK190: 1 | EL190: =SUMPRODUCT(Planned[[#This Row],[GEN-1]:[EL-20]],TRANSPOSE(Arrangements[Unit Prices])) -> $1,390.7
A191: 171 | B191: 17869 | C191: d0899a833282473ca6f14cadf2515f73 | D191: Accept | E191: Yes | H191: فاطمه احمد يوسف | I191: resident | J191: Htan | K191: 72 | L191: بشار فرنجاري ..مهند حديد | M191: I.R | AF191: 100 | CL191: 0.16 | CQ191: 1 | CR191: 5 | CS191: 1 | CT191: 1 | CV191: 2 | CX191: 0.5 | EL191: =SUMPRODUCT(Planned[[#This Row],[GEN-1]:[EL-20]],TRANSPOSE(Arrangements[Unit Prices])) -> $585.4
A192: 172 | B192: 155678 | C192: e7a2456e9a9d4893a19dbfb7f027fee6 | D192: Accept | E192: Yes | H192: ابراهيم حسن اليوسف | I192: Displaced | J192: Htan | K192: 72 | L192: هشام - إبراهيم | M192: I.R | AA192: 85 | AF192: 73 | BQ192: 1 | BV192: 0.5 | CQ192: 3 | CR192: 1 | CS192: 1 | CU192: 3 | CW192: 1 | CX192: 1.2 | DB192: 1 | DD192: 10 | DK192: 1 | EF192: 1 | EL192: =SUMPRODUCT(Planned[[#This Row],[GEN-1]:[EL-20]],TRANSPOSE(Arrangements[Unit Prices])) -> $840.4
A193: 173 | B193: 224215 | C193: 5630fb3ed05b4df1adb533e29559e5c1 | D193: Accept | E193: Yes | H193: احمد محمد رعدون | I193: Displaced | J193: Htan | K193: 72 | L193: بشار فرنجاري ...مهند حديد | M193: I.R | AF193: 254 | CR193: 4 | CV193: 2 | EL193: =SUMPRODUCT(Planned[[#This Row],[GEN-1]:[EL-20]],TRANSPOSE(Arrangements[Unit Prices])) -> $761.4
A194: 174 | B194: 278213 | C194: 049e92fb39974c3c9199a6d32720bf21 | D194: Accept | E194: Yes | H194: عبد الحكيم احمد مصطفى | I194: resident | J194: Htan | K194: 72 | L194: سراب .احمد | M194: I.R | AF194: 126 | AP194: 18.75 | CJ194: 2.1 | CL194: 0.25 | CP194: 4.45 | CS194: 1 | CV194: 2 | CX194: 1.5 | DB194: 3 | DD194: 8 | DF194: 6 | DG194: 8 | EL194: =SUMPRODUCT(Planned[[#This Row],[GEN-1]:[EL-20]],TRANSPOSE(Arrangements[Unit Prices])) -> $903.2
A195: 175 | B195: 250890 | C195: 99a82f6d8a9c4dd8a7490463146aac01 | D195: Accept | E195: Yes | H195: اسامه عبد الرحيم الشيخ محمد | I195: Displaced | J195: Htan | K195: 72 | L195: حسام العبدالله_مهند حديد | M195: I.R | AF195: 194 | BY195: 15 | CL195: 0.32 | CQ195: 5 | CR195: 2 | CS195: 1 | CT195: 1 | CV195: 2 | CX195: 0.5 | EL195: =SUMPRODUCT(Planned[[#This Row],[GEN-1]:[EL-20]],TRANSPOSE(Arrangements[Unit Prices])) -> $880.1
A196: 176 | B196: 209134 | C196: b71cda2e80e44fa49777a6b3549d5c71 | D196: Accept | E196: Yes | H196: اميره محمد الحسين | I196: Displaced | J196: Htan | K196: 72 | L196: سراب ناصيف_أحمد غندور | M196: I.R | AF196: 163 | CJ196: 3.8 | CL196: 0.48 | CP196: 3.55 | CV196: 3 | CW196: 1 | CX196: 1.5 | DD196: 13 | DF196: 2 | DJ196: 1 | EL196: =SUMPRODUCT(Planned[[#This Row],[GEN-1]:[EL-20]],TRANSPOSE(Arrangements[Unit Prices])) -> $959.1
A197: 177 | B197: 281732 | C197: be9dae847b1b4081bc44e7f1202d093e | D197: Accept | E197: Yes | H197: عبد السلام محمد ضبعان | I197: Displaced | J197: Htan | K197: 72 | L197: هشام - ابراهيم | M197: I.R | AA197: 180 | AF197: 40 | CL197: 0.2 | CQ197: 4 | CU197: 3 | CW197: 1 | CX197: 0.6 | DD197: 10 | DG197: 2 | DK197: 1 | EL197: =SUMPRODUCT(Planned[[#This Row],[GEN-1]:[EL-20]],TRANSPOSE(Arrangements[Unit Prices])) -> $548.1
A198: 178 | B198: 209130 | C198: 4d36ca81ef9348ce8d0161edd8b5b004 | D198: Accept | E198: Yes | H198: اسامه احمد الضبعان | I198: Displaced | J198: Htan | K198: 72 | L198: حسام عبدلله .مهند حديد | M198: I.R | T198: 2 | AF198: 46 | AP198: 6 | BM198: 1 | BY198: 14 | CL198: 0.1 | CQ198: 2 | CR198: 3 | CT198: 1 | CV198: 2 | CX198: 0.5 | EC198: 1 | EG198: 1 | EL198: =SUMPRODUCT(Planned[[#This Row],[GEN-1]:[EL-20]],TRANSPOSE(Arrangements[Unit Prices])) -> $864.2
A199: 179 | B199: 224258 | C199: 8d2e2468ffb346a787212865f1d9d54f | D199: Accept | E199: Yes | H199: مهند فايز عرار | I199: Displaced | J199: Htan | K199: 72 | L199: حسام عبدلله .مهند حديد | M199: I.R | AF199: 70 | BY199: 15 | CL199: 0.1 | CQ199: 4 | CR199: 6 | CV199: 2 | EL199: =SUMPRODUCT(Planned[[#This Row],[GEN-1]:[EL-20]],TRANSPOSE(Arrangements[Unit Prices])) -> $598.3
A200: 180 | B200: 267083 | C200: f81c960c531d48bbb3d8c00bb6441f76 | D200: Accept | E200: Yes | H200: علي عبد الرحمن جوهر | I200: Displaced | J200: Htan | K200: 72 | L200: هشام+ احمد | M200: I.R | AF200: 142 | AP200: 3.75 | CL200: 0.16 | CQ200: 2 | CR200: 2 | CV200: 1 | CW200: 1 | CX200: 0.9 | EC200: 1 | EE200: 1 | EL200: =SUMPRODUCT(Planned[[#This Row],[GEN-1]:[EL-20]],TRANSPOSE(Arrangements[Unit Prices])) -> $706.6
... 276 more rows

Sheet Shared Shelters (hidden)
A1: # | B1: GOAL ID | C1: Shelter_Notes | D1: # of Merged Families | E1: Number of HHs | F1: Cost/Shelter $
A2: 245 | B2: 279578 | C2: دمج مع محمد الحسين | D2: 1 | E2: =D2+1 -> 2 | F2: $2,905.4 | G2: =F2/E2 -> $1,452.70 | L2: $1,452.70
A3: 246 | B3: 259628 | C3: دمج مع مريم حسون | D3: 1 | E3: =D3+1 -> 2 | F3: $1,052.9 | G3: $526.45 | L3: $1,452.70
A4: 253 | B4: 281506 | C4: سكن جماعي مع لؤي شحادة الحمود \ عدد العوائل 6 | D4: 1 | E4: 6 | F4: $2,320.0 | G4: $386.66 | L4: $526.45
A5: 258 | B5: 186698 | C5: دمج مع جاسم الصفوك | D5: 1 | E5: 2 | F5: $1,072.9 | G5: $536.43 | H5: Average = | I5: =F19/E19 -> $683.12 | L5: $526.45
A6: 282 | B6: 282615 | C6: دمج مع رضوان يحيى الجاسم | D6: 1 | E6: 2 | F6: $1,475.0 | G6: $737.50 | L6: $386.66
A7: 334 | B7: 41300 | C7: دمج مع وداد خالد الحمود | D7: 1 | E7: 2 | F7: $1,361.7 | G7: $680.85 | L7: $386.66
A8: 351 | B8: 252560 | C8: دمج مع فطيم فياض العليق و محمد ابراهيم الرحمون واحمد ابراهيم الرحمون واحمد مصطفى الجعفر | D8: 4 | E8: 5 | F8: $1,550.4 | G8: =F8/E8 -> $310.07 | L8: $386.66
A9: 380 | B9: 252528 | C9: دمج مع علاء عماد السعيد | D9: 1 | E9: 2 | F9: $1,718.8 | G9: $859.40 | L9: $386.66 | N9: =MEDIAN(L2:L46) -> $680.85 | O9: Median cost/HH
A10: 383 | B10: 255577 | C10: دمج مع عبد القادر عبد الكافي الاصلان | D10: 1 | E10: 2 | F10: $863.2 | G10: $431.60 | L10: $386.66
A11: 395 | B11: 93321 | C11: مدمج مع حاجة احمد الغريب | D11: 1 | E11: 2 | F11: $1,430.6 | G11: $715.30 | L11: $386.66
A12: 397 | B12: 284858 | C12: مدمج مع سليمه احمد زين الدين ومع عمر محمود الزين | D12: 2 | E12: 3 | F12: $3,409.5 | G12: $1,136.48 | L12: $536.43
A13: 414 | B13: 284937 | C13: مدمج مع عبد الهادي قدور الباشا | D13: 1 | E13: 2 | F13: $1,403.5 | G13: $701.75 | L13: $536.43
A14: 419 | B14: 227289 | C14: مدمج مع فاطمة علي الرعي | D14: 1 | E14: 2 | F14: $1,476.2 | G14: $738.08 | L14: $737.50
A15: 421 | B15: 270979 | C15: مدمج مع زور غازي الطه | D15: 1 | E15: 2 | F15: $1,540.5 | G15: $770.25 | L15: $737.50
A16: 424 | B16: 270263 | C16: مدمج مع احمد ابراهيم الاحمد ومع نجاح احمد الاحمد | D16: 2 | E16: 3 | F16: $3,185.6 | G16: $1,061.88 | L16: $680.85
A17: 425 | B17: 330596 | C17: مدمج مع علي محمد صابر القاسم ومع خالد محمد صابر القاسم ومع نصرة احمد الاحمد | D17: 3 | E17: 4 | F17: $2,303.7 | G17: $575.94 | L17: $680.85
A18: 436 | B18: 247457 | C18: عبدالرحمن عبدالكريم زكرة | D18: 1 | E18: 2 | F18: $1,670.8 | G18: $835.40 | L18: $310.07
E19: =SUM(E2:E18) -> 45 | F19: =SUM(F2:F18) -> $30,740.5 | L19: $310.07
L20: $310.07
L21: $310.07
L22: $310.07
L23: $859.40
L24: $859.40
L25: $431.60
L26: $431.60
L27: $715.30
L28: $715.30
L29: $1,136.48
L30: $1,136.48
L31: $1,136.48
L32: $701.75
L33: $701.75
L34: $738.08
L35: $738.08
L36: $770.25
L37: $770.25
L38: $1,061.88
L39: $1,061.88
L40: $1,061.88
L41: $575.94
L42: $575.94
L43: $575.94
L44: $575.94
L45: $835.40
L46: $835.40

Sheet single shelter unit (hidden)
A1: # | B1: GOAL ID | C1: Number of HHs | D1: Price per BNF $
A2: 262 | B2: 26922 | C2: 1 | D2: $340.4
A3: 197 | B3: 224970 | C3: 1 | D3: $349.7
A4: 352 | B4: 229045 | C4: 1 | D4: $355.8
A5: 114 | B5: 284915 | C5: 1 | D5: $396.9
A6: 329 | B6: 222838 | C6: 1 | D6: $401.5
A7: 10 | B7: 282361 | C7: 1 | D7: $403.2
A8: 332 | B8: 41990 | C8: 1 | D8: $408.0
A9: 21 | B9: 101541 | C9: 1 | D9: $414.6
A10: 259 | B10: 22938 | C10: 1 | D10: $421.0
A11: 269 | B11: 17944 | C11: 1 | D11: $421.6
A12: 97 | B12: 30885 | C12: 1 | D12: $423.1
A13: 162 | B13: 31169 | C13: 1 | D13: $424.1
A14: 12 | B14: 95194 | C14: 1 | D14: $425.0 | G14: `
A15: 242 | B15: 20392 | C15: 1 | D15: $426.3
A16: 446 | B16: 257681 | C16: 1 | D16: $427.2
A17: 216 | B17: 19627 | C17: 1 | D17: $438.4
A18: 315 | B18: 303553 | C18: 1 | D18: $439.8
A19: 249 | B19: 259029 | C19: 1 | D19: $441.1
A20: 434 | B20: 272684 | C20: 1 | D20: $441.9
A21: 33 | B21: 281463 | C21: 1 | D21: $447.8
A22: 378 | B22: 158859 | C22: 1 | D22: $451.8
A23: 153 | B23: 31175 | C23: 1 | D23: $462.3
A24: 215 | B24: 253303 | C24: 1 | D24: $466.9
A25: 206 | B25: 283474 | C25: 1 | D25: $468.2
A26: 439 | B26: 295385 | C26: 1 | D26: $473.2
A27: 468 | B27: 193132 | C27: 1 | D27: $479.1
A28: 191 | B28: 26782 | C28: 1 | D28: $481.6
A29: 307 | B29: 29980 | C29: 1 | D29: $489.3
A30: 60 | B30: 12277 | C30: 1 | D30: $490.1
A31: 150 | B31: 28340 | C31: 1 | D31: $498.1
A32: 278 | B32: 249209 | C32: 1 | D32: $499.0
A33: 220 | B33: 291723 | C33: 1 | D33: $512.8
A34: 181 | B34: 267025 | C34: 1 | D34: $514.0
A35: 202 | B35: 89950 | C35: 1 | D35: $518.1
A36: 148 | B36: 6242 | C36: 1 | D36: $518.6
A37: 355 | B37: 255444 | C37: 1 | D37: $520.6
A38: 219 | B38: 179343 | C38: 1 | D38: $523.0
A39: 27 | B39: 250651 | C39: 1 | D39: $524.2
A40: 299 | B40: 304486 | C40: 1 | D40: $532.4
A41: 401 | B41: 134987 | C41: 1 | D41: $535.4
A42: 189 | B42: 267107 | C42: 1 | D42: $537.9
A43: 212 | B43: 217274 | C43: 1 | D43: $541.8
A44: 5 | B44: 304366 | C44: 1 | D44: $542.4
A45: 183 | B45: 209192 | C45: 1 | D45: $543.0
A46: 400 | B46: 219821 | C46: 1 | D46: $545.0
A47: 177 | B47: 281732 | C47: 1 | D47: $548.1
A48: 312 | B48: 29662 | C48: 1 | D48: $548.2
A49: 264 | B49: 222937 | C49: 1 | D49: $550.3
A50: 304 | B50: 22086 | C50: 1 | D50: $555.6
A51: 2 | B51: 334288 | C51: 1 | D51: $557.5
A52: 46 | B52: 284877 | C52: 1 | D52: $557.6
A53: 122 | B53: 552 | C53: 1 | D53: $559.4
A54: 159 | B54: 24134 | C54: 1 | D54: $560.4
A55: 80 | B55: 241948 | C55: 1 | D55: $562.1
A56: 443 | B56: 257746 | C56: 1 | D56: $563.9
A57: 9 | B57: 275012 | C57: 1 | D57: $567.4
A58: 224 | B58: 91106 | C58: 1 | D58: $571.8
A59: 409 | B59: 206283 | C59: 1 | D59: $572.3
A60: 369 | B60: 276405 | C60: 1 | D60: $574.9
A61: 131 | B61: 148276 | C61: 1 | D61: $575.0
A62: 117 | B62: 284813 | C62: 1 | D62: $575.2
A63: 313 | B63: 31062 | C63: 1 | D63: $583.4
A64: 210 | B64: 227450 | C64: 1 | D64: $584.9
A65: 171 | B65: 17869 | C65: 1 | D65: $585.4
A66: 74 | B66: 23767 | C66: 1 | D66: $587.0
A67: 238 | B67: 295401 | C67: 1 | D67: $590.4
A68: 237 | B68: 1840 | C68: 1 | D68: $591.4
A69: 179 | B69: 224258 | C69: 1 | D69: $598.3
A70: 22 | B70: 23492 | C70: 1 | D70: $598.5
A71: 119 | B71: 282496 | C71: 1 | D71: $600.6
A72: 377 | B72: 50058 | C72: 1 | D72: $601.9
A73: 169 | B73: 20911 | C73: 1 | D73: $605.3
A74: 160 | B74: 304393 | C74: 1 | D74: $607.6
A75: 335 | B75: 33626 | C75: 1 | D75: $615.6
A76: 448 | B76: 230490 | C76: 1 | D76: $616.9
A77: 392 | B77: 321677 | C77: 1 | D77: $617.4
A78: 251 | B78: 22308 | C78: 1 | D78: $619.4
A79: 196 | B79: 90552 | C79: 1 | D79: $621.4
A80: 195 | B80: 253056 | C80: 1 | D80: $622.9
A81: 268 | B81: 229335 | C81: 1 | D81: $625.7
A82: 343 | B82: 320482 | C82: 1 | D82: $631.1
A83: 47 | B83: 11066 | C83: 1 | D83: $634.4
A84: 7 | B84: 207644 | C84: 1 | D84: $635.6
A85: 433 | B85: 230324 | C85: 1 | D85: $637.9
A86: 281 | B86: 249199 | C86: 1 | D86: $638.2
A87: 72 | B87: 230242 | C87: 1 | D87: $638.8
A88: 261 | B88: 6339 | C88: 1 | D88: $641.7
A89: 128 | B89: 218152 | C89: 1 | D89: $645.3
A90: 447 | B90: 257620 | C90: 1 | D90: $646.0
A91: 330 | B91: 319440 | C91: 1 | D91: $646.3
A92: 6 | B92: 95690 | C92: 1 | D92: $650.1
A93: 403 | B93: 44794 | C93: 1 | D93: $651.5
A94: 464 | B94: 55938 | C94: 1 | D94: $651.6
A95: 28 | B95: 11936 | C95: 1 | D95: $651.9
A96: 1 | B96: 95609 | C96: 1 | D96: $655.4
A97: 284 | B97: 181658 | C97: 1 | D97: $658.0
A98: 121 | B98: 302343 | C98: 1 | D98: $663.4
A99: 102 | B99: 14676 | C99: 1 | D99: $663.5
A100: 71 | B100: 250747 | C100: 1 | D100: $664.2
A101: 254 | B101: 10681 | C101: 1 | D101: $664.7
A102: 103 | B102: 278114 | C102: 1 | D102: $669.9
A103: 445 | B103: 230496 | C103: 1 | D103: $673.0
A104: 234 | B104: 229674 | C104: 1 | D104: $673.3
A105: 66 | B105: 250702 | C105: 1 | D105: $675.6
A106: 321 | B106: 128656 | C106: 1 | D106: $675.6
A107: 152 | B107: 19924 | C107: 1 | D107: $676.2
A108: 118 | B108: 285373 | C108: 1 | D108: $679.9
A109: 270 | B109: 30125 | C109: 1 | D109: $683.5
A110: 354 | B110: 320480 | C110: 1 | D110: $686.6
A111: 255 | B111: 186693 | C111: 1 | D111: $688.5
A112: 385 | B112: 227745 | C112: 1 | D112: $689.7
A113: 413 | B113: 285259 | C113: 1 | D113: $690.3
A114: 34 | B114: 280112 | C114: 1 | D114: $693.0
A115: 155 | B115: 20163 | C115: 1 | D115: $694.5
A116: 461 | B116: 60138 | C116: 1 | D116: $696.6
A117: 84 | B117: 250705 | C117: 1 | D117: $696.7
A118: 283 | B118: 8929 | C118: 1 | D118: $696.8
A119: 298 | B119: 28068 | C119: 1 | D119: $700.9
A120: 129 | B120: 279911 | C120: 1 | D120: $705.6
A121: 180 | B121: 267083 | C121: 1 | D121: $706.6
A122: 23 | B122: 281058 | C122: 1 | D122: $707.4
A123: 412 | B123: 214794 | C123: 1 | D123: $710.4
A124: 198 | B124: 90928 | C124: 1 | D124: $710.6
A125: 95 | B125: 168132 | C125: 1 | D125: $711.1
A126: 188 | B126: 19467 | C126: 1 | D126: $711.6
A127: 92 | B127: 25493 | C127: 1 | D127: $713.6
A128: 40 | B128: 29428 | C128: 1 | D128: $719.2
A129: 226 | B129: 28699 | C129: 1 | D129: $722.0
A130: 432 | B130: 257664 | C130: 1 | D130: $722.4
A131: 390 | B131: 297696 | C131: 1 | D131: $723.5
A132: 184 | B132: 313890 | C132: 1 | D132: $723.9
A133: 67 | B133: 4518 | C133: 1 | D133: $726.0
A134: 101 | B134: 304540 | C134: 1 | D134: $726.8
A135: 296 | B135: 224293 | C135: 1 | D135: $730.9
A136: 135 | B136: 284696 | C136: 1 | D136: $731.0
A137: 297 | B137: 4291 | C137: 1 | D137: $731.1
A138: 205 | B138: 210091 | C138: 1 | D138: $735.6
A139: 187 | B139: 26987 | C139: 1 | D139: $739.5
A140: 407 | B140: 45626 | C140: 1 | D140: $741.6
A141: 325 | B141: 256069 | C141: 1 | D141: $741.8
A142: 113 | B142: 459 | C142: 1 | D142: $742.0
A143: 199 | B143: 224998 | C143: 1 | D143: $742.5
A144: 58 | B144: 3254 | C144: 1 | D144: $743.3
A145: 200 | B145: 91160 | C145: 1 | D145: $744.7
A146: 370 | B146: 280705 | C146: 1 | D146: $746.7
A147: 267 | B147: 216956 | C147: 1 | D147: $747.5
A148: 137 | B148: 27426 | C148: 1 | D148: $747.7
A149: 300 | B149: 257132 | C149: 1 | D149: $748.6
A150: 105 | B150: 230567 | C150: 1 | D150: $750.4
A151: 81 | B151: 101545 | C151: 1 | D151: $751.8
A152: 207 | B152: 89921 | C152: 1 | D152: $754.3
A153: 127 | B153: 170951 | C153: 1 | D153: $756.4
A154: 157 | B154: 3001 | C154: 1 | D154: $756.8
A155: 14 | B155: 276062 | C155: 1 | D155: $760.5
A156: 173 | B156: 224215 | C156: 1 | D156: $761.4
A157: 115 | B157: 218140 | C157: 1 | D157: $762.0
A158: 272 | B158: 24276 | C158: 1 | D158: $762.6
A159: 18 | B159: 21676 | C159: 1 | D159: $764.6
A160: 431 | B160: 45381 | C160: 1 | D160: $767.8
A161: 73 | B161: 152128 | C161: 1 | D161: $770.0
A162: 459 | B162: 98701 | C162: 1 | D162: $772.3
A163: 294 | B163: 23734 | C163: 1 | D163: $775.9
A164: 463 | B164: 98692 | C164: 1 | D164: $776.9
A165: 25 | B165: 11904 | C165: 1 | D165: $780.1
A166: 232 | B166: 91143 | C166: 1 | D166: $781.9
A167: 274 | B167: 313330 | C167: 1 | D167: $783.0
A168: 136 | B168: 209694 | C168: 1 | D168: $784.8
A169: 193 | B169: 7581 | C169: 1 | D169: $784.8
A170: 455 | B170: 342789 | C170: 1 | D170: $785.6
A171: 444 | B171: 223665 | C171: 1 | D171: $787.0
A172: 266 | B172: 14728 | C172: 1 | D172: $791.1
A173: 89 | B173: 7284 | C173: 1 | D173: $794.1
A174: 349 | B174: 280206 | C174: 1 | D174: $798.8
A175: 396 | B175: 94422 | C175: 1 | D175: $799.5
A176: 111 | B176: 11364 | C176: 1 | D176: $799.9
A177: 399 | B177: 230387 | C177: 1 | D177: $801.9
A178: 417 | B178: 48756 | C178: 1 | D178: $802.2
A179: 449 | B179: 230497 | C179: 1 | D179: $805.8
A180: 453 | B180: 223546 | C180: 1 | D180: $809.1
A181: 287 | B181: 296522 | C181: 1 | D181: $809.1
A182: 318 | B182: 15248 | C182: 1 | D182: $810.6
A183: 326 | B183: 252469 | C183: 1 | D183: $811.3
A184: 376 | B184: 50259 | C184: 1 | D184: $813.3
A185: 275 | B185: 6368 | C185: 1 | D185: $815.0
A186: 83 | B186: 143708 | C186: 1 | D186: $816.7
A187: 364 | B187: 216009 | C187: 1 | D187: $819.9
A188: 123 | B188: 22431 | C188: 1 | D188: $820.4
A189: 208 | B189: 187296 | C189: 1 | D189: $820.8
A190: 320 | B190: 27283 | C190: 1 | D190: $821.0
A191: 93 | B191: 24064 | C191: 1 | D191: $821.8
A192: 186 | B192: 26868 | C192: 1 | D192: $824.5
A193: 353 | B193: 249294 | C193: 1 | D193: $824.9
A194: 265 | B194: 313290 | C194: 1 | D194: $826.4
A195: 295 | B195: 25631 | C195: 1 | D195: $828.6
A196: 229 | B196: 91079 | C196: 1 | D196: $828.9
A197: 442 | B197: 230487 | C197: 1 | D197: $829.0
A198: 324 | B198: 233188 | C198: 1 | D198: $830.3
A199: 126 | B199: 2321 | C199: 1 | D199: $830.6
A200: 142 | B200: 128867 | C200: 1 | D200: $835.2
... 253 more rows

Sheet Villages (hidden)
A1: Community_Name_EN | B1: ID | C1: Governorate_Pcode | D1: Governorate_EN | E1: Governorate_AR | F1: GovernorateID | G1: District_EN | H1: District_AR | I1: District_Pcode | J1: DistrictID | K1: SubDistrict_EN | L1: SubDistrict_AR | M1: SubDistrict_pcode | N1: SubDistrictID | O1: Community_Name_AR | P1: Com_pcode_same | Q1: Neighborhood_EN | R1: Neighborhood_AR | S1: Latitude | T1: Longitude | U1: note2 | V1: not3 | W1: type | X1: Partner | Y1: Population | Z1: IsWASHSupported | AA1: IsBakerySupported | AB1: Community_Type | AC1: IsShelterSupported | AD1: VillagesChecked
A2: Armanaz | B2: 29 | C2: SY07 | D2: Idleb | E2: إدلب | F2: 4 | G2: Harim | H2: حارم | I2: SY0703 | J2: 20 | K2: Armanaz | L2: أرمناز | M2: SY070305 | N2: 103 | O2: أرمناز | P2: C4176 | Q2: Armanaz | R2: أرمناز | S2: 36.082404 | T2: 36.498023 | U2: Food Voucher | V2: RESUME | W2: 18480 | X2: GOAL | Y2: 23097 | Z2: 1 | AA2: 1 | AB2: Community | AC2: 0 | AD2: 1
A3: Baliya | B3: 30 | C3: SY07 | D3: Idleb | E3: إدلب | F3: 4 | G3: Harim | H3: حارم | I3: SY0703 | J3: 20 | K3: Armanaz | L3: أرمناز | M3: SY070305 | N3: 103 | O3: بسليا | P3: C4181 | Q3: Baliya | R3: بسليا | S3: 35.973078 | T3: 36.494291 | U3: Food Voucher | V3: RESUME | W3: 1325 | X3: GOAL | Y3: 2356 | Z3: 1 | AA3: 1 | AB3: Community | AC3: 0 | AD3: 1
A4: Biret Armanaz | B4: 31 | C4: SY07 | D4: Idleb | E4: إدلب | F4: 4 | G4: Harim | H4: حارم | I4: SY0703 | J4: 20 | K4: Armanaz | L4: أرمناز | M4: SY070305 | N4: 103 | O4: بيرة ارمناز | P4: C4180 | Q4: Biret Armanaz | R4: بيرة ارمناز | S4: 36.033285 | T4: 36.486081 | U4: Food Voucher | V4: RESUME | W4: 3245 | X4: GOAL | Y4: 4498 | Z4: 1 | AA4: 1 | AB4: Community | AC4: 0 | AD4: 1
A5: Dweila | B5: 32 | C5: SY07 | D5: Idleb | E5: إدلب | F5: 4 | G5: Harim | H5: حارم | I5: SY0703 | J5: 20 | K5: Armanaz | L5: أرمناز | M5: SY070305 | N5: 103 | O5: الدويلة | P5: C4182 | Q5: Dweila | R5: الدويلة | S5: 36.049495 | T5: 36.449336 | U5: Out GOAL Area | V5: Out GOAL Area | W5: 730 | X5: NULL | Y5: 1045 | Z5: 0 | AA5: 0 | AB5: NULL | AC5: 0 | AD5: NULL
A6: Ghafar | B6: 33 | C6: SY07 | D6: Idleb | E6: إدلب | F6: 4 | G6: Harim | H6: حارم | I6: SY0703 | J6: 20 | K6: Armanaz | L6: أرمناز | M6: SY070305 | N6: 103 | O6: الغفر | P6: C4175 | Q6: Ghafar | R6: الغفر | S6: 35.942892 | T6: 36.456449 | U6: Food Voucher | V6: RESUME | W6: 2230 | X6: GOAL | Y6: 2808 | Z6: 1 | AA6: 1 | AB6: Community | AC6: 0 | AD6: 1
A7: Hafasraja | B7: 34 | C7: SY07 | D7: Idleb | E7: إدلب | F7: 4 | G7: Harim | H7: حارم | I7: SY0703 | J7: 20 | K7: Armanaz | L7: أرمناز | M7: SY070305 | N7: 103 | O7: حفسرجة | P7: C4178 | Q7: Hafasraja | R7: حفسرجة | S7: 36.019421 | T7: 36.527473 | U7: Food Voucher | V7: RESUME | W7: 9300 | X7: GOAL | Y7: 9999 | Z7: 1 | AA7: 1 | AB7: Community | AC7: 0 | AD7: 1
A8: Kabta | B8: 35 | C8: SY07 | D8: Idleb | E8: إدلب | F8: 4 | G8: Harim | H8: حارم | I8: SY0703 | J8: 20 | K8: Armanaz | L8: أرمناز | M8: SY070305 | N8: 103 | O8: كبته | P8: C4185 | Q8: Kabta | R8: كبته | S8: 35.98287 | T8: 36.465168 | U8: Food Voucher | V8: RESUME | W8: 2090 | X8: GOAL | Y8: 2820 | Z8: 1 | AA8: 1 | AB8: Community | AC8: 0 | AD8: 1
A9: Kuwaro - Um Elriyah | B9: 36 | C9: SY07 | D9: Idleb | E9: إدلب | F9: 4 | G9: Harim | H9: حارم | I9: SY0703 | J9: 20 | K9: Armanaz | L9: أرمناز | M9: SY070305 | N9: 103 | O9: كوارو_أم الرياح | P9: C4183 | Q9: Kuwaro - Um Elriyah | R9: كوارو_أم الرياح | S9: 36.01776 | T9: 36.465706 | U9: Food Voucher | V9: RESUME | W9: 1335 | X9: GOAL | Y9: 1954 | Z9: 1 | AA9: 1 | AB9: Community | AC9: 0 | AD9: 1
A10: Milis | B10: 37 | C10: SY07 | D10: Idleb | E10: إدلب | F10: 4 | G10: Harim | H10: حارم | I10: SY0703 | J10: 20 | K10: Armanaz | L10: أرمناز | M10: SY070305 | N10: 103 | O10: ملس | P10: C4184 | Q10: Milis | R10: ملس | S10: 36.004537 | T10: 36.487756 | U10: Food Voucher | V10: RESUME | W10: 4680 | X10: GOAL | Y10: 8472 | Z10: 1 | AA10: 1 | AB10: Community | AC10: 0 | AD10: 1
A11: Quneitra (Armanaz) | B11: 38 | C11: SY07 | D11: Idleb | E11: إدلب | F11: 4 | G11: Harim | H11: حارم | I11: SY0703 | J11: 20 | K11: Armanaz | L11: أرمناز | M11: SY070305 | N11: 103 | O11: القنيطرة | P11: C4177 | Q11: Quneitra | R11: القنيطرة | S11: 35.9823 | T11: 36.528973 | U11: Food Voucher | V11: RESUME | W11: 1380 | X11: GOAL | Y11: 2215 | Z11: 0 | AA11: 1 | AB11: Community | AC11: 0 | AD11: 1
A12: Sheikh Yousef | B12: 39 | C12: SY07 | D12: Idleb | E12: إدلب | F12: 4 | G12: Harim | H12: حارم | I12: SY0703 | J12: 20 | K12: Armanaz | L12: أرمناز | M12: SY070305 | N12: 103 | O12: الشيخ يوسف | P12: C4179 | Q12: Sheikh Yousef | R12: الشيخ يوسف | S12: 35.968306 | T12: 36.509582 | U12: Food Voucher | V12: RESUME | W12: 3830 | X12: GOAL | Y12: 6204 | Z12: 1 | AA12: 1 | AB12: Community | AC12: 0 | AD12: 1
A13: AL-Shorfeh | B13: 40 | C13: SY07 | D13: Idleb | E13: إدلب | F13: 4 | G13: Harim | H13: حارم | I13: SY0703 | J13: 20 | K13: Salqin | L13: سلقين | M13: SY070302 | N13: 100 | O13: الشرفة | P13: C4143 | Q13: Azmarin | R13: عزمارين | S13: 36.05652 | T13: 36.398812 | U13: Out GOAL Area | V13: Out GOAL Area | W13: NULL | X13: GOAL | Y13: 0 | Z13: 0 | AA13: 0 | AC13: 0 | AD13: NULL
A14: Atma | B14: 41 | C14: SY07 | D14: Idleb | E14: إدلب | F14: 4 | G14: Harim | H14: حارم | I14: SY0703 | J14: 20 | K14: Dana | L14: دانا | M14: SY070301 | N14: 99 | O14: اطمه | P14: C4130 | Q14: Atma | R14: اطمه | S14: 36.312436 | T14: 36.680498 | U14: Out GOAL Area | V14: Out GOAL Area | W14: 130229 | X14: NULL | Y14: 32243 | Z14: 0 | AA14: 0 | AB14: NULL | AC14: 0 | AD14: NULL
A15: Bab Al Hawa | B15: 42 | C15: SY07 | D15: Idleb | E15: إدلب | F15: 4 | G15: Harim | H15: حارم | I15: SY0703 | J15: 20 | K15: Dana | L15: دانا | M15: SY070301 | N15: 99 | O15: باب الهوى | P15: C6389 | Q15: Bab El Hawa | R15: باب الهوى | S15: 36.226 | T15: 36.694767 | U15: Out GOAL Area | V15: Out GOAL Area | W15: 3898 | X15: NULL | Y15: 5728 | Z15: 0 | AA15: 0 | AB15: NULL | AC15: 0 | AD15: NULL
A16: Burj Elnumra | B16: 43 | C16: SY07 | D16: Idleb | E16: إدلب | F16: 4 | G16: Harim | H16: حارم | I16: SY0703 | J16: 20 | K16: Dana | L16: دانا | M16: SY070301 | N16: 99 | O16: برج النمرة | P16: C4128 | Q16: Burj Elnumra | R16: برج النمرة | S16: 36.158547 | T16: 36.728111 | U16: Out GOAL Area | V16: Out GOAL Area | W16: 3682 | X16: NULL | Y16: 9213 | Z16: 0 | AA16: 0 | AB16: NULL | AC16: 0 | AD16: NULL
A17: Dana | B17: 44 | C17: SY07 | D17: Idleb | E17: إدلب | F17: 4 | G17: Harim | H17: حارم | I17: SY0703 | J17: 20 | K17: Dana | L17: دانا | M17: SY070301 | N17: 99 | O17: الدانا | P17: C4126 | Q17: Dana | R17: الدانا | S17: 36.212728 | T17: 36.768976 | U17: NSRF | V17: Out GOAL Area | W17: 7306 | X17: BH | Y17: 138799 | Z17: 0 | AA17: 0 | AB17: NULL | AC17: 0 | AD17: NULL
A18: Deir Hassan - Darhashan | B18: 45 | C18: SY07 | D18: Idleb | E18: إدلب | F18: 4 | G18: Harim | H18: حارم | I18: SY0703 | J18: 20 | K18: Dana | L18: دانا | M18: SY070301 | N18: 99 | O18: دير حسان_درحشان | P18: C4129 | Q18: Deir Hassan - Darhashan | R18: دير حسان_درحشان | S18: 36.2241 | T18: 36.755309 | U18: Out GOAL Area | V18: Out GOAL Area | W18: 15166 | X18: NULL | Y18: 29715 | Z18: 0 | AA18: 0 | AB18: NULL | AC18: 0 | AD18: NULL
A19: Hezreh - Hezri | B19: 46 | C19: SY07 | D19: Idleb | E19: إدلب | F19: 4 | G19: Harim | H19: حارم | I19: SY0703 | J19: 20 | K19: Dana | L19: دانا | M19: SY070301 | N19: 99 | O19: حزرة_حرزي | P19: C4120 | Q19: Hezreh - Hezri | R19: حزرة_حرزي | S19: 36.231372 | T19: 36.789446 | U19: Out GOAL Area | V19: Out GOAL Area | W19: 6409 | X19: NULL | Y19: 13516 | Z19: 0 | AA19: 0 | AB19: NULL | AC19: 0 | AD19: NULL
A20: Kafr Deryan | B20: 47 | C20: SY07 | D20: Idleb | E20: إدلب | F20: 4 | G20: Harim | H20: حارم | I20: SY0703 | J20: 20 | K20: Dana | L20: دانا | M20: SY070301 | N20: 99 | O20: كفردريان | P20: C4132 | Q20: Kafr Deryan | R20: كفردريان | S20: 36.171388 | T20: 36.662823 | U20: Food Voucher | V20: RESUME | W20: 16939 | X20: GOAL | Y20: 13736 | Z20: 0 | AA20: 1 | AB20: Community | AC20: 0 | AD20: 1
A21: Qah | B21: 48 | C21: SY07 | D21: Idleb | E21: إدلب | F21: 4 | G21: Harim | H21: حارم | I21: SY0703 | J21: 20 | K21: Dana | L21: دانا | M21: SY070301 | N21: 99 | O21: قاح | P21: C4131 | Q21: Qah | R21: قاح | S21: 36.305906 | T21: 36.72177 | U21: Out GOAL Area | V21: Out GOAL Area | W21: 46199 | X21: NULL | Y21: 25896 | Z21: 0 | AA21: 0 | AB21: NULL | AC21: 0 | AD21: NULL
A22: Sarmada | B22: 49 | C22: SY07 | D22: Idleb | E22: إدلب | F22: 4 | G22: Harim | H22: حارم | I22: SY0703 | J22: 20 | K22: Dana | L22: دانا | M22: SY070301 | N22: 99 | O22: سرمدا | P22: C4121 | Q22: Sarmada | R22: سرمدا | S22: 36.180249 | T22: 36.718473 | U22: NSRF | V22: Out GOAL Area | W22: 54545 | X22: BH | Y22: 72424 | Z22: 0 | AA22: 0 | AB22: NULL | AC22: 0 | AD22: NULL
A23: Selwa | B23: 50 | C23: SY07 | D23: Idleb | E23: إدلب | F23: 4 | G23: Harim | H23: حارم | I23: SY0703 | J23: 20 | K23: Dana | L23: دانا | M23: SY070301 | N23: 99 | O23: صلوة | P23: C4123 | Q23: Selwa | R23: صلوة | S23: 36.308695 | T23: 36.755293 | U23: Out GOAL Area | V23: Out GOAL Area | W23: 9446 | X23: NULL | Y23: 19611 | Z23: 0 | AA23: 0 | AB23: NULL | AC23: 0 | AD23: NULL
A24: Ma'rabuna | B24: 51 | C24: SY07 | D24: Idleb | E24: إدلب | F24: 4 | G24: Idleb | H24: مركز إدلب | I24: SY0700 | J24: 18 | K24: Maaret Tamsrin | L24: معرة تمصرين | M24: SY070005 | N24: 90 | O24: معربونة | P24: C3943 | Q24: Haranbush | R24: حربنوش | S24: 36.057898 | T24: 36.622628 | U24: Food Voucher | V24: RESUME | W24: 550 | X24: GOAL | Y24: 0 | Z24: 0 | AA24: 1 | AB24: Community | AC24: 0 | AD24: 1
A25: Termanin | B25: 52 | C25: SY07 | D25: Idleb | E25: إدلب | F25: 4 | G25: Harim | H25: حارم | I25: SY0703 | J25: 20 | K25: Dana | L25: دانا | M25: SY070301 | N25: 99 | O25: ترمانين | P25: C4125 | Q25: Termanin | R25: ترمانين | S25: 36.22945 | T25: 36.812511 | U25: NSRF | V25: Out GOAL Area | W25: 30972 | X25: BH | Y25: 29232 | Z25: 0 | AA25: 0 | AB25: NULL | AC25: 0 | AD25: NULL
A26: Tilaada | B26: 53 | C26: SY07 | D26: Idleb | E26: إدلب | F26: 4 | G26: Harim | H26: حارم | I26: SY0703 | J26: 20 | K26: Dana | L26: دانا | M26: SY070301 | N26: 99 | O26: تلعادة | P26: C4124 | Q26: Tilaada | R26: تلعادة | S26: 36.250844 | T26: 36.801751 | U26: NSRF | V26: Out GOAL Area | W26: 23096 | X26: BH | Y26: 34225 | Z26: 0 | AA26: 0 | AB26: NULL | AC26: 0 | AD26: NULL
A27: Ariba | B27: 54 | C27: SY07 | D27: Idleb | E27: إدلب | F27: 4 | G27: Harim | H27: حارم | I27: SY0703 | J27: 20 | K27: Harim | L27: مركز حارم | M27: SY070300 | N27: 98 | O27: عريبا | P27: C4114 | Q27: Ariba | R27: عريبا | S27: 36.172256 | T27: 36.500105 | U27: Food Voucher | V27: RESUME | W27: 938 | X27: GOAL | Y27: 1710 | Z27: 1 | AA27: 0 | AB27: Community | AC27: 0 | AD27: 1
A28: Besnaya - Bseineh | B28: 55 | C28: SY07 | D28: Idleb | E28: إدلب | F28: 4 | G28: Harim | H28: حارم | I28: SY0703 | J28: 20 | K28: Harim | L28: مركز حارم | M28: SY070300 | N28: 98 | O28: بسنيا_بسينة | P28: C4116 | Q28: Besnaya - Bseineh | R28: بسنيا_بسينة | S28: 36.176859 | T28: 36.486945 | U28: Food Voucher | V28: RESUME | W28: 4074 | X28: GOAL | Y28: 5048 | Z28: 1 | AA28: 0 | AB28: Community | AC28: 0 | AD28: 1
A29: Harim | B29: 56 | C29: SY07 | D29: Idleb | E29: إدلب | F29: 4 | G29: Harim | H29: حارم | I29: SY0703 | J29: 20 | K29: Harim | L29: مركز حارم | M29: SY070300 | N29: 98 | O29: حارم | P29: C4115 | Q29: Harim | R29: حارم | S29: 36.209508 | T29: 36.519775 | U29: Food Voucher | V29: RESUME | W29: 43040 | X29: GOAL | Y29: 44817 | Z29: 1 | AA29: 0 | AB29: Community | AC29: 0 | AD29: 0
A30: Kafr Hum | B30: 57 | C30: SY07 | D30: Idleb | E30: إدلب | F30: 4 | G30: Harim | H30: حارم | I30: SY0703 | J30: 20 | K30: Harim | L30: مركز حارم | M30: SY070300 | N30: 98 | O30: كفرحوم | P30: C4117 | Q30: Kafr Hum | R30: كفرحوم | S30: 36.197393 | T30: 36.47684 | U30: Food Voucher | V30: RESUME | W30: 2409 | X30: GOAL | Y30: 2163 | Z30: 1 | AA30: 0 | AB30: Community | AC30: 0 | AD30: 1
A31: Kafr Mu | B31: 58 | C31: SY07 | D31: Idleb | E31: إدلب | F31: 4 | G31: Harim | H31: حارم | I31: SY0703 | J31: 20 | K31: Harim | L31: مركز حارم | M31: SY070300 | N31: 98 | O31: كفر مو | P31: C4119 | Q31: Kafr Mu | R31: كفر مو | S31: 36.192424 | T31: 36.535839 | U31: Food Voucher | V31: RESUME | W31: 218 | X31: GOAL | Y31: 310 | Z31: 0 | AA31: 0 | AB31: Community | AC31: 0 | AD31: 1
A32: Mira Shaq | B32: 59 | C32: SY07 | D32: Idleb | E32: إدلب | F32: 4 | G32: Harim | H32: حارم | I32: SY0703 | J32: 20 | K32: Harim | L32: مركز حارم | M32: SY070300 | N32: 98 | O32: ميرا سحاق | P32: C4118 | Q32: Mira Shaq | R32: ميرا سحاق | S32: 36.176846 | T32: 36.525348 | U32: Food Voucher | V32: RESUME | W32: 81 | X32: GOAL | Y32: 125 | Z32: 0 | AA32: 0 | AB32: Community | AC32: 0 | AD32: 1
A33: Abarita | B33: 60 | C33: SY07 | D33: Idleb | E33: إدلب | F33: 4 | G33: Harim | H33: حارم | I33: SY0703 | J33: 20 | K33: Kafr Takharim | L33: كفر تخاريم | M33: SY070303 | N33: 101 | O33: عبريتا | P33: C4152 | Q33: Abarita | R33: عبريتا | S33: 36.143849 | T33: 36.523026 | U33: Food Voucher | V33: RESUME | W33: 450 | X33: GOAL | Y33: 592 | Z33: 1 | AA33: 1 | AB33: Community | AC33: 0 | AD33: 1
A34: Bshendlaya - Rashadiya | B34: 61 | C34: SY07 | D34: Idleb | E34: إدلب | F34: 4 | G34: Harim | H34: حارم | I34: SY0703 | J34: 20 | K34: Kafr Takharim | L34: كفر تخاريم | M34: SY070303 | N34: 101 | O34: بشندلايا_رشادية | P34: C4153 | Q34: Bshendlaya - Rashadiya | R34: بشندلايا_رشادية | S34: 36.144423 | T34: 36.555792 | U34: Food Voucher | V34: RESUME | W34: 297 | X34: GOAL | Y34: 377 | Z34: 1 | AA34: 1 | AB34: Community | AC34: 0 | AD34: 1
A35: Helleh (Kafr Takharim) | B35: 62 | C35: SY07 | D35: Idleb | E35: إدلب | F35: 4 | G35: Harim | H35: حارم | I35: SY0703 | J35: 20 | K35: Kafr Takharim | L35: كفر تخاريم | M35: SY070303 | N35: 101 | O35: حلة | P35: C4155 | Q35: Helleh | R35: حلة | S35: 36.092922 | T35: 36.544056 | U35: Food Voucher | V35: RESUME | W35: 545 | X35: GOAL | Y35: 798 | Z35: 0 | AA35: 1 | AB35: Community | AC35: 0 | AD35: 1
A36: Jadeen | B36: 63 | C36: SY07 | D36: Idleb | E36: إدلب | F36: 4 | G36: Harim | H36: حارم | I36: SY0703 | J36: 20 | K36: Kafr Takharim | L36: كفر تخاريم | M36: SY070303 | N36: 101 | O36: جدعين | P36: C4156 | Q36: Jadeen | R36: جدعين | S36: 36.140598 | T36: 36.510085 | U36: Food Voucher | V36: RESUME | W36: 356 | X36: GOAL | Y36: 472 | Z36: 1 | AA36: 1 | AB36: Community | AC36: 0 | AD36: 1
A37: Kafr Kila | B37: 64 | C37: SY07 | D37: Idleb | E37: إدلب | F37: 4 | G37: Harim | H37: حارم | I37: SY0703 | J37: 20 | K37: Kafr Takharim | L37: كفر تخاريم | M37: SY070303 | N37: 101 | O37: كفر كيلا | P37: C4158 | Q37: Kafr Kila | R37: كفر كيلا | S37: 36.15121 | T37: 36.576776 | U37: Food Voucher | V37: RESUME | W37: 1522 | X37: GOAL | Y37: 1746 | Z37: 1 | AA37: 1 | AB37: Community | AC37: 0 | AD37: 1
A38: Kafr Mars | B38: 65 | C38: SY07 | D38: Idleb | E38: إدلب | F38: 4 | G38: Harim | H38: حارم | I38: SY0703 | J38: 20 | K38: Kafr Takharim | L38: كفر تخاريم | M38: SY070303 | N38: 101 | O38: كفر مارس | P38: C4159 | Q38: Kafr Mars | R38: كفر مارس | S38: 36.118032 | T38: 36.563951 | U38: Food Voucher | V38: RESUME | W38: 306 | X38: GOAL | Y38: 663 | Z38: 0 | AA38: 1 | AB38: Community | AC38: 0 | AD38: 1
A39: Kafr Takharim | B39: 66 | C39: SY07 | D39: Idleb | E39: إدلب | F39: 4 | G39: Harim | H39: حارم | I39: SY0703 | J39: 20 | K39: Kafr Takharim | L39: كفر تخاريم | M39: SY070303 | N39: 101 | O39: كفر تخاريم | P39: C4157 | Q39: Kafr Takharim | R39: كفر تخاريم | S39: 36.117139 | T39: 36.515121 | U39: Food Voucher | V39: RESUME | W39: 22217 | X39: GOAL | Y39: 25017 | Z39: 1 | AA39: 1 | AB39: Community | AC39: 0 | AD39: 0
A40: Kuku - Ein Eljaj | B40: 67 | C40: SY07 | D40: Idleb | E40: إدلب | F40: 4 | G40: Harim | H40: حارم | I40: SY0703 | J40: 20 | K40: Kafr Takharim | L40: كفر تخاريم | M40: SY070303 | N40: 101 | O40: كوكو_عين الجاج | P40: C4160 | Q40: Kuku - Ein Eljaj | R40: كوكو_عين الجاج | S40: 36.078542 | T40: 36.554984 | U40: Food Voucher | V40: RESUME | W40: 734 | X40: GOAL | Y40: 946 | Z40: 1 | AA40: 1 | AB40: Community | AC40: 0 | AD40: 0
A41: Taltita | B41: 68 | C41: SY07 | D41: Idleb | E41: إدلب | F41: 4 | G41: Harim | H41: حارم | I41: SY0703 | J41: 20 | K41: Kafr Takharim | L41: كفر تخاريم | M41: SY070303 | N41: 101 | O41: تلتيتا | P41: C4154 | Q41: Taltita | R41: تلتيتا | S41: 36.111721 | T41: 36.552668 | U41: Food Voucher | V41: RESUME | W41: 459 | X41: GOAL | Y41: 686 | Z41: 0 | AA41: 1 | AB41: Community | AC41: 0 | AD41: 1
A42: Banabel | B42: 69 | C42: SY07 | D42: Idleb | E42: إدلب | F42: 4 | G42: Harim | H42: حارم | I42: SY0703 | J42: 20 | K42: Qourqeena | L42: قورقينا | M42: SY070304 | N42: 102 | O42: بنابل | P42: C4162 | Q42: Banabel | R42: بنابل | S42: 36.20052 | T42: 36.559489 | U42: Food Voucher | V42: RESUME | W42: 1653 | X42: GOAL | Y42: 2069 | Z42: 0 | AA42: 1 | AB42: Community | AC42: 0 | AD42: 1
A43: Barisha | B43: 70 | C43: SY07 | D43: Idleb | E43: إدلب | F43: 4 | G43: Harim | H43: حارم | I43: SY0703 | J43: 20 | K43: Qourqeena | L43: قورقينا | M43: SY070304 | N43: 102 | O43: باريشا | P43: C4164 | Q43: Barisha | R43: باريشا | S43: 36.165141 | T43: 36.634583 | U43: Food Voucher | V43: RESUME | W43: 7632 | X43: GOAL | Y43: 9324 | Z43: 1 | AA43: 1 | AB43: Community | AC43: 0 | AD43: 1
A44: Boz Ghaz | B44: 71 | C44: SY07 | D44: Idleb | E44: إدلب | F44: 4 | G44: Harim | H44: حارم | I44: SY0703 | J44: 20 | K44: Qourqeena | L44: قورقينا | M44: SY070304 | N44: 102 | O44: بوز غاز | P44: C4166 | Q44: Boz Ghaz | R44: بوز غاز | S44: 36.142001 | T44: 36.626423 | U44: Food Voucher | V44: RESUME | W44: 3769 | X44: GOAL | Y44: 4242 | Z44: 1 | AA44: 1 | AB44: Community | AC44: 0 | AD44: 1
A45: Htan | B45: 72 | C45: SY07 | D45: Idleb | E45: إدلب | F45: 4 | G45: Harim | H45: حارم | I45: SY0703 | J45: 20 | K45: Qourqeena | L45: قورقينا | M45: SY070304 | N45: 102 | O45: حتان | P45: C4161 | Q45: Htan | R45: حتان | S45: 36.170113 | T45: 36.594167 | U45: Food Voucher | V45: RESUME | W45: 4347 | X45: GOAL | Y45: 5828 | Z45: 1 | AA45: 1 | AB45: Community | AC45: 0 | AD45: 1
A46: Kafr Aruq | B46: 73 | C46: SY07 | D46: Idleb | E46: إدلب | F46: 4 | G46: Harim | H46: حارم | I46: SY0703 | J46: 20 | K46: Qourqeena | L46: قورقينا | M46: SY070304 | N46: 102 | O46: كفر عروق | P46: C4172 | Q46: Kafr Aruq | R46: كفر عروق | S46: 36.112868 | T46: 36.64695 | U46: Food Voucher | V46: RESUME | W46: 4761 | X46: GOAL | Y46: 12117 | Z46: 1 | AA46: 1 | AB46: Community | AC46: 0 | AD46: 1
A47: Meraf Elshalaf | B47: 74 | C47: SY07 | D47: Idleb | E47: إدلب | F47: 4 | G47: Harim | H47: حارم | I47: SY0703 | J47: 20 | K47: Qourqeena | L47: قورقينا | M47: SY070304 | N47: 102 | O47: معراة الشلف | P47: C4171 | Q47: Meraf Elshalaf | R47: معراة الشلف | S47: 36.1209 | T47: 36.591107 | U47: Food Voucher | V47: RESUME | W47: 6024 | X47: GOAL | Y47: 7466 | Z47: 1 | AA47: 1 | AB47: Community | AC47: 0 | AD47: 1
A48: Qalb Lozeh | B48: 75 | C48: SY07 | D48: Idleb | E48: إدلب | F48: 4 | G48: Harim | H48: حارم | I48: SY0703 | J48: 20 | K48: Qourqeena | L48: قورقينا | M48: SY070304 | N48: 102 | O48: قلب لوزة | P48: C4173 | Q48: Qalb Lozeh | R48: قلب لوزة | S48: 36.168902 | T48: 36.579059 | U48: Food Voucher | V48: RESUME | W48: 3051 | X48: GOAL | Y48: 3926 | Z48: 1 | AA48: 1 | AB48: Community | AC48: 0 | AD48: 1
A49: Qourqeena | B49: 76 | C49: SY07 | D49: Idleb | E49: إدلب | F49: 4 | G49: Harim | H49: حارم | I49: SY0703 | J49: 20 | K49: Qourqeena | L49: قورقينا | M49: SY070304 | N49: 102 | O49: قورقانيا | P49: C4174 | Q49: Qourqeena | R49: قورقانيا | S49: 36.138048 | T49: 36.609148 | U49: Food Voucher | V49: RESUME | W49: 8814 | X49: GOAL | Y49: 15060 | Z49: 1 | AA49: 1 | AB49: Community | AC49: 0 | AD49: 1
A50: Rabeeta | B50: 77 | C50: SY07 | D50: Idleb | E50: إدلب | F50: 4 | G50: Harim | H50: حارم | I50: SY0703 | J50: 20 | K50: Qourqeena | L50: قورقينا | M50: SY070304 | N50: 102 | O50: ربعيتا | P50: C4168 | Q50: Rabeeta | R50: ربعيتا | S50: 36.156344 | T50: 36.641467 | U50: Food Voucher | V50: RESUME | W50: 1960 | X50: GOAL | Y50: 2451 | Z50: 1 | AA50: 1 | AB50: Community | AC50: 0 | AD50: 1
A51: Radwa | B51: 78 | C51: SY07 | D51: Idleb | E51: إدلب | F51: 4 | G51: Harim | H51: حارم | I51: SY0703 | J51: 20 | K51: Qourqeena | L51: قورقينا | M51: SY070304 | N51: 102 | O51: رضوة | P51: C4169 | Q51: Radwa | R51: رضوة | S51: 36.154941 | T51: 36.625531 | U51: Food Voucher | V51: RESUME | W51: 3492 | X51: GOAL | Y51: 4686 | Z51: 1 | AA51: 1 | AB51: Community | AC51: 0 | AD51: 1
A52: Ras Elhisn | B52: 79 | C52: SY07 | D52: Idleb | E52: إدلب | F52: 4 | G52: Harim | H52: حارم | I52: SY0703 | J52: 20 | K52: Qourqeena | L52: قورقينا | M52: SY070304 | N52: 102 | O52: راس الحصن | P52: C4167 | Q52: Ras Elhisn | R52: راس الحصن | S52: 36.19695 | T52: 36.642296 | U52: Food Voucher | V52: RESUME | W52: 7161 | X52: GOAL | Y52: 11369 | Z52: 1 | AA52: 1 | AB52: Community | AC52: 0 | AD52: 1
A53: Sardin | B53: 80 | C53: SY07 | D53: Idleb | E53: إدلب | F53: 4 | G53: Harim | H53: حارم | I53: SY0703 | J53: 20 | K53: Qourqeena | L53: قورقينا | M53: SY070304 | N53: 102 | O53: سردين | P53: C4165 | Q53: Sardin | R53: سردين | S53: 36.14557 | T53: 36.589386 | U53: Food Voucher | V53: RESUME | W53: 4942 | X53: GOAL | Y53: 5456 | Z53: 1 | AA53: 1 | AB53: Community | AC53: 0 | AD53: 1
A54: Torlaha | B54: 81 | C54: SY07 | D54: Idleb | E54: إدلب | F54: 4 | G54: Harim | H54: حارم | I54: SY0703 | J54: 20 | K54: Qourqeena | L54: قورقينا | M54: SY070304 | N54: 102 | O54: طورلاها | P54: C4170 | Q54: Torlaha | R54: طورلاها | S54: 36.212377 | T54: 36.5869 | U54: Food Voucher | V54: RESUME | W54: 2243 | X54: GOAL | Y54: 4825 | Z54: 1 | AA54: 1 | AB54: Community | AC54: 0 | AD54: 1
A55: Abu Talha | B55: 82 | C55: SY07 | D55: Idleb | E55: إدلب | F55: 4 | G55: Harim | H55: حارم | I55: SY0703 | J55: 20 | K55: Salqin | L55: سلقين | M55: SY070302 | N55: 100 | O55: ابو طلحة | P55: C4133 | Q55: Abu Talha | R55: ابو طلحة | S55: 36.102181 | T55: 36.439285 | U55: Food Voucher | V55: RESUME | W55: 3456 | X55: GOAL | Y55: 4989 | Z55: 1 | AA55: 0 | AB55: Community | AC55: 0 | AD55: 1
A56: Allani | B56: 83 | C56: SY07 | D56: Idleb | E56: إدلب | F56: 4 | G56: Harim | H56: حارم | I56: SY0703 | J56: 20 | K56: Salqin | L56: سلقين | M56: SY070302 | N56: 100 | O56: العلاني | P56: C4142 | Q56: Allani | R56: العلاني | S56: 36.159243 | T56: 36.389247 | U56: Food Voucher | V56: RESUME | W56: 3040 | X56: GOAL | Y56: 5794 | Z56: 0 | AA56: 0 | AB56: Community | AC56: 0 | AD56: 1
A57: Azmarin | B57: 84 | C57: SY07 | D57: Idleb | E57: إدلب | F57: 4 | G57: Harim | H57: حارم | I57: SY0703 | J57: 20 | K57: Salqin | L57: سلقين | M57: SY070302 | N57: 100 | O57: عزمارين | P57: C4143 | Q57: Azmarin | R57: عزمارين | S57: 36.05652 | T57: 36.398812 | U57: Food Voucher | V57: RESUME | W57: 13500 | X57: GOAL | Y57: 20966 | Z57: 1 | AA57: 0 | AB57: Community | AC57: 0 | AD57: 1
A58: Betiya | B58: 85 | C58: SY07 | D58: Idleb | E58: إدلب | F58: 4 | G58: Harim | H58: حارم | I58: SY0703 | J58: 20 | K58: Salqin | L58: سلقين | M58: SY070302 | N58: 100 | O58: بتيا | P58: C4147 | Q58: Betiya | R58: بتيا | S58: 36.079196 | T58: 36.389726 | U58: Food Voucher | V58: RESUME | W58: 1232 | X58: GOAL | Y58: 1382 | Z58: 1 | AA58: 0 | AB58: Community | AC58: 0 | AD58: 1
A59: Big Hir Jamus | B59: 86 | C59: SY07 | D59: Idleb | E59: إدلب | F59: 4 | G59: Harim | H59: حارم | I59: SY0703 | J59: 20 | K59: Salqin | L59: سلقين | M59: SY070302 | N59: 100 | O59: حير جاموس كبير | P59: C4141 | Q59: Big Hir Jamus | R59: حير جاموس كبير | S59: 36.189504 | T59: 36.417779 | U59: Food Voucher | V59: RESUME | W59: 11060 | X59: GOAL | Y59: 8365 | Z59: 0 | AA59: 0 | AB59: Community | AC59: 0 | AD59: 1
A60: Bozanti | B60: 87 | C60: SY07 | D60: Idleb | E60: إدلب | F60: 4 | G60: Harim | H60: حارم | I60: SY0703 | J60: 20 | K60: Salqin | L60: سلقين | M60: SY070302 | N60: 100 | O60: بوزانطي | P60: C4144 | Q60: Bozanti | R60: بوزانطي | S60: 36.174919 | T60: 36.417348 | U60: Out GOAL Area | V60: Out GOAL Area | W60: 176 | X60: NULL | Y60: 251 | Z60: 0 | AA60: 0 | AB60: NULL | AC60: 0 | AD60: NULL
A61: Delbiya | B61: 88 | C61: SY07 | D61: Idleb | E61: إدلب | F61: 4 | G61: Harim | H61: حارم | I61: SY0703 | J61: 20 | K61: Salqin | L61: سلقين | M61: SY070302 | N61: 100 | O61: دلبيا | P61: C4146 | Q61: Delbiya | R61: دلبيا | S61: 36.12747 | T61: 36.398217 | U61: Food Voucher | V61: RESUME | W61: 4606 | X61: GOAL | Y61: 3650 | Z61: 0 | AA61: 0 | AB61: Community | AC61: 0 | AD61: 1
A62: Ein Elbikara | B62: 89 | C62: SY07 | D62: Idleb | E62: إدلب | F62: 4 | G62: Harim | H62: حارم | I62: SY0703 | J62: 20 | K62: Salqin | L62: سلقين | M62: SY070302 | N62: 100 | O62: عين البكارة | P62: C4136 | Q62: Ein Elbikara | R62: عين البكارة | S62: 36.196034 | T62: 36.410418 | U62: Food Voucher | V62: RESUME | W62: 1996 | X62: GOAL | Y62: 2180 | Z62: 1 | AA62: 0 | AB62: Community | AC62: 0 | AD62: 1
A63: Eskat | B63: 90 | C63: SY07 | D63: Idleb | E63: إدلب | F63: 4 | G63: Harim | H63: حارم | I63: SY0703 | J63: 20 | K63: Salqin | L63: سلقين | M63: SY070302 | N63: 100 | O63: اسقاط | P63: C4145 | Q63: Eskat | R63: اسقاط | S63: 36.152681 | T63: 36.476618 | U63: Food Voucher | V63: RESUME | W63: 11859 | X63: GOAL | Y63: 22049 | Z63: 1 | AA63: 0 | AB63: Community | AC63: 0 | AD63: 1
A64: Foziyeh | B64: 91 | C64: SY07 | D64: Idleb | E64: إدلب | F64: 4 | G64: Harim | H64: حارم | I64: SY0703 | J64: 20 | K64: Salqin | L64: سلقين | M64: SY070302 | N64: 100 | O64: الفوزية | P64: C4135 | Q64: Foziyeh | R64: الفوزية | S64: 36.212867 | T64: 36.398535 | U64: Food Voucher | V64: RESUME | W64: 164 | X64: GOAL | Y64: 386 | Z64: 1 | AA64: 0 | AB64: Community | AC64: 0 | AD64: 1
A65: Hamziyeh | B65: 92 | C65: SY07 | D65: Idleb | E65: إدلب | F65: 4 | G65: Harim | H65: حارم | I65: SY0703 | J65: 20 | K65: Salqin | L65: سلقين | M65: SY070302 | N65: 100 | O65: الحمزية | P65: C4134 | Q65: Hamziyeh | R65: الحمزية | S65: 36.11069 | T65: 36.385188 | U65: Food Voucher | V65: RESUME | W65: 1433 | X65: GOAL | Y65: 3270 | Z65: 0 | AA65: 0 | AB65: Community | AC65: 0 | AD65: 1
A66: Kafarna | B66: 93 | C66: SY07 | D66: Idleb | E66: إدلب | F66: 4 | G66: Harim | H66: حارم | I66: SY0703 | J66: 20 | K66: Salqin | L66: سلقين | M66: SY070302 | N66: 100 | O66: كفرنه | P66: C4149 | Q66: Kafarna | R66: كفرنه | S66: 36.194583 | T66: 36.445391 | U66: Food Voucher | V66: RESUME | W66: 527 | X66: GOAL | Y66: 1512 | Z66: 1 | AA66: 0 | AB66: Community | AC66: 0 | AD66: 1
A67: Kafr Hind | B67: 94 | C67: SY07 | D67: Idleb | E67: إدلب | F67: 4 | G67: Harim | H67: حارم | I67: SY0703 | J67: 20 | K67: Salqin | L67: سلقين | M67: SY070302 | N67: 100 | O67: كفر هند | P67: C4151 | Q67: Kafr Hind | R67: كفر هند | S67: 36.086031 | T67: 36.424053 | U67: Food Voucher | V67: RESUME | W67: 2453 | X67: GOAL | Y67: 3680 | Z67: 1 | AA67: 0 | AB67: Community | AC67: 0 | AD67: 1
A68: Kafrahlat Jallad | B68: 95 | C68: SY07 | D68: Idleb | E68: إدلب | F68: 4 | G68: Harim | H68: حارم | I68: SY0703 | J68: 20 | K68: Salqin | L68: سلقين | M68: SY070302 | N68: 100 | O68: كفرحات جلاد | P68: C4150 | Q68: Kafrahlat Jallad | R68: كفرحات جلاد | S68: 36.167295 | T68: 36.443608 | U68: Food Voucher | V68: RESUME | W68: 464 | X68: GOAL | Y68: 760 | Z68: 0 | AA68: 0 | AB68: Community | AC68: 0 | AD68: 1
A69: Little Hir Jamus | B69: 96 | C69: SY07 | D69: Idleb | E69: إدلب | F69: 4 | G69: Harim | H69: حارم | I69: SY0703 | J69: 20 | K69: Salqin | L69: سلقين | M69: SY070302 | N69: 100 | O69: حير جاموس صغير | P69: C4139 | Q69: Little Hir Jamus | R69: حير جاموس صغير | S69: 36.180642 | T69: 36.433611 | U69: Food Voucher | V69: RESUME | W69: 484 | X69: GOAL | Y69: 691 | Z69: 0 | AA69: 0 | AB69: Community | AC69: 0 | AD69: 1
A70: Saidiyeh (Salqin) | B70: 97 | C70: SY07 | D70: Idleb | E70: إدلب | F70: 4 | G70: Harim | H70: حارم | I70: SY0703 | J70: 20 | K70: Salqin | L70: سلقين | M70: SY070302 | N70: 100 | O70: السعيدية | P70: C4138 | Q70: Saidiyeh | R70: السعيدية | S70: 36.067706 | T70: 36.422282 | U70: Food Voucher | V70: RESUME | W70: 3156 | X70: GOAL | Y70: 4226 | Z70: 1 | AA70: 0 | AB70: Community | AC70: 0 | AD70: 1
A71: Salqin | B71: 98 | C71: SY07 | D71: Idleb | E71: إدلب | F71: 4 | G71: Harim | H71: حارم | I71: SY0703 | J71: 20 | K71: Salqin | L71: سلقين | M71: SY070302 | N71: 100 | O71: سلقين | P71: C4140 | Q71: Salqin | R71: سلقين | S71: 36.137628 | T71: 36.453122 | U71: Out GOAL Area | V71: Out GOAL Area | W71: 57565 | X71: NULL | Y71: 93664 | Z71: 1 | AA71: 0 | AB71: NULL | AC71: 0 | AD71: NULL
A72: Shyukh | B72: 99 | C72: SY07 | D72: Idleb | E72: إدلب | F72: 4 | G72: Harim | H72: حارم | I72: SY0703 | J72: 20 | K72: Salqin | L72: سلقين | M72: SY070302 | N72: 100 | O72: الشيوخ | P72: C6364 | Q72: Shyukh | R72: الشيوخ | S72: 36.10353 | T72: 36.412745 | U72: Food Voucher | V72: RESUME | W72: 367 | X72: GOAL | Y72: 1863 | Z72: 1 | AA72: 0 | AB72: Community | AC72: 0 | AD72: 1
A73: Tellemar | B73: 100 | C73: SY07 | D73: Idleb | E73: إدلب | F73: 4 | G73: Harim | H73: حارم | I73: SY0703 | J73: 20 | K73: Salqin | L73: سلقين | M73: SY070302 | N73: 100 | O73: تلعمار | P73: C4148 | Q73: Tellemar | R73: تلعمار | S73: 36.05598 | T73: 36.417076 | U73: Food Voucher | V73: RESUME | W73: 5157 | X73: GOAL | Y73: 7666 | Z73: 1 | AA73: 0 | AB73: Community | AC73: 0 | AD73: 1
A74: Tlul | B74: 101 | C74: SY07 | D74: Idleb | E74: إدلب | F74: 4 | G74: Harim | H74: حارم | I74: SY0703 | J74: 20 | K74: Salqin | L74: سلقين | M74: SY070302 | N74: 100 | O74: التلول | P74: C4137 | Q74: Tlul | R74: التلول | S74: 36.207022 | T74: 36.397382 | U74: Food Voucher | V74: RESUME | W74: 5840 | X74: GOAL | Y74: 4745 | Z74: 1 | AA74: 0 | AB74: Community | AC74: 0 | AD74: 1
A75: Abul Thohur | B75: 102 | C75: SY07 | D75: Idleb | E75: إدلب | F75: 4 | G75: Idleb | H75: مركز إدلب | I75: SY0700 | J75: 18 | K75: Abul Thohur | L75: أبو الظهور | M75: SY070001 | N75: 86 | O75: أبو الظهور | P75: C3891 | Q75: Abul Thohur | R75: أبو الظهور | S75: 35.739124 | T75: 37.044808 | U75: Out GOAL Area | V75: Out GOAL Area | W75: 384 | X75: NULL | Y75: 2230 | Z75: 0 | AA75: 0 | AB75: NULL | AC75: 0 | AD75: NULL
A76: Ballisa | B76: 103 | C76: SY07 | D76: Idleb | E76: إدلب | F76: 4 | G76: Idleb | H76: مركز إدلب | I76: SY0700 | J76: 18 | K76: Abul Thohur | L76: أبو الظهور | M76: SY070001 | N76: 86 | O76: البليصة | P76: C3881 | Q76: Ballisa | R76: البليصة | S76: 35.768947 | T76: 36.911727 | U76: Out GOAL Area | V76: Out GOAL Area | W76: 3186 | X76: NULL | Y76: 0 | Z76: 0 | AA76: 0 | AB76: NULL | AC76: 0 | AD76: NULL
A77: Baragethi | B77: 104 | C77: SY07 | D77: Idleb | E77: إدلب | F77: 4 | G77: Idleb | H77: مركز إدلب | I77: SY0700 | J77: 18 | K77: Abul Thohur | L77: أبو الظهور | M77: SY070001 | N77: 86 | O77: البراغيثي | P77: C3893 | Q77: Baragethi | R77: البراغيثي | S77: 35.76475 | T77: 37.042661 | U77: Out GOAL Area | V77: Out GOAL Area | W77: 48 | X77: NULL | Y77: 0 | Z77: 0 | AA77: 0 | AB77: NULL | AC77: 0 | AD77: NULL
A78: Barissa | B78: 105 | C78: SY07 | D78: Idleb | E78: إدلب | F78: 4 | G78: Idleb | H78: مركز إدلب | I78: SY0700 | J78: 18 | K78: Abul Thohur | L78: أبو الظهور | M78: SY070001 | N78: 86 | O78: باريسا | P78: C3884 | Q78: Barissa | R78: باريسا | S78: 35.783915 | T78: 36.947493 | U78: Out GOAL Area | V78: Out GOAL Area | W78: 1326 | X78: NULL | Y78: 0 | Z78: 0 | AA78: 0 | AB78: NULL | AC78: 0 | AD78: NULL
A79: Big Zafar | B79: 106 | C79: SY07 | D79: Idleb | E79: إدلب | F79: 4 | G79: Idleb | H79: مركز إدلب | I79: SY0700 | J79: 18 | K79: Abul Thohur | L79: أبو الظهور | M79: SY070001 | N79: 86 | O79: زفر الكبير | P79: C3882 | Q79: Big Zafar | R79: زفر الكبير | S79: 35.700462 | T79: 36.992791 | U79: Out GOAL Area | V79: Out GOAL Area | W79: 0 | X79: NULL | Y79: 0 | Z79: 0 | AA79: 0 | AB79: NULL | AC79: 0 | AD79: NULL
A80: Busra - Little Zafar | B80: 107 | C80: SY07 | D80: Idleb | E80: إدلب | F80: 4 | G80: Idleb | H80: مركز إدلب | I80: SY0700 | J80: 18 | K80: Abul Thohur | L80: أبو الظهور | M80: SY070001 | N80: 86 | O80: بصرى_زفر الصغير | P80: C3880 | Q80: Busra - Little Zafar | R80: بصرى_زفر الصغير | S80: 35.705447 | T80: 37.011672 | U80: Out GOAL Area | V80: Out GOAL Area | W80: 0 | X80: NULL | Y80: 0 | Z80: 0 | AA80: 0 | AB80: NULL | AC80: 0 | AD80: NULL
A81: Harmala | B81: 108 | C81: SY07 | D81: Idleb | E81: إدلب | F81: 4 | G81: Idleb | H81: مركز إدلب | I81: SY0700 | J81: 18 | K81: Abul Thohur | L81: أبو الظهور | M81: SY070001 | N81: 86 | O81: حرملة | P81: C3886 | Q81: Harmala | R81: حرملة | S81: 35.634759 | T81: 37.081022 | U81: Out GOAL Area | V81: Out GOAL Area | W81: 0 | X81: NULL | Y81: 0 | Z81: 0 | AA81: 0 | AB81: NULL | AC81: 0 | AD81: NULL
A82: Hmeimat Eldayer | B82: 109 | C82: SY07 | D82: Idleb | E82: إدلب | F82: 4 | G82: Idleb | H82: مركز إدلب | I82: SY0700 | J82: 18 | K82: Abul Thohur | L82: أبو الظهور | M82: SY070001 | N82: 86 | O82: حميمات الداير | P82: C3900 | Q82: Hmeimat Eldayer | R82: حميمات الداير | S82: 35.792247 | T82: 37.1005 | U82: Out GOAL Area | V82: Out GOAL Area | W82: 312 | X82: NULL | Y82: 312 | Z82: 0 | AA82: 0 | AB82: NULL | AC82: 0 | AD82: NULL
A83: Hseiniyeh - Tal Kalba | B83: 110 | C83: SY07 | D83: Idleb | E83: إدلب | F83: 4 | G83: Idleb | H83: مركز إدلب | I83: SY0700 | J83: 18 | K83: Abul Thohur | L83: أبو الظهور | M83: SY070001 | N83: 86 | O83: الحسينية_تل كلبة | P83: C3897 | Q83: Hseiniyeh - Tal Kalba | R83: الحسينية_تل كلبة | S83: 35.788409 | T83: 37.013819 | U83: Out GOAL Area | V83: Out GOAL Area | W83: 42 | X83: NULL | Y83: 0 | Z83: 0 | AA83: 0 | AB83: NULL | AC83: 0 | AD83: NULL
A84: Jallas | B84: 111 | C84: SY07 | D84: Idleb | E84: إدلب | F84: 4 | G84: Idleb | H84: مركز إدلب | I84: SY0700 | J84: 18 | K84: Abul Thohur | L84: أبو الظهور | M84: SY070001 | N84: 86 | O84: جلاس | P84: C3890 | Q84: Jallas | R84: جلاس | S84: 35.873524 | T84: 36.936997 | U84: Out GOAL Area | V84: Out GOAL Area | W84: 1218 | X84: NULL | Y84: 0 | Z84: 0 | AA84: 0 | AB84: NULL | AC84: 0 | AD84: NULL
A85: Jdidhe Abu Elthohur | B85: 112 | C85: SY07 | D85: Idleb | E85: إدلب | F85: 4 | G85: Idleb | H85: مركز إدلب | I85: SY0700 | J85: 18 | K85: Abul Thohur | L85: أبو الظهور | M85: SY070001 | N85: 86 | O85: جديدة أبو الظهور | P85: C3887 | Q85: Jdidhe Abu Elthohur | R85: جديدة أبو الظهور | S85: 35.766512 | T85: 37.024067 | U85: Out GOAL Area | V85: Out GOAL Area | W85: 0 | X85: NULL | Y85: 0 | Z85: 0 | AA85: 0 | AB85: NULL | AC85: 0 | AD85: NULL
A86: Msheirfeh | B86: 113 | C86: SY07 | D86: Idleb | E86: إدلب | F86: 4 | G86: Idleb | H86: مركز إدلب | I86: SY0700 | J86: 18 | K86: Abul Thohur | L86: أبو الظهور | M86: SY070001 | N86: 86 | O86: المشيرفة | P86: C6362 | Q86: Msheirfeh | R86: المشيرفة | S86: 35.773127 | T86: 36.96489 | U86: Out GOAL Area | V86: Out GOAL Area | W86: 432 | X86: NULL | Y86: 0 | Z86: 0 | AA86: 0 | AB86: NULL | AC86: 0 | AD86: NULL
A87: Mustariha | B87: 114 | C87: SY07 | D87: Idleb | E87: إدلب | F87: 4 | G87: Idleb | H87: مركز إدلب | I87: SY0700 | J87: 18 | K87: Abul Thohur | L87: أبو الظهور | M87: SY070001 | N87: 86 | O87: المستريحة | P87: C3894 | Q87: Mustariha | R87: المستريحة | S87: 35.797515 | T87: 37.124682 | U87: Out GOAL Area | V87: Out GOAL Area | W87: 108 | X87: NULL | Y87: 108 | Z87: 0 | AA87: 0 | AB87: NULL | AC87: 0 | AD87: NULL
A88: Ras El Ein | B88: 115 | C88: SY07 | D88: Idleb | E88: إدلب | F88: 4 | G88: Idleb | H88: مركز إدلب | I88: SY0700 | J88: 18 | K88: Abul Thohur | L88: أبو الظهور | M88: SY070001 | N88: 86 | O88: راس العين | P88: C3902 | Q88: Ras El Ein | R88: راس العين | S88: 35.800534 | T88: 36.960322 | U88: Out GOAL Area | V88: Out GOAL Area | W88: 3336 | X88: NULL | Y88: 0 | Z88: 0 | AA88: 0 | AB88: NULL | AC88: 0 | AD88: NULL
A89: Tal Elaghar | B89: 117 | C89: SY07 | D89: Idleb | E89: إدلب | F89: 4 | G89: Idleb | H89: مركز إدلب | I89: SY0700 | J89: 18 | K89: Abul Thohur | L89: أبو الظهور | M89: SY070001 | N89: 86 | O89: تل الأغر | P89: C3901 | Q89: Tal Elaghar | R89: تل الأغر | S89: 35.762339 | T89: 36.920474 | U89: Out GOAL Area | V89: Out GOAL Area | W89: 1296 | X89: NULL | Y89: 0 | Z89: 0 | AA89: 0 | AB89: NULL | AC89: 0 | AD89: NULL
A90: Tal Fukhar | B90: 118 | C90: SY07 | D90: Idleb | E90: إدلب | F90: 4 | G90: Idleb | H90: مركز إدلب | I90: SY0700 | J90: 18 | K90: Abul Thohur | L90: أبو الظهور | M90: SY070001 | N90: 86 | O90: تل فخار | P90: C3892 | Q90: Tal Fukhar | R90: تل فخار | S90: 35.830737 | T90: 37.037415 | U90: Out GOAL Area | V90: Out GOAL Area | W90: 0 | X90: NULL | Y90: 0 | Z90: 0 | AA90: 0 | AB90: NULL | AC90: 0 | AD90: NULL
A91: Tal Silmo | B91: 119 | C91: SY07 | D91: Idleb | E91: إدلب | F91: 4 | G91: Idleb | H91: مركز إدلب | I91: SY0700 | J91: 18 | K91: Abul Thohur | L91: أبو الظهور | M91: SY070001 | N91: 86 | O91: تل سلمو | P91: C3899 | Q91: Tal Silmo | R91: تل سلمو | S91: 35.72622 | T91: 37.074129 | U91: Out GOAL Area | V91: Out GOAL Area | W91: 0 | X91: NULL | Y91: 0 | Z91: 0 | AA91: 0 | AB91: NULL | AC91: 0 | AD91: NULL
A92: Tal Sultan | B92: 120 | C92: SY07 | D92: Idleb | E92: إدلب | F92: 4 | G92: Idleb | H92: مركز إدلب | I92: SY0700 | J92: 18 | K92: Abul Thohur | L92: أبو الظهور | M92: SY070001 | N92: 86 | O92: تل سلطان | P92: C3898 | Q92: Tal Sultan | R92: تل سلطان | S92: 35.799757 | T92: 36.992395 | U92: Out GOAL Area | V92: Out GOAL Area | W92: 966 | X92: NULL | Y92: 0 | Z92: 0 | AA92: 0 | AB92: NULL | AC92: 0 | AD92: NULL
A93: Tal Tufan | B93: 121 | C93: SY07 | D93: Idleb | E93: إدلب | F93: 4 | G93: Idleb | H93: مركز إدلب | I93: SY0700 | J93: 18 | K93: Abul Thohur | L93: أبو الظهور | M93: SY070001 | N93: 86 | O93: تل طوقان | P93: C3903 | Q93: Tal Tufan | R93: تل طوقان | S93: 35.823374 | T93: 36.95313 | U93: Out GOAL Area | V93: Out GOAL Area | W93: 6384 | X93: NULL | Y93: 0 | Z93: 0 | AA93: 0 | AB93: NULL | AC93: 0 | AD93: NULL
A94: Taljineh | B94: 122 | C94: SY07 | D94: Idleb | E94: إدلب | F94: 4 | G94: Idleb | H94: مركز إدلب | I94: SY0700 | J94: 18 | K94: Abul Thohur | L94: أبو الظهور | M94: SY070001 | N94: 86 | O94: تلجينة | P94: C3888 | Q94: Taljineh | R94: تلجينة | S94: 35.819255 | T94: 37.056869 | U94: Out GOAL Area | V94: Out GOAL Area | W94: 0 | X94: NULL | Y94: 0 | Z94: 0 | AA94: 0 | AB94: NULL | AC94: 0 | AD94: NULL
A95: Talkhatra | B95: 123 | C95: SY07 | D95: Idleb | E95: إدلب | F95: 4 | G95: Idleb | H95: مركز إدلب | I95: SY0700 | J95: 18 | K95: Abul Thohur | L95: أبو الظهور | M95: SY070001 | N95: 86 | O95: تلخطرة | P95: C3883 | Q95: Talkhatra | R95: تلخطرة | S95: 35.741298 | T95: 36.937427 | U95: Out GOAL Area | V95: Out GOAL Area | W95: 0 | X95: NULL | Y95: 0 | Z95: 0 | AA95: 0 | AB95: NULL | AC95: 0 | AD95: NULL
A96: Tawahineh | B96: 124 | C96: SY07 | D96: Idleb | E96: إدلب | F96: 4 | G96: Idleb | H96: مركز إدلب | I96: SY0700 | J96: 18 | K96: Abul Thohur | L96: أبو الظهور | M96: SY070001 | N96: 86 | O96: طواحينة | P96: C3889 | Q96: Tawahineh | R96: طواحينة | S96: 35.781101 | T96: 37.026138 | U96: Out GOAL Area | V96: Out GOAL Area | W96: 0 | X96: NULL | Y96: 0 | Z96: 0 | AA96: 0 | AB96: NULL | AC96: 0 | AD96: NULL
A97: Tawil Elsheikh | B97: 125 | C97: SY07 | D97: Idleb | E97: إدلب | F97: 4 | G97: Idleb | H97: مركز إدلب | I97: SY0700 | J97: 18 | K97: Abul Thohur | L97: أبو الظهور | M97: SY070001 | N97: 86 | O97: طويل الشيخ | P97: C3896 | Q97: Tawil Elsheikh | R97: طويل الشيخ | S97: 35.794734 | T97: 36.929967 | U97: Out GOAL Area | V97: Out GOAL Area | W97: 876 | X97: NULL | Y97: 0 | Z97: 0 | AA97: 0 | AB97: NULL | AC97: 0 | AD97: NULL
A98: Tweim | B98: 126 | C98: SY07 | D98: Idleb | E98: إدلب | F98: 4 | G98: Idleb | H98: مركز إدلب | I98: SY0700 | J98: 18 | K98: Abul Thohur | L98: أبو الظهور | M98: SY070001 | N98: 86 | O98: التويم | P98: C3885 | Q98: Tweim | R98: التويم | S98: 35.806916 | T98: 37.046865 | U98: Out GOAL Area | V98: Out GOAL Area | W98: 0 | X98: NULL | Y98: 0 | Z98: 0 | AA98: 0 | AB98: NULL | AC98: 0 | AD98: NULL
A99: Bennsh | B99: 127 | C99: SY07 | D99: Idleb | E99: إدلب | F99: 4 | G99: Idleb | H99: مركز إدلب | I99: SY0700 | J99: 18 | K99: Bennsh | L99: بنش | M99: SY070002 | N99: 87 | O99: بنش | P99: C3904 | Q99: Bennsh | R99: بنش | S99: 35.956659 | T99: 36.714159 | U99: Out GOAL Area | V99: Out GOAL Area | W99: 18023 | X99: NULL | Y99: 30529 | Z99: 0 | AA99: 0 | AB99: NULL | AC99: 0 | AD99: NULL
A100: Foah | B100: 128 | C100: SY07 | D100: Idleb | E100: إدلب | F100: 4 | G100: Idleb | H100: مركز إدلب | I100: SY0700 | J100: 18 | K100: Bennsh | L100: بنش | M100: SY070002 | N100: 87 | O100: الفوعة | P100: C3905 | Q100: Foah | R100: الفوعة | S100: 35.982916 | T100: 36.70221 | U100: NSRF | V100: Out GOAL Area | W100: 247 | X100: BH | Y100: 17366 | Z100: 0 | AA100: 0 | AB100: NULL | AC100: 0 | AD100: NULL
A101: Toum | B101: 129 | C101: SY07 | D101: Idleb | E101: إدلب | F101: 4 | G101: Idleb | H101: مركز إدلب | I101: SY0700 | J101: 18 | K101: Bennsh | L101: بنش | M101: SY070002 | N101: 87 | O101: طعوم | P101: C3906 | Q101: Toum | R101: طعوم | S101: 35.972858 | T101: 36.748122 | U101: Out GOAL Area | V101: Out GOAL Area | W101: 3384 | X101: NULL | Y101: 5407 | Z101: 0 | AA101: 0 | AB101: NULL | AC101: 0 | AD101: NULL
A102: Aqrabat (Idleb) | B102: 130 | C102: SY07 | D102: Idleb | E102: إدلب | F102: 4 | G102: Idleb | H102: مركز إدلب | I102: SY0700 | J102: 18 | K102: Idleb | L102: مركز إدلب | M102: SY070000 | N102: 85 | O102: عقربات | P102: C3866 | Q102: Aqrabat | R102: عقربات | S102: 35.885462 | T102: 36.440102 | U102: Food Voucher | V102: RESUME | W102: 9692 | X102: GOAL | Y102: 2119 | Z102: 0 | AA102: 1 | AB102: Community | AC102: 0 | AD102: 0
A103: Arshin | B103: 131 | C103: SY07 | D103: Idleb | E103: إدلب | F103: 4 | G103: Idleb | H103: مركز إدلب | I103: SY0700 | J103: 18 | K103: Maaret Tamsrin | L103: معرة تمصرين | M103: SY070005 | N103: 90 | O103: عرشين | P103: C3943 | Q103: Haranbush | R103: حرنبوش | S103: 36.069361 | T103: 36.613833 | U103: Food Voucher | V103: RESUME | W103: 2316 | X103: GOAL | Y103: 345 | Z103: 0 | AA103: 1 | AB103: Community | AC103: 0 | AD103: 1
A104: Ein Shib | B104: 132 | C104: SY07 | D104: Idleb | E104: إدلب | F104: 4 | G104: Idleb | H104: مركز إدلب | I104: SY0700 | J104: 18 | K104: Idleb | L104: مركز إدلب | M104: SY070000 | N104: 85 | O104: عين شيب | P104: C3868 | Q104: Ein Shib | R104: عين شيب | S104: 35.905174 | T104: 36.536383 | U104: Food Basket | V104: RESUME | W104: 2568 | X104: GOAL | Y104: 3042 | Z104: 0 | AA104: 1 | AB104: Community | AC104: 0 | AD104: 1
A105: Falyun | B105: 133 | C105: SY07 | D105: Idleb | E105: إدلب | F105: 4 | G105: Idleb | H105: مركز إدلب | I105: SY0700 | J105: 18 | K105: Idleb | L105: مركز إدلب | M105: SY070000 | N105: 85 | O105: فيلون | P105: C3877 | Q105: Falyun | R105: فيلون | S105: 35.880355 | T105: 36.611255 | U105: NSRF | V105: Out GOAL Area | W105: 8700 | X105: BH | Y105: 11401 | Z105: 0 | AA105: 0 | AB105: NULL | AC105: 0 | AD105: NULL
A106: Idleb | B106: 134 | C106: SY07 | D106: Idleb | E106: إدلب | F106: 4 | G106: Idleb | H106: مركز إدلب | I106: SY0700 | J106: 18 | K106: Idleb | L106: مركز إدلب | M106: SY070000 | N106: 85 | O106: إدلب | P106: C3871 | Q106: Idleb | R106: إدلب | S106: 35.931991 | T106: 36.63491 | U106: Out GOAL Area | V106: Out GOAL Area | W106: 175032 | X106: NULL | Y106: 242093 | Z106: 1 | AA106: 0 | AB106: NULL | AC106: 0 | AD106: NULL
A107: Kafruhin | B107: 135 | C107: SY07 | D107: Idleb | E107: إدلب | F107: 4 | G107: Idleb | H107: مركز إدلب | I107: SY0700 | J107: 18 | K107: Idleb | L107: مركز إدلب | M107: SY070000 | N107: 85 | O107: كفروحين | P107: C3879 | Q107: Kafruhin | R107: كفروحين | S107: 35.973595 | T107: 36.564865 | U107: Out GOAL Area | V107: Out GOAL Area | W107: 3312 | X107: NULL | Y107: 3703 | Z107: 0 | AA107: 0 | AB107: NULL | AC107: 0 | AD107: NULL
A108: Kreiz | B108: 136 | C108: SY07 | D108: Idleb | E108: إدلب | F108: 4 | G108: Idleb | H108: مركز إدلب | I108: SY0700 | J108: 18 | K108: Idleb | L108: مركز إدلب | M108: SY070000 | N108: 85 | O108: الكريز | P108: C3869 | Q108: Kreiz | R108: الكريز | S108: 35.932265 | T108: 36.53197 | U108: Food Basket | V108: RESUME | W108: 2288 | X108: GOAL | Y108: 2849 | Z108: 0 | AA108: 1 | AB108: Community | AC108: 0 | AD108: 1
A109: Martein | B109: 137 | C109: SY07 | D109: Idleb | E109: إدلب | F109: 4 | G109: Idleb | H109: مركز إدلب | I109: SY0700 | J109: 18 | K109: Idleb | L109: مركز إدلب | M109: SY070000 | N109: 85 | O109: مرتين | P109: C3878 | Q109: Martein | R109: مرتين | S109: 35.932085 | T109: 36.576821 | U109: Food Basket | V109: RESUME | W109: 2408 | X109: GOAL | Y109: 3064 | Z109: 1 | AA109: 1 | AB109: Community | AC109: 0 | AD109: 1
A110: Mastumeh | B110: 138 | C110: SY07 | D110: Idleb | E110: إدلب | F110: 4 | G110: Idleb | H110: مركز إدلب | I110: SY0700 | J110: 18 | K110: Idleb | L110: مركز إدلب | M110: SY070000 | N110: 85 | O110: المسطومة | P110: C3872 | Q110: Mastumeh | R110: المسطومة | S110: 35.876121 | T110: 36.627178 | U110: NSRF | V110: Out GOAL Area | W110: 4664 | X110: BH | Y110: 5112 | Z110: 0 | AA110: 0 | AB110: NULL | AC110: 0 | AD110: NULL
A111: Nayrab | B111: 139 | C111: SY07 | D111: Idleb | E111: إدلب | F111: 4 | G111: Idleb | H111: مركز إدلب | I111: SY0700 | J111: 18 | K111: Idleb | L111: مركز إدلب | M111: SY070000 | N111: 85 | O111: النيرب | P111: C3867 | Q111: Nayrab | R111: النيرب | S111: 35.87177 | T111: 36.717282 | U111: Out GOAL Area | V111: Out GOAL Area | W111: 5708 | X111: NULL | Y111: 2383 | Z111: 0 | AA111: 0 | AB111: NULL | AC111: 0 | AD111: NULL
A112: Northern Ora | B112: 140 | C112: SY07 | D112: Idleb | E112: إدلب | F112: 4 | G112: Idleb | H112: مركز إدلب | I112: SY0700 | J112: 18 | K112: Idleb | L112: مركز إدلب | M112: SY070000 | N112: 85 | O112: عرى الشمالية | P112: C3874 | Q112: Northern Ora | R112: عرى الشمالية | S112: 35.927205 | T112: 36.524734 | U112: Food Basket | V112: RESUME | W112: 1768 | X112: GOAL | Y112: 1801 | Z112: 0 | AA112: 1 | AB112: Community | AC112: 0 | AD112: 1
A113: Qminas | B113: 141 | C113: SY07 | D113: Idleb | E113: إدلب | F113: 4 | G113: Idleb | H113: مركز إدلب | I113: SY0700 | J113: 18 | K113: Idleb | L113: مركز إدلب | M113: SY070000 | N113: 85 | O113: قميناس | P113: C3876 | Q113: Qminas | R113: قميناس | S113: 35.883577 | T113: 36.676421 | U113: Out GOAL Area | V113: Out GOAL Area | W113: 3332 | X113: NULL | Y113: 3626 | Z113: 0 | AA113: 0 | AB113: NULL | AC113: 0 | AD113: NULL
A114: Sijer - Bqesemtoh | B114: 142 | C114: SY07 | D114: Idleb | E114: إدلب | F114: 4 | G114: Idleb | H114: مركز إدلب | I114: SY0700 | J114: 18 | K114: Idleb | L114: مركز إدلب | M114: SY070000 | N114: 85 | O114: سيجر - بقسمته | P114: C3873 | Q114: Sijer - Bqesemtoh | R114: سيجر - بقسمته | S114: 35.933648 | T114: 36.547193 | U114: Food Basket | V114: RESUME | W114: 3424 | X114: GOAL | Y114: 3010 | Z114: 1 | AA114: 1 | AB114: Community | AC114: 0 | AD114: 1
A115: Tab Issa - Eastern and Western | B115: 143 | C115: SY07 | D115: Idleb | E115: إدلب | F115: 4 | G115: Idleb | H115: مركز إدلب | I115: SY0700 | J115: 18 | K115: Idleb | L115: مركز إدلب | M115: SY070000 | N115: 85 | O115: تب عيسى_شرقية وغربية | P115: C3870 | Q115: Tab Issa - Eastern and Western | R115: تب عيسى_شرقية وغربية | S115: 35.917276 | T115: 36.550184 | U115: Out GOAL Area | V115: Out GOAL Area | W115: 900 | X115: NULL | Y115: 1293 | Z115: 0 | AA115: 0 | AB115: NULL | AC115: 0 | AD115: NULL
A116: Batenta | B116: 144 | C116: SY07 | D116: Idleb | E116: إدلب | F116: 4 | G116: Idleb | H116: مركز إدلب | I116: SY0700 | J116: 18 | K116: Maaret Tamsrin | L116: معرة تمصرين | M116: SY070005 | N116: 90 | O116: باتنته | P116: C3939 | Q116: Batenta | R116: باتنته | S116: 36.007163 | T116: 36.630708 | U116: Food Voucher | V116: RESUME | W116: 2697 | X116: GOAL | Y116: 2760 | Z116: 0 | AA116: 1 | AB116: Community | AC116: 0 | AD116: 1
A117: Bhora | B117: 145 | C117: SY07 | D117: Idleb | E117: إدلب | F117: 4 | G117: Idleb | H117: مركز إدلب | I117: SY0700 | J117: 18 | K117: Maaret Tamsrin | L117: معرة تمصرين | M117: SY070005 | N117: 90 | O117: بحورى | P117: C3937 | Q117: Bhora | R117: بحورى | S117: 36.000222 | T117: 36.599546 | U117: Food Voucher | V117: RESUME | W117: 1621 | X117: GOAL | Y117: 2620 | Z117: 0 | AA117: 1 | AB117: Community | AC117: 0 | AD117: 1
A118: Haranbush | B118: 146 | C118: SY07 | D118: Idleb | E118: إدلب | F118: 4 | G118: Idleb | H118: مركز إدلب | I118: SY0700 | J118: 18 | K118: Maaret Tamsrin | L118: معرة تمصرين | M118: SY070005 | N118: 90 | O118: حرنبوش | P118: C3943 | Q118: Haranbush | R118: حرنبوش | S118: 36.075003 | T118: 36.634774 | U118: Food Voucher | V118: RESUME | W118: 10193 | X118: GOAL | Y118: 18596 | Z118: 1 | AA118: 1 | AB118: Community | AC118: 0 | AD118: 0
A119: Hazano | B119: 147 | C119: SY07 | D119: Idleb | E119: إدلب | F119: 4 | G119: Idleb | H119: مركز إدلب | I119: SY0700 | J119: 18 | K119: Maaret Tamsrin | L119: معرة تمصرين | M119: SY070005 | N119: 90 | O119: حزانو | P119: C3944 | Q119: Hazano | R119: حزانو | S119: 36.089722 | T119: 36.712528 | U119: Food Voucher | V119: RESUME | W119: 17450 | X119: GOAL | Y119: 13648 | Z119: 1 | AA119: 1 | AB119: Community | AC119: 0 | AD119: 1
A120: Kafr - Kafrehmul | B120: 148 | C120: SY07 | D120: Idleb | E120: إدلب | F120: 4 | G120: Idleb | H120: مركز إدلب | I120: SY0700 | J120: 18 | K120: Maaret Tamsrin | L120: معرة تمصرين | M120: SY070005 | N120: 90 | O120: الكفر_كفريحمول | P120: C3942 | Q120: Kafr - Kafrehmul | R120: الكفر_كفريحمول | S120: 36.060228 | T120: 36.695356 | U120: Food Voucher | V120: RESUME | W120: 6967 | X120: GOAL | Y120: 8330 | Z120: 1 | AA120: 1 | AB120: Community | AC120: 0 | AD120: 1
A121: Kafr Jales | B121: 149 | C121: SY07 | D121: Idleb | E121: إدلب | F121: 4 | G121: Idleb | H121: مركز إدلب | I121: SY0700 | J121: 18 | K121: Maaret Tamsrin | L121: معرة تمصرين | M121: SY070005 | N121: 90 | O121: كفر جالس | P121: C3945 | Q121: Kafr Jales | R121: كفر جالس | S121: 35.976356 | T121: 36.612175 | U121: Food Voucher | V121: RESUME | W121: 5084 | X121: GOAL | Y121: 7783 | Z121: 0 | AA121: 1 | AB121: Community | AC121: 0 | AD121: 1
A122: Kafraya Maar Tamsarin | B122: 151 | C122: SY07 | D122: Idleb | E122: إدلب | F122: 4 | G122: Idleb | H122: مركز إدلب | I122: SY0700 | J122: 18 | K122: Maaret Tamsrin | L122: معرة تمصرين | M122: SY070005 | N122: 90 | O122: كفريا معرتمصرين | P122: C3952 | Q122: Kafraya | R122: كفريا معرتمصرين | S122: 35.990715 | T122: 36.677525 | U122: NSRF | V122: Out GOAL Area | W122: 133 | X122: BH | Y122: 4982 | Z122: 0 | AA122: 0 | AB122: NULL | AC122: 0 | AD122: NULL
A123: Kaftin | B123: 152 | C123: SY07 | D123: Idleb | E123: إدلب | F123: 4 | G123: Idleb | H123: مركز إدلب | I123: SY0700 | J123: 18 | K123: Maaret Tamsrin | L123: معرة تمصرين | M123: SY070005 | N123: 90 | O123: كفتين | P123: C3951 | Q123: Kaftin | R123: كفتين | S123: 36.095529 | T123: 36.679142 | U123: Food Voucher | V123: RESUME | W123: 3868 | X123: GOAL | Y123: 7073 | Z123: 0 | AA123: 1 | AB123: Community | AC123: 0 | AD123: 0
A124: Kelly | B124: 153 | C124: SY07 | D124: Idleb | E124: إدلب | F124: 4 | G124: Idleb | H124: مركز إدلب | I124: SY0700 | J124: 18 | K124: Maaret Tamsrin | L124: معرة تمصرين | M124: SY070005 | N124: 90 | O124: كللي | P124: C3949 | Q124: Kelly | R124: كللي | S124: 36.110446 | T124: 36.693612 | U124: Food Voucher | V124: RESUME | W124: 15549 | X124: GOAL | Y124: 12373 | Z124: 1 | AA124: 1 | AB124: Community | AC124: 0 | AD124: 1
A125: Maaret Elekhwan | B125: 154 | C125: SY07 | D125: Idleb | E125: إدلب | F125: 4 | G125: Idleb | H125: مركز إدلب | I125: SY0700 | J125: 18 | K125: Maaret Tamsrin | L125: معرة تمصرين | M125: SY070005 | N125: 90 | O125: معارة الاخوان | P125: C3950 | Q125: Maaret Elekhwan | R125: معارة الاخوان | S125: 36.065887 | T125: 36.670026 | U125: Food Voucher | V125: RESUME | W125: 6678 | X125: GOAL | Y125: 4844 | Z125: 0 | AA125: 1 | AB125: Community | AC125: 0 | AD125: 1
A126: Maarrat Tamasrin | B126: 155 | C126: SY07 | D126: Idleb | E126: إدلب | F126: 4 | G126: Idleb | H126: مركز إدلب | I126: SY0700 | J126: 18 | K126: Maaret Tamsrin | L126: معرة تمصرين | M126: SY070005 | N126: 90 | O126: معر تمصرين | P126: C3947 | Q126: Ma'arrat Tamasrin | R126: معر تمصرين | S126: 36.014886 | T126: 36.672571 | U126: Food Voucher | V126: RESUME | W126: 40146 | X126: GOAL | Y126: 44346 | Z126: 1 | AA126: 1 | AB126: Community | AC126: 0 | AD126: 1
A127: Murin (Maaret Tamsrin) | B127: 156 | C127: SY07 | D127: Idleb | E127: إدلب | F127: 4 | G127: Idleb | H127: مركز إدلب | I127: SY0700 | J127: 18 | K127: Maaret Tamsrin | L127: معرة تمصرين | M127: SY070005 | N127: 90 | O127: مورين | P127: C3946 | Q127: Murin | R127: مورين | S127: 36.007111 | T127: 36.549743 | U127: Food Voucher | V127: RESUME | W127: 1376 | X127: GOAL | Y127: 1641 | Z127: 0 | AA127: 1 | AB127: Community | AC127: 0 | AD127: 1
A128: Ram Hamdan | B128: 157 | C128: SY07 | D128: Idleb | E128: إدلب | F128: 4 | G128: Idleb | H128: مركز إدلب | I128: SY0700 | J128: 18 | K128: Maaret Tamsrin | L128: معرة تمصرين | M128: SY070005 | N128: 90 | O128: رام حمدان | P128: C3941 | Q128: Ram Hamdan | R128: رام حمدان | S128: 36.026658 | T128: 36.712528 | U128: Food Voucher | V128: RESUME | W128: 8684 | X128: GOAL | Y128: 8084 | Z128: 0 | AA128: 1 | AB128: Community | AC128: 0 | AD128: 1
A129: Taltuneh | B129: 158 | C129: SY07 | D129: Idleb | E129: إدلب | F129: 4 | G129: Idleb | H129: مركز إدلب | I129: SY0700 | J129: 18 | K129: Maaret Tamsrin | L129: معرة تمصرين | M129: SY070005 | N129: 90 | O129: تلتونة | P129: C3940 | Q129: Taltuneh | R129: تلتونة | S129: 36.018092 | T129: 36.586401 | U129: Out GOAL Area | V129: Out GOAL Area | W129: 407 | X129: NULL | Y129: 764 | Z129: 0 | AA129: 1 | AB129: NULL | AC129: 0 | AD129: NULL
A130: Zardana Mashehad | B130: 159 | C130: SY07 | D130: Idleb | E130: إدلب | F130: 4 | G130: Idleb | H130: مركز إدلب | I130: SY0700 | J130: 18 | K130: Maaret Tamsrin | L130: معرة تمصرين | M130: SY070005 | N130: 90 | O130: زردنا_مشهد | P130: C3938 | Q130: Zardana Mashehad | R130: زردنا_مشهد | S130: 36.044676 | T130: 36.750484 | U130: Food Voucher | V130: RESUME | W130: 4865 | X130: GOAL | Y130: 11902 | Z130: 0 | AA130: 1 | AB130: Community | AC130: 0 | AD130: 1
A131: Abul Khos | B131: 160 | C131: SY07 | D131: Idleb | E131: إدلب | F131: 4 | G131: Idleb | H131: مركز إدلب | I131: SY0700 | J131: 18 | K131: Saraqab | L131: سراقب | M131: SY070003 | N131: 88 | O131: أبو الخوص | P131: C3914 | Q131: Abul Khos | R131: أبو الخوص | S131: 35.837272 | T131: 36.90055 | U131: Out GOAL Area | V131: Out GOAL Area | W131: 2116 | X131: NULL | Y131: 0 | Z131: 0 | AA131: 0 | AB131: NULL | AC131: 0 | AD131: NULL
A132: Afs | B132: 161 | C132: SY07 | D132: Idleb | E132: إدلب | F132: 4 | G132: Idleb | H132: مركز إدلب | I132: SY0700 | J132: 18 | K132: Saraqab | L132: سراقب | M132: SY070003 | N132: 88 | O132: افس | P132: C3920 | Q132: Afs | R132: افس | S132: 35.906374 | T132: 36.801319 | U132: Out GOAL Area | V132: Out GOAL Area | W132: 12997 | X132: NULL | Y132: 1090 | Z132: 0 | AA132: 0 | AB132: NULL | AC132: 0 | AD132: NULL
A133: Ajez | B133: 162 | C133: SY07 | D133: Idleb | E133: إدلب | F133: 4 | G133: Idleb | H133: مركز إدلب | I133: SY0700 | J133: 18 | K133: Saraqab | L133: سراقب | M133: SY070003 | N133: 88 | O133: آجز | P133: C3921 | Q133: Ajez | R133: آجز | S133: 35.931449 | T133: 36.878002 | U133: Out GOAL Area | V133: Out GOAL Area | W133: 1737 | X133: NULL | Y133: 0 | Z133: 0 | AA133: 0 | AB133: NULL | AC133: 0 | AD133: NULL
A134: Anqrati | B134: 163 | C134: SY07 | D134: Idleb | E134: إدلب | F134: 4 | G134: Idleb | H134: مركز إدلب | I134: SY0700 | J134: 18 | K134: Saraqab | L134: سراقب | M134: SY070003 | N134: 88 | O134: انقراتي | P134: C3907 | Q134: Anqrati | R134: انقراتي | S134: 35.789163 | T134: 36.819785 | U134: Out GOAL Area | V134: Out GOAL Area | W134: 980 | X134: NULL | Y134: 0 | Z134: 0 | AA134: 0 | AB134: NULL | AC134: 0 | AD134: NULL
A135: Bijfas | B135: 164 | C135: SY07 | D135: Idleb | E135: إدلب | F135: 4 | G135: Idleb | H135: مركز إدلب | I135: SY0700 | J135: 18 | K135: Saraqab | L135: سراقب | M135: SY070003 | N135: 88 | O135: بجفاص | P135: C3912 | Q135: Bijfas | R135: بجفاص | S135: 35.802381 | T135: 36.895788 | U135: Out GOAL Area | V135: Out GOAL Area | W135: 1390 | X135: NULL | Y135: 0 | Z135: 0 | AA135: 0 | AB135: NULL | AC135: 0 | AD135: NULL
A136: Bweiti | B136: 165 | C136: SY07 | D136: Idleb | E136: إدلب | F136: 4 | G136: Idleb | H136: مركز إدلب | I136: SY0700 | J136: 18 | K136: Saraqab | L136: سراقب | M136: SY070003 | N136: 88 | O136: بويطي | P136: C3911 | Q136: Bweiti | R136: بويطي | S136: 35.771474 | T136: 36.887235 | U136: Out GOAL Area | V136: Out GOAL Area | W136: 2420 | X136: NULL | Y136: 0 | Z136: 0 | AA136: 0 | AB136: NULL | AC136: 0 | AD136: NULL
A137: Dadikh | B137: 166 | C137: SY07 | D137: Idleb | E137: إدلب | F137: 4 | G137: Idleb | H137: مركز إدلب | I137: SY0700 | J137: 18 | K137: Saraqab | L137: سراقب | M137: SY070003 | N137: 88 | O137: داديخ | P137: C3910 | Q137: Dadikh | R137: داديخ | S137: 35.802164 | T137: 36.730915 | U137: NSRF | V137: Out GOAL Area | W137: 5331 | X137: BH | Y137: 0 | Z137: 0 | AA137: 0 | AB137: NULL | AC137: 0 | AD137: NULL
A138: Jobas | B138: 167 | C138: SY07 | D138: Idleb | E138: إدلب | F138: 4 | G138: Idleb | H138: مركز إدلب | I138: SY0700 | J138: 18 | K138: Saraqab | L138: سراقب | M138: SY070003 | N138: 88 | O138: جوباس | P138: C3909 | Q138: Jobas | R138: جوباس | S138: 35.835134 | T138: 36.757195 | U138: NSRF | V138: Out GOAL Area | W138: 4755 | X138: BH | Y138: 0 | Z138: 0 | AA138: 0 | AB138: NULL | AC138: 0 | AD138: NULL
A139: Kafr Battikh | B139: 168 | C139: SY07 | D139: Idleb | E139: إدلب | F139: 4 | G139: Idleb | H139: مركز إدلب | I139: SY0700 | J139: 18 | K139: Saraqab | L139: سراقب | M139: SY070003 | N139: 88 | O139: كفر بطيخ | P139: C3927 | Q139: Kafr Battikh | R139: كفر بطيخ | S139: 35.782354 | T139: 36.720844 | U139: NSRF | V139: Out GOAL Area | W139: 6671 | X139: BH | Y139: 0 | Z139: 0 | AA139: 0 | AB139: NULL | AC139: 0 | AD139: NULL
A140: Kafr Omeim | B140: 169 | C140: SY07 | D140: Idleb | E140: إدلب | F140: 4 | G140: Idleb | H140: مركز إدلب | I140: SY0700 | J140: 18 | K140: Saraqab | L140: سراقب | M140: SY070003 | N140: 88 | O140: كفر عميم | P140: C3928 | Q140: Kafr Omeim | R140: كفر عميم | S140: 35.815307 | T140: 36.867992 | U140: Out GOAL Area | V140: Out GOAL Area | W140: 4935 | X140: NULL | Y140: 0 | Z140: 0 | AA140: 0 | AB140: NULL | AC140: 0 | AD140: NULL
A141: Khan Elsobol | B141: 170 | C141: SY07 | D141: Idleb | E141: إدلب | F141: 4 | G141: Idleb | H141: مركز إدلب | I141: SY0700 | J141: 18 | K141: Saraqab | L141: سراقب | M141: SY070003 | N141: 88 | O141: خان السبل | P141: C3925 | Q141: Khan Elsobol | R141: خان السبل | S141: 35.756216 | T141: 36.752919 | U141: Out GOAL Area | V141: Out GOAL Area | W141: 9819 | X141: NULL | Y141: 0 | Z141: 0 | AA141: 0 | AB141: NULL | AC141: 0 | AD141: NULL
A142: Khuwara | B142: 171 | C142: SY07 | D142: Idleb | E142: إدلب | F142: 4 | G142: Idleb | H142: مركز إدلب | I142: SY0700 | J142: 18 | K142: Saraqab | L142: سراقب | M142: SY070003 | N142: 88 | O142: خوارى | P142: C3922 | Q142: Khuwara | R142: خوارى | S142: 35.909484 | T142: 36.923487 | U142: Out GOAL Area | V142: Out GOAL Area | W142: 3534 | X142: NULL | Y142: 0 | Z142: 0 | AA142: 0 | AB142: NULL | AC142: 0 | AD142: NULL
A143: Lof | B143: 172 | C143: SY07 | D143: Idleb | E143: إدلب | F143: 4 | G143: Idleb | H143: مركز إدلب | I143: SY0700 | J143: 18 | K143: Saraqab | L143: سراقب | M143: SY070003 | N143: 88 | O143: لوف | P143: C3929 | Q143: Lof | R143: لوف | S143: 35.770308 | T143: 36.82931 | U143: Out GOAL Area | V143: Out GOAL Area | W143: 2750 | X143: NULL | Y143: 0 | Z143: 0 | AA143: 0 | AB143: NULL | AC143: 0 | AD143: NULL
A144: Maar Dibsi | B144: 173 | C144: SY07 | D144: Idleb | E144: إدلب | F144: 4 | G144: Idleb | H144: مركز إدلب | I144: SY0700 | J144: 18 | K144: Saraqab | L144: سراقب | M144: SY070003 | N144: 88 | O144: معردبسي | P144: C3931 | Q144: Maar Dibsi | R144: معردبسي | S144: 35.781582 | T144: 36.768858 | U144: NSRF | V144: Out GOAL Area | W144: 9400 | X144: BH | Y144: 0 | Z144: 0 | AA144: 0 | AB144: NULL | AC144: 0 | AD144: NULL
A145: Maharim | B145: 174 | C145: SY07 | D145: Idleb | E145: إدلب | F145: 4 | G145: Idleb | H145: مركز إدلب | I145: SY0700 | J145: 18 | K145: Saraqab | L145: سراقب | M145: SY070003 | N145: 88 | O145: محاريم | P145: C3926 | Q145: Maharim | R145: محاريم | S145: 35.901029 | T145: 36.911533 | U145: Out GOAL Area | V145: Out GOAL Area | W145: 2920 | X145: NULL | Y145: 0 | Z145: 0 | AA145: 0 | AB145: NULL | AC145: 0 | AD145: NULL
A146: Mardikh | B146: 175 | C146: SY07 | D146: Idleb | E146: إدلب | F146: 4 | G146: Idleb | H146: مركز إدلب | I146: SY0700 | J146: 18 | K146: Saraqab | L146: سراقب | M146: SY070003 | N146: 88 | O146: مرديخ | P146: C3930 | Q146: Mardikh | R146: مرديخ | S146: 35.811419 | T146: 36.789073 | U146: NSRF | V146: Out GOAL Area | W146: 5414 | X146: BH | Y146: 0 | Z146: 0 | AA146: 0 | AB146: NULL | AC146: 0 | AD146: NULL
A147: Rasafa | B147: 176 | C147: SY07 | D147: Idleb | E147: إدلب | F147: 4 | G147: Idleb | H147: مركز إدلب | I147: SY0700 | J147: 18 | K147: Saraqab | L147: سراقب | M147: SY070003 | N147: 88 | O147: الرصافة | P147: C3923 | Q147: Rasafa | R147: الرصافة | S147: 35.873232 | T147: 36.89744 | U147: Out GOAL Area | V147: Out GOAL Area | W147: 4370 | X147: NULL | Y147: 0 | Z147: 0 | AA147: 0 | AB147: NULL | AC147: 0 | AD147: NULL
A148: Rayan | B148: 177 | C148: SY07 | D148: Idleb | E148: إدلب | F148: 4 | G148: Idleb | H148: مركز إدلب | I148: SY0700 | J148: 18 | K148: Saraqab | L148: سراقب | M148: SY070003 | N148: 88 | O148: ريان | P148: C3919 | Q148: Rayan | R148: ريان | S148: 35.782465 | T148: 36.864088 | U148: Out GOAL Area | V148: Out GOAL Area | W148: 4939 | X148: NULL | Y148: 0 | Z148: 0 | AA148: 0 | AB148: NULL | AC148: 0 | AD148: NULL
A149: Salamin | B149: 178 | C149: SY07 | D149: Idleb | E149: إدلب | F149: 4 | G149: Idleb | H149: مركز إدلب | I149: SY0700 | J149: 18 | K149: Saraqab | L149: سراقب | M149: SY070003 | N149: 88 | O149: سلامين | P149: C3913 | Q149: Salamin | R149: سلامين | S149: 35.858265 | T149: 36.901911 | U149: Out GOAL Area | V149: Out GOAL Area | W149: 2425 | X149: NULL | Y149: 0 | Z149: 0 | AA149: 0 | AB149: NULL | AC149: 0 | AD149: NULL
A150: San | B150: 179 | C150: SY07 | D150: Idleb | E150: إدلب | F150: 4 | G150: Idleb | H150: مركز إدلب | I150: SY0700 | J150: 18 | K150: Saraqab | L150: سراقب | M150: SY070003 | N150: 88 | O150: سان | P150: C3915 | Q150: San | R150: سان | S150: 35.841466 | T150: 36.734561 | U150: NSRF | V150: Out GOAL Area | W150: 1781 | X150: BH | Y150: 0 | Z150: 0 | AA150: 0 | AB150: NULL | AC150: 0 | AD150: NULL
A151: Saraqab | B151: 180 | C151: SY07 | D151: Idleb | E151: إدلب | F151: 4 | G151: Idleb | H151: مركز إدلب | I151: SY0700 | J151: 18 | K151: Saraqab | L151: سراقب | M151: SY070003 | N151: 88 | O151: سراقب | P151: C3916 | Q151: Saraqab | R151: سراقب | S151: 35.86604 | T151: 36.80336 | U151: NSRF | V151: Out GOAL Area | W151: 34074 | X151: BH | Y151: 0 | Z151: 0 | AA151: 0 | AB151: NULL | AC151: 0 | AD151: NULL
A152: Sheikh Idris | B152: 181 | C152: SY07 | D152: Idleb | E152: إدلب | F152: 4 | G152: Idleb | H152: مركز إدلب | I152: SY0700 | J152: 18 | K152: Saraqab | L152: سراقب | M152: SY070003 | N152: 88 | O152: شيخ ادريس | P152: C3924 | Q152: Sheikh Idris | R152: شيخ ادريس | S152: 35.764671 | T152: 36.864882 | U152: NSRF | V152: Out GOAL Area | W152: 7237 | X152: BH | Y152: 0 | Z152: 0 | AA152: 0 | AB152: NULL | AC152: 0 | AD152: NULL
A153: Tal Karatine | B153: 182 | C153: SY07 | D153: Idleb | E153: إدلب | F153: 4 | G153: Idleb | H153: مركز إدلب | I153: SY0700 | J153: 18 | K153: Saraqab | L153: سراقب | M153: SY070003 | N153: 88 | O153: تل كراتين | P153: C3918 | Q153: Tal Karatine | R153: تل كراتين | S153: 35.939321 | T153: 36.845055 | U153: Out GOAL Area | V153: Out GOAL Area | W153: 2841 | X153: NULL | Y153: 0 | Z153: 0 | AA153: 0 | AB153: NULL | AC153: 0 | AD153: NULL
A154: Tromba | B154: 183 | C154: SY07 | D154: Idleb | E154: إدلب | F154: 4 | G154: Idleb | H154: مركز إدلب | I154: SY0700 | J154: 18 | K154: Saraqab | L154: سراقب | M154: SY070003 | N154: 88 | O154: ترنبة | P154: C3908 | Q154: Tromba | R154: ترنبة | S154: 35.858945 | T154: 36.76672 | U154: Out GOAL Area | V154: Out GOAL Area | W154: 3670 | X154: NULL | Y154: 0 | Z154: 0 | AA154: 0 | AB154: NULL | AC154: 0 | AD154: NULL
A155: Sarmin | B155: 184 | C155: SY07 | D155: Idleb | E155: إدلب | F155: 4 | G155: Idleb | H155: مركز إدلب | I155: SY0700 | J155: 18 | K155: Sarmin | L155: سرمين | M155: SY070006 | N155: 91 | O155: سرمين | P155: C3953 | Q155: Sarmin | R155: سرمين | S155: 35.90401 | T155: 36.723823 | U155: Out GOAL Area | V155: Out GOAL Area | W155: 24840 | X155: NULL | Y155: 14222 | Z155: 0 | AA155: 0 | AB155: NULL | AC155: 0 | AD155: NULL
A156: Ketyan | B156: 185 | C156: SY07 | D156: Idleb | E156: إدلب | F156: 4 | G156: Idleb | H156: مركز إدلب | I156: SY0700 | J156: 18 | K156: Teftnaz | L156: تفتناز | M156: SY070004 | N156: 89 | O156: كتيان | P156: C3936 | Q156: Ketyan | R156: كتيان | S156: 36.054511 | T156: 36.808502 | U156: Out GOAL Area | V156: Out GOAL Area | W156: 3630 | X156: NULL | Y156: 2135 | Z156: 0 | AA156: 0 | AB156: NULL | AC156: 0 | AD156: NULL
A157: Maaret Elnaasan - Maaret Elhaski | B157: 186 | C157: SY07 | D157: Idleb | E157: إدلب | F157: 4 | G157: Idleb | H157: مركز إدلب | I157: SY0700 | J157: 18 | K157: Teftnaz | L157: تفتناز | M157: SY070004 | N157: 89 | O157: معارة النعسان_معارة الحاسكي | P157: C3935 | Q157: Maaret Elnaasan - Maaret Elhaski | R157: معارة النعسان_معارة الحاسكي | S157: 36.035283 | T157: 36.835145 | U157: Out GOAL Area | V157: Out GOAL Area | W157: 13193 | X157: NULL | Y157: 5014 | Z157: 0 | AA157: 0 | AB157: NULL | AC157: 0 | AD157: NULL
A158: Shallakh | B158: 187 | C158: SY07 | D158: Idleb | E158: إدلب | F158: 4 | G158: Idleb | H158: مركز إدلب | I158: SY0700 | J158: 18 | K158: Teftnaz | L158: تفتناز | M158: SY070004 | N158: 89 | O158: شللخ | P158: C3934 | Q158: Shallakh | R158: شللخ | S158: 36.020498 | T158: 36.791058 | U158: Out GOAL Area | V158: Out GOAL Area | W158: 4060 | X158: NULL | Y158: 4063 | Z158: 0 | AA158: 0 | AB158: NULL | AC158: 0 | AD158: NULL
A159: Talhiyeh | B159: 188 | C159: SY07 | D159: Idleb | E159: إدلب | F159: 4 | G159: Idleb | H159: مركز إدلب | I159: SY0700 | J159: 18 | K159: Teftnaz | L159: تفتناز | M159: SY070004 | N159: 89 | O159: طلحية | P159: C3933 | Q159: Talhiyeh | R159: طلحية | S159: 35.965563 | T159: 36.835044 | U159: Out GOAL Area | V159: Out GOAL Area | W159: 4954 | X159: NULL | Y159: 0 | Z159: 0 | AA159: 0 | AB159: NULL | AC159: 0 | AD159: NULL
A160: Teftnaz | B160: 189 | C160: SY07 | D160: Idleb | E160: إدلب | F160: 4 | G160: Idleb | H160: مركز إدلب | I160: SY0700 | J160: 18 | K160: Teftnaz | L160: تفتناز | M160: SY070004 | N160: 89 | O160: تفتناز | P160: C3932 | Q160: Teftnaz | R160: تفتناز | S160: 35.996642 | T160: 36.785424 | U160: Out GOAL Area | V160: Out GOAL Area | W160: 12741 | X160: NULL | Y160: 11956 | Z160: 0 | AA160: 0 | AB160: NULL | AC160: 0 | AD160: NULL
A161: Armala | B161: 190 | C161: SY07 | D161: Idleb | E161: إدلب | F161: 4 | G161: Jisr-Ash-Shugur | H161: جسر الشغور | I161: SY0704 | J161: 21 | K161: Badama | L161: بداما | M161: SY070401 | N161: 105 | O161: ارملا | P161: C4227 | Q161: Armala | R161: ارملا | S161: 35.899323 | T161: 36.217624 | U161: Out GOAL Area | V161: Out GOAL Area | W161: 2515 | X161: GOAL | Y161: 2818 | Z161: 0 | AA161: 0 | AB161: Community | AC161: 0 | AD161: NULL
A162: Badama | B162: 191 | C162: SY07 | D162: Idleb | E162: إدلب | F162: 4 | G162: Jisr-Ash-Shugur | H162: جسر الشغور | I162: SY0704 | J162: 21 | K162: Badama | L162: بداما | M162: SY070401 | N162: 105 | O162: بداما | P162: C4226 | Q162: Badama | R162: بداما | S162: 35.818484 | T162: 36.201333 | U162: Out GOAL Area | V162: Out GOAL Area | W162: 2370 | X162: NULL | Y162: 4080 | Z162: 0 | AA162: 0 | AB162: NULL | AC162: 0 | AD162: NULL
A163: Baksariya | B163: 192 | C163: SY07 | D163: Idleb | E163: إدلب | F163: 4 | G163: Jisr-Ash-Shugur | H163: جسر الشغور | I163: SY0704 | J163: 21 | K163: Badama | L163: بداما | M163: SY070401 | N163: 105 | O163: بكسريا | P163: C4223 | Q163: Baksariya | R163: بكسريا | S163: 35.864175 | T163: 36.20051 | U163: Food Basket_Stopped | V163: Out GOAL Area | W163: 2665 | X163: NULL | Y163: 3845 | Z163: 0 | AA163: 0 | AB163: NULL | AC163: 0 | AD163: NULL
A164: Ein El-Bayda | B164: 193 | C164: SY07 | D164: Idleb | E164: إدلب | F164: 4 | G164: Jisr-Ash-Shugur | H164: جسر الشغور | I164: SY0704 | J164: 21 | K164: Badama | L164: بداما | M164: SY070401 | N164: 105 | O164: عين البيضا | P164: C4229 | Q164: Ein El-Bayda | R164: عين البيضا | S164: 35.860228 | T164: 36.179953 | U164: Out GOAL Area | V164: Out GOAL Area | W164: 4675 | X164: GOAL | Y164: 1350 | Z164: 0 | AA164: 0 | AB164: Community | AC164: 0 | AD164: NULL
A165: Hanbushiyeh | B165: 194 | C165: SY07 | D165: Idleb | E165: إدلب | F165: 4 | G165: Jisr-Ash-Shugur | H165: جسر الشغور | I165: SY0704 | J165: 21 | K165: Badama | L165: بداما | M165: SY070401 | N165: 105 | O165: حنبوشية | P165: C4228 | Q165: Hanbushiyeh | R165: حنبوشية | S165: 35.839214 | T165: 36.197614 | U165: Food Basket_Stopped | V165: Out GOAL Area | W165: 5520 | X165: NULL | Y165: 3190 | Z165: 0 | AA165: 0 | AB165: NULL | AC165: 0 | AD165: NULL
A166: Kherbet Eljoz | B166: 195 | C166: SY07 | D166: Idleb | E166: إدلب | F166: 4 | G166: Jisr-Ash-Shugur | H166: جسر الشغور | I166: SY0704 | J166: 21 | K166: Badama | L166: بداما | M166: SY070401 | N166: 105 | O166: خربة الجوز | P166: C4231 | Q166: Kherbet Eljoz | R166: خربة الجوز | S166: 35.903457 | T166: 36.19252 | U166: Out GOAL Area | V166: Out GOAL Area | W166: 26330 | X166: NULL | Y166: 8730 | Z166: 0 | AA166: 0 | AB166: NULL | AC166: 0 | AD166: NULL
A167: Kinda | B167: 196 | C167: SY07 | D167: Idleb | E167: إدلب | F167: 4 | G167: Jisr-Ash-Shugur | H167: جسر الشغور | I167: SY0704 | J167: 21 | K167: Badama | L167: بداما | M167: SY070401 | N167: 105 | O167: الكندة | P167: C4230 | Q167: Kinda | R167: الكندة | S167: 35.765571 | T167: 36.205633 | U167: Out GOAL Area | V167: Out GOAL Area | W167: 0 | X167: NULL | Y167: 0 | Z167: 0 | AA167: 0 | AB167: NULL | AC167: 0 | AD167: NULL
A168: Maraand | B168: 197 | C168: SY07 | D168: Idleb | E168: إدلب | F168: 4 | G168: Jisr-Ash-Shugur | H168: جسر الشغور | I168: SY0704 | J168: 21 | K168: Badama | L168: بداما | M168: SY070401 | N168: 105 | O168: مرعند | P168: C4235 | Q168: Maraand | R168: مرعند | S168: 35.777592 | T168: 36.223116 | U168: Out GOAL Area | V168: Out GOAL Area | W168: 280 | X168: NULL | Y168: 520 | Z168: 0 | AA168: 0 | AB168: NULL | AC168: 0 | AD168: NULL
A169: Najiyeh | B169: 198 | C169: SY07 | D169: Idleb | E169: إدلب | F169: 4 | G169: Jisr-Ash-Shugur | H169: جسر الشغور | I169: SY0704 | J169: 21 | K169: Badama | L169: بداما | M169: SY070401 | N169: 105 | O169: الناجية | P169: C4233 | Q169: Najiyeh | R169: الناجية | S169: 35.788429 | T169: 36.219248 | U169: Out GOAL Area | V169: Out GOAL Area | W169: 340 | X169: NULL | Y169: 1555 | Z169: 0 | AA169: 0 | AB169: NULL | AC169: 0 | AD169: NULL
A170: Ramliyeh | B170: 199 | C170: SY07 | D170: Idleb | E170: إدلب | F170: 4 | G170: Jisr-Ash-Shugur | H170: جسر الشغور | I170: SY0704 | J170: 21 | K170: Badama | L170: بداما | M170: SY070401 | N170: 105 | O170: الرملية | P170: C4234 | Q170: Ramliyeh | R170: الرملية | S170: 35.923005 | T170: 36.21715 | U170: Out GOAL Area | V170: Out GOAL Area | W170: 1165 | X170: GOAL | Y170: 1472 | Z170: 0 | AA170: 0 | AB170: Community | AC170: 0 | AD170: NULL
A171: Shaturiyeh | B171: 200 | C171: SY07 | D171: Idleb | E171: إدلب | F171: 4 | G171: Jisr-Ash-Shugur | H171: جسر الشغور | I171: SY0704 | J171: 21 | K171: Badama | L171: بداما | M171: SY070401 | N171: 105 | O171: الشاتورية | P171: C4232 | Q171: Shaturiyeh | R171: الشاتورية | S171: 35.86789 | T171: 36.231937 | U171: Food Basket | V171: Out GOAL Area | W171: 1790 | X171: IHSAN | Y171: 2185 | Z171: 0 | AA171: 0 | AB171: NULL | AC171: 0 | AD171: NULL
A172: Tuffahiyeh | B172: 201 | C172: SY07 | D172: Idleb | E172: إدلب | F172: 4 | G172: Jisr-Ash-Shugur | H172: جسر الشغور | I172: SY0704 | J172: 21 | K172: Badama | L172: بداما | M172: SY070401 | N172: 105 | O172: تفاحية | P172: C4224 | Q172: Tuffahiyeh | R172: تفاحية | S172: 35.793344 | T172: 36.151712 | U172: Out GOAL Area | V172: Out GOAL Area | W172: 0 | X172: NULL | Y172: 0 | Z172: 0 | AA172: 0 | AB172: NULL | AC172: 0 | AD172: NULL
A173: Yunesiyeh | B173: 202 | C173: SY07 | D173: Idleb | E173: إدلب | F173: 4 | G173: Jisr-Ash-Shugur | H173: جسر الشغور | I173: SY0704 | J173: 21 | K173: Badama | L173: بداما | M173: SY070401 | N173: 105 | O173: اليونسية | P173: C4225 | Q173: Yunesiyeh | R173: اليونسية | S173: 35.807879 | T173: 36.15895 | U173: Out GOAL Area | V173: Out GOAL Area | W173: 0 | X173: NULL | Y173: 220 | Z173: 0 | AA173: 0 | AB173: NULL | AC173: 0 | AD173: NULL
A174: Amud | B174: 203 | C174: SY07 | D174: Idleb | E174: إدلب | F174: 4 | G174: Jisr-Ash-Shugur | H174: جسر الشغور | I174: SY0704 | J174: 21 | K174: Darkosh | L174: دركوش | M174: SY070402 | N174: 106 | O174: عامود | P174: C4245 | Q174: Amud | R174: عامود | S174: 35.969139 | T174: 36.360596 | U174: Food Voucher | V174: RESUME | W174: 2190 | X174: GOAL | Y174: 2203 | Z174: 1 | AA174: 1 | AB174: Community | AC174: 0 | AD174: 1
A175: Andnaniyeh - Farjein | B175: 204 | C175: SY07 | D175: Idleb | E175: إدلب | F175: 4 | G175: Jisr-Ash-Shugur | H175: جسر الشغور | I175: SY0704 | J175: 21 | K175: Darkosh | L175: دركوش | M175: SY070402 | N175: 106 | O175: العدنانية_فرجين | P175: C4248 | Q175: Andnaniyeh - Farjein | R175: العدنانية_فرجين | S175: 35.968518 | T175: 36.300863 | U175: Food Voucher | V175: RESUME | W175: 2035 | X175: GOAL | Y175: 1965 | Z175: 0 | AA175: 1 | AB175: Community | AC175: 0 | AD175: 1
A176: Darkosh | B176: 205 | C176: SY07 | D176: Idleb | E176: إدلب | F176: 4 | G176: Jisr-Ash-Shugur | H176: جسر الشغور | I176: SY0704 | J176: 21 | K176: Darkosh | L176: دركوش | M176: SY070402 | N176: 106 | O176: دركوش | P176: C4252 | Q176: Darkosh | R176: دركوش | S176: 35.991715 | T176: 36.392535 | U176: Food Voucher | V176: RESUME | W176: 32780 | X176: GOAL | Y176: 29311 | Z176: 1 | AA176: 0 | AB176: Community | AC176: 0 | AD176: 0
A177: Deir Othman | B177: 206 | C177: SY07 | D177: Idleb | E177: إدلب | F177: 4 | G177: Jisr-Ash-Shugur | H177: جسر الشغور | I177: SY0704 | J177: 21 | K177: Darkosh | L177: دركوش | M177: SY070402 | N177: 106 | O177: دير عثمان | P177: C4239 | Q177: Deir Othman | R177: دير عثمان | S177: 35.976043 | T177: 36.317852 | U177: Out GOAL Area | V177: Out GOAL Area | W177: 0 | X177: NULL | Y177: 0 | Z177: 0 | AA177: 0 | AB177: NULL | AC177: 0 | AD177: NULL
A178: Dorriyeh | B178: 207 | C178: SY07 | D178: Idleb | E178: إدلب | F178: 4 | G178: Jisr-Ash-Shugur | H178: جسر الشغور | I178: SY0704 | J178: 21 | K178: Darkosh | L178: دركوش | M178: SY070402 | N178: 106 | O178: الدرية | P178: C4249 | Q178: Dorriyeh | R178: الدرية | S178: 35.993497 | T178: 36.308698 | U178: Food Voucher | V178: RESUME | W178: 8195 | X178: GOAL | Y178: 1159 | Z178: 1 | AA178: 1 | AB178: Community | AC178: 0 | AD178: 1
A179: Ghazala - Mgheidleh | B179: 208 | C179: SY07 | D179: Idleb | E179: إدلب | F179: 4 | G179: Jisr-Ash-Shugur | H179: جسر الشغور | I179: SY0704 | J179: 21 | K179: Darkosh | L179: دركوش | M179: SY070402 | N179: 106 | O179: الغزالة_مغيدلة | P179: C4240 | Q179: Ghazala - Mgheidleh | R179: الغزالة_مغيدلة | S179: 36.027449 | T179: 36.388383 | U179: Food Voucher | V179: RESUME | W179: 5380 | X179: GOAL | Y179: 2393 | Z179: 1 | AA179: 0 | AB179: Community | AC179: 0 | AD179: 1
A180: Jamiliya (Darkosh) | B180: 209 | C180: SY07 | D180: Idleb | E180: إدلب | F180: 4 | G180: Jisr-Ash-Shugur | H180: جسر الشغور | I180: SY0704 | J180: 21 | K180: Darkosh | L180: دركوش | M180: SY070402 | N180: 106 | O180: الجميلية | P180: C4241 | Q180: Jamiliya | R180: الجميلية | S180: 35.980232 | T180: 36.336082 | U180: Food Voucher | V180: RESUME | W180: 1467 | X180: GOAL | Y180: 994 | Z180: 0 | AA180: 1 | AB180: Community | AC180: 0 | AD180: 1
A181: Matleh - Batlaya | B181: 210 | C181: SY07 | D181: Idleb | E181: إدلب | F181: 4 | G181: Jisr-Ash-Shugur | H181: جسر الشغور | I181: SY0704 | J181: 21 | K181: Darkosh | L181: دركوش | M181: SY070402 | N181: 106 | O181: المطلة_بطلايا | P181: C4244 | Q181: Matleh - Batlaya | R181: المطلة_بطلايا | S181: 35.890911 | T181: 36.406247 | U181: Food Basket | V181: RESUME | W181: 805 | X181: GOAL | Y181: 836 | Z181: 1 | AA181: 1 | AB181: Community | AC181: 0 | AD181: 1
A182: Mazuleh | B182: 211 | C182: SY07 | D182: Idleb | E182: إدلب | F182: 4 | G182: Jisr-Ash-Shugur | H182: جسر الشغور | I182: SY0704 | J182: 21 | K182: Darkosh | L182: دركوش | M182: SY070402 | N182: 106 | O182: المعزولة | P182: C4243 | Q182: Mazuleh | R182: المعزولة | S182: 35.902665 | T182: 36.440541 | U182: Food Voucher | V182: RESUME | W182: 2345 | X182: GOAL | Y182: 2976 | Z182: 1 | AA182: 1 | AB182: Community | AC182: 0 | AD182: 1
A183: Mreimin (Darkosh) | B183: 212 | C183: SY07 | D183: Idleb | E183: إدلب | F183: 4 | G183: Jisr-Ash-Shugur | H183: جسر الشغور | I183: SY0704 | J183: 21 | K183: Darkosh | L183: دركوش | M183: SY070402 | N183: 106 | O183: مريمين | P183: C4254 | Q183: Mreimin | R183: مريمين | S183: 35.920421 | T183: 36.411951 | U183: Food Voucher | V183: RESUME | W183: 4052 | X183: GOAL | Y183: 2114 | Z183: 1 | AA183: 1 | AB183: Community | AC183: 0 | AD183: 1
A184: Ramadiyeh (Darkosh) | B184: 213 | C184: SY07 | D184: Idleb | E184: إدلب | F184: 4 | G184: Jisr-Ash-Shugur | H184: جسر الشغور | I184: SY0704 | J184: 21 | K184: Darkosh | L184: دركوش | M184: SY070402 | N184: 106 | O184: الرمادية | P184: C4242 | Q184: Ramadiyeh | R184: الرمادية | S184: 36.034581 | T184: 36.397569 | U184: Food Voucher | V184: RESUME | W184: 840 | X184: GOAL | Y184: 989 | Z184: 1 | AA184: 0 | AB184: Community | AC184: 0 | AD184: 1
A185: Sadiyeh - Bsentiya | B185: 214 | C185: SY07 | D185: Idleb | E185: إدلب | F185: 4 | G185: Jisr-Ash-Shugur | H185: جسر الشغور | I185: SY0704 | J185: 21 | K185: Darkosh | L185: دركوش | M185: SY070402 | N185: 106 | O185: السعدية_بسندتيا | P185: C4246 | Q185: Sadiyeh - Bsentiya | R185: السعدية_بسندتيا | S185: 35.939665 | T185: 36.415318 | U185: Food Voucher | V185: RESUME | W185: 1154 | X185: GOAL | Y185: 2259 | Z185: 1 | AA185: 1 | AB185: Community | AC185: 0 | AD185: 1
A186: Sawadiya - Nabhan | B186: 215 | C186: SY07 | D186: Idleb | E186: إدلب | F186: 4 | G186: Jisr-Ash-Shugur | H186: جسر الشغور | I186: SY0704 | J186: 21 | K186: Darkosh | L186: دركوش | M186: SY070402 | N186: 106 | O186: السوادية_نبهان | P186: C4236 | Q186: Sawadiya - Nabhan | R186: السوادية_نبهان | S186: 35.952784 | T186: 36.418053 | U186: Food Voucher | V186: RESUME | W186: 1955 | X186: GOAL | Y186: 2743 | Z186: 1 | AA186: 1 | AB186: Community | AC186: 0 | AD186: 1
A187: Sheikh Issa Elashury | B187: 216 | C187: SY07 | D187: Idleb | E187: إدلب | F187: 4 | G187: Jisr-Ash-Shugur | H187: جسر الشغور | I187: SY0704 | J187: 21 | K187: Darkosh | L187: دركوش | M187: SY070402 | N187: 106 | O187: الشيخ عيسى العاشوري | P187: C4251 | Q187: Sheikh Issa Elashury | R187: الشيخ عيسى العاشوري | S187: 35.974026 | T187: 36.416295 | U187: Food Basket | V187: RESUME | W187: 1275 | X187: GOAL | Y187: 828 | Z187: 1 | AA187: 1 | AB187: Community | AC187: 0 | AD187: 1
A188: Thahr | B188: 217 | C188: SY07 | D188: Idleb | E188: إدلب | F188: 4 | G188: Jisr-Ash-Shugur | H188: جسر الشغور | I188: SY0704 | J188: 21 | K188: Darkosh | L188: دركوش | M188: SY070402 | N188: 106 | O188: الظهر | P188: C4247 | Q188: Thahr | R188: الظهر | S188: 35.969294 | T188: 36.427078 | U188: Food Voucher | V188: RESUME | W188: 1600 | X188: GOAL | Y188: 1822 | Z188: 1 | AA188: 1 | AB188: Community | AC188: 0 | AD188: 0
A189: Turin | B189: 218 | C189: SY07 | D189: Idleb | E189: إدلب | F189: 4 | G189: Jisr-Ash-Shugur | H189: جسر الشغور | I189: SY0704 | J189: 21 | K189: Darkosh | L189: دركوش | M189: SY070402 | N189: 106 | O189: طورين | P189: C4237 | Q189: Turin | R189: طورين | S189: 35.98799 | T189: 36.428708 | U189: Out GOAL Area | V189: Out GOAL Area | W189: 210 | X189: NULL | Y189: 277 | Z189: 1 | AA189: 0 | AB189: NULL | AC189: 0 | AD189: NULL
A190: Zahraa - Kherbet Amud | B190: 219 | C190: SY07 | D190: Idleb | E190: إدلب | F190: 4 | G190: Jisr-Ash-Shugur | H190: جسر الشغور | I190: SY0704 | J190: 21 | K190: Darkosh | L190: دركوش | M190: SY070402 | N190: 106 | O190: الزهراء_خربة عامود | P190: C4250 | Q190: Zahraa - Kherbet Amud | R190: الزهراء_خربة عامود | S190: 35.983266 | T190: 36.380158 | U190: Food Voucher | V190: RESUME | W190: 2655 | X190: GOAL | Y190: 2680 | Z190: 1 | AA190: 1 | AB190: Community | AC190: 0 | AD190: 1
A191: Zanbaqi | B191: 220 | C191: SY07 | D191: Idleb | E191: إدلب | F191: 4 | G191: Jisr-Ash-Shugur | H191: جسر الشغور | I191: SY0704 | J191: 21 | K191: Darkosh | L191: دركوش | M191: SY070402 | N191: 106 | O191: الزنبقي | P191: C4253 | Q191: Zanbaqi | R191: الزنبقي | S191: 36.008968 | T191: 36.377576 | U191: Food Voucher | V191: RESUME | W191: 2825 | X191: GOAL | Y191: 306 | Z191: 1 | AA191: 0 | AB191: Community | AC191: 0 | AD191: 0
A192: Zarzur | B192: 221 | C192: SY07 | D192: Idleb | E192: إدلب | F192: 4 | G192: Jisr-Ash-Shugur | H192: جسر الشغور | I192: SY0704 | J192: 21 | K192: Darkosh | L192: دركوش | M192: SY070402 | N192: 106 | O192: زرزور | P192: C4238 | Q192: Zarzur | R192: زرزور | S192: 35.955292 | T192: 36.338617 | U192: Food Voucher | V192: RESUME | W192: 8595 | X192: GOAL | Y192: 9902 | Z192: 0 | AA192: 1 | AB192: Community | AC192: 0 | AD192: 1
A193: Athar | B193: 222 | C193: SY07 | D193: Idleb | E193: إدلب | F193: 4 | G193: Jisr-Ash-Shugur | H193: جسر الشغور | I193: SY0704 | J193: 21 | K193: Janudiyeh | L193: الجانودية | M193: SY070403 | N193: 107 | O193: آذار | P193: C4266 | Q193: Athar | R193: آذار | S193: 35.913535 | T193: 36.241502 | U193: Food Basket | V193: RESUME | W193: 870 | X193: GOAL | Y193: 924 | Z193: 0 | AA193: 1 | AB193: Community | AC193: 0 | AD193: 1
A194: Foz - Zuf | B194: 223 | C194: SY07 | D194: Idleb | E194: إدلب | F194: 4 | G194: Jisr-Ash-Shugur | H194: جسر الشغور | I194: SY0704 | J194: 21 | K194: Janudiyeh | L194: الجانودية | M194: SY070403 | N194: 107 | O194: الفوز_الزوف | P194: C4263 | Q194: Foz - Zuf | R194: الفوز_الزوف | S194: 35.941163 | T194: 36.232141 | U194: Out GOAL Area | V194: Out GOAL Area | W194: 9203 | X194: GOAL | Y194: 2940 | Z194: 0 | AA194: 0 | AB194: Community | AC194: 0 | AD194: NULL
A195: Hamama - Kafr Debbin | B195: 224 | C195: SY07 | D195: Idleb | E195: إدلب | F195: 4 | G195: Jisr-Ash-Shugur | H195: جسر الشغور | I195: SY0704 | J195: 21 | K195: Janudiyeh | L195: الجانودية | M195: SY070403 | N195: 107 | O195: الحمامة_كفر دبين | P195: C4267 | Q195: Hamama - Kafr Debbin | R195: الحمامة_كفر دبين | S195: 35.924477 | T195: 36.354651 | U195: Food Voucher | V195: RESUME | W195: 13640 | X195: GOAL | Y195: 11705 | Z195: 0 | AA195: 1 | AB195: Community | AC195: 0 | AD195: 0
A196: Hassaniyeh - Hatya | B196: 225 | C196: SY07 | D196: Idleb | E196: إدلب | F196: 4 | G196: Jisr-Ash-Shugur | H196: جسر الشغور | I196: SY0704 | J196: 21 | K196: Janudiyeh | L196: الجانودية | M196: SY070403 | N196: 107 | O196: الحسانية_هتيا | P196: C4257 | Q196: Hassaniyeh - Hatya | R196: الحسانية_هتيا | S196: 35.947074 | T196: 36.279788 | U196: Food Voucher | V196: RESUME | W196: 3125 | X196: GOAL | Y196: 1334 | Z196: 0 | AA196: 1 | AB196: Community | AC196: 0 | AD196: 1
A197: Janudiyeh | B197: 226 | C197: SY07 | D197: Idleb | E197: إدلب | F197: 4 | G197: Jisr-Ash-Shugur | H197: جسر الشغور | I197: SY0704 | J197: 21 | K197: Janudiyeh | L197: الجانودية | M197: SY070403 | N197: 107 | O197: الجانودية | P197: C4255 | Q197: Janudiyeh | R197: الجانودية | S197: 35.887091 | T197: 36.287229 | U197: Out GOAL Area | V197: Out GOAL Area | W197: 13830 | X197: GOAL | Y197: 14198 | Z197: 0 | AA197: 1 | AB197: Community | AC197: 0 | AD197: NULL
A198: Jdidet Eljisr | B198: 227 | C198: SY07 | D198: Idleb | E198: إدلب | F198: 4 | G198: Jisr-Ash-Shugur | H198: جسر الشغور | I198: SY0704 | J198: 21 | K198: Janudiyeh | L198: الجانودية | M198: SY070403 | N198: 107 | O198: جديدة الجسر | P198: C4265 | Q198: Jdidet Eljisr | R198: جديدة الجسر | S198: 35.929487 | T198: 36.291127 | U198: Food Voucher | V198: RESUME | W198: 2298 | X198: GOAL | Y198: 2229 | Z198: 0 | AA198: 1 | AB198: Community | AC198: 0 | AD198: 1
A199: Maland | B199: 228 | C199: SY07 | D199: Idleb | E199: إدلب | F199: 4 | G199: Jisr-Ash-Shugur | H199: جسر الشغور | I199: SY0704 | J199: 21 | K199: Janudiyeh | L199: الجانودية | M199: SY070403 | N199: 107 | O199: الملند | P199: C4259 | Q199: Maland | R199: الملند | S199: 35.922661 | T199: 36.27435 | U199: Food Voucher | V199: RESUME | W199: 4900 | X199: GOAL | Y199: 4548 | Z199: 0 | AA199: 1 | AB199: Community | AC199: 0 | AD199: 1
A200: Mudiah - Luxin | B200: 229 | C200: SY07 | D200: Idleb | E200: إدلب | F200: 4 | G200: Jisr-Ash-Shugur | H200: جسر الشغور | I200: SY0704 | J200: 21 | K200: Janudiyeh | L200: الجانودية | M200: SY070403 | N200: 107 | O200: المضيئة_لوكسين | P200: C4261 | Q200: Mudiah - Luxin | R200: المضيئة_لوكسين | S200: 35.942841 | T200: 36.312577 | U200: Food Voucher | V200: RESUME | W200: 755 | X200: GOAL | Y200: 915 | Z200: 0 | AA200: 1 | AB200: Community | AC200: 0 | AD200: 1
... 975 more rows

Sheet Arrangements (hidden)
A1: NO | B1: Code | C1: Unit Prices | D1: Unit | E1: Occupancy arrangement | F1: Column2 | G1: Occupancy arrangement/English | H1: Column1
A2: 1 | B2: GEN-1 | C2: 9.00 | D2: m³ | E2: حفر - صخرة | F2: Excavation - Rock | G2: Excavation (rock) down to the level of columns and walls' foundation, or for pipes trenches and septic tanks, excavation remnants must be moved to the nearest approved dumping site. according to the GOAL Engineer directions. The price of the excavation includes all the required works to ensure safety of workers and beneficiaries.
A3: 2 | B3: GEN-2 | C3: 3.00 | D3: m³ | E3: حفر - التربة | F3: Excavation - Soil | G3: Excavation (different soil types) down to the level of columns and walls' foundation, or for pipes trenches and septic tanks, excavation remnants must be moved to the nearest approved dumpsite. according to the GOAL Engineer directions. The price of the excavation includes all the required works to ensure safety of workers and beneficiaries.
A4: 3 | B4: GEN-3 | C4: 7.00 | D4: m³ | E4: ردم | F4: Backfilling | G4: Backfill the open pits and trenches using materials approved by the GOAL Engineer (backfilling materials: either from the same site, approved excavated materials or by using gravels)
A5: 4 | B5: GEN-4 | C5: 5.00 | D5: m³ | E5: هدم الجدران | F5: Demolition of walls | G5: Demolishing of damaged and cracked walls, work shall be done manually or using machinery as available and appropriate for each the site. Rubbles should be moved to approved dumpsites, so it does not cause any damage to any person or agricultural land. The work includes demolishing structural elements, concrete block and stone walls, cyclopean concrete, windows, and door...) and other parts specified by the GOAL Engineer (manually or using pneumatic drill), taking into consideration safety and security conditions.
A6: 5 | B6: GEN-5 | C6: 3.00 | D6: 0 | E6: إزالة نواتج الحفر | F6: Removal of excavated materials | G6: Removal and transport of excavated materials or rubbles to approved dumpsites, so it does not cause any damage to any person or agricultural land.
A7: 6 | B7: GEN-6 | C7: 40.00 | D7: m³ | E7: بيتون عادي 250 كجم / م 3 | F7: Plain Concrete 250 kg/m³ | G7: providing and pouring concrete, cement caliber 250 kg/m³ to cover cracks or cover flooring, with smoothing, thickness of layer 10 cm with spraying with water, with all the needed form works according to the directive of GOAL Engineer.
A8: 7 | B8: GEN-7 | C8: 30.00 | D8: m³ | E8: بيتون عادي 150 كجم / متر مكعب | F8: Plain Concrete 150 kg/m³ | G8: providing and pouring concrete, cement caliber 150 kg/m³ to cover cracks or cover flooring, with smoothing, thickness of layer 10 cm with spraying with water, with all the needed form works according to the directive of GOAL Engineer.
A9: 8 | B9: GEN-8 | C9: 18.00 | D9: m³ | E9: بيتون مغموس 250 كجم / م 3 | F9: Cyclopean Concrete 250 kg/m³ | G9: providing and pouring cyclopean concrete, cement caliber 250 kg/m³ to construct elements, with spraying with water, with all the needed form works according to the directive of GOAL Engineer.
A10: 9 | B10: GEN-9 | C10: 90.00 | D10: m³ | E10: بيتون مسلح 350 كجم / م 3 Ø 8 مم | F10: Reinforced concrete 350 kg/m³ Ø 8mm | G10: providing and pouring reinforced concrete caliber 350 kg/m³ Ø 8mm to repair and fill the structural elements, with smoothing, with spraying water with all the needed form works. with all the needed form works according to the directive of GOAL Engineer.
A11: 10 | B11: GEN-10 | C11: 100.00 | D11: m³ | E11: بيتون مسلح 350 كجم / م 3 Ø 10 مم | F11: Reinforced concrete 350 kg/m³ Ø 10mm | G11: providing and pouring reinforced concrete caliber 350 kg/m³ Ø 10 mm to repair and fill the structural elements, with smoothing, with spraying water with all the needed form works. with all the needed form works according to the directive of GOAL Engineer.
A12: 11 | B12: GEN-11 | C12: 140.00 | D12: Lumpsum | E12: درج بيتوني | F12: Concrete stair | G12: Construction of RC stair 10 steps length (1-2 m), riser (15-18 cm), and tread (25-27 cm) with all the needed form works according to the directive of GOAL Engineer.
A13: 12 | B13: GEN-12 | C13: 20.00 | D13: m³ | E13: رمبه خرسانيه | F13: Concrete ramp | G13: Construction of a reinforced concrete ramp with a maximum slope 1:10 and a minimum width of 90 cm
A14: 13 | B14: GEN-13 | C14: 0.47 | D14: PCs | E14: حوائط بلوك خرساني 15 سم | F14: 20 cm concrete block wall | G14: Supply and install hollow bricks (40*20*20 cm) with 100kg/m³ density for completing internal and external walls and filling open holes. Half-bond the installation should carried out with all needed cement sand mortar (1:3) mix 13 mm between the constructed rows, water spraying, and all related finishing works according to the instruction of the GOAL Engineer.
A15: 14 | B15: GEN-14 | C15: 0.42 | D15: PCs | E15: حوائط بلوك خرساني 10 سم | F15: 15 cm concrete block wall | G15: Supply and install hollow bricks (40*20*15 cm) with 100kg/m³ density for completing internal and external walls and filling open holes. Half-bond the installation should carried out with all needed cement sand mortar (1:3) mix 13 mm between the constructed rows, water spraying, and all related finishing works according to the instruction of the GOAL Engineer.
A16: 15 | B16: GEN-15 | C16: 0.33 | D16: PCs | E16: حوائط بلوك خرساني 20 سم | F16: 10 cm concrete block wall | G16: Supply and install hollow bricks (40*20*10 cm) with 100kg/m³ density for completing internal and external walls and filling open holes. Half-bond the installation should carried out with all needed cement sand mortar (1:3) mix 13 mm between the constructed rows, water spraying, and all related finishing works according to the instruction of the GOAL Engineer.
A17: 16 | B17: GEN-16 | C17: 5.00 | D17: m² | E17: جدار حجر | F17: Stone wall | G17: Provide and install hand fixed normal rock for completing walls the installation should carried out with all needed cement sand mortar (1:3) mix 13 mm between the constructed rows, water spraying, and all related finishing works according to the instruction of the GOAL Engineer.
A18: 17 | B18: GEN-17 | C18: 4.00 | D18: m² | E18: تفكيك جدار بلوك | F18: Disassembly of block wall | G18: Disassemble block walls with the aim of reusing undamaged blocks in building new walls and removing of demolition products and transporting to dumpsites according to the directive of GOAL Engineer.
A19: 18 | B19: GEN-18 | C19: 3.00 | D19: m | E19: إطار حجري للنافذة أو الباب | F19: stone frame for window or door | G19: provide and install stone frame for doors and windows
A20: 19 | B20: GEN-19 | C20: 2.30 | D20: m² | E20: زريقه اسمنتيه | F20: Cement plastering | G20: Cement plastering (max thickness 25 mm) in two coats (coarse, soft) with using cement caliber is 250 kg/m³ coarse aggregate in the first layer and fine in the second with spraying with water, finish surface should be ready for painting according to the directive of GOAL Engineer.
A21: 20 | B21: GEN-20 | C21: 1.50 | D21: m² | E21: رشة تيرولية | F21: Tyrolean wall coating | G21: Applying Tyrolean wall coating with white and Portland cement 400kg/m³, the spraying must be done by a spraying machine, so that the plaster must be leveled and equal in its thickness with no less than two faces, including the removal of damaged plaster underneath the Tyrolean coating according to the directive of GOAL Engineer.
A22: 21 | B22: GEN-21 | C22: 0.40 | D22: m² | E22: إزالة الزريقة الاسمنتيه التالفة | F22: remove damage plastering | G22: Removing damaged cement plastering
A23: 22 | B23: GEN-22 | C23: 0.80 | D23: m | E23: ملء الشقوق في الجدران بالمعجون | F23: filling cracks in walls with putty | G23: Fixing cracks in walls with cement mortar 1:3 mix with all necessary
A24: 23 | B24: GEN-23 | C24: 2.00 | D24: Lumpsum | E24: ملء الشقوق في الجدران بين الباب و الشباك | F24: filling cracks in walls with cement mortar | G24: Fill all spaces between (door or window) and (wall) with putty with all necessary
A25: 24 | B25: GEN-24 | C25: 8.00 | D25: Lumpsum | E25: اغلاق فتحه في الحائط (50-100 سم) | F25: Close a hole in the wall (50-100 cm) | G25: Close hole in wall width (30-50cm) and height (30-50cm), with cement mortar 1:3 mix with all necessary
A26: 25 | B26: GEN-25 | C26: 10.00 | D26: Lumpsum | E26: اغلاق فتحة في الحائط (30-50 سم) | F26: Close a hole in the wall (30-50cm) | G26: Close hole in wall width (50-100cm) and height (50-100 cm), with cement mortar 1:3 mix with all necessary
A27: 26 | B27: GEN-26 | C27: 5.00 | D27: m² | E27: طلاء العزل | F27: Isolation paint | G27: Supply and install insulation material for from SUTUT Turkish brand or equivalent. The surface should be painted with the material well until the concrete is fully saturated by the material, using the roller only. As for the corners, it should be painted well and at least 20cm high of the parapets should be painted by the material. Therefore, the one kilogram covers an area of no more than 4 m^2. The cost includes spraying Soft sand over the insulating layer. All work must be in accordance with the instructions and directions of the GOAL Engineer.
A28: 27 | B28: GEN-27 | C28: 4.00 | D28: m² | E28: العزل - مادة أساسها الاكريليك | F28: Insulation - acrylic based material | G28: Supply and install insulation material Rubber Acrylic for roofs and walls foundations’ insulation material is the rubber acrylic First class quality. The surface must be cleaned completely by a water pump and a metal brush, then it will rubbed-in with the material until satiation. The isolation material must be laid by paint brushes and squeegees to ensure full coverage of the area, especially the edges and with sufficient thickness.
A29: 28 | B29: GEN-28 | C29: 2.00 | D29: m² | E29: حاجز مقاوم للماء | F29: Water-proof barrier | G29: Providing and installing waterproof barrier (tarpaulins) for roofs, fixed using wooden bars with thickness of 3 cm and width of 5 cm or metal bars 1 inch. The wooden bars fix the tarpaulin from the wall's top surface and additional crossing bars must be added every 1.5 m.
A30: 29 | B30: GEN-29 | C30: 8.00 | D30: m² | E30: ارضيات سيراميك | F30: Ceramic flooring | G30: Providing and installation of ceramics floors with skirting and all necessary to complete the work
A31: 30 | B31: GEN-30 | C31: 5.00 | D31: m² | E31: أرضيات بلاط الحجر | F31: Stone tile flooring | G31: Install crushed stone tiles for all damaged floors in facilities with providing required layers of sand and mortar below it and grout.
A32: 31 | B32: GEN-31 | C32: 8.00 | D32: m² | E32: سيراميك للحوائط | F32: Ceramic for walls | G32: Install ceramic wall tiles for walls including mortar, grout.
A33: 32 | B33: GEN-32 | C33: 1.00 | D33: m² | E33: طلاء طرش | F33: Emulsion paint | G33: Emulsion paint for walls, this includes prep work for the wall (Remove the damaged old paint by brush, sanding and applying putty) then two coats of paint. When calculating the quantity of the paints, all the walls and surfaces are calculated excluding openings and counting any additions of edges and others.
A34: 33 | B34: GEN-33 | C34: 1.20 | D34: m² | E34: دهان زياتي | F34: Oil-based paint | G34: Oil-based paint for walls, this includes prep work for the wall (Remove the damaged old paint by brush, sanding and applying putty) then two coats of paint. When calculating the quantity of the paints, all the walls and surfaces are calculated excluding openings and counting any additions of edges and others.
A35: 34 | B35: GEN-34 | C35: 3.00 | D35: PCs | E35: عتبة حجر الباب | F35: Door stone threshold | G35: Install stone threshold for the bathroom, kitchen, or entrance door. Dimensions according to the opening, thickness 2cm minimum, 20 cm in width with all necessary to complete the work
A36: 35 | B36: GEN-35 | C36: 40.00 | D36: m³ | E36: صبة اسمنتية عيار البيتون 250 كغ / م 3 سم بدون حديد تسليح مع الصقل سماكة 5 سم | F36: Concrete SoG | G36: Plain concrete slab on grade 250 kg/m3 , 5 cm thickness
A37: 36 | B37: GEN-36 | C37: 2.50 | D37: m² | E37: زريقة عيار بيتون 400 كغ/م3 مع إضافة مادة بوليبونت بنسبة 1 كغ/ 50 كغ اسمنت مع معالجة حديد السقف | F37: Cement plastering with polybond | G37: Cement plastering 400 kg/m3 with adding polybond 1:50 kg ratio, with cleaning steel rebars before the application
A38: 37 | B38: WD-1 | C38: 40.00 | D38: m² | E38: نوافذ خشبية | F38: Wooden windows | G38: Provide and install a pine wooden casement window with 2 hinges for each side, 5 mm glazing, frame, lock and handles, and all other accessories, finished with under coat and two coats of paints) this includes filling the spaces between the wall and the door frame using mortar, spraying foam, silicon.
A39: 38 | B39: WD-2 | C39: 0.60 | D39: m | E39: حاجب خشبي (برواز)للنافذة أو الباب | F39: Casing for wooden window | G39: Install a wooden casing for window or door, width 5 cm) and thickness (1 cm), this includes filling the spaces between the wall and the door frame using mortar, spraying foam, silicon.
A40: 39 | B40: WD-3 | C40: 43.00 | D40: m² | E40: باب من الخشب معاكس | F40: Plywood door | G40: Install a plywood door, complete with (frame, casing, side jambs, lock, handle, hinges) and all other accessories, finished with under coat and two coats of paints) this includes filling the spaces between the wall and the door frame using mortar, spraying foam, silicon.
A41: 40 | B41: WD-4 | C41: 45.00 | D41: m² | E41: باب من خشب (سويد) | F41: Pinewood door | G41: Install a pine wood class 3 door internal and or external use, complete with (frame, casing, side jambs, lock, handle,3 hinges) and all other accessories, finished with under coat and two coats of paints) this includes filling the spaces between the wall and the door frame using mortar, spraying foam, silicon.
A42: 41 | B42: WD-5 | C42: 20.00 | D42: m | E42: عضادات الأبواب الخشبية باطار من خشب سويد ( ملبن الخشب ) | F42: wooden door jamb | G42: Replace wooden door jambs with pine wood frame third class width 12 cm Thickness of 5 under coat and two coats of paints with necessary accessories to retain the door to the intended use
A43: 42 | B43: WD-6 | C43: 0.00 | D43: 0 | E43: زجاج النوافذ الخشبية | F43: wooden window glazing-glass | G43: Supply and install glass thickness of 5 mm for window, with all necessary to complete the work
A44: 43 | B44: WD-7 | C44: 3.00 | D44: m² | E44: زجاج النافذة الخشبية - زجاج الفايبر | F44: wooden window glazing-Polycarbonate glass | G44: Supply and install Polycarbonate glass plates plate thickness of 5 mm for window, with all necessary to complete the work
A45: 44 | B45: WD-8 | C45: 7.00 | D45: PCs | E45: إصلاح كشف الباب الخشبي | F45: repair of wooden door | G45: Repair frame for required wooden doors, includes filling the spaces between the wall and the door frame using mortar, spraying foam, silicon or plastering.
A46: 45 | B46: WD-9 | C46: 16.00 | D46: PCs | E46: إصلاح إطار الباب الخشبي | F46: repair of wooden door frame | G46: Repair wooden door including reinstalling lock, hinge, handle, or close an opening that ranges in dimension between 50 to 100 cm in length and 20 to 50 cm in width with all necessary items to complete the work
A47: 46 | B47: WD-10 | C47: 3.00 | D47: m² | E47: دهان باب خشبي | F47: Paint of wooden door | G47: paint wooden door, including jambs and casing, fill all cracks sanding, and paint primer coat, then under coat and finishing coats)
A48: 47 | B48: WD-11 | C48: 2.00 | D48: PCs | E48: مفصلات الأبواب الخشبية | F48: Wooden door hinges | G48: Install hinges for wooden doors, with all necessary to complete the work
A49: 48 | B49: WD-12 | C49: 7.00 | D49: PCs | E49: قفل أو مقبض باب خشبي أو النافذة | F49: Wooden door or window lock and handle | G49: Replace wooden door or window lock and handle, with all necessary to complete the work
A50: 49 | B50: WD-13 | C50: 11.00 | D50: PCs | E50: قفل باب خشبي | F50: Wooden door lock | G50: Install a new lock for required wooden doors in building, with all necessary to complete the work
A51: 50 | B51: WD-14 | C51: 6.00 | D51: m² | E51: قاطع خشبي | F51: wooden partition | G51: Install wooden partition including wooden frame and all required item for fixing the wooden panels
A52: 51 | B52: WD-15 | C52: 6.00 | D52: m² | E52: ألواح فورمايكا | F52: laminated wood panels | G52: Supply and install laminated wood panels with wooden frame to closing the gaps above doors and windows with dimension width (140-160) cm and height (25-40) cm according to the directive of GOAL Engineer.
A53: 52 | B53: ST-1 | C53: 125.00 | D53: PCs | E53: باب حديد | F53: Steel door | G53: Supply and install of steel doors the width between (80-100) cm and height between (180-210) cm with metal handle and frame section 3X4 CM Profile and the door Profile section door is covered with iron sheet thickness of 2 mm, door weight of 70 kg. with Lock/keys and 3 hinges 16 mm) spray painted with 1 layer of prime coat and 2 coats of oil-based paint
A54: 53 | B54: ST-2 | C54: 38.00 | D54: PCs | E54: نافذة حديدية | F54: Steel window | G54: Supply and install iron casement window the width between (80-100) cm and height between (80-110) cm frame section 3X4 CM profiles and the window section profile 3X4 CM with glazing, window Weight 30 kg with a Lock and 2 hinges (12 mm) good quality for each side with spray painted with 1 layer of prime coat and 2 coats of oil-based paint
A55: 54 | B55: ST-3 | C55: 30.00 | D55: m² | E55: استبدال نافذة الحديد | F55: Replace steel window | G55: Install/replace steel window casement spray painted with 1 layer of prime coat and 2 coats of oil-based paint
A56: 55 | B56: ST-4 | C56: 10.00 | D56: PCs | E56: تثبيت إطار الباب الحديد أو النافذة | F56: Fixing steel door or window frame | G56: Fixing steel frame for door or window
A57: 56 | B57: ST-5 | C57: 16.00 | D57: PCs | E57: إصلاح الباب الحديد | F57: Repair steel door | G57: Repair steel door or window including closing holes and reinstalling lock, hinge, handle, or close an opening with galvanized steel sheet thickness 2 mm and adding flat iron bar with welding on old doors with different dimension with all necessary items to complete the work
A58: 57 | B58: ST-6 | C58: 15.00 | D58: PCs | E58: مقبض الباب الحديد | F58: steel door handle | G58: Install a new lock and handle for required steel doors
A59: 58 | B59: ST-7 | C59: 25.00 | D59: PCs | E59: طلاء الباب الحديد | F59: steel door painting | G59: paint steel door and frame, sanded, spray painted with 1 layer of prime coat and 2 coats of oil-based paint
A60: 59 | B60: ST-8 | C60: 10.00 | D60: PCs | E60: استبدال مفصلات الأبواب الحديدية | F60: replace steel door hinges | G60: Replace hinges for steel doors, with all necessary to complete the work
A61: 60 | B61: ST-9 | C61: 4.00 | D61: m² | E61: زجاج النافذة الحديدية - زجاج فايبر | F61: steel window glazing-Polycarbonate glass | G61: Supply and install Polycarbonate glass plates plate thickness of 5 mm for steel window, with all necessary to complete the work
A62: 61 | B62: ST-10 | C62: 9.00 | D62: m² | E62: نافذة زجاجية من الحديد | F62: steel window glazing-glass | G62: Supply and install glass thickness of 5 mm for steel window, with all necessary to complete the work
A63: 62 | B63: ST-11 | C63: 1.50 | D63: kg | E63: درابزين حديدي | F63: steel handrail | G63: Install safety tools to prevent falls, such as steel handrails not less than 90cm high
A64: 63 | B64: ST-12 | C64: 1.50 | D64: kg | E64: صندوق حديدي | F64: steel bars box | G64: Install steel box made of steel bars for communal drinking points to protect them against robbery
A65: 64 | B65: ST-13 | C65: 1.50 | D65: kg | E65: شبك حماية لنافذة حديدية | F65: steel security bars | G65: Install window's steel security bars, with all necessary to complete the work
A66: 65 | B66: ST-14 | C66: 1.50 | D66: kg | E66: بوابة حديدية | F66: steel gate | G66: Install external steel gate for building
A67: 66 | B67: ST-15 | C67: 15.00 | D67: m² | E67: إصلاح البوابة الحديدية | F67: steel gate repair | G67: Install a new perforated plate for main gate
A68: 67 | B68: ST-16 | C68: 6.00 | D68: PCs | E68: قفل الباب من نوع دقر ل باب معدني | F68: latch lock for steel door | G68: Install a door latch lock on steel door
A69: 68 | B69: ST-17 | C69: 30.00 | D69: PCs | E69: رمبه حديديه | F69: steel ramp | G69: Install ramp for disabled, high 30 cm with required paint
A70: 69 | B70: ST-18 | C70: 2.26 | D70: m | E70: درابزين حديدي لمنحدر | F70: steel handrail for a ramp for PLWD | G70: Supply and install metal pipe 2 mm thickness 5 cm diameter hollow section Disability Handrail
A71: 70 | B71: ST-19 | C71: 5.00 | D71: PCs | E71: قبضة مسند معدنية للتواليت الافرانجي | F71: tiled handles for PLWD | G71: Supply and Install steel handles for Toilets
A72: 71 | B72: ST-20 | C72: 4.30 | D72: m² | E72: سقف مصنوع من الصاج المزيبق | F72: steel roofing | G72: Supply and install roof made of galvanized corrugated sheet 0.5 mm and fixing by using steel profile in two direction (5x3x0.2) cm with 1 m spacing, fixing with screw and sealing off any openings between ceiling and wall using cement mortar
A73: 72 | B73: ST-21 | C73: 1.50 | D73: kg | E73: قاعدة خزان المياه | F73: water tank base | G73: Supply and install elevated metal base for fixing water tank on using metal tubes profile (4x4) cm thickness of 4mm and angles 3x3 cm thickness of 4mm with base spray painted with 1 layer of prime coat and 2 coats of oil-based paint
A74: 73 | B74: ST-22 | C74: 15.00 | D74: m² | E74: الأسقف (الساندوتش بانيل) | F74: insulated steel roofing | G74: Providing/Replacement Roofing (Sandwich Panel (supply and install sandwich panel for the roofs, fixed on steel frame and overhanging of 15 cm from all sides. structural frame (tube 4cm*6cm*2mm), additional tubes should be provided to the structure every 1.5 m, include painting all the frame with anti-rust paint base and two layers of paint. Proper flashing with steel or PVC angles if the walls are of sandwich panels. block work to ensure minimum inclination of removing the existing damaged roofs if exist, restoring any existing lights, ceiling fans, on roof tanks and piping to the new roofs after the installation, installation of rainwater drainage gutters and down spout, with all the related works and accessories and as instructed by the GOAL engineer.
A75: 74 | B75: ST-23 | C75: 1.40 | D75: Kg | E75: عناصر الحديد المجلفن | F75: Galvanized steel items | G75: Provide and install galvanized steel items with all necessary.
A76: 75 | B76: AL-1 | C76: 50.00 | D76: m² | E76: نافذة سحاب من الألومنيوم | F76: Aluminum sliding window | G76: Install aluminum sliding window complete with the frame, glazing fixed by glazing bead and sealed with rubber, lock, rollers, sliding panel, weather stripping, and all necessary accessories and wire mesh fly screen. this includes filling the spaces between the wall and the door frame using mortar, spraying foam, silicon.
A77: 76 | B77: AL-2 | C77: 35.00 | D77: m² | E77: درفه نافذة سحاب الالمنيوم | F77: Aluminum window sliding panel | G77: Install aluminum sliding window panel with glazing fixed by glazing bead and sealed with rubber, and lock.
A78: 77 | B78: AL-3 | C78: 40.00 | D78: m² | E78: نافذة الألمنيوم قلاب | F78: Aluminum awning window | G78: Install aluminum awning window with glazing fixed by glazing bead and sealed with rubber, handle, weather stripping, linkage set and all necessary accessories and wire mesh fly screen. this includes filling the spaces between the wall and the door frame using mortar, spraying foam, silicon.
A79: 78 | B79: AL-4 | C79: 4.00 | D79: m² | E79: لوح زجاجي بولي كربونات سماكة 5مم للنافذة الالمنيوم | F79: Aluminum window glazing-Polycarbonate glass | G79: Supply and install Polycarbonate glass plates plate thickness of 5 mm for window with the installation of rubber sealant
A80: 79 | B80: AL-5 | C80: 10.00 | D80: m² | E80: لوح زجاجي سماكة 5مم للنافذة الالمنيوم | F80: Aluminum window glazing-glass | G80: Supply and install glass for window thickness of 5 mm for window with the installation of rubber sealant Glass panel must be free of from flaws, fractures, or any other defects
A81: 80 | B81: AL-6 | C81: 16.00 | D81: PCs | E81: صيانة الابواب والشبابيك الالمنيوم او البي في سي | F81: Maintenance of Aluminum or PVC doors and windows | G81: Maintenance of Aluminum or PVC Items (doors and windows)
A82: 81 | B82: AL-7 | C82: 45.00 | D82: m² | E82: باب المنيوم | F82: Aluminum door | G82: Supply and install painted aluminum door width 6 cm with frame, side jambs, lock, handle with the installation PVC infill panels and middle bars this includes filling the spaces between the wall and the door frame using mortar, spraying foam, silicon.
A83: 82 | B83: AL-8 | C83: 40.00 | D83: PCs | E83: باب PVC | F83: PVC door | G83: Supply and install ready-made PVC door “ray pen” or “sega pen” or equivalent brand in brown or white color including all accessories. All PVC profile sections should be with thickness not less than 1,5 mm. The glass to be fixed with non-degradable rubber gaskets on both ends. The frame should be fixed well on the wall with screws and filling the spaces between the wall and the door frame using Mortar, spraying foam, silicon. The price includes adjusting the dimensions of the doors inside the house to match the dimensions of the readymade doors available on the market.
A84: 83 | B84: AL-9 | C84: 36.80 | D84: PCs | E84: نافذة PVC | F84: PVC window | G84: Supply and install ready-made PVC window “ray pen” or “sega pen” or equivalent brand in brown or white color including all accessories. All PVC profile sections should be with thickness not less than 1,5 mm. The glass to be fixed with non-degradable rubber gaskets on both ends. The frame should be fixed well on the wall with screws and filling the spaces between the wall and the door frame using Mortar, spraying foam, silicon.
A85: 84 | B85: WSAN-1 | C85: 25.00 | D85: PCs | E85: مغسلة بورسلين | F85: Porcelain washbasin | G85: Supply and install of porcelain washbasin with a column Turkey (OMEGA) brand, with dimension (55x43) cm and with accessories and fixing on wall with adding white or transparent silicon to close the gaps between the sink and its surrounding according to the field and the directive of GOAL Engineer.
A86: 85 | B86: WSAN-2 | C86: 50.00 | D86: PCs | E86: حوض ستانلس ستيل | F86: Stainless steel washbasin | G86: Supply and install of steel washbasin with dimension (100x45) cm and with accessories and fixing on wall with adding white or transparent silicon to close the gaps between the sink and its surrounding according to the field and the directive of GOAL Engineer.
A87: 86 | B87: WSAN-3 | C87: 5.00 | D87: PCs | E87: حنفيه ماء | F87: water tap | G87: Install a copper core water tap, with all necessary to complete the work
A88: 87 | B88: WSAN-4 | C88: 15.00 | D88: PCs | E88: خلاط المياه | F88: water mixer | G88: supply and install water mixer copper covered with chrome according to the field and the directive of GOAL Engineer.
A89: 88 | B89: WSAN-5 | C89: 60.00 | D89: PCs | E89: مجلى ستينلس ستيل | F89: stainless steel sink | G89: Install a stainless-steel sink drop-In at least 80 x 50 cm double equal bowl and 1-hole with all necessary connections and hardware
A90: 89 | B90: WSAN-6 | C90: 40.00 | D90: m² | E90: كاونتر مطبخ من الحجر مع وقافات حجر 8سم | F90: kitchen counter | G90: Install smooth stone countertop beside the sink a supported by stone frame base 8 cm
A91: 90 | B91: WSAN-7 | C91: 25.00 | D91: PCs | E91: مرحاض القرفصاء | F91: Toilet squatting pan | G91: Provision and Replacement of damaged squatting pan by new porcelain squatting W.C. (L=55, W=30, H=27) cm and installs it with (S connection) and all required fittings & accessories. This item includes all needed works for eliminating the old damaged squatting, and includes drillings and backfilling works and transport of excess excavations according to GOAL engineer instructions.
A92: 91 | B92: WSAN-8 | C92: 55.00 | D92: PCs | E92: بطه حمام | F92: Toilet seat | G92: Provide and install a toilet seat, works include all accessories needed (Elbow and pipes), fixation with mortar (sand and cement)
A93: 92 | B93: WSAN-9 | C93: 1.50 | D93: PCs | E93: نبريش مرش يدوي | F93: Toilet hand spray set | G93: Install a hand spray complete set in the latrine, with all necessary to complete the work
A94: 93 | B94: WSAN-10 | C94: 1.50 | D94: PCs | E94: مصرف أرضيه ستينلس | F94: Stainless steel floor trap | G94: Supply and install stainless steel floor trap with cover, Delphine brand or equivalent in specified places according to the field and the directive of GOAL Engineer.
A95: 94 | B95: WSAN-11 | C95: 0.75 | D95: m | E95: مواسير PPR لنظام مياه الشرب 0.75 انش | F95: 0.5" PPR pipes | G95: Provide and install PPR pipes for drinking water system 0.5 inch "M" Pipes used for this system must be (PPR), thickness not less than 3.5mm, pressure 10 bar All accessories of metal joint, ends and connections, with fixing the pipes using cement and trench digging
A96: 95 | B96: WSAN-12 | C96: 1.00 | D96: m | E96: مواسير PPR لنظام مياه الشرب 0.5 انش | F96: 0.75" PPR pipes | G96: Provide and install PPR pipes for drinking water system 0.75 inch "M" Pipes used for this system must be (PPR), thickness not less than 3.5mm, pressure 10 bar All accessories of metal joint, ends and connections, with fixing the pipes using cement and trench digging
A97: 96 | B97: WSAN-13 | C97: 1.50 | D97: m | E97: مواسير PPR لنظام مياه الشرب 1 انش | F97: 1" PPR pipes | G97: Provide and install PPR pipes for drinking water system 1 inch "M" Pipes used for this system must be (PPR), thickness not less than 3.5mm, pressure 10 bar All accessories of metal joint, ends and connections, with fixing the pipes using cement and trench digging
A98: 97 | B98: WSAN-14 | C98: 1.10 | D98: m | E98: 2 "أنابيب PVC | F98: 2" PVC pipes | G98: Supply and install of PVC pipes, 2 inches diameter weight of with compatible accessories with digging and backfilling according to the directive of GOAL Engineer.
A99: 98 | B99: WSAN-15 | C99: 1.75 | D99: m | E99: 4 "أنابيب PVC | F99: 4" PVC pipes | G99: Supply and install of PVC pipes, 4 inches diameter weight of with compatible accessories with digging and backfilling according to the directive of GOAL Engineer.
A100: 99 | B100: WSAN-16 | C100: 5.00 | D100: m | E100: 6 "أنابيب PVC | F100: 6" PVC pipes | G100: Supply and install of PVC pipes, 6 inches diameter weight of with compatible accessories with digging and backfilling according to the directive of GOAL Engineer.
A101: 100 | B101: WSAN-17 | C101: 6.00 | D101: m | E101: 8 "أنابيب PVC | F101: 8" PVC pipes | G101: Supply and install of PVC pipes, 8 inches diameter weight of with compatible accessories with digging and backfilling according to the directive of GOAL Engineer.
A102: 101 | B102: WSAN-18 | C102: 35.00 | D102: PCS | E102: خزان مياه من الحديد المجلفن سعة 250 لتر | F102: 250 L galvanized steel water tank | G102: Providing and installing (250-liter, 1 mm thickness) water tank and all needed PPR connections, fittings, valves and all necessary to carry out the work according to the GOAL Engineer instructions
A103: 102 | B103: WSAN-19 | C103: 100.00 | D103: PCs | E103: خزان مياه من الحديد المجلفن 1000 لتر | F103: 1000 L galvanized steel water tank | G103: Provide and install a tank of thickness 1.2 mm type of galvanized and size of 1000 liters with a hole and a roof lock 50 * 50 cm and the dimensions of the tank 1 * 1 * 1 m with the and brass valve 1/2-inch number3 and the accessories to the taps Working with 30 cm legs and inner reinforcement horizontal corners of the galvanized and galvanized as directed by GOAL Engineer
A104: 103 | B104: WSAN-20 | C104: 150.00 | D104: PCs | E104: خزان مياه من الحديد المجلفن سعة 2000 لتر | F104: 2000 L galvanized steel water tank | G104: Provide and install a tank of thickness 1.2 mm type of galvanized and size of 2000 liters with a hole and a roof lock 50 * 50 cm and the dimensions of the tank 1 * 1 * 1 m with the and brass valve 1/2-inch number3 and the accessories to the taps Working with 30 cm legs and inner reinforcement horizontal corners of the galvanized and galvanized as directed by GOAL Engineer
A105: 104 | B105: WSAN-21 | C105: 1.00 | D105: PCs | E105: فواشة لخزانات المياه | F105: Water tank floating valve | G105: Install new floating valve for the water tanks, with all necessary to complete the work
A106: 105 | B106: WSAN-22 | C106: 20.00 | D106: m² | E106: غطاء معدني لجورة الفنية | F106: Metal lid for septic tank | G106: Provision and installation of a metal lid for the septic tank according to the following specifications: 1- dimensions of the roof: 2.5*2.5 m 2- rectangle metal beams (the Cross-section dimensions: 40*60*2 mm). the total length of metal profiles at least 16 linear meter) and. the roof includes a slot (dimensions: 40*40 cm) equipped handle and lock according to the supervisor instructions. 3 - galvanized metal sheets and corrugated (thickness 0.6 mm, Wave height: 18mm (+/-2) mm. Wave distance: 76.2mm (+/-3) mm.) for septic tank roof, it will be fixed above the steel beams by suitable bolts
A107: 106 | B107: WSAN-23 | C107: 10.00 | D107: m | E107: مزراب نازل مطري قسطل pvcقطر 2 انش | F107: RWD Gutter | G107: Provide and install pvc pipe2 inch for rainwater drainage gutter with all the necessary elbows and connection and fixing to the wall according to the directions of GOAL Engineer
A108: 107 | B108: WSAN-24 | C108: 15.00 | D108: PCs | E108: وصله مرحاض (نوع S) | F108: Toilet trap type-S | G108: Provision and installation of toilet trap (S type) with all connections
A109: 108 | B109: WSAN-25 | C109: 15.00 | D109: Lumpsum | E109: (تسليك )للمراحيض ونظام الصرف الصحي | F109: Toilet Declogging | G109: Mechanical Declogging of toilet drains and the sewage system the toilets must be cleaned and emptied well until the water is well discharged. • It must be done by pumping water and spring methods or drilling if necessary, • All drainages and sewers inside one house or one toilets block are considered one unit.
A110: 109 | B110: EL-1 | C110: 8.00 | D110: Lumpsum | E110: إزالة جميع التوصيلات الكهربائية الخاطئة و الخطرة | F110: Faulty wiring removal | G110: Remove all faulty wiring and electrical connections
A111: 110 | B111: EL-2 | C111: 2.00 | D111: m | E111: نبريش مرن لجميع التوصيلات الكهربائية المكشوفة | F111: electrical wire flexible conduit | G111: Install electrical wire flexible conduit to cover all uncovered electrical wiring
A112: 111 | B112: EL-3 | C112: 1.70 | D112: PCs | E112: لمبة اضاءة ليد | F112: LED light bulb | G112: Provision and installation of soft LED light ready to use
A113: 112 | B113: EL-4 | C113: 5.00 | D113: PCs | E113: نقطة إنارة كهربائية | F113: Light point | G113: supply and installation of electrical lighting point, including installation of a single and braided regular cable with a thickness of (1.5 mm) made of copper with the necessary items such as: duct tape for concealed extension, plastic channel before plastering, distribution boxes if needed, chassis, cover, switch, 12 watts bulb for utilities, 18 watts bulb for rooms, and the main distribution box in the house.
A114: 113 | B114: EL-5 | C114: 1.00 | D114: PCs | E114: تثبيت حامل اللمبة (سوكة) | F114: light bulb holder | G114: Install bulb holder
A115: 114 | B115: EL-6 | C115: 0.80 | D115: PCs | E115: تركيب مفتاح كهربائي (ابريز) | F115: electrical switch | G115: Install electrical switch
A116: 115 | B116: EL-7 | C116: 0.80 | D116: PCs | E116: مقبس كهربائي | F116: electrical socket | G116: Supply and install electrical socket outlet, for internal and external base vimar brand china or equivalent , 250V, 10 A in accordance with all applicable codes and regulations and as approved by the site engineer
A117: 116 | B117: EL-8 | C117: 7.00 | D117: PCs | E117: نقطة مأخذ كهربائي | F117: Electrical outlet point | G117: Supply and installation of the electrical outlet The work must include an installation of a first-rate thermal electrical outlet, in addition to all the necessary wires, a single and braided regular cable with thickness of (2 mm) which made of copper must be linked from the main breaker switch to the point with the necessary duct tape for concealed extension, plastic channel before plastering
A118: 117 | B118: EL-9 | C118: 1.00 | D118: PCs | E118: قاطع دائرة | F118: Circuit breaker | G118: Install a new single room circuit breaker, with all necessary to complete the work
A119: 118 | B119: EL-10 | C119: 4.00 | D119: Lumpsum | E119: مروحة التهوية | F119: Ventilation fan | G119: Install a mechanical ventilation fan for the latrines/kitchen and all needed materials and connections
A120: 119 | B120: EL-11 | C120: 45.00 | D120: PCs | E120: الألواح الشمسية 150 وات | F120: PV panel 250 Watt | G120: Install a solar PV panels, 150-Watt, 12 V with 25 degrees tilting angle with a way to protect the panels
A121: 120 | B121: EL-12 | C121: 65.00 | D121: PCs | E121: الألواح الشمسية 250 وات افضل نوع | F121: PV panel 150 Watt | G121: Provide and install solar panels 250W,24V polycrystalline class origin of photovoltaic with all needed
A122: 121 | B122: EL-13 | C122: 1.25 | D122: m | E122: شريط إضاءة LED | F122: LED light strip | G122: Install led light strip with switch's
A123: 122 | B123: EL-14 | C123: 14.00 | D123: PCs | E123: منظم شحن | F123: Charge controller | G123: Install a 30-amp charge controller with all related accessories
A124: 123 | B124: EL-15 | C124: 200.00 | D124: PCs | E124: بطارية جل | F124: Gel Battery | G124: Provide and install rapped dry battery GEL, deep cycle with capacity 210 A, 12V with all needed
A125: 124 | B125: EL-16 | C125: 145.00 | D125: PCs | E125: بطارية سائلة | F125: Liquid battery | G125: Provide and install Liquid battery, with capacity 240 A, 12V with all needed
A126: 125 | B126: EL-17 | C126: 165.00 | D126: PCs | E126: انفرتر | F126: Inverter | G126: Provide and install inverter voltronic original, 3 KVA, single phase with all the needed protection breakers and accessories
A127: 126 | B127: EL-18 | C127: 100.00 | D127: PCs | E127: هيكل تركيب الألواح الكهروضوئية | F127: PV panels mounting structure | G127: Install an iron structure to mount the solar PV panels moving base with a long arm motor and a light tracking circuit, the works include all related clamps, screws, fixation to the building without affecting the roofs water proofing integrity.
A128: 127 | B128: EL-19 | C128: 1.00 | D128: m | E128: كابل كهربائي 1.5 مم | F128: 1.5 mm electrical cable | G128: Provide and install of copper cable 1.5 mm2 used for solar energy with all needed
A129: 128 | B129: EL-20 | C129: 1.80 | D129: m | E129: كابل كهربائي 2.5 مم | F129: 2.5 mm electrical cable | G129: Provide and install of copper cable 2.5 mm2 used for solar energy with all needed

Sheet Master BoQ (hidden)
A2: # | B2: Category | C2: English description | D2: Arabic description | E2: Arabic specification | F2: English specification | G2: Unit
A3: 1 | B3: Excavation and backfilling أعمال الحفر و الردم | C3: Excavations of any kind | D3: حفريات مهما كان نوعها | E3: حفريات وصولا الى مستوى اساس الاعمدة والجدران او لخنادق القساطل و الجور الفنيه، ، يجب نقل بقايا الحفر إلى أقرب مكب معتمد وفقا لتوجيهات مهندس غول. يشمل سعر الحفريات كافة الأعمال المطلوبة لضمان سلامة العمال والمستفيدين. | F3: Excavationdown to the level of columns and walls' foundation, or for pipes trenches and septic tanks, excavation remnants must be moved to the nearest approved dumping site. according to the GOAL Engineer directions. The price of the excavation includes all the required works to ensure safety of workers and beneficiaries. | G3: m³
A4: 2 | B4: Excavation and backfilling أعمال الحفر و الردم | C4: Backfilling | D4: ردم | E4: ردم الحفر المفتوحة و خنادق الانابيب و القساطل باستخدام المواد المعتمدة من قبل مهندس غول (مواد الردم اما من نفس الموقع او نواتج حفر او باستخدام الزرادة(كرابية) | F4: Backfill the open pits and trenches using materials approved by the GOAL Engineer (backfilling materials: either from the same site, approved excavated materials or by using gravels) | G4: m³
A5: 3 | B5: Demolition works أعمال الهدم | C5: Demolition or dismantling of walls | D5: هدم جدران او تفكيكها | E5: هدم الجدران التالفة والمتشققة ، يتم العمل يدوياً أو باستخدام الآلات المتاحة والمناسبة لكل موقع. يجب نقل الأنقاض إلى المكبات المعتمدة حتى لا تسبب أي ضرر لأي شخص أو بأرض زراعية. يشمل العمل هدم العناصر الإنشائية والكتل الخرسانية والجدران الحجرية , و البيتون المغموس والنوافذ والأبواب ..) وأجزاء أخرى يحددها مهندس GOAL (يدويًا أو باستخدام كمبريسه) مع مراعاة شروط السلامة والأمن. | F5: Demolishing of damaged and cracked walls, work shall be done manually or using machinery as available and appropriate for each the site. Rubbles should be moved to approved dumpsites, so it does not cause any damage to any person or agricultural land. The work includes demolishing structural elements, concrete block and stone walls, cyclopean concrete, windows, and door...) and other parts specified by the GOAL Engineer (manually or using pneumatic drill), taking into consideration safety and security conditions. | G5: m³
A6: 4 | B6: Demolition works أعمال الهدم | C6: Rubble Removal | D6: ترحيل انقاض | E6: إزالة ونقل المواد المحفورة أو الأنقاض إلى المكبات المعتمدة بحيث لا تسبب أي ضرر للسكان أو الاراضي الزراعية. | F6: Removing and transporting excavated materials or rubble to approved landfills so that they do not cause any harm to residents or agricultural lands. | G6: m3
A7: 5 | B7: Concrete Works أعمال البيتون | C7: Plain Concrete 200 kg/m³ | D7: بيتون عادي 200 كغ/م3 | E7: تجهيز وصب بيتون بالقالب عيار 200 كغ/م3 لتغطية الشقوق او تغطية لارضيات مع الصقل بسماكة (8 سم-10سم) مع الرش بالماء مع كافة الأعمال اللازمة بالشكل المطلوب حسب توجيهات مهندس غول | F7: providing and pouring concrete, cement caliber 200 kg/m³ to cover cracks or cover flooring, with smoothing, thickness of layer (10 cm-8cm) with spraying with water, with all the needed form works according to the directive of GOAL Engineer. | G7: m³
A8: 6 | B8: Concrete Works أعمال البيتون | C8: Cyclopean Concrete 250 kg/m³ | D8: بيتون مغموس 250 كغ/م3 | E8: تجهيز وصب بيتون مغموس عيار الاسمنت 250كغ /م3 لبناء عناصر مع الرش بالماء مع كافة الأعمال بالشكل المطلوب حسب توجيهات مهندس غول | F8: providing and pouring cyclopean concrete, cement caliber 250 kg/m³ to construct elements, with spraying with water, with all the needed form works according to the directive of GOAL Engineer. | G8: m³
A9: 7 | B9: Concrete Works أعمال البيتون | C9: Reinforced concrete 350 kg/m³/70/Kg | D9: بيتون مسلح 350 كغ/م3 وزن حديد التسليح/70/كغ /م3 | E9: تجهيز وصب بيتون مسلح بالقالب عيار 350كغ/م3 وزن حديد التسليح/70/كغ /م3 لاصلاح وتعبئة العناصر الانشائية مع التنعيم والصقل و رش الماء مع كافة الأعمال بالشكل المطلوب حسب توجيهات مهندس غول | F9: providing and pouring reinforced concrete caliber 350 kg/m³, ,weight of rebars 70 kg/m3to repair and fill the structural elements, with smoothing and polishing, with spraying water with all the needed form works. with all the needed form works according to the directive of GOAL Engineer. | G9: m³
A10: 8 | B10: Concrete Works أعمال البيتون | C10: Reinforced concrete 350 kg/m³ 90kg/m3 | D10: بيتون مسلح 350 كغ/م3وزن حديد التسليح/90/كغ /م3 | E10: تجهيز وصب بيتون مسلح بالقالب عيار 350كغ/م3 وزن حديد التسليح/90/كغ /م3لاصلاح وتعبئة العناصر الانشائية مع التنعيم والصقل و رش الماء مع كافة الأعمال بالشكل المطلوب حسب توجيهات مهندس غول | F10: providing and pouring reinforced concrete caliber 350 kg/m³,weight of rebars 90 kg/m3 to repair and fill the structural elements, with smoothing, with spraying water with all the needed form works. with all the needed form works according to the directive of GOAL Engineer. | G10: m³
A11: 9 | B11: Concrete Works أعمال البيتون | C11: concrete ramp | D11: رمبة بيتونية | E11: تقديم وتركيب رمبة عند الاماكن التي يحددها المهندس المشرف ليتم استخدامها من قبل ذوي الاحتياجات الخاصة. يجب ان تكون الرمبة بعرض 110 سم وميل الرمبة لا يتجاوز 1/10 | F11: Providing and installing a ramp at the places specified by the supervising engineer to be used by people with special needs. The ramp must be 110 cm wide and the slope of the ramp must not exceed 1/10 | G11: m3
A12: 10 | B12: Concrete Works أعمال البيتون | C12: Temporary support | D12: دعم مؤقت للاسقف | E12: يتم بواسطة دعامات معدنية بحيث لها شرار يتم الشد حتى نصل الى المستوى المطلوب | F12: It is done by means of metal supports that have sparks that are tightened until we reach the required level | G12: m2
A13: 11 | B13: Concrete Works أعمال البيتون | C13: supporting of a concrete column or beam | D13: تدعم عمود او جائز خرساني | E13: يتم من خلال تنظيف البيون بشكل جيد وازالة كل جزء متكسر والكشف عن الحديد ويتم تنظيفه بشكل جيد ودهانه بواسطة الايبوكسي وزرع التشاريك بعمق لايقل عن 10 سم وتباعد لايزيد عن 25 سم | F13: The concrete is cleaned well, every broken part is removed, the iron is detected, it is cleaned well, painted with epoxy, and the screed is planted at a depth of not less than 10 cm and a distance of not more than 25 cm | G13: PCs
A14: 12 | B14: Walls works أعمال الجدران | C14: concrete block wall(10)cm | D14: جدران من البلوك 10سم | E14: تقديم وتركيب جدار من البلوك النصف مليئ (40*20) سم سماكة البلوك( 10) سم حسب توجهات المهندس المشرف (للسماكة) بكثافة 100كغ/م3 لتكميل و انشاء الجدران الداخلية والخارجية وسد الفتحات رباط مستمر يجب ان يتم التركيب فوق فرشه بيتون مع كل ما يلزم من مونه اسمنتيه 1:3 خلط بارتفاع 15 مم بين الصفوف المنشأة ورش المياه وجميع أعمال التشطيب ذات الصلة وفقا لتعليمات مهندس غول | F14: Supply and install hollow bricks (40*20 cm), block thickness (10) cm with 100kg/m³ density for completing internal and external walls and filling open holes. Half-bond the installation should carried out with all needed cement sand mortar (1:3) mix 15 mm between the constructed rows, water spraying, and all related finishing works according to the instruction of the GOAL Engineer. | G14: m²
A15: 13 | B15: Walls works أعمال الجدران | C15: concrete block wall(15)cm | D15: حدران من البلوك 15سم | E15: تقديم وتركيب جدار من البلوك النصف مليئ (40*20) سم سماكة البلوك( 15) سم حسب توجهات المهندس المشرف (للسماكة) بكثافة 100كغ/م3 لتكميل و انشاء الجدران الداخلية والخارجية وسد الفتحات رباط مستمر يجب ان يتم التركيب فوق فرشه بيتون مع كل ما يلزم من مونه اسمنتيه 1:3 خلط بارتفاع 15 مم بين الصفوف المنشأة ورش المياه وجميع أعمال التشطيب ذات الصلة وفقا لتعليمات مهندس غول | F15: Supply and install hollow bricks (40*20 cm), block thickness (15) cm with 100kg/m³ density for completing internal and external walls and filling open holes. Half-bond the installation should carried out with all needed cement sand mortar (1:3) mix 15 mm between the constructed rows, water spraying, and all related finishing works according to the instruction of the GOAL Engineer. | G15: m²
A16: 14 | B16: Walls works أعمال الجدران | C16: concrete block wall(20)cm | D16: حدران من البلوك 20سم | E16: تقديم وتركيب جدار من البلوك النصف مليئ (40*20) سم سماكة البلوك( 20) سم حسب توجهات المهندس المشرف (للسماكة) بكثافة 100كغ/م3 لتكميل و انشاء الجدران الداخلية والخارجية وسد الفتحات رباط مستمر يجب ان يتم التركيب فوق فرشه بيتون مع كل ما يلزم من مونه اسمنتيه 1:3 خلط بارتفاع 15 مم بين الصفوف المنشأة ورش المياه وجميع أعمال التشطيب ذات الصلة وفقا لتعليمات مهندس غول | F16: Supply and install hollow bricks (40*20 cm), block thickness (20) cm with 100kg/m³ density for completing internal and external walls and filling open holes. Half-bond the installation should carried out with all needed cement sand mortar (1:3) mix 15 mm between the constructed rows, water spraying, and all related finishing works according to the instruction of the GOAL Engineer. | G16: m²
A17: 15 | B17: Walls works أعمال الجدران | C17: Supply and installation of rock stone | D17: تقديم وتركيب حجرصخري | E17: توفير وتركيب حجر مصفط لتكميل و انشاء الجدران يجب ان يتم التركيب فوق فرشه بيتون مع كل ما يلزم من مونه اسمنتيه 1:3 خلط بارتفاع 15 مم بين الصفوف المنشأة ورش المياه وجميع أعمال التشطيب ذات الصلة وفقا لتعليمات مهندس غول | F17: supply and install hand fixed normal rock for completing walls the installation should carried out with all needed cement sand mortar (1:3) mix 15 mm between the constructed rows, water spraying, and all related finishing works according to the instruction of the GOAL Engineer. | G17: m²
A18: 16 | B18: Walls works أعمال الجدران | C18: installation of rock stone | D18: تركيب حجر صخري | E18: تركيب حجر مصفط لتكميل و انشاء الجدران يجب ان يتم التركيب فوق فرشه بيتون مع كل ما يلزم من مونه اسمنتيه 1:3 خلط بارتفاع 15 مم بين الصفوف المنشأة ورش المياه وجميع أعمال التشطيب ذات الصلة وفقا لتعليمات مهندس غول | F18: install hand fixed normal rock for completing walls the installation should carried out with all needed cement sand mortar (1:3) mix 15 mm between the constructed rows, water spraying, and all related finishing works according to the instruction of the GOAL Engineer. | G18: m2
A19: 17 | B19: Walls works أعمال الجدران | C19: stone frame for window or door | D19: اطار حجري للنوافذ والابواب | E19: توفير وتركيب شبر من الحجرالاصفر سماكة 5 سم وعرض يتناسب مع عرض الجدران للنوافذ والابواب الداخلية وزيادة 5 سم للخارجية لوزم اللابواب والنوافذ ( المينو +pvc) مع كل مايلزم | F19: supply and install stone frame 5 cm and width conforming with existing wall width plus 5 cms for Aluminum and PVC doors and windows With everything needed | G19: ml
A20: 18 | B20: Walls finishes works أعمال اكساء الجدران | C20: Emulsion paint | D20: دهان بلاستيكي | E20: دهان من نوع اكرليكي جيد يؤمن العزل وعلى ثلاث وجوه | F20: Good quality acrylic paint that provides insulation on three surfaces. | G20: m2
A21: 19 | B21: Walls finishes works أعمال اكساء الجدران | C21: Cement plastering for walls | D21: زريقة اسمنتية للجدران | E21: زريقة اسمنتيه (أقصى سمك 25 مم )في طبقتين (خشن ,ناعم) باستخدام اسمنت عيار 350كغ/م3 و نحاته خشنه للوجه الأول و ناعمه للوجه الثاني مع الرش بالماء يجب ان يكون السطح النهائي جاهزا للدهان حسب توجيهات مهندس غول | F21: Cement plastering (max thickness 25 mm) in two coats (coarse, fine) with using cement caliber is 350 kg/m³ coarse aggregate in the first layer and fine in the second with spraying with water, finish surface should be ready for painting according to the directive of GOAL Engineer. | G21: m²
A22: 20 | B22: Walls finishes works أعمال اكساء الجدران | C22: Cement plastering for walls one layer | D22: زريقة اسمنتية لجدران طبقة واحدة | E22: زريقة اسمنتيه (أقصى سمك 15 مم )طبقة واحدة (خشنة او ناعمة ) باستخدام اسمنت عيار 350كغ/م3 مع الرش بالماء يجب ان يكون السطح النهائي مستويا حسب توجيهات مهندس غول | F22: Cement plastering (max thickness 15 mm) in one coats (coarse or fine) with using cement caliber is 350 kg/m³ with spraying with water, finish surface should be ready for painting according to the directive of GOAL Engineer. | G22: m²
A23: 21 | B23: Walls finishes works أعمال اكساء الجدران | C23: Treating and filling cracks and holes in walls | D23: معالجة وملئ الشقوق والثقوب في الجدران | E23: معالجة وملئ الشقوق والفتحات ضمن الجدران ( مونة اسمنتية + سيلكون -معجون ) | F23: Fill (wall) with putty with all necessary | G23: m²
A24: 22 | B24: Walls finishes works أعمال اكساء الجدران | C24: Ceramic for walls | D24: سيراميك جدران | E24: تقديم تركيب بلاط سيراميك للجدران شامل المونه و الروبه. وكل مايلزم حسب توجهات المهندس المشرف | F24: Install ceramic wall tiles for walls including mortar, grout and all required according to the supervising Engineer recommendation | G24: m²
A25: 23 | B25: Floors finishes works أعمال اكساء الارضيات | C25: Ceramic flooring | D25: سيراميك ارضيات | E25: تقديم وتركيب سيراميك ارضيات مع الوزرة شامل الروبة والردم اسفل السيراميك بمادة االزرادة حتى 10 سم واستخدام مونة اسمنتية عيار 300 كغ/ م3 اسفل السيراميك بسماكة لاتقل عن 2 سم و كل ما يلزم لاتمام الأعمال | F25: Providing and installing ceramic floors including the floor skirting, and grout and backfilling under the ceramic with the fine gravel up to 10 cm, and the use of 300 kg / m3 cement mortar under the ceramic with a thickness of not less than 2 cm and all that is needed to complete the work | G25: m²
A26: 24 | B26: Floors finishes works أعمال اكساء الارضيات | C26: Stone tile flooring | D26: بلاط ارضيات | E26: تقديم و تركيب بلاط لجميع الارضيات متطابق مع البلاط المركب سابقا ضمن المنزل او حسب راي المهندس المشرف في حال عدم وجود نوع مطاببق مع توفير طبقات الرمل حتى 10 سم والمونة المطلوبة تحتها سماكة لاتقل عن 2 سم (البلاط مجلي) و الروبه. | F26: Providing and installing tiles for all floors matching to the tiles previously installed within the house or according to the opinion of the supervising engineer in the absence of a matching type, with providing the required layers of sand up to 10 cms and mortar not less than 2 cm under it (the tiles are polished and including grout. | G26: m²
A27: 25 | B27: Insulation works أعمال العزل | C27: waterproofing - acrylic based material | D27: عزل اكريليكي | E27: تقديم وتركيب مادة عزل اكريليكي على شكل طلاء (يوافق عليها المهندس المشرف قبل العمل) يجب طلاء السطح بالمادة جيدا حتى يتم تشبع البيتون بالكامل باستخدام الرول فقط أما للزوايا فيجب دهانها جيداحتى التصوينه ويجب طلاءها بارتفاع 20سم على الاقل يكون العمل وفق تعليمات وتوجيهات مهندس غول | F27: Supply and install vapor insulation material to be applied by painting. The surface should be painted with the material well until the concrete is fully saturated by the material, using the roller only. As for the corners, it should be painted well and at least 20cm high of the parapets should be painted by the material. Therefore, All work must be in accordance with the instructions and directions of the GOAL Engineer. | G27: m²
A28: 26 | B28: Doors and windows works أعمال الأبواب و النوافذ | C28: Wooden windows | D28: نوافذ خشبية | E28: توفير وتركيب شباك خشب مع مفصلتين وقفل وبلور 5 مم ومسكة ودهان وجهين مع الاساس ويشمل ذلك ملء الفراغات بين الجدار واطار الباب باستخدام المونة أو السيلكون | F28: supply and install a pine wooden casement window with 2 hinges for each side, 5 mm glazing, frame, lock and handles, and all other accessories, finished with under coat and two coats of paints) this includes filling the spaces between the wall and the door frame using mortar, silicon. | G28: m²
A29: 27 | B29: Doors and windows works أعمال الأبواب و النوافذ | C29: Wood door | D29: ابواب خشب | E29: تقديم تركيب باب من الخشب شامل (الكشف (الاطار) و الحاجب و الدعائم الجانبية القفل المقبض المفصلات و الزجاج) النصف العلوي للباب دعامات خشبيه بينها زجاج ز النصف السفلي دعامات خشب بينها الواح خشبيه وجميع الملحقات الأخرى مع طلاء طبقة اساس وطبقتين من الدهانات ويشمل ذلك ملء الفراغات بين الجدار واطار الباب باستخدام المونه أو السيلكون وفقا لتعليمات المهندس المشرف | F29: Install door, complete with (frame, casing, side jambs, lock, handle, hinges) the top half of the door is wooden mullions and glass, and the lower half is covered with wood panels finished with under coat and two coats of paints) this includes filling the spaces between the wall and the door frame using mortar, spraying foam, silicon. | G29: m²
A30: 28 | B30: Doors and windows works أعمال الأبواب و النوافذ | C30: repair of wooden door | D30: اصلاح باب خشبي | E30: اصلاح الباب الخشبي بما في ذلك إعادة تركيب القفل أو اغلاق فتحة تتراوح أبعادها بين 50 الي 100 سم في الطول و 20 الى 50سم في العرض مع جميع العناصر اللازمة لاكمال العمل | F30: Repair wooden door including reinstalling lock, hinge, handle, or close an opening that ranges in dimension between 50 to 100 cm in length and 20 to 50 cm in width with all necessary items to complete the work | G30: PCs
A31: 29 | B31: Doors and windows works أعمال الأبواب و النوافذ | C31: Steel door | D31: ابواب حديدية | E31: تقديم وتركيب أبواب حديدية بعرض يتراوح بين(80-110) سم وارتفاع مابين (180-220)سم بمقبض معدني، و كشف و اطار جانبي باستخدام زوايا حديد لا تقل عن 4*3سم سماكة الزوايا لاتقل عن 3 ملم ، الباب مغطى بصاج بسمك لا يقل عن 1.4 مم وزن المتر المربع من الباب لايزيد عن 45 كغ ,مع قفل ومفاتيح جيدة و 3 مفصلات (16مم) مع طبقة اساس وبخ وجهين من الطلاء الزيتي | F31: Supply and install of steel doors the width between (80-110) cm and height between (180-220) cm with metal handle, door jamb and frame L section at least 3X4 cm, covered with iron sheet thickness of at least 1.4 mm. The weight of the square meter of the door shall not exceed 45 Kg with Lock/keys and 3 hinges 16 mm spray painted with 1 layer of prime coat and 2 coats of oil-based paint | G31: KG
A32: 30 | B32: Doors and windows works أعمال الأبواب و النوافذ | C32: Steel window | D32: نوافذ حديدية | E32: تقديم وتركيب نافذة حديدية بعرض مابين (80-110)سم وارتفاع مابين (80-110)سم كشف واطار النافذة زاويه 3*4 سم مع زجاج النافذة (او بولي كربون) بوزن يقارب35كيلو و تزويد قفل و 2 مفصلات (12) مم لكل درفة مع طبقة اساس وبخ وجهين من الطلاء الزيتي | F32: Supply and install iron casement window the width between (80-110) cm and height between (80-110) cm window jamb and frame section L 3X4 cm with glass or fiberglass glazing , window Weight around 35 kg with a Lock and 2 hinges (12 mm) good quality for each side with spray painted with 1 layer of prime coat and 2 coats of oil-based paint | G32: KG
A33: 31 | B33: Doors and windows works أعمال الأبواب و النوافذ | C33: Repair steel door or window | D33: اصلاح باب او نافذه حديديه | E33: اصلاح الباب او النافذة الحديدية بما في ذلك غلق الفتحات وإعادة تثبيت القفل أو المفصلة أو المقبض أو اغلاق الفتحة بالواح الحديد سماكة لاتقل عن 1.4 مم واضافة قضيب حديد مسطح مع اللحام على الأبواب القديمة بأبعاد مختلفة مع جميع العناصر اللازمة لاكمال العمل | F33: Repair steel door or window including closing holes and reinstalling lock, hinge, handle, or close an opening with galvanized steel sheet thickness 1.4 mm and adding flat iron bar with welding on old doors with different dimension with all necessary items to complete the work | G33: PCs
A34: 32 | B34: Doors and windows works أعمال الأبواب و النوافذ | C34: Aluminum door | D34: باب المينوم | E34: تقديم وتركيب باب الالمنيوم مع اطار بعرض 6 سم و وعواميد جانبية وقفل ومقبض مع الواح حشو pvcوالقضبان الوسطى ويشمل ذلك ملء الفراغات بين الجدار واطار الباب باستخدام المونه و السيلكون | F34: Supply and install painted aluminum door width 6 cm with frame, side jambs, lock, handle with the installation PVC infill panels and middle bars this includes filling the spaces between the wall and the door frame using mortar, silicon. | G34: m²
A35: 33 | B35: Doors and windows works أعمال الأبواب و النوافذ | C35: Aluminum window | D35: نافذة المينوم | E35: تركيب نافذة المنيوم مطلية كاملة مع الاطار .زجاج مثبت ومختوم بالمطاط.قفل .بكرات سحاب وجميع الملحقات اللازمة ومع الغربول ويشمل ذلك ملء الفراغات بين الجدار واطار الباب باستخدام مونه و السيلكون | F35: Install aluminum window complete with the frame, glazing fixed by glazing bead and sealed with rubber, lock, rollers, sliding panel, weather stripping, and all necessary accessories and wire mesh fly screen. this includes filling the spaces between the wall and the door frame using mortar, silicon. | G35: m²
A36: 34 | B36: Doors and windows works أعمال الأبواب و النوافذ | C36: PVC door | D36: باب pvc | E36: تقديم وتركيب باب PVC جاهز من ماركة جيدة باللون البني أو الأبيض شاملاً جميع الملحقات. يجب ألا تقل سماكة جميع مقاطع المقاطع الجانبية PVC عن 1،8 مم. يتم تثبيت الزجاج بحشوات مطاطية غير قابلة للتحلل على كلا الطرفين. يجب تثبيت الإطار جيدًا على الحائط بواسطة البراغي ، وملء الفراغات بين الجدار وإطار الباب باستخدام المونة و السيليكون يشمل السعر تعديل أبعاد الأبواب مسبقه الصنع داخل المنزل لتتناسب مع أبعاد الأبواب الجاهزة والمتاحة في السوق. | F36: Supply and install ready-made PVC door brown or white color including all accessories. All PVC profile sections should be with thickness not less than 1,8 mm. The glass to be fixed with non-degradable rubber gaskets on both ends. The frame should be fixed well on the wall with screws and filling the spaces between the wall and the door frame using Mortar, spraying foam, silicon. The price includes adjusting the dimensions of the doors inside the house to match the dimensions of the readymade doors available on the market. | G36: PCs
A37: 35 | B37: Doors and windows works أعمال الأبواب و النوافذ | C37: PVC window | D37: نافذة pvc | E37: تقديم وتركيب نافذة PVC الجاهزة باللون البني أو الأبيض بما في ذلك جميع الملحقات. يجب ألا تقل سماكة جميع مقاطع المقاطع الجانبية PVC عن 1،8 مم. يتم تثبيت الزجاج بحشوات مطاطية غير قابلة للتحلل على كلا الطرفين. يجب تثبيت الإطار جيدًا على الحائط بواسطة البراغي ، وملء الفراغات بين الحائط وإطار الباب باستخدام المونة أو السيليكون. | F37: Supply and install ready-made PVC window in brown or white color including all accessories. All PVC profile sections should be with thickness not less than 1,8 mm. The glass to be fixed with non-degradable rubber gaskets on both ends. The frame should be fixed well on the wall with screws and filling the spaces between the wall and the door frame using Mortar, silicon. | G37: PCs
A38: 36 | B38: Doors and windows works أعمال الأبواب و النوافذ | C38: Maintenance of Aluminum or PVC doors and windows | D38: صيانة ابواب ونوافذ المينوم و pvc | E38: صيانة الالمنيوم أو pvc(الأبواب والنوافذ) شامل تبديل الفصالات الايادي اغلاق الثقوب اصلاح السكك | F38: Maintenance of Aluminum or PVC Items (doors and windows)including hinges, handles, closing holes, maintenance of rails. | G38: PCs
A39: 37 | B39: Doors and windows works أعمال الأبواب و النوافذ | C39: glazing-glass | D39: زجاج | E39: تقديم وتركيب زجاج سماكة لاتقل عن 4 مم للنوافذ و الابواب مع كل مايلزم لاتمام العمل | F39: Supply and install glass plates plate thickness of 4 mm for doors and window, with all necessary to complete the work | G39: m²
A40: 38 | B40: Steel works أعمال الحديد المشغول | C40: steel handrail | D40: دارابزون فولاذي | E40: تقديم و تركيب أدوات الأمان لمنع السقوط مثل الدرابزين المعدني الذي لايقل ارتفاعه عن 90 سم أو 40 سم في حاله لاستخدام من قبل ذووي الاحتياجات الخاصه الذين يستخدمون الكراسي المتحركه | F40: Supply and Install safety tools to prevent falls, such as steel handrails not less than 90cm high or 40 cm height for the use of people living with disability using wheelchair | G40: kg
A41: 39 | B41: Steel works أعمال الحديد المشغول | C41: steel security bars | D41: شبك حماية حديدية | E41: تقديم و تركيب شبك من مبسطات حديد ( مع غربول ناعم ) لنافذة مع التبيتث وكل ما يلزم لاتمام العمل | F41: Supply and Install window's steel security bars, steel plates with mesh screen with all necessary to complete the work | G41: kg
A42: 40 | B42: Steel works أعمال الحديد المشغول | C42: tiled handles for PLWD | D42: قبضة معدنية للمعاقين | E42: تقديم وتركيب قبضة مسند معدنية | F42: Supply and Install steel handles | G42: kg
A43: 41 | B43: Steel works أعمال الحديد المشغول | C43: steel roofing | D43: سقف معدني | E43: تقديم وتركيب سقف مصنوع من التوتياء المموج ( التوتة) 0.5 مم وتثبيته باستخدام بروفيل حديدي في اتجاهين (0.2*3*5)سم بمسافة 1متر مع تثبيت بالمسمار وسد أي فتحات بين السقف والجدار باستخدام مونة اسمنتية | F43: Supply and install roof made of galvanized corrugated sheet 0.5 mm and fixing by using steel profile in two direction (5x3x0.2) cm with 1 m spacing, fixing with screw and sealing off any openings between ceiling and wall using cement mortar | G43: m²
A44: 42 | B44: Electrical works الاعمال الكهربائية | C44: LED light bulb | D44: لمبة اضاءة ليد | E44: توفير وتركيب لمبة LED شامل حامل اللمبه (السوكه) و توصيلها لاقرب مصدر كهرباء في المنزل | F44: Provision and installation of LED light bulb and holder and connect it to the nearest electricity source in the house | G44: PCs
A45: 43 | B45: Electrical works الاعمال الكهربائية | C45: LED light strip | D45: شريط اضاءة ليد | E45: تقديم و تثبيت شريط إضاءة لدات مع كبسات | F45: Supply and Install led light strip with switch's | G45: m
A46: 44 | B46: Electrical works الاعمال الكهربائية | C46: Light point | D46: نقطة ضوئية | E46: تقديم وتركيب نقطة إنارة كهربائية. بما في ذلك وصل النقطه بكابل عادي منفرد ومجدول بسمك (2 مم) مصنوع من النحاس مع العناصر الضرورية مثل: شريط لاصق للتمديد المخفي ، قناة بلاستيكية قبل الزريقة ، قطع توزيع إذا لزم الأمر ، شاسيه ، غطاء ، مفتاح ، لمبة( 12 -220 ) وات للمرافق و لمبة 20 وات للغرف مع وصلها لاقرب مصدر كهرباء في المنزل | F46: supply and installation of electrical lighting point, including installation of a single and braided regular cable with a thickness of (2 mm) made of copper with the necessary items such as: duct tape for concealed extension, plastic channel before plastering, distribution boxes if needed, chassis, cover, switch, (12-220) watts bulb for utilities, 20 watts bulb for rooms, and the connection to the nearest power point in the house. | G46: PCs
A47: 45 | B47: Electrical works الاعمال الكهربائية | C47: The pre-installed electrical Light point | D47: نقطة ضوئية مؤسسة مسبقا | E47: تقديم وتركيب نقطة إنارة كهربائية. بما في ذلك وصل النقطه بكابل عادي منفرد ومجدول بسمك (2 مم) مصنوع من النحاس مع العناصر الضرورية مثل: شريط لاصق للتمديد المخفي ، قناة بلاستيكية قبل الزريقة ، قطع توزيع إذا لزم الأمر ، شاسيه ، غطاء ، مفتاح ، لمبة( 12 -220 ) وات للمرافق و لمبة 20 وات للغرف مع وصلها لاقرب مصدر كهرباء في المنزل | F47: supply and installation of electrical lighting point, including installation of a single and braided regular cable with a thickness of (2 mm) made of copper with the necessary items such as: duct tape for concealed extension, plastic channel before plastering, distribution boxes if needed, chassis, cover, switch, (12-220) watts bulb for utilities, 20 watts bulb for rooms, and the connection to the nearest power point in the house. | G47: PCs
A48: 46 | B48: Electrical works الاعمال الكهربائية | C48: electrical socket | D48: مقبس كهربائي | E48: تقديم وتركيب مقبس كهربائي للاستخدام االداخلي أوالخارجي الصين او ما يعادلها ، 250V ، 10 A شامل الشاسيه و الغطاء ووصله لاقرب نقطه كهرباء باسلاك 2.5 ملم 2 من النحاس وفقا لجميع القوانين واللوائح المعمول بها وكما وافق عليها مهندس غول | F48: Supply and install electrical socket outlet, for internal a, 250V, 10 A including the chassis and the cover and connecting it to the nearest power source with 2.5 mm copper wires in accordance with all applicable codes and regulations and as approved by the site engineer | G48: PCs
A49: 47 | B49: Electrical works الاعمال الكهربائية | C49: Electrical outlet point | D49: قاطع منصهر | E49: تقديم وتركيب قاطع 32 امبير مع لوحة كهربائية | F49: Supply and installation of 32 A outlet with electrical panel | G49: PCs
A50: 48 | B50: Electrical works الاعمال الكهربائية | C50: PV panel 250 Watt | D50: لوح طاقة شمسية 250 واط | E50: تركيب الألواح الشمسية الكهروضوئية ، 250 وات ، 12 فولت بزاوية إمالة 25 درجة مع وسيلة لحماية الألواح | F50: Install a solar PV panels, 250-Watt, 12 V with 25 degrees tilting angle with a way to protect the panels | G50: PCs
A51: 49 | B51: Electrical works الاعمال الكهربائية | C51: Charge controller | D51: منظم شحن | E51: تركيب منظم شحن 30 أمبير مع جميع الملحقات ذات الصلة | F51: Install a 30-amp charge controller with all related accessories | G51: PCs
A52: 50 | B52: Electrical works الاعمال الكهربائية | C52: Liquid battery | D52: بطارية سائلة | E52: توفير وتركيب بطارية سائلة بسعة 240 أمبير ، 12 فولت وزن لايقل عن 65 كغ بكل ما يلزم | F52: supply and install Liquid battery, with capacity 240 A, 12V weight is not less than 65 Kg with all needed | G52: PCs
A53: 51 | B53: Electrical works الاعمال الكهربائية | C53: Inverter | D53: انفرتر | E53: توفير وتركيب انفرتر فولترونيك اوريجينال باستطاعة 1000 واط أحادي الطور بجميع قواطع الحماية وملحقاتها 12 فولط | F53: Providing and installing Inverter Voltronic Original with a capacity of 1000 watts single-phase with all protection circuit breakers and accessories 12 volts | G53: PCs
A54: 52 | B54: Electrical works الاعمال الكهربائية | C54: PV panels mounting structure | D54: قاعدة لتركيب الواح الطاقة الشمسية | E54: تركيب قاعدة معدنية لألواح الشمسية الكهروضوئية ، وتشمل الأعمال زوايا حديد3*4 سم او فوارغ حديدية 3*3 سم والبراغي والتثبيت بالمبنى دون التأثير على سلامة أسطح العزل المائي. | F54: Install an iron structure to mount the solar PV panels, the works include steel angles 3x4 cm or steel tubes 3x3 cm include all related clamps, screws, fixation to the building without affecting the roofs water proofing integrity. | G54: kg
A55: 53 | B55: Electrical works الاعمال الكهربائية | C55: 10 mm electrical cable | D55: سلك كهرباء 10 ملم2 | E55: توفير وتركيب كبل نحاسي 10 مم 2 يستخدم للطاقة الشمسية بكل ما يلزم | F55: supply and install of copper cable 10 mm2 used for solar energy with all needed | G55: m
A56: 54 | B56: Plumbing and sanitation and water supply works أعمال التغذية والصرف الصحي | C56: Porcelain washbasin | D56: مغسلة بورسلان | E56: تقديم وتركيب مغسلة بورسلان بعمود بأبعاد (55x43) سم مع الإكسسوارات والتثبيت على الحائط مع إضافة سيليكون أبيض أو شفاف لسد الفجوات بين الحوض ومحيطه حسب توجيهات مهندس غول. | F56: Supply and install of porcelain washbasin with a column, with dimension (55x43) cm and with accessories and fixing on wall with adding white or transparent silicon to close the gaps between the sink and its surrounding according to the field and the directive of GOAL Engineer. | G56: PCs
A57: 55 | B57: Plumbing and sanitation and water supply works أعمال التغذية والصرف الصحي | C57: water tap | D57: حنفية ماء | E57: تقديم و تركيب حنفية مياه نحاس مع كل ما يلزم لإكمال العمل | F57: Install a copper core water tap, with all necessary to complete the work | G57: PCs
